Workbook

Sheet 월별 설비용량
L2: 년월 | M2: 신에너지 | O2: 재생에너지 | AC2: 합계
A3: 년월 | B3: 신에너지 | D3: 재생에너지 | J3: 합계 | T3: 바이오에너지 | Y3: 폐기물에너지
B4: 연료전지 | C4: IGCC | D4: 태양에너지 | E4: 풍력 | F4: 수력 | G4: 해양에너지 | H4: 바이오에너지 | I4: 폐기물 | M4: 연료전지 | N4: IGCC | O4: 태양광 | P4: 풍력 | Q4: 수력 | R4: 소수력 | S4: 해양에너지 | T4: 바이오가스 | U4: 매립가스 | V4: 바이오매스 | W4: 바이오중유 | X4: 소계 | Y4: 부생가스 | Z4: 폐가스 | AA4: 폐기물 | AB4: 소계
A5: 2022-12-31 | B5: =M5 -> 871.868 | C5: =N5 -> 346.33 | D5: =O5 -> 6878.365 | E5: =P5 -> 1892.233 | F5: =Q5+R5 -> 1803.024 | G5: =S5 -> 255.5 | H5: =X5 -> 1787.067 | I5: =AB5 -> 0 | J5: =AC5 -> 13834.387 | L5: 2022-12-31 | M5: =INDEX('202212'!$B$5:$C$29,MATCH('월별 설비용량'!M$4,'202212'!$B$5:$B$29,0),2) -> 871.868 | N5: =INDEX('202212'!$B$5:$C$29,MATCH('월별 설비용량'!N$4,'202212'!$B$5:$B$29,0),2) -> 346.33 | O5: =INDEX('202212'!$B$5:$C$29,MATCH('월별 설비용량'!O$4,'202212'!$B$5:$B$29,0),2) -> 6878.365 | P5: =INDEX('202212'!$B$5:$C$29,MATCH('월별 설비용량'!P$4,'202212'!$B$5:$B$29,0),2) -> 1892.233 | Q5: =INDEX('202212'!$B$5:$C$29,MATCH('월별 설비용량'!Q$4,'202212'!$B$5:$B$29,0),2) -> 1609.852 | R5: =INDEX('202212'!$B$5:$C$29,MATCH('월별 설비용량'!R$4,'202212'!$B$5:$B$29,0),2) -> 193.172 | S5: =INDEX('202212'!$B$5:$C$29,MATCH('월별 설비용량'!S$4,'202212'!$B$5:$B$29,0),2) -> 255.5 | T5: =INDEX('202212'!$B$5:$C$29,MATCH('월별 설비용량'!T$4,'202212'!$B$5:$B$29,0),2) -> 85.32 | U5: =INDEX('202212'!$B$5:$C$29,MATCH('월별 설비용량'!U$4,'202212'!$B$5:$B$29,0),2) -> 63.734 | V5: =INDEX('202212'!$B$5:$C$29,MATCH('월별 설비용량'!V$4,'202212'!$B$5:$B$29,0),2) -> 1248.013 | W5: =INDEX('202212'!$B$5:$C$29,MATCH('월별 설비용량'!W$4,'202212'!$B$5:$B$29,0),2) -> 390 | X5: =SUM(T5:W5) -> 1787.067 | Y5: 0 | Z5: 0 | AA5: 0 | AB5: =SUM(Y5:AA5) -> 0 | AC5: =M5+N5+O5+P5+Q5+R5+S5+X5+AB5 -> 13834.387
A6: 2022-11-30 | B6: =M6 -> 871.868 | C6: =N6 -> 346.33 | D6: =O6 -> 6791.779 | E6: =P6 -> 1798.533 | F6: =Q6+R6 -> 1803.024 | G6: =S6 -> 255.5 | H6: =X6 -> 1787.067 | I6: =AB6 -> 0 | J6: =AC6 -> 13654.101 | L6: 2022-11-30 | M6: =INDEX('202211'!$B$5:$C$29,MATCH('월별 설비용량'!M$4,'202211'!$B$5:$B$29,0),2) -> 871.868 | N6: =INDEX('202211'!$B$5:$C$29,MATCH('월별 설비용량'!N$4,'202211'!$B$5:$B$29,0),2) -> 346.33 | O6: =INDEX('202211'!$B$5:$C$29,MATCH('월별 설비용량'!O$4,'202211'!$B$5:$B$29,0),2) -> 6791.779 | P6: =INDEX('202211'!$B$5:$C$29,MATCH('월별 설비용량'!P$4,'202211'!$B$5:$B$29,0),2) -> 1798.533 | Q6: =INDEX('202211'!$B$5:$C$29,MATCH('월별 설비용량'!Q$4,'202211'!$B$5:$B$29,0),2) -> 1609.852 | R6: =INDEX('202211'!$B$5:$C$29,MATCH('월별 설비용량'!R$4,'202211'!$B$5:$B$29,0),2) -> 193.172 | S6: =INDEX('202211'!$B$5:$C$29,MATCH('월별 설비용량'!S$4,'202211'!$B$5:$B$29,0),2) -> 255.5 | T6: =INDEX('202211'!$B$5:$C$29,MATCH('월별 설비용량'!T$4,'202211'!$B$5:$B$29,0),2) -> 85.32 | U6: =INDEX('202211'!$B$5:$C$29,MATCH('월별 설비용량'!U$4,'202211'!$B$5:$B$29,0),2) -> 63.734 | V6: =INDEX('202211'!$B$5:$C$29,MATCH('월별 설비용량'!V$4,'202211'!$B$5:$B$29,0),2) -> 1248.013 | W6: =INDEX('202211'!$B$5:$C$29,MATCH('월별 설비용량'!W$4,'202211'!$B$5:$B$29,0),2) -> 390 | X6: =SUM(T6:W6) -> 1787.067 | Y6: 0 | Z6: 0 | AA6: 0 | AB6: =SUM(Y6:AA6) -> 0 | AC6: =M6+N6+O6+P6+Q6+R6+S6+X6+AB6 -> 13654.101
A7: 2022-10-31 | B7: =M7 -> 860.068 | C7: =N7 -> 346.33 | D7: =O7 -> 6720.086 | E7: =P7 -> 1774.533 | F7: =Q7+R7 -> 1803.024 | G7: =S7 -> 255.5 | H7: =X7 -> 1787.356 | I7: =AB7 -> 0 | J7: =AC7 -> 13546.897 | L7: 2022-10-31 | M7: =INDEX('202210'!$B$5:$C$29,MATCH('월별 설비용량'!M$4,'202210'!$B$5:$B$29,0),2) -> 860.068 | N7: =INDEX('202210'!$B$5:$C$29,MATCH('월별 설비용량'!N$4,'202210'!$B$5:$B$29,0),2) -> 346.33 | O7: =INDEX('202210'!$B$5:$C$29,MATCH('월별 설비용량'!O$4,'202210'!$B$5:$B$29,0),2) -> 6720.086 | P7: =INDEX('202210'!$B$5:$C$29,MATCH('월별 설비용량'!P$4,'202210'!$B$5:$B$29,0),2) -> 1774.533 | Q7: =INDEX('202210'!$B$5:$C$29,MATCH('월별 설비용량'!Q$4,'202210'!$B$5:$B$29,0),2) -> 1609.852 | R7: =INDEX('202210'!$B$5:$C$29,MATCH('월별 설비용량'!R$4,'202210'!$B$5:$B$29,0),2) -> 193.172 | S7: =INDEX('202210'!$B$5:$C$29,MATCH('월별 설비용량'!S$4,'202210'!$B$5:$B$29,0),2) -> 255.5 | T7: =INDEX('202210'!$B$5:$C$29,MATCH('월별 설비용량'!T$4,'202210'!$B$5:$B$29,0),2) -> 85.609 | U7: =INDEX('202210'!$B$5:$C$29,MATCH('월별 설비용량'!U$4,'202210'!$B$5:$B$29,0),2) -> 63.734 | V7: =INDEX('202210'!$B$5:$C$29,MATCH('월별 설비용량'!V$4,'202210'!$B$5:$B$29,0),2) -> 1248.013 | W7: =INDEX('202210'!$B$5:$C$29,MATCH('월별 설비용량'!W$4,'202210'!$B$5:$B$29,0),2) -> 390 | X7: =SUM(T7:W7) -> 1787.356 | Y7: 0 | Z7: 0 | AA7: 0 | AB7: =SUM(Y7:AA7) -> 0 | AC7: =M7+N7+O7+P7+Q7+R7+S7+X7+AB7 -> 13546.897
A8: 2022-09-30 | B8: 843.068 | C8: 346.33 | D8: 6658.877 | E8: 1774.533 | F8: 1803.024 | G8: 255.5 | H8: 1787.356 | I8: 0 | J8: 13468.688 | L8: 2022-09-30 | M8: =INDEX('202209'!$B$5:$C$29,MATCH('월별 설비용량'!M$4,'202209'!$B$5:$B$29,0),2) -> 843.068 | N8: =INDEX('202209'!$B$5:$C$29,MATCH('월별 설비용량'!N$4,'202209'!$B$5:$B$29,0),2) -> 346.33 | O8: =INDEX('202209'!$B$5:$C$29,MATCH('월별 설비용량'!O$4,'202209'!$B$5:$B$29,0),2) -> 6658.877 | P8: =INDEX('202209'!$B$5:$C$29,MATCH('월별 설비용량'!P$4,'202209'!$B$5:$B$29,0),2) -> 1774.533 | Q8: =INDEX('202209'!$B$5:$C$29,MATCH('월별 설비용량'!Q$4,'202209'!$B$5:$B$29,0),2) -> 1609.852 | R8: =INDEX('202209'!$B$5:$C$29,MATCH('월별 설비용량'!R$4,'202209'!$B$5:$B$29,0),2) -> 193.172 | S8: =INDEX('202209'!$B$5:$C$29,MATCH('월별 설비용량'!S$4,'202209'!$B$5:$B$29,0),2) -> 255.5 | T8: =INDEX('202209'!$B$5:$C$29,MATCH('월별 설비용량'!T$4,'202209'!$B$5:$B$29,0),2) -> 85.609 | U8: =INDEX('202209'!$B$5:$C$29,MATCH('월별 설비용량'!U$4,'202209'!$B$5:$B$29,0),2) -> 63.734 | V8: =INDEX('202209'!$B$5:$C$29,MATCH('월별 설비용량'!V$4,'202209'!$B$5:$B$29,0),2) -> 1248.013 | W8: =INDEX('202209'!$B$5:$C$29,MATCH('월별 설비용량'!W$4,'202209'!$B$5:$B$29,0),2) -> 390 | X8: =SUM(T8:W8) -> 1787.356 | Y8: 0 | Z8: 0 | AA8: 0 | AB8: =SUM(Y8:AA8) -> 0 | AC8: =M8+N8+O8+P8+Q8+R8+S8+X8+AB8 -> 13468.688
A9: 2022-08-31 | B9: =M9 -> 825.668 | C9: =N9 -> 346.33 | D9: =O9 -> 6493.738 | E9: =P9 -> 1753.533 | F9: =Q9+R9 -> 1803.024 | G9: =S9 -> 255.5 | H9: =X9 -> 1787.356 | I9: =AB9 -> 0 | J9: =AC9 -> 13265.149 | L9: 2022-08-31 | M9: =INDEX('202208'!$B$5:$C$29,MATCH('월별 설비용량'!M$4,'202208'!$B$5:$B$29,0),2) -> 825.668 | N9: =INDEX('202208'!$B$5:$C$29,MATCH('월별 설비용량'!N$4,'202208'!$B$5:$B$29,0),2) -> 346.33 | O9: =INDEX('202208'!$B$5:$C$29,MATCH('월별 설비용량'!O$4,'202208'!$B$5:$B$29,0),2) -> 6493.738 | P9: =INDEX('202208'!$B$5:$C$29,MATCH('월별 설비용량'!P$4,'202208'!$B$5:$B$29,0),2) -> 1753.533 | Q9: =INDEX('202208'!$B$5:$C$29,MATCH('월별 설비용량'!Q$4,'202208'!$B$5:$B$29,0),2) -> 1609.852 | R9: =INDEX('202208'!$B$5:$C$29,MATCH('월별 설비용량'!R$4,'202208'!$B$5:$B$29,0),2) -> 193.172 | S9: =INDEX('202208'!$B$5:$C$29,MATCH('월별 설비용량'!S$4,'202208'!$B$5:$B$29,0),2) -> 255.5 | T9: =INDEX('202208'!$B$5:$C$29,MATCH('월별 설비용량'!T$4,'202208'!$B$5:$B$29,0),2) -> 85.609 | U9: =INDEX('202208'!$B$5:$C$29,MATCH('월별 설비용량'!U$4,'202208'!$B$5:$B$29,0),2) -> 63.734 | V9: =INDEX('202208'!$B$5:$C$29,MATCH('월별 설비용량'!V$4,'202208'!$B$5:$B$29,0),2) -> 1248.013 | W9: =INDEX('202208'!$B$5:$C$29,MATCH('월별 설비용량'!W$4,'202208'!$B$5:$B$29,0),2) -> 390 | X9: =SUM(T9:W9) -> 1787.356 | Y9: 0 | Z9: 0 | AA9: 0 | AB9: =SUM(Y9:AA9) -> 0 | AC9: =M9+N9+O9+P9+Q9+R9+S9+X9+AB9 -> 13265.149
A10: 2022-07-31 | B10: =M10 -> 809.828 | C10: =N10 -> 346.33 | D10: =O10 -> 6360.156 | E10: =P10 -> 1753.533 | F10: =Q10+R10 -> 1803.024 | G10: =S10 -> 255.5 | H10: =X10 -> 1744.356 | I10: =AB10 -> 0 | J10: =AC10 -> 13072.727 | L10: 2022-07-31 | M10: =INDEX('202207'!$B$5:$C$29,MATCH('월별 설비용량'!M$4,'202207'!$B$5:$B$29,0),2) -> 809.828 | N10: =INDEX('202207'!$B$5:$C$29,MATCH('월별 설비용량'!N$4,'202207'!$B$5:$B$29,0),2) -> 346.33 | O10: =INDEX('202207'!$B$5:$C$29,MATCH('월별 설비용량'!O$4,'202207'!$B$5:$B$29,0),2) -> 6360.156 | P10: =INDEX('202207'!$B$5:$C$29,MATCH('월별 설비용량'!P$4,'202207'!$B$5:$B$29,0),2) -> 1753.533 | Q10: =INDEX('202207'!$B$5:$C$29,MATCH('월별 설비용량'!Q$4,'202207'!$B$5:$B$29,0),2) -> 1609.852 | R10: =INDEX('202207'!$B$5:$C$29,MATCH('월별 설비용량'!R$4,'202207'!$B$5:$B$29,0),2) -> 193.172 | S10: =INDEX('202207'!$B$5:$C$29,MATCH('월별 설비용량'!S$4,'202207'!$B$5:$B$29,0),2) -> 255.5 | T10: =INDEX('202207'!$B$5:$C$29,MATCH('월별 설비용량'!T$4,'202207'!$B$5:$B$29,0),2) -> 85.609 | U10: =INDEX('202207'!$B$5:$C$29,MATCH('월별 설비용량'!U$4,'202207'!$B$5:$B$29,0),2) -> 63.734 | V10: =INDEX('202207'!$B$5:$C$29,MATCH('월별 설비용량'!V$4,'202207'!$B$5:$B$29,0),2) -> 1245.013 | W10: =INDEX('202207'!$B$5:$C$29,MATCH('월별 설비용량'!W$4,'202207'!$B$5:$B$29,0),2) -> 350 | X10: =SUM(T10:W10) -> 1744.356 | Y10: 0 | Z10: 0 | AA10: 0 | AB10: =SUM(Y10:AA10) -> 0 | AC10: =M10+N10+O10+P10+Q10+R10+S10+X10+AB10 -> 13072.727
A11: 2022-06-30 | B11: =M11 -> 800.228 | C11: =N11 -> 346.33 | D11: =O11 -> 6290.191 | E11: =P11 -> 1753.533 | F11: =Q11+R11 -> 1802.944 | G11: =S11 -> 255.5 | H11: =X11 -> 1744.356 | I11: =AB11 -> 0 | J11: =AC11 -> 12993.082 | L11: 2022-06-30 | M11: =INDEX('202206'!$B$5:$C$29,MATCH('월별 설비용량'!M$4,'202206'!$B$5:$B$29,0),2) -> 800.228 | N11: =INDEX('202206'!$B$5:$C$29,MATCH('월별 설비용량'!N$4,'202206'!$B$5:$B$29,0),2) -> 346.33 | O11: =INDEX('202206'!$B$5:$C$29,MATCH('월별 설비용량'!O$4,'202206'!$B$5:$B$29,0),2) -> 6290.191 | P11: =INDEX('202206'!$B$5:$C$29,MATCH('월별 설비용량'!P$4,'202206'!$B$5:$B$29,0),2) -> 1753.533 | Q11: =INDEX('202206'!$B$5:$C$29,MATCH('월별 설비용량'!Q$4,'202206'!$B$5:$B$29,0),2) -> 1609.852 | R11: =INDEX('202206'!$B$5:$C$29,MATCH('월별 설비용량'!R$4,'202206'!$B$5:$B$29,0),2) -> 193.092 | S11: =INDEX('202206'!$B$5:$C$29,MATCH('월별 설비용량'!S$4,'202206'!$B$5:$B$29,0),2) -> 255.5 | T11: =INDEX('202206'!$B$5:$C$29,MATCH('월별 설비용량'!T$4,'202206'!$B$5:$B$29,0),2) -> 85.609 | U11: =INDEX('202206'!$B$5:$C$29,MATCH('월별 설비용량'!U$4,'202206'!$B$5:$B$29,0),2) -> 63.734 | V11: =INDEX('202206'!$B$5:$C$29,MATCH('월별 설비용량'!V$4,'202206'!$B$5:$B$29,0),2) -> 1245.013 | W11: =INDEX('202206'!$B$5:$C$29,MATCH('월별 설비용량'!W$4,'202206'!$B$5:$B$29,0),2) -> 350 | X11: =SUM(T11:W11) -> 1744.356 | Y11: 0 | Z11: 0 | AA11: 0 | AB11: =SUM(Y11:AA11) -> 0 | AC11: =M11+N11+O11+P11+Q11+R11+S11+X11+AB11 -> 12993.082
A12: 2022-05-31 | B12: 800.228 | C12: 346.33 | D12: 6270.92 | E12: 1753.533 | F12: 1811.142 | G12: 255.5 | H12: 1744.356 | I12: 0 | J12: 12982.009 | L12: 2022-05-31 | M12: =INDEX('202205'!$B$5:$C$29,MATCH('월별 설비용량'!M$4,'202205'!$B$5:$B$29,0),2) -> 800.228 | N12: =INDEX('202205'!$B$5:$C$29,MATCH('월별 설비용량'!N$4,'202205'!$B$5:$B$29,0),2) -> 346.33 | O12: =INDEX('202205'!$B$5:$C$29,MATCH('월별 설비용량'!O$4,'202205'!$B$5:$B$29,0),2) -> 6270.92 | P12: =INDEX('202205'!$B$5:$C$29,MATCH('월별 설비용량'!P$4,'202205'!$B$5:$B$29,0),2) -> 1753.533 | Q12: =INDEX('202205'!$B$5:$C$29,MATCH('월별 설비용량'!Q$4,'202205'!$B$5:$B$29,0),2) -> 1609.852 | R12: =INDEX('202205'!$B$5:$C$29,MATCH('월별 설비용량'!R$4,'202205'!$B$5:$B$29,0),2) -> 201.29 | S12: =INDEX('202205'!$B$5:$C$29,MATCH('월별 설비용량'!S$4,'202205'!$B$5:$B$29,0),2) -> 255.5 | T12: =INDEX('202205'!$B$5:$C$29,MATCH('월별 설비용량'!T$4,'202205'!$B$5:$B$29,0),2) -> 85.609 | U12: =INDEX('202205'!$B$5:$C$29,MATCH('월별 설비용량'!U$4,'202205'!$B$5:$B$29,0),2) -> 63.734 | V12: =INDEX('202205'!$B$5:$C$29,MATCH('월별 설비용량'!V$4,'202205'!$B$5:$B$29,0),2) -> 1245.013 | W12: =INDEX('202205'!$B$5:$C$29,MATCH('월별 설비용량'!W$4,'202205'!$B$5:$B$29,0),2) -> 350 | X12: 1744.356 | Y12: 0 | Z12: 0 | AA12: 0 | AB12: 0 | AC12: 12982.009
A13: 2022-04-30 | B13: 800.228 | C13: 346.33 | D13: 6202.126 | E13: 1734.733 | F13: 1811.142 | G13: 255.5 | H13: 1744.356 | I13: 0 | J13: 12894.415 | L13: 2022-04-30 | M13: =INDEX('202204'!$B$5:$C$29,MATCH('월별 설비용량'!M$4,'202204'!$B$5:$B$29,0),2) -> 800.228 | N13: =INDEX('202204'!$B$5:$C$29,MATCH('월별 설비용량'!N$4,'202204'!$B$5:$B$29,0),2) -> 346.33 | O13: =INDEX('202204'!$B$5:$C$29,MATCH('월별 설비용량'!O$4,'202204'!$B$5:$B$29,0),2) -> 6202.126 | P13: =INDEX('202204'!$B$5:$C$29,MATCH('월별 설비용량'!P$4,'202204'!$B$5:$B$29,0),2) -> 1734.733 | Q13: =INDEX('202204'!$B$5:$C$29,MATCH('월별 설비용량'!Q$4,'202204'!$B$5:$B$29,0),2) -> 1609.852 | R13: =INDEX('202204'!$B$5:$C$29,MATCH('월별 설비용량'!R$4,'202204'!$B$5:$B$29,0),2) -> 201.29 | S13: =INDEX('202204'!$B$5:$C$29,MATCH('월별 설비용량'!S$4,'202204'!$B$5:$B$29,0),2) -> 255.5 | T13: =INDEX('202204'!$B$5:$C$29,MATCH('월별 설비용량'!T$4,'202204'!$B$5:$B$29,0),2) -> 85.609 | U13: =INDEX('202204'!$B$5:$C$29,MATCH('월별 설비용량'!U$4,'202204'!$B$5:$B$29,0),2) -> 63.734 | V13: =INDEX('202204'!$B$5:$C$29,MATCH('월별 설비용량'!V$4,'202204'!$B$5:$B$29,0),2) -> 1245.013 | W13: =INDEX('202204'!$B$5:$C$29,MATCH('월별 설비용량'!W$4,'202204'!$B$5:$B$29,0),2) -> 350 | X13: 1744.356 | Y13: 0 | Z13: 0 | AA13: 0 | AB13: 0 | AC13: 12894.415
A14: 2022-03-31 | B14: 787.908 | C14: 346.33 | D14: 6144.654 | E14: 1726.733 | F14: 1811.142 | G14: 255.5 | H14: 1744.356 | I14: 0 | J14: 12816.623 | L14: 2022-03-31 | M14: =INDEX('202203'!$B$5:$C$29,MATCH('월별 설비용량'!M$4,'202203'!$B$5:$B$29,0),2) -> 787.908 | N14: =INDEX('202203'!$B$5:$C$29,MATCH('월별 설비용량'!N$4,'202203'!$B$5:$B$29,0),2) -> 346.33 | O14: =INDEX('202203'!$B$5:$C$29,MATCH('월별 설비용량'!O$4,'202203'!$B$5:$B$29,0),2) -> 6144.654 | P14: =INDEX('202203'!$B$5:$C$29,MATCH('월별 설비용량'!P$4,'202203'!$B$5:$B$29,0),2) -> 1726.733 | Q14: =INDEX('202203'!$B$5:$C$29,MATCH('월별 설비용량'!Q$4,'202203'!$B$5:$B$29,0),2) -> 1609.852 | R14: =INDEX('202203'!$B$5:$C$29,MATCH('월별 설비용량'!R$4,'202203'!$B$5:$B$29,0),2) -> 201.29 | S14: =INDEX('202203'!$B$5:$C$29,MATCH('월별 설비용량'!S$4,'202203'!$B$5:$B$29,0),2) -> 255.5 | T14: =INDEX('202203'!$B$5:$C$29,MATCH('월별 설비용량'!T$4,'202203'!$B$5:$B$29,0),2) -> 85.609 | U14: =INDEX('202203'!$B$5:$C$29,MATCH('월별 설비용량'!U$4,'202203'!$B$5:$B$29,0),2) -> 63.734 | V14: =INDEX('202203'!$B$5:$C$29,MATCH('월별 설비용량'!V$4,'202203'!$B$5:$B$29,0),2) -> 1245.013 | W14: =INDEX('202203'!$B$5:$C$29,MATCH('월별 설비용량'!W$4,'202203'!$B$5:$B$29,0),2) -> 350 | X14: 1744.356 | Y14: 0 | Z14: 0 | AA14: 0 | AB14: 0 | AC14: 12816.623
A15: 2022-02-28 | B15: =M15 -> 783.708 | C15: =N15 -> 346.33 | D15: =O15 -> 6084.459 | E15: =P15 -> 1726.733 | F15: =Q15+R15 -> 1811.142 | G15: =S15 -> 255.5 | H15: =X15 -> 1434.356 | I15: =AB15 -> 0 | J15: =AC15 -> 12442.228 | L15: 2022-02-28 | M15: =INDEX('202202'!$B$5:$C$29,MATCH('월별 설비용량'!M$4,'202202'!$B$5:$B$29,0),2) -> 783.708 | N15: =INDEX('202202'!$B$5:$C$29,MATCH('월별 설비용량'!N$4,'202202'!$B$5:$B$29,0),2) -> 346.33 | O15: =INDEX('202202'!$B$5:$C$29,MATCH('월별 설비용량'!O$4,'202202'!$B$5:$B$29,0),2) -> 6084.459 | P15: =INDEX('202202'!$B$5:$C$29,MATCH('월별 설비용량'!P$4,'202202'!$B$5:$B$29,0),2) -> 1726.733 | Q15: =INDEX('202202'!$B$5:$C$29,MATCH('월별 설비용량'!Q$4,'202202'!$B$5:$B$29,0),2) -> 1609.852 | R15: =INDEX('202202'!$B$5:$C$29,MATCH('월별 설비용량'!R$4,'202202'!$B$5:$B$29,0),2) -> 201.29 | S15: =INDEX('202202'!$B$5:$C$29,MATCH('월별 설비용량'!S$4,'202202'!$B$5:$B$29,0),2) -> 255.5 | T15: =INDEX('202202'!$B$5:$C$29,MATCH('월별 설비용량'!T$4,'202202'!$B$5:$B$29,0),2) -> 85.609 | U15: =INDEX('202202'!$B$5:$C$29,MATCH('월별 설비용량'!U$4,'202202'!$B$5:$B$29,0),2) -> 63.734 | V15: =INDEX('202202'!$B$5:$C$29,MATCH('월별 설비용량'!V$4,'202202'!$B$5:$B$29,0),2) -> 935.013 | W15: =INDEX('202202'!$B$5:$C$29,MATCH('월별 설비용량'!W$4,'202202'!$B$5:$B$29,0),2) -> 350 | X15: =SUM(T15:W15) -> 1434.356 | Y15: 0 | Z15: 0 | AA15: 0 | AB15: =SUM(Y15:AA15) -> 0 | AC15: =M15+N15+O15+P15+Q15+R15+S15+X15+AB15 -> 12442.228
A16: 2022-01-31 | B16: =M16 -> 768.708 | C16: =N16 -> 346.33 | D16: =O16 -> 5929.75 | E16: =P16 -> 1726.733 | F16: =Q16+R16 -> 1811.142 | G16: =S16 -> 255.5 | H16: =X16 -> 1434.356 | I16: =AB16 -> 0 | J16: =AC16 -> 12272.519 | L16: 2022-01-31 | M16: =INDEX('202201'!$B$5:$C$29,MATCH('월별 설비용량'!M$4,'202201'!$B$5:$B$29,0),2) -> 768.708 | N16: =INDEX('202201'!$B$5:$C$29,MATCH('월별 설비용량'!N$4,'202201'!$B$5:$B$29,0),2) -> 346.33 | O16: =INDEX('202201'!$B$5:$C$29,MATCH('월별 설비용량'!O$4,'202201'!$B$5:$B$29,0),2) -> 5929.75 | P16: =INDEX('202201'!$B$5:$C$29,MATCH('월별 설비용량'!P$4,'202201'!$B$5:$B$29,0),2) -> 1726.733 | Q16: =INDEX('202201'!$B$5:$C$29,MATCH('월별 설비용량'!Q$4,'202201'!$B$5:$B$29,0),2) -> 1609.852 | R16: =INDEX('202201'!$B$5:$C$29,MATCH('월별 설비용량'!R$4,'202201'!$B$5:$B$29,0),2) -> 201.29 | S16: =INDEX('202201'!$B$5:$C$29,MATCH('월별 설비용량'!S$4,'202201'!$B$5:$B$29,0),2) -> 255.5 | T16: =INDEX('202201'!$B$5:$C$29,MATCH('월별 설비용량'!T$4,'202201'!$B$5:$B$29,0),2) -> 85.609 | U16: =INDEX('202201'!$B$5:$C$29,MATCH('월별 설비용량'!U$4,'202201'!$B$5:$B$29,0),2) -> 63.734 | V16: =INDEX('202201'!$B$5:$C$29,MATCH('월별 설비용량'!V$4,'202201'!$B$5:$B$29,0),2) -> 935.013 | W16: =INDEX('202201'!$B$5:$C$29,MATCH('월별 설비용량'!W$4,'202201'!$B$5:$B$29,0),2) -> 350 | X16: =SUM(T16:W16) -> 1434.356 | Y16: 0 | Z16: 0 | AA16: 0 | AB16: =SUM(Y16:AA16) -> 0 | AC16: =M16+N16+O16+P16+Q16+R16+S16+X16+AB16 -> 12272.519
A17: 2021-12-31 | B17: =M17 -> 776.708 | C17: =N17 -> 346.33 | D17: =O17 -> 5787.596 | E17: =P17 -> 1726.733 | F17: =Q17+R17 -> 1814.142 | G17: =S17 -> 255.5 | H17: =X17 -> 1433.896 | I17: =AB17 -> 0 | J17: =AC17 -> 12140.905 | L17: 2021-12-31 | M17: =INDEX('202112'!$B$5:$C$29,MATCH('월별 설비용량'!M$4,'202112'!$B$5:$B$29,0),2) -> 776.708 | N17: =INDEX('202112'!$B$5:$C$29,MATCH('월별 설비용량'!N$4,'202112'!$B$5:$B$29,0),2) -> 346.33 | O17: =INDEX('202112'!$B$5:$C$29,MATCH('월별 설비용량'!O$4,'202112'!$B$5:$B$29,0),2) -> 5787.596 | P17: =INDEX('202112'!$B$5:$C$29,MATCH('월별 설비용량'!P$4,'202112'!$B$5:$B$29,0),2) -> 1726.733 | Q17: =INDEX('202112'!$B$5:$C$29,MATCH('월별 설비용량'!Q$4,'202112'!$B$5:$B$29,0),2) -> 1609.852 | R17: =INDEX('202112'!$B$5:$C$29,MATCH('월별 설비용량'!R$4,'202112'!$B$5:$B$29,0),2) -> 204.29 | S17: =INDEX('202112'!$B$5:$C$29,MATCH('월별 설비용량'!S$4,'202112'!$B$5:$B$29,0),2) -> 255.5 | T17: =INDEX('202112'!$B$5:$C$29,MATCH('월별 설비용량'!T$4,'202112'!$B$5:$B$29,0),2) -> 85.149 | U17: =INDEX('202112'!$B$5:$C$29,MATCH('월별 설비용량'!U$4,'202112'!$B$5:$B$29,0),2) -> 63.734 | V17: =INDEX('202112'!$B$5:$C$29,MATCH('월별 설비용량'!V$4,'202112'!$B$5:$B$29,0),2) -> 935.013 | W17: =INDEX('202112'!$B$5:$C$29,MATCH('월별 설비용량'!W$4,'202112'!$B$5:$B$29,0),2) -> 350 | X17: =SUM(T17:W17) -> 1433.896 | Y17: 0 | Z17: 0 | AA17: 0 | AB17: =SUM(Y17:AA17) -> 0 | AC17: =M17+N17+O17+P17+Q17+R17+S17+X17+AB17 -> 12140.905
A18: 2021-11-30 | B18: =M18 -> 776.708 | C18: =N18 -> 346.33 | D18: =O18 -> 5537.377 | E18: =P18 -> 1707.933 | F18: =Q18+R18 -> 1814.142 | G18: =S18 -> 255.5 | H18: =X18 -> 1433.896 | I18: =AB18 -> 0 | J18: =AC18 -> 11871.886 | L18: 2021-11-30 | M18: =INDEX('202111'!$B$5:$C$29,MATCH('월별 설비용량'!M$4,'202111'!$B$5:$B$29,0),2) -> 776.708 | N18: =INDEX('202111'!$B$5:$C$29,MATCH('월별 설비용량'!N$4,'202111'!$B$5:$B$29,0),2) -> 346.33 | O18: =INDEX('202111'!$B$5:$C$29,MATCH('월별 설비용량'!O$4,'202111'!$B$5:$B$29,0),2) -> 5537.377 | P18: =INDEX('202111'!$B$5:$C$29,MATCH('월별 설비용량'!P$4,'202111'!$B$5:$B$29,0),2) -> 1707.933 | Q18: =INDEX('202111'!$B$5:$C$29,MATCH('월별 설비용량'!Q$4,'202111'!$B$5:$B$29,0),2) -> 1609.852 | R18: =INDEX('202111'!$B$5:$C$29,MATCH('월별 설비용량'!R$4,'202111'!$B$5:$B$29,0),2) -> 204.29 | S18: =INDEX('202111'!$B$5:$C$29,MATCH('월별 설비용량'!S$4,'202111'!$B$5:$B$29,0),2) -> 255.5 | T18: =INDEX('202111'!$B$5:$C$29,MATCH('월별 설비용량'!T$4,'202111'!$B$5:$B$29,0),2) -> 85.149 | U18: =INDEX('202111'!$B$5:$C$29,MATCH('월별 설비용량'!U$4,'202111'!$B$5:$B$29,0),2) -> 63.734 | V18: =INDEX('202111'!$B$5:$C$29,MATCH('월별 설비용량'!V$4,'202111'!$B$5:$B$29,0),2) -> 935.013 | W18: =INDEX('202111'!$B$5:$C$29,MATCH('월별 설비용량'!W$4,'202111'!$B$5:$B$29,0),2) -> 350 | X18: =SUM(T18:W18) -> 1433.896 | Y18: 0 | Z18: 0 | AA18: 0 | AB18: =SUM(Y18:AA18) -> 0 | AC18: =M18+N18+O18+P18+Q18+R18+S18+X18+AB18 -> 11871.886
A19: 2021-10-31 | B19: =M19 -> 750.748 | C19: =N19 -> 346.33 | D19: =O19 -> 5430.35 | E19: =P19 -> 1707.933 | F19: =Q19+R19 -> 1814.142 | G19: =S19 -> 255.5 | H19: =X19 -> 1433.896 | I19: =AB19 -> 0 | J19: =AC19 -> 11738.899 | L19: 2021-10-31 | M19: =INDEX('202110'!$B$5:$C$29,MATCH('월별 설비용량'!M$4,'202110'!$B$5:$B$29,0),2) -> 750.748 | N19: =INDEX('202110'!$B$5:$C$29,MATCH('월별 설비용량'!N$4,'202110'!$B$5:$B$29,0),2) -> 346.33 | O19: =INDEX('202110'!$B$5:$C$29,MATCH('월별 설비용량'!O$4,'202110'!$B$5:$B$29,0),2) -> 5430.35 | P19: =INDEX('202110'!$B$5:$C$29,MATCH('월별 설비용량'!P$4,'202110'!$B$5:$B$29,0),2) -> 1707.933 | Q19: =INDEX('202110'!$B$5:$C$29,MATCH('월별 설비용량'!Q$4,'202110'!$B$5:$B$29,0),2) -> 1609.852 | R19: =INDEX('202110'!$B$5:$C$29,MATCH('월별 설비용량'!R$4,'202110'!$B$5:$B$29,0),2) -> 204.29 | S19: =INDEX('202110'!$B$5:$C$29,MATCH('월별 설비용량'!S$4,'202110'!$B$5:$B$29,0),2) -> 255.5 | T19: =INDEX('202110'!$B$5:$C$29,MATCH('월별 설비용량'!T$4,'202110'!$B$5:$B$29,0),2) -> 85.149 | U19: =INDEX('202110'!$B$5:$C$29,MATCH('월별 설비용량'!U$4,'202110'!$B$5:$B$29,0),2) -> 63.734 | V19: =INDEX('202110'!$B$5:$C$29,MATCH('월별 설비용량'!V$4,'202110'!$B$5:$B$29,0),2) -> 935.013 | W19: =INDEX('202110'!$B$5:$C$29,MATCH('월별 설비용량'!W$4,'202110'!$B$5:$B$29,0),2) -> 350 | X19: =SUM(T19:W19) -> 1433.896 | Y19: 0 | Z19: 0 | AA19: 0 | AB19: =SUM(Y19:AA19) -> 0 | AC19: =M19+N19+O19+P19+Q19+R19+S19+X19+AB19 -> 11738.899
A20: 2021-09-30 | B20: =M20 -> 735.748 | C20: =N20 -> 346.33 | D20: =O20 -> 5191.445 | E20: =P20 -> 1707.933 | F20: =Q20+R20 -> 1815.142 | G20: =S20 -> 255.5 | H20: =X20 -> 1433.896 | I20: =AB20 -> 0 | J20: =AC20 -> 11485.994 | L20: 2021-09-30 | M20: =INDEX('202109'!$B$5:$C$29,MATCH('월별 설비용량'!M$4,'202109'!$B$5:$B$29,0),2) -> 735.748 | N20: =INDEX('202109'!$B$5:$C$29,MATCH('월별 설비용량'!N$4,'202109'!$B$5:$B$29,0),2) -> 346.33 | O20: =INDEX('202109'!$B$5:$C$29,MATCH('월별 설비용량'!O$4,'202109'!$B$5:$B$29,0),2) -> 5191.445 | P20: =INDEX('202109'!$B$5:$C$29,MATCH('월별 설비용량'!P$4,'202109'!$B$5:$B$29,0),2) -> 1707.933 | Q20: =INDEX('202109'!$B$5:$C$29,MATCH('월별 설비용량'!Q$4,'202109'!$B$5:$B$29,0),2) -> 1609.852 | R20: =INDEX('202109'!$B$5:$C$29,MATCH('월별 설비용량'!R$4,'202109'!$B$5:$B$29,0),2) -> 205.29 | S20: =INDEX('202109'!$B$5:$C$29,MATCH('월별 설비용량'!S$4,'202109'!$B$5:$B$29,0),2) -> 255.5 | T20: =INDEX('202109'!$B$5:$C$29,MATCH('월별 설비용량'!T$4,'202109'!$B$5:$B$29,0),2) -> 85.149 | U20: =INDEX('202109'!$B$5:$C$29,MATCH('월별 설비용량'!U$4,'202109'!$B$5:$B$29,0),2) -> 63.734 | V20: =INDEX('202109'!$B$5:$C$29,MATCH('월별 설비용량'!V$4,'202109'!$B$5:$B$29,0),2) -> 935.013 | W20: =INDEX('202109'!$B$5:$C$29,MATCH('월별 설비용량'!W$4,'202109'!$B$5:$B$29,0),2) -> 350 | X20: =SUM(T20:W20) -> 1433.896 | Y20: 0 | Z20: 0 | AA20: 0 | AB20: =SUM(Y20:AA20) -> 0 | AC20: =M20+N20+O20+P20+Q20+R20+S20+X20+AB20 -> 11485.994
A21: 2021-08-31 | B21: =M21 -> 735.748 | C21: =N21 -> 346.33 | D21: =O21 -> 5189.611 | E21: =P21 -> 1707.933 | F21: =Q21+R21 -> 1810.142 | G21: =S21 -> 255.5 | H21: =X21 -> 1433.896 | I21: =AB21 -> 0 | J21: =AC21 -> 11479.16 | L21: 2021-08-31 | M21: =INDEX('202108'!$B$5:$C$29,MATCH('월별 설비용량'!M$4,'202108'!$B$5:$B$29,0),2) -> 735.748 | N21: =INDEX('202108'!$B$5:$C$29,MATCH('월별 설비용량'!N$4,'202108'!$B$5:$B$29,0),2) -> 346.33 | O21: =INDEX('202108'!$B$5:$C$29,MATCH('월별 설비용량'!O$4,'202108'!$B$5:$B$29,0),2) -> 5189.611 | P21: =INDEX('202108'!$B$5:$C$29,MATCH('월별 설비용량'!P$4,'202108'!$B$5:$B$29,0),2) -> 1707.933 | Q21: =INDEX('202108'!$B$5:$C$29,MATCH('월별 설비용량'!Q$4,'202108'!$B$5:$B$29,0),2) -> 1604.852 | R21: =INDEX('202108'!$B$5:$C$29,MATCH('월별 설비용량'!R$4,'202108'!$B$5:$B$29,0),2) -> 205.29 | S21: =INDEX('202108'!$B$5:$C$29,MATCH('월별 설비용량'!S$4,'202108'!$B$5:$B$29,0),2) -> 255.5 | T21: =INDEX('202108'!$B$5:$C$29,MATCH('월별 설비용량'!T$4,'202108'!$B$5:$B$29,0),2) -> 85.149 | U21: =INDEX('202108'!$B$5:$C$29,MATCH('월별 설비용량'!U$4,'202108'!$B$5:$B$29,0),2) -> 63.734 | V21: =INDEX('202108'!$B$5:$C$29,MATCH('월별 설비용량'!V$4,'202108'!$B$5:$B$29,0),2) -> 935.013 | W21: =INDEX('202108'!$B$5:$C$29,MATCH('월별 설비용량'!W$4,'202108'!$B$5:$B$29,0),2) -> 350 | X21: =SUM(T21:W21) -> 1433.896 | Y21: 0 | Z21: 0 | AA21: 0 | AB21: =SUM(Y21:AA21) -> 0 | AC21: =M21+N21+O21+P21+Q21+R21+S21+X21+AB21 -> 11479.16
A22: 2021-07-31 | B22: =M22 -> 700.948 | C22: =N22 -> 346.33 | D22: =O22 -> 5113.682 | E22: =P22 -> 1691.933 | F22: =Q22+R22 -> 1810.142 | G22: =S22 -> 255.5 | H22: =X22 -> 1333.896 | I22: =AB22 -> 0 | J22: =AC22 -> 11252.431 | L22: 2021-07-31 | M22: =INDEX('202107'!$B$5:$C$29,MATCH('월별 설비용량'!M$4,'202107'!$B$5:$B$29,0),2) -> 700.948 | N22: =INDEX('202107'!$B$5:$C$29,MATCH('월별 설비용량'!N$4,'202107'!$B$5:$B$29,0),2) -> 346.33 | O22: =INDEX('202107'!$B$5:$C$29,MATCH('월별 설비용량'!O$4,'202107'!$B$5:$B$29,0),2) -> 5113.682 | P22: =INDEX('202107'!$B$5:$C$29,MATCH('월별 설비용량'!P$4,'202107'!$B$5:$B$29,0),2) -> 1691.933 | Q22: =INDEX('202107'!$B$5:$C$29,MATCH('월별 설비용량'!Q$4,'202107'!$B$5:$B$29,0),2) -> 1604.852 | R22: =INDEX('202107'!$B$5:$C$29,MATCH('월별 설비용량'!R$4,'202107'!$B$5:$B$29,0),2) -> 205.29 | S22: =INDEX('202107'!$B$5:$C$29,MATCH('월별 설비용량'!S$4,'202107'!$B$5:$B$29,0),2) -> 255.5 | T22: =INDEX('202107'!$B$5:$C$29,MATCH('월별 설비용량'!T$4,'202107'!$B$5:$B$29,0),2) -> 85.149 | U22: =INDEX('202107'!$B$5:$C$29,MATCH('월별 설비용량'!U$4,'202107'!$B$5:$B$29,0),2) -> 63.734 | V22: =INDEX('202107'!$B$5:$C$29,MATCH('월별 설비용량'!V$4,'202107'!$B$5:$B$29,0),2) -> 835.013 | W22: =INDEX('202107'!$B$5:$C$29,MATCH('월별 설비용량'!W$4,'202107'!$B$5:$B$29,0),2) -> 350 | X22: =SUM(T22:W22) -> 1333.896 | Y22: 0 | Z22: 0 | AA22: 0 | AB22: =SUM(Y22:AA22) -> 0 | AC22: =M22+N22+O22+P22+Q22+R22+S22+X22+AB22 -> 11252.431
A23: 2021-06-30 | B23: =M23 -> 700.948 | C23: =N23 -> 346.33 | D23: =O23 -> 5031.057 | E23: =P23 -> 1691.933 | F23: =Q23+R23 -> 1810.142 | G23: =S23 -> 255.5 | H23: =X23 -> 1333.896 | I23: =AB23 -> 0 | J23: =AC23 -> 11169.806 | L23: 2021-06-30 | M23: =INDEX('202106'!$B$5:$C$29,MATCH('월별 설비용량'!M$4,'202106'!$B$5:$B$29,0),2) -> 700.948 | N23: =INDEX('202106'!$B$5:$C$29,MATCH('월별 설비용량'!N$4,'202106'!$B$5:$B$29,0),2) -> 346.33 | O23: =INDEX('202106'!$B$5:$C$29,MATCH('월별 설비용량'!O$4,'202106'!$B$5:$B$29,0),2) -> 5031.057 | P23: =INDEX('202106'!$B$5:$C$29,MATCH('월별 설비용량'!P$4,'202106'!$B$5:$B$29,0),2) -> 1691.933 | Q23: =INDEX('202106'!$B$5:$C$29,MATCH('월별 설비용량'!Q$4,'202106'!$B$5:$B$29,0),2) -> 1604.852 | R23: =INDEX('202106'!$B$5:$C$29,MATCH('월별 설비용량'!R$4,'202106'!$B$5:$B$29,0),2) -> 205.29 | S23: =INDEX('202106'!$B$5:$C$29,MATCH('월별 설비용량'!S$4,'202106'!$B$5:$B$29,0),2) -> 255.5 | T23: =INDEX('202106'!$B$5:$C$29,MATCH('월별 설비용량'!T$4,'202106'!$B$5:$B$29,0),2) -> 85.149 | U23: =INDEX('202106'!$B$5:$C$29,MATCH('월별 설비용량'!U$4,'202106'!$B$5:$B$29,0),2) -> 63.734 | V23: =INDEX('202106'!$B$5:$C$29,MATCH('월별 설비용량'!V$4,'202106'!$B$5:$B$29,0),2) -> 835.013 | W23: =INDEX('202106'!$B$5:$C$29,MATCH('월별 설비용량'!W$4,'202106'!$B$5:$B$29,0),2) -> 350 | X23: =SUM(T23:W23) -> 1333.896 | Y23: 0 | Z23: 0 | AA23: 0 | AB23: =SUM(Y23:AA23) -> 0 | AC23: =M23+N23+O23+P23+Q23+R23+S23+X23+AB23 -> 11169.806
A24: 2021-05-31 | B24: =M24 -> 674.768 | C24: =N24 -> 346.33 | D24: =O24 -> 4954.495 | E24: =P24 -> 1691.933 | F24: =Q24+R24 -> 1807.556 | G24: =S24 -> 255.5 | H24: =X24 -> 1333.896 | I24: =AB24 -> 0 | J24: =AC24 -> 11064.478 | L24: 2021-05-31 | M24: =INDEX('202105'!$B$5:$C$29,MATCH('월별 설비용량'!M$4,'202105'!$B$5:$B$29,0),2) -> 674.768 | N24: =INDEX('202105'!$B$5:$C$29,MATCH('월별 설비용량'!N$4,'202105'!$B$5:$B$29,0),2) -> 346.33 | O24: =INDEX('202105'!$B$5:$C$29,MATCH('월별 설비용량'!O$4,'202105'!$B$5:$B$29,0),2) -> 4954.495 | P24: =INDEX('202105'!$B$5:$C$29,MATCH('월별 설비용량'!P$4,'202105'!$B$5:$B$29,0),2) -> 1691.933 | Q24: =INDEX('202105'!$B$5:$C$29,MATCH('월별 설비용량'!Q$4,'202105'!$B$5:$B$29,0),2) -> 1604.852 | R24: =INDEX('202105'!$B$5:$C$29,MATCH('월별 설비용량'!R$4,'202105'!$B$5:$B$29,0),2) -> 202.704 | S24: =INDEX('202105'!$B$5:$C$29,MATCH('월별 설비용량'!S$4,'202105'!$B$5:$B$29,0),2) -> 255.5 | T24: =INDEX('202105'!$B$5:$C$29,MATCH('월별 설비용량'!T$4,'202105'!$B$5:$B$29,0),2) -> 85.149 | U24: =INDEX('202105'!$B$5:$C$29,MATCH('월별 설비용량'!U$4,'202105'!$B$5:$B$29,0),2) -> 63.734 | V24: =INDEX('202105'!$B$5:$C$29,MATCH('월별 설비용량'!V$4,'202105'!$B$5:$B$29,0),2) -> 835.013 | W24: =INDEX('202105'!$B$5:$C$29,MATCH('월별 설비용량'!W$4,'202105'!$B$5:$B$29,0),2) -> 350 | X24: =SUM(T24:W24) -> 1333.896 | Y24: 0 | Z24: 0 | AA24: 0 | AB24: =SUM(Y24:AA24) -> 0 | AC24: =M24+N24+O24+P24+Q24+R24+S24+X24+AB24 -> 11064.478
A25: 2021-04-30 | B25: =M25 -> 674.768 | C25: =N25 -> 346.33 | D25: =O25 -> 4897.311 | E25: =P25 -> 1691.933 | F25: =Q25+R25 -> 1802.556 | G25: =S25 -> 255.5 | H25: =X25 -> 1333.296 | I25: =AB25 -> 0 | J25: =AC25 -> 11001.694 | L25: 2021-04-30 | M25: =INDEX('202104'!$B$5:$C$29,MATCH('월별 설비용량'!M$4,'202104'!$B$5:$B$29,0),2) -> 674.768 | N25: =INDEX('202104'!$B$5:$C$29,MATCH('월별 설비용량'!N$4,'202104'!$B$5:$B$29,0),2) -> 346.33 | O25: =INDEX('202104'!$B$5:$C$29,MATCH('월별 설비용량'!O$4,'202104'!$B$5:$B$29,0),2) -> 4897.311 | P25: =INDEX('202104'!$B$5:$C$29,MATCH('월별 설비용량'!P$4,'202104'!$B$5:$B$29,0),2) -> 1691.933 | Q25: =INDEX('202104'!$B$5:$C$29,MATCH('월별 설비용량'!Q$4,'202104'!$B$5:$B$29,0),2) -> 1604.852 | R25: =INDEX('202104'!$B$5:$C$29,MATCH('월별 설비용량'!R$4,'202104'!$B$5:$B$29,0),2) -> 197.704 | S25: =INDEX('202104'!$B$5:$C$29,MATCH('월별 설비용량'!S$4,'202104'!$B$5:$B$29,0),2) -> 255.5 | T25: =INDEX('202104'!$B$5:$C$29,MATCH('월별 설비용량'!T$4,'202104'!$B$5:$B$29,0),2) -> 84.549 | U25: =INDEX('202104'!$B$5:$C$29,MATCH('월별 설비용량'!U$4,'202104'!$B$5:$B$29,0),2) -> 63.734 | V25: =INDEX('202104'!$B$5:$C$29,MATCH('월별 설비용량'!V$4,'202104'!$B$5:$B$29,0),2) -> 835.013 | W25: =INDEX('202104'!$B$5:$C$29,MATCH('월별 설비용량'!W$4,'202104'!$B$5:$B$29,0),2) -> 350 | X25: =SUM(T25:W25) -> 1333.296 | Y25: 0 | Z25: 0 | AA25: 0 | AB25: =SUM(Y25:AA25) -> 0 | AC25: =M25+N25+O25+P25+Q25+R25+S25+X25+AB25 -> 11001.694
A26: 2021-03-31 | B26: =M26 -> 674.768 | C26: =N26 -> 346.33 | D26: =O26 -> 4834.088 | E26: =P26 -> 1691.933 | F26: =Q26+R26 -> 1797.556 | G26: =S26 -> 255.5 | H26: =X26 -> 1348.937 | I26: =AB26 -> 0 | J26: =AC26 -> 10949.112 | L26: 2021-03-31 | M26: =INDEX('202103'!$B$5:$C$29,MATCH('월별 설비용량'!M$4,'202103'!$B$5:$B$29,0),2) -> 674.768 | N26: =INDEX('202103'!$B$5:$C$29,MATCH('월별 설비용량'!N$4,'202103'!$B$5:$B$29,0),2) -> 346.33 | O26: =INDEX('202103'!$B$5:$C$29,MATCH('월별 설비용량'!O$4,'202103'!$B$5:$B$29,0),2) -> 4834.088 | P26: =INDEX('202103'!$B$5:$C$29,MATCH('월별 설비용량'!P$4,'202103'!$B$5:$B$29,0),2) -> 1691.933 | Q26: =INDEX('202103'!$B$5:$C$29,MATCH('월별 설비용량'!Q$4,'202103'!$B$5:$B$29,0),2) -> 1604.852 | R26: =INDEX('202103'!$B$5:$C$29,MATCH('월별 설비용량'!R$4,'202103'!$B$5:$B$29,0),2) -> 192.704 | S26: =INDEX('202103'!$B$5:$C$29,MATCH('월별 설비용량'!S$4,'202103'!$B$5:$B$29,0),2) -> 255.5 | T26: =INDEX('202103'!$B$5:$C$29,MATCH('월별 설비용량'!T$4,'202103'!$B$5:$B$29,0),2) -> 84.549 | U26: =INDEX('202103'!$B$5:$C$29,MATCH('월별 설비용량'!U$4,'202103'!$B$5:$B$29,0),2) -> 63.734 | V26: =INDEX('202103'!$B$5:$C$29,MATCH('월별 설비용량'!V$4,'202103'!$B$5:$B$29,0),2) -> 850.654 | W26: =INDEX('202103'!$B$5:$C$29,MATCH('월별 설비용량'!W$4,'202103'!$B$5:$B$29,0),2) -> 350 | X26: =SUM(T26:W26) -> 1348.937 | Y26: 0 | Z26: 0 | AA26: 0 | AB26: =SUM(Y26:AA26) -> 0 | AC26: =M26+N26+O26+P26+Q26+R26+S26+X26+AB26 -> 10949.112
A27: 2021-02-28 | B27: =M27 -> 673.828 | C27: =N27 -> 346.33 | D27: =O27 -> 4749.803 | E27: =P27 -> 1691.933 | F27: =Q27+R27 -> 1797.556 | G27: =S27 -> 255.5 | H27: =X27 -> 1351.053 | I27: =AB27 -> 0 | J27: =AC27 -> 10866.003 | L27: 2021-02-28 | M27: =INDEX('202102'!$B$5:$C$29,MATCH('월별 설비용량'!M$4,'202102'!$B$5:$B$29,0),2) -> 673.828 | N27: =INDEX('202102'!$B$5:$C$29,MATCH('월별 설비용량'!N$4,'202102'!$B$5:$B$29,0),2) -> 346.33 | O27: =INDEX('202102'!$B$5:$C$29,MATCH('월별 설비용량'!O$4,'202102'!$B$5:$B$29,0),2) -> 4749.803 | P27: =INDEX('202102'!$B$5:$C$29,MATCH('월별 설비용량'!P$4,'202102'!$B$5:$B$29,0),2) -> 1691.933 | Q27: =INDEX('202102'!$B$5:$C$29,MATCH('월별 설비용량'!Q$4,'202102'!$B$5:$B$29,0),2) -> 1604.852 | R27: =INDEX('202102'!$B$5:$C$29,MATCH('월별 설비용량'!R$4,'202102'!$B$5:$B$29,0),2) -> 192.704 | S27: =INDEX('202102'!$B$5:$C$29,MATCH('월별 설비용량'!S$4,'202102'!$B$5:$B$29,0),2) -> 255.5 | T27: =INDEX('202102'!$B$5:$C$29,MATCH('월별 설비용량'!T$4,'202102'!$B$5:$B$29,0),2) -> 84.549 | U27: =INDEX('202102'!$B$5:$C$29,MATCH('월별 설비용량'!U$4,'202102'!$B$5:$B$29,0),2) -> 65.85 | V27: =INDEX('202102'!$B$5:$C$29,MATCH('월별 설비용량'!V$4,'202102'!$B$5:$B$29,0),2) -> 850.654 | W27: =INDEX('202102'!$B$5:$C$29,MATCH('월별 설비용량'!W$4,'202102'!$B$5:$B$29,0),2) -> 350 | X27: =SUM(T27:W27) -> 1351.053 | Y27: 0 | Z27: 0 | AA27: 0 | AB27: =SUM(Y27:AA27) -> 0 | AC27: =M27+N27+O27+P27+Q27+R27+S27+X27+AB27 -> 10866.003
A28: 2021-01-31 | B28: =M28 -> 654.028 | C28: =N28 -> 346.33 | D28: =O28 -> 4680.726 | E28: =P28 -> 1653.133 | F28: =Q28+R28 -> 1797.684 | G28: =S28 -> 255.5 | H28: =X28 -> 1351.053 | I28: =AB28 -> 0 | J28: =AC28 -> 10738.454 | L28: 2021-01-31 | M28: =INDEX('202101'!$B$5:$C$29,MATCH('월별 설비용량'!M$4,'202101'!$B$5:$B$29,0),2) -> 654.028 | N28: =INDEX('202101'!$B$5:$C$29,MATCH('월별 설비용량'!N$4,'202101'!$B$5:$B$29,0),2) -> 346.33 | O28: =INDEX('202101'!$B$5:$C$29,MATCH('월별 설비용량'!O$4,'202101'!$B$5:$B$29,0),2) -> 4680.726 | P28: =INDEX('202101'!$B$5:$C$29,MATCH('월별 설비용량'!P$4,'202101'!$B$5:$B$29,0),2) -> 1653.133 | Q28: =INDEX('202101'!$B$5:$C$29,MATCH('월별 설비용량'!Q$4,'202101'!$B$5:$B$29,0),2) -> 1604.98 | R28: =INDEX('202101'!$B$5:$C$29,MATCH('월별 설비용량'!R$4,'202101'!$B$5:$B$29,0),2) -> 192.704 | S28: =INDEX('202101'!$B$5:$C$29,MATCH('월별 설비용량'!S$4,'202101'!$B$5:$B$29,0),2) -> 255.5 | T28: =INDEX('202101'!$B$5:$C$29,MATCH('월별 설비용량'!T$4,'202101'!$B$5:$B$29,0),2) -> 84.549 | U28: =INDEX('202101'!$B$5:$C$29,MATCH('월별 설비용량'!U$4,'202101'!$B$5:$B$29,0),2) -> 65.85 | V28: =INDEX('202101'!$B$5:$C$29,MATCH('월별 설비용량'!V$4,'202101'!$B$5:$B$29,0),2) -> 850.654 | W28: =INDEX('202101'!$B$5:$C$29,MATCH('월별 설비용량'!W$4,'202101'!$B$5:$B$29,0),2) -> 350 | X28: =SUM(T28:W28) -> 1351.053 | Y28: 0 | Z28: 0 | AA28: 0 | AB28: =SUM(Y28:AA28) -> 0 | AC28: =M28+N28+O28+P28+Q28+R28+S28+X28+AB28 -> 10738.454
A29: =L29 -> 2020-12-31 | B29: =M29 -> 604.308 | C29: =N29 -> 346.33 | D29: =O29 -> 4645.762 | E29: =P29 -> 1642.333 | F29: =Q29+R29 -> 1797.684 | G29: =S29 -> 255.5 | H29: =X29 -> 1351.053 | I29: =AB29 -> 0 | J29: =AC29 -> 10642.97 | L29: 2020-12-31 | M29: =INDEX('202012'!$B$5:$C$29,MATCH('월별 설비용량'!M$4,'202012'!$B$5:$B$29,0),2) -> 604.308 | N29: =INDEX('202012'!$B$5:$C$29,MATCH('월별 설비용량'!N$4,'202012'!$B$5:$B$29,0),2) -> 346.33 | O29: =INDEX('202012'!$B$5:$C$29,MATCH('월별 설비용량'!O$4,'202012'!$B$5:$B$29,0),2) -> 4645.762 | P29: =INDEX('202012'!$B$5:$C$29,MATCH('월별 설비용량'!P$4,'202012'!$B$5:$B$29,0),2) -> 1642.333 | Q29: =INDEX('202012'!$B$5:$C$29,MATCH('월별 설비용량'!Q$4,'202012'!$B$5:$B$29,0),2) -> 1604.98 | R29: =INDEX('202012'!$B$5:$C$29,MATCH('월별 설비용량'!R$4,'202012'!$B$5:$B$29,0),2) -> 192.704 | S29: =INDEX('202012'!$B$5:$C$29,MATCH('월별 설비용량'!S$4,'202012'!$B$5:$B$29,0),2) -> 255.5 | T29: =INDEX('202012'!$B$5:$C$29,MATCH('월별 설비용량'!T$4,'202012'!$B$5:$B$29,0),2) -> 84.549 | U29: =INDEX('202012'!$B$5:$C$29,MATCH('월별 설비용량'!U$4,'202012'!$B$5:$B$29,0),2) -> 65.85 | V29: =INDEX('202012'!$B$5:$C$29,MATCH('월별 설비용량'!V$4,'202012'!$B$5:$B$29,0),2) -> 850.654 | W29: =INDEX('202012'!$B$5:$C$29,MATCH('월별 설비용량'!W$4,'202012'!$B$5:$B$29,0),2) -> 350 | X29: =SUM(T29:W29) -> 1351.053 | Y29: 0 | Z29: 0 | AA29: 0 | AB29: =SUM(Y29:AA29) -> 0 | AC29: =M29+N29+O29+P29+Q29+R29+S29+X29+AB29 -> 10642.97
A30: =L30 -> 2020-11-30 | B30: =M30 -> 600.648 | C30: =N30 -> 346.33 | D30: =O30 -> 4485.509 | E30: =P30 -> 1642.333 | F30: =Q30+R30 -> 1797.357 | G30: =S30 -> 255.5 | H30: =X30 -> 1346.453 | I30: =AB30 -> 0 | J30: =AC30 -> 10474.13 | L30: 2020-11-30 | M30: =INDEX('202011'!$B$5:$C$29,MATCH('월별 설비용량'!M$4,'202011'!$B$5:$B$29,0),2) -> 600.648 | N30: =INDEX('202011'!$B$5:$C$29,MATCH('월별 설비용량'!N$4,'202011'!$B$5:$B$29,0),2) -> 346.33 | O30: =INDEX('202011'!$B$5:$C$29,MATCH('월별 설비용량'!O$4,'202011'!$B$5:$B$29,0),2) -> 4485.509 | P30: =INDEX('202011'!$B$5:$C$29,MATCH('월별 설비용량'!P$4,'202011'!$B$5:$B$29,0),2) -> 1642.333 | Q30: =INDEX('202011'!$B$5:$C$29,MATCH('월별 설비용량'!Q$4,'202011'!$B$5:$B$29,0),2) -> 1604.98 | R30: =INDEX('202011'!$B$5:$C$29,MATCH('월별 설비용량'!R$4,'202011'!$B$5:$B$29,0),2) -> 192.377 | S30: =INDEX('202011'!$B$5:$C$29,MATCH('월별 설비용량'!S$4,'202011'!$B$5:$B$29,0),2) -> 255.5 | T30: =INDEX('202011'!$B$5:$C$29,MATCH('월별 설비용량'!T$4,'202011'!$B$5:$B$29,0),2) -> 84.549 | U30: =INDEX('202011'!$B$5:$C$29,MATCH('월별 설비용량'!U$4,'202011'!$B$5:$B$29,0),2) -> 65.85 | V30: =INDEX('202011'!$B$5:$C$29,MATCH('월별 설비용량'!V$4,'202011'!$B$5:$B$29,0),2) -> 846.054 | W30: =INDEX('202011'!$B$5:$C$29,MATCH('월별 설비용량'!W$4,'202011'!$B$5:$B$29,0),2) -> 350 | X30: =SUM(T30:W30) -> 1346.453 | Y30: 0 | Z30: 0 | AA30: 0 | AB30: =SUM(Y30:AA30) -> 0 | AC30: =M30+N30+O30+P30+Q30+R30+S30+X30+AB30 -> 10474.13
A31: =L31 -> 2020-10-31 | B31: =M31 -> 603.048 | C31: =N31 -> 346.33 | D31: =O31 -> 4358.022 | E31: =P31 -> 1621.333 | F31: =Q31+R31 -> 1797.357 | G31: =S31 -> 255.5 | H31: =X31 -> 1346.453 | I31: =AB31 -> 0 | J31: =AC31 -> 10328.043 | L31: 2020-10-31 | M31: =INDEX('202010'!$B$5:$C$29,MATCH('월별 설비용량'!M$4,'202010'!$B$5:$B$29,0),2) -> 603.048 | N31: =INDEX('202010'!$B$5:$C$29,MATCH('월별 설비용량'!N$4,'202010'!$B$5:$B$29,0),2) -> 346.33 | O31: =INDEX('202010'!$B$5:$C$29,MATCH('월별 설비용량'!O$4,'202010'!$B$5:$B$29,0),2) -> 4358.022 | P31: =INDEX('202010'!$B$5:$C$29,MATCH('월별 설비용량'!P$4,'202010'!$B$5:$B$29,0),2) -> 1621.333 | Q31: =INDEX('202010'!$B$5:$C$29,MATCH('월별 설비용량'!Q$4,'202010'!$B$5:$B$29,0),2) -> 1604.98 | R31: =INDEX('202010'!$B$5:$C$29,MATCH('월별 설비용량'!R$4,'202010'!$B$5:$B$29,0),2) -> 192.377 | S31: =INDEX('202010'!$B$5:$C$29,MATCH('월별 설비용량'!S$4,'202010'!$B$5:$B$29,0),2) -> 255.5 | T31: =INDEX('202010'!$B$5:$C$29,MATCH('월별 설비용량'!T$4,'202010'!$B$5:$B$29,0),2) -> 84.549 | U31: =INDEX('202010'!$B$5:$C$29,MATCH('월별 설비용량'!U$4,'202010'!$B$5:$B$29,0),2) -> 65.85 | V31: =INDEX('202010'!$B$5:$C$29,MATCH('월별 설비용량'!V$4,'202010'!$B$5:$B$29,0),2) -> 846.054 | W31: =INDEX('202010'!$B$5:$C$29,MATCH('월별 설비용량'!W$4,'202010'!$B$5:$B$29,0),2) -> 350 | X31: =SUM(T31:W31) -> 1346.453 | Y31: 0 | Z31: 0 | AA31: 0 | AB31: =SUM(Y31:AA31) -> 0 | AC31: =M31+N31+O31+P31+Q31+R31+S31+X31+AB31 -> 10328.043
A32: 2020-09-30 | B32: =M32 -> 602.048 | C32: =N32 -> 346.33 | D32: =O32 -> 4319.649 | E32: =P32 -> 1621.333 | F32: =Q32+R32 -> 1797.357 | G32: =S32 -> 255.5 | H32: =X32 -> 1246.753 | I32: =AB32 -> 0 | J32: =AC32 -> 10188.97 | L32: 2020-09-30 | M32: =INDEX('202009'!$B$5:$C$29,MATCH('월별 설비용량'!M$4,'202009'!$B$5:$B$29,0),2) -> 602.048 | N32: =INDEX('202009'!$B$5:$C$29,MATCH('월별 설비용량'!N$4,'202009'!$B$5:$B$29,0),2) -> 346.33 | O32: =INDEX('202009'!$B$5:$C$29,MATCH('월별 설비용량'!O$4,'202009'!$B$5:$B$29,0),2) -> 4319.649 | P32: =INDEX('202009'!$B$5:$C$29,MATCH('월별 설비용량'!P$4,'202009'!$B$5:$B$29,0),2) -> 1621.333 | Q32: =INDEX('202009'!$B$5:$C$29,MATCH('월별 설비용량'!Q$4,'202009'!$B$5:$B$29,0),2) -> 1604.98 | R32: =INDEX('202009'!$B$5:$C$29,MATCH('월별 설비용량'!R$4,'202009'!$B$5:$B$29,0),2) -> 192.377 | S32: =INDEX('202009'!$B$5:$C$29,MATCH('월별 설비용량'!S$4,'202009'!$B$5:$B$29,0),2) -> 255.5 | T32: =INDEX('202009'!$B$5:$C$29,MATCH('월별 설비용량'!T$4,'202009'!$B$5:$B$29,0),2) -> 84.549 | U32: =INDEX('202009'!$B$5:$C$29,MATCH('월별 설비용량'!U$4,'202009'!$B$5:$B$29,0),2) -> 66.15 | V32: =INDEX('202009'!$B$5:$C$29,MATCH('월별 설비용량'!V$4,'202009'!$B$5:$B$29,0),2) -> 746.054 | W32: =INDEX('202009'!$B$5:$C$29,MATCH('월별 설비용량'!W$4,'202009'!$B$5:$B$29,0),2) -> 350 | X32: =SUM(T32:W32) -> 1246.753 | Y32: 0 | Z32: 0 | AA32: 0 | AB32: =SUM(Y32:AA32) -> 0 | AC32: =M32+N32+O32+P32+Q32+R32+S32+X32+AB32 -> 10188.97
A33: =L33 -> 2020-08-31 | B33: =M33 -> 561.468 | C33: =N33 -> 346.33 | D33: =O33 -> 4264.22 | E33: =P33 -> 1578.133 | F33: =Q33+R33 -> 1797.357 | G33: =S33 -> 255.5 | H33: =X33 -> 1141.753 | I33: =AB33 -> 0 | J33: =AC33 -> 9944.761 | L33: 2020-08-31 | M33: =INDEX('202008'!$B$5:$C$29,MATCH('월별 설비용량'!M$4,'202008'!$B$5:$B$29,0),2) -> 561.468 | N33: =INDEX('202008'!$B$5:$C$29,MATCH('월별 설비용량'!N$4,'202008'!$B$5:$B$29,0),2) -> 346.33 | O33: =INDEX('202008'!$B$5:$C$29,MATCH('월별 설비용량'!O$4,'202008'!$B$5:$B$29,0),2) -> 4264.22 | P33: =INDEX('202008'!$B$5:$C$29,MATCH('월별 설비용량'!P$4,'202008'!$B$5:$B$29,0),2) -> 1578.133 | Q33: =INDEX('202008'!$B$5:$C$29,MATCH('월별 설비용량'!Q$4,'202008'!$B$5:$B$29,0),2) -> 1604.98 | R33: =INDEX('202008'!$B$5:$C$29,MATCH('월별 설비용량'!R$4,'202008'!$B$5:$B$29,0),2) -> 192.377 | S33: =INDEX('202008'!$B$5:$C$29,MATCH('월별 설비용량'!S$4,'202008'!$B$5:$B$29,0),2) -> 255.5 | T33: =INDEX('202008'!$B$5:$C$29,MATCH('월별 설비용량'!T$4,'202008'!$B$5:$B$29,0),2) -> 84.549 | U33: =INDEX('202008'!$B$5:$C$29,MATCH('월별 설비용량'!U$4,'202008'!$B$5:$B$29,0),2) -> 66.15 | V33: =INDEX('202008'!$B$5:$C$29,MATCH('월별 설비용량'!V$4,'202008'!$B$5:$B$29,0),2) -> 641.054 | W33: =INDEX('202008'!$B$5:$C$29,MATCH('월별 설비용량'!W$4,'202008'!$B$5:$B$29,0),2) -> 350 | X33: =SUM(T33:W33) -> 1141.753 | Y33: 0 | Z33: 0 | AA33: 0 | AB33: =SUM(Y33:AA33) -> 0 | AC33: =M33+N33+O33+P33+Q33+R33+S33+X33+AB33 -> 9944.761
A34: =L34 -> 2020-07-31 | B34: =M34 -> 572.668 | C34: =N34 -> 346.33 | D34: =O34 -> 4239.839 | E34: =P34 -> 1578.133 | F34: =Q34+R34 -> 1797.07 | G34: =S34 -> 255.5 | H34: =X34 -> 1141.258 | I34: =AB34 -> 0 | J34: =AC34 -> 9930.798 | L34: 2020-07-31 | M34: =INDEX('202007'!$B$5:$C$29,MATCH('월별 설비용량'!M$4,'202007'!$B$5:$B$29,0),2) -> 572.668 | N34: =INDEX('202007'!$B$5:$C$29,MATCH('월별 설비용량'!N$4,'202007'!$B$5:$B$29,0),2) -> 346.33 | O34: =INDEX('202007'!$B$5:$C$29,MATCH('월별 설비용량'!O$4,'202007'!$B$5:$B$29,0),2) -> 4239.839 | P34: =INDEX('202007'!$B$5:$C$29,MATCH('월별 설비용량'!P$4,'202007'!$B$5:$B$29,0),2) -> 1578.133 | Q34: =INDEX('202007'!$B$5:$C$29,MATCH('월별 설비용량'!Q$4,'202007'!$B$5:$B$29,0),2) -> 1604.98 | R34: =INDEX('202007'!$B$5:$C$29,MATCH('월별 설비용량'!R$4,'202007'!$B$5:$B$29,0),2) -> 192.09 | S34: =INDEX('202007'!$B$5:$C$29,MATCH('월별 설비용량'!S$4,'202007'!$B$5:$B$29,0),2) -> 255.5 | T34: =INDEX('202007'!$B$5:$C$29,MATCH('월별 설비용량'!T$4,'202007'!$B$5:$B$29,0),2) -> 84.054 | U34: =INDEX('202007'!$B$5:$C$29,MATCH('월별 설비용량'!U$4,'202007'!$B$5:$B$29,0),2) -> 66.15 | V34: =INDEX('202007'!$B$5:$C$29,MATCH('월별 설비용량'!V$4,'202007'!$B$5:$B$29,0),2) -> 641.054 | W34: =INDEX('202007'!$B$5:$C$29,MATCH('월별 설비용량'!W$4,'202007'!$B$5:$B$29,0),2) -> 350 | X34: =SUM(T34:W34) -> 1141.258 | Y34: 0 | Z34: 0 | AA34: 0 | AB34: =SUM(Y34:AA34) -> 0 | AC34: =M34+N34+O34+P34+Q34+R34+S34+X34+AB34 -> 9930.798
A35: =L35 -> 2020-06-30 | B35: =M35 -> 549.568 | C35: =N35 -> 346.33 | D35: =O35 -> 4203.117 | E35: =P35 -> 1575.133 | F35: =Q35+R35 -> 1797.07 | G35: =S35 -> 255.5 | H35: =X35 -> 940.413 | I35: =AB35 -> 0 | J35: =AC35 -> 9667.131 | L35: 2020-06-30 | M35: =INDEX('202006'!$B$5:$C$29,MATCH('월별 설비용량'!M$4,'202006'!$B$5:$B$29,0),2) -> 549.568 | N35: =INDEX('202006'!$B$5:$C$29,MATCH('월별 설비용량'!N$4,'202006'!$B$5:$B$29,0),2) -> 346.33 | O35: =INDEX('202006'!$B$5:$C$29,MATCH('월별 설비용량'!O$4,'202006'!$B$5:$B$29,0),2) -> 4203.117 | P35: =INDEX('202006'!$B$5:$C$29,MATCH('월별 설비용량'!P$4,'202006'!$B$5:$B$29,0),2) -> 1575.133 | Q35: =INDEX('202006'!$B$5:$C$29,MATCH('월별 설비용량'!Q$4,'202006'!$B$5:$B$29,0),2) -> 1604.98 | R35: =INDEX('202006'!$B$5:$C$29,MATCH('월별 설비용량'!R$4,'202006'!$B$5:$B$29,0),2) -> 192.09 | S35: =INDEX('202006'!$B$5:$C$29,MATCH('월별 설비용량'!S$4,'202006'!$B$5:$B$29,0),2) -> 255.5 | T35: =INDEX('202006'!$B$5:$C$29,MATCH('월별 설비용량'!T$4,'202006'!$B$5:$B$29,0),2) -> 83.209 | U35: =INDEX('202006'!$B$5:$C$29,MATCH('월별 설비용량'!U$4,'202006'!$B$5:$B$29,0),2) -> 66.15 | V35: =INDEX('202006'!$B$5:$C$29,MATCH('월별 설비용량'!V$4,'202006'!$B$5:$B$29,0),2) -> 441.054 | W35: =INDEX('202006'!$B$5:$C$29,MATCH('월별 설비용량'!W$4,'202006'!$B$5:$B$29,0),2) -> 350 | X35: =SUM(T35:W35) -> 940.413 | Y35: 0 | Z35: 0 | AA35: 0 | AB35: =SUM(Y35:AA35) -> 0 | AC35: =M35+N35+O35+P35+Q35+R35+S35+X35+AB35 -> 9667.131
A36: =L36 -> 2020-05-31 | B36: =M36 -> 530.53 | C36: =N36 -> 346.33 | D36: =O36 -> 3878.669 | E36: =P36 -> 1563.583 | F36: =Q36+R36 -> 1797.07 | G36: =S36 -> 255.5 | H36: =X36 -> 939.301 | I36: =AB36 -> 0 | J36: =AC36 -> 9310.983 | L36: 2020-05-31 | M36: =INDEX('202005'!$B$5:$C$29,MATCH('월별 설비용량'!M$4,'202005'!$B$5:$B$29,0),2) -> 530.53 | N36: =INDEX('202005'!$B$5:$C$29,MATCH('월별 설비용량'!N$4,'202005'!$B$5:$B$29,0),2) -> 346.33 | O36: =INDEX('202005'!$B$5:$C$29,MATCH('월별 설비용량'!O$4,'202005'!$B$5:$B$29,0),2) -> 3878.669 | P36: =INDEX('202005'!$B$5:$C$29,MATCH('월별 설비용량'!P$4,'202005'!$B$5:$B$29,0),2) -> 1563.583 | Q36: =INDEX('202005'!$B$5:$C$29,MATCH('월별 설비용량'!Q$4,'202005'!$B$5:$B$29,0),2) -> 1604.98 | R36: =INDEX('202005'!$B$5:$C$29,MATCH('월별 설비용량'!R$4,'202005'!$B$5:$B$29,0),2) -> 192.09 | S36: =INDEX('202005'!$B$5:$C$29,MATCH('월별 설비용량'!S$4,'202005'!$B$5:$B$29,0),2) -> 255.5 | T36: =INDEX('202005'!$B$5:$C$29,MATCH('월별 설비용량'!T$4,'202005'!$B$5:$B$29,0),2) -> 83.022 | U36: =INDEX('202005'!$B$5:$C$29,MATCH('월별 설비용량'!U$4,'202005'!$B$5:$B$29,0),2) -> 65.225 | V36: =INDEX('202005'!$B$5:$C$29,MATCH('월별 설비용량'!V$4,'202005'!$B$5:$B$29,0),2) -> 441.054 | W36: =INDEX('202005'!$B$5:$C$29,MATCH('월별 설비용량'!W$4,'202005'!$B$5:$B$29,0),2) -> 350 | X36: =SUM(T36:W36) -> 939.301 | Y36: 0 | Z36: 0 | AA36: 0 | AB36: =SUM(Y36:AA36) -> 0 | AC36: =M36+N36+O36+P36+Q36+R36+S36+X36+AB36 -> 9310.983
A37: 2020-04-30 | B37: =M37 -> 530.53 | C37: =N37 -> 346.33 | D37: =O37 -> 3755.565 | E37: =P37 -> 1562.173 | F37: =Q37+R37 -> 1797.07 | G37: =S37 -> 255.5 | H37: =X37 -> 898.824 | I37: =AB37 -> 0 | J37: =AC37 -> 9145.992 | L37: 2020-04-30 | M37: =INDEX('202004'!$B$5:$C$29,MATCH('월별 설비용량'!M$4,'202004'!$B$5:$B$29,0),2) -> 530.53 | N37: =INDEX('202004'!$B$5:$C$29,MATCH('월별 설비용량'!N$4,'202004'!$B$5:$B$29,0),2) -> 346.33 | O37: =INDEX('202004'!$B$5:$C$29,MATCH('월별 설비용량'!O$4,'202004'!$B$5:$B$29,0),2) -> 3755.565 | P37: =INDEX('202004'!$B$5:$C$29,MATCH('월별 설비용량'!P$4,'202004'!$B$5:$B$29,0),2) -> 1562.173 | Q37: =INDEX('202004'!$B$5:$C$29,MATCH('월별 설비용량'!Q$4,'202004'!$B$5:$B$29,0),2) -> 1604.98 | R37: =INDEX('202004'!$B$5:$C$29,MATCH('월별 설비용량'!R$4,'202004'!$B$5:$B$29,0),2) -> 192.09 | S37: =INDEX('202004'!$B$5:$C$29,MATCH('월별 설비용량'!S$4,'202004'!$B$5:$B$29,0),2) -> 255.5 | T37: =INDEX('202004'!$B$5:$C$29,MATCH('월별 설비용량'!T$4,'202004'!$B$5:$B$29,0),2) -> 81.622 | U37: =INDEX('202004'!$B$5:$C$29,MATCH('월별 설비용량'!U$4,'202004'!$B$5:$B$29,0),2) -> 66.148 | V37: =INDEX('202004'!$B$5:$C$29,MATCH('월별 설비용량'!V$4,'202004'!$B$5:$B$29,0),2) -> 401.054 | W37: =INDEX('202004'!$B$5:$C$29,MATCH('월별 설비용량'!W$4,'202004'!$B$5:$B$29,0),2) -> 350 | X37: =SUM(T37:W37) -> 898.824 | Y37: 0 | Z37: 0 | AA37: 0 | AB37: =SUM(Y37:AA37) -> 0 | AC37: =M37+N37+O37+P37+Q37+R37+S37+X37+AB37 -> 9145.992
A38: 2020-03-31 | B38: =M38 -> 510.73 | C38: =N38 -> 346.33 | D38: =O38 -> 3706.89 | E38: =P38 -> 1562.173 | F38: =Q38+R38 -> 1794.94 | G38: =S38 -> 255.5 | H38: =X38 -> 889.419 | I38: =AB38 -> 0 | J38: =AC38 -> 9065.982 | L38: 2020-03-31 | M38: =INDEX('202003'!$B$5:$C$29,MATCH('월별 설비용량'!M$4,'202003'!$B$5:$B$29,0),2) -> 510.73 | N38: =INDEX('202003'!$B$5:$C$29,MATCH('월별 설비용량'!N$4,'202003'!$B$5:$B$29,0),2) -> 346.33 | O38: =INDEX('202003'!$B$5:$C$29,MATCH('월별 설비용량'!O$4,'202003'!$B$5:$B$29,0),2) -> 3706.89 | P38: =INDEX('202003'!$B$5:$C$29,MATCH('월별 설비용량'!P$4,'202003'!$B$5:$B$29,0),2) -> 1562.173 | Q38: =INDEX('202003'!$B$5:$C$29,MATCH('월별 설비용량'!Q$4,'202003'!$B$5:$B$29,0),2) -> 1604.98 | R38: =INDEX('202003'!$B$5:$C$29,MATCH('월별 설비용량'!R$4,'202003'!$B$5:$B$29,0),2) -> 189.96 | S38: =INDEX('202003'!$B$5:$C$29,MATCH('월별 설비용량'!S$4,'202003'!$B$5:$B$29,0),2) -> 255.5 | T38: =INDEX('202003'!$B$5:$C$29,MATCH('월별 설비용량'!T$4,'202003'!$B$5:$B$29,0),2) -> 82.117 | U38: =INDEX('202003'!$B$5:$C$29,MATCH('월별 설비용량'!U$4,'202003'!$B$5:$B$29,0),2) -> 66.148 | V38: =INDEX('202003'!$B$5:$C$29,MATCH('월별 설비용량'!V$4,'202003'!$B$5:$B$29,0),2) -> 391.154 | W38: =INDEX('202003'!$B$5:$C$29,MATCH('월별 설비용량'!W$4,'202003'!$B$5:$B$29,0),2) -> 350 | X38: =SUM(T38:W38) -> 889.419 | Y38: 0 | Z38: 0 | AA38: 0 | AB38: =SUM(Y38:AA38) -> 0 | AC38: =M38+N38+O38+P38+Q38+R38+S38+X38+AB38 -> 9065.982
A39: 2020-02-29 | B39: =M39 -> 485.69 | C39: =N39 -> 346.33 | D39: =O39 -> 3665.929 | E39: =P39 -> 1562.173 | F39: =Q39+R39 -> 1794.94 | G39: =S39 -> 255.5 | H39: =X39 -> 889.419 | I39: =AB39 -> 0 | J39: =AC39 -> 8999.981 | L39: 2020-02-29 | M39: =INDEX('202002'!$B$5:$C$29,MATCH('월별 설비용량'!M$4,'202002'!$B$5:$B$29,0),2) -> 485.69 | N39: =INDEX('202002'!$B$5:$C$29,MATCH('월별 설비용량'!N$4,'202002'!$B$5:$B$29,0),2) -> 346.33 | O39: =INDEX('202002'!$B$5:$C$29,MATCH('월별 설비용량'!O$4,'202002'!$B$5:$B$29,0),2) -> 3665.929 | P39: =INDEX('202002'!$B$5:$C$29,MATCH('월별 설비용량'!P$4,'202002'!$B$5:$B$29,0),2) -> 1562.173 | Q39: =INDEX('202002'!$B$5:$C$29,MATCH('월별 설비용량'!Q$4,'202002'!$B$5:$B$29,0),2) -> 1604.98 | R39: =INDEX('202002'!$B$5:$C$29,MATCH('월별 설비용량'!R$4,'202002'!$B$5:$B$29,0),2) -> 189.96 | S39: =INDEX('202002'!$B$5:$C$29,MATCH('월별 설비용량'!S$4,'202002'!$B$5:$B$29,0),2) -> 255.5 | T39: =INDEX('202002'!$B$5:$C$29,MATCH('월별 설비용량'!T$4,'202002'!$B$5:$B$29,0),2) -> 82.117 | U39: =INDEX('202002'!$B$5:$C$29,MATCH('월별 설비용량'!U$4,'202002'!$B$5:$B$29,0),2) -> 66.148 | V39: =INDEX('202002'!$B$5:$C$29,MATCH('월별 설비용량'!V$4,'202002'!$B$5:$B$29,0),2) -> 391.154 | W39: =INDEX('202002'!$B$5:$C$29,MATCH('월별 설비용량'!W$4,'202002'!$B$5:$B$29,0),2) -> 350 | X39: =SUM(T39:W39) -> 889.419 | Y39: 0 | Z39: 0 | AA39: 0 | AB39: =SUM(Y39:AA39) -> 0 | AC39: =M39+N39+O39+P39+Q39+R39+S39+X39+AB39 -> 8999.981
A40: 2020-01-31 | B40: =M40 -> 485.69 | C40: =N40 -> 346.33 | D40: =O40 -> 3516.15 | E40: =P40 -> 1562.173 | F40: =Q40+R40 -> 1794.94 | G40: =S40 -> 255.5 | H40: =X40 -> 894.619 | I40: =AB40 -> 0 | J40: =AC40 -> 8855.402 | L40: 2020-01-31 | M40: =INDEX('202001'!$B$5:$C$29,MATCH('월별 설비용량'!M$4,'202001'!$B$5:$B$29,0),2) -> 485.69 | N40: =INDEX('202001'!$B$5:$C$29,MATCH('월별 설비용량'!N$4,'202001'!$B$5:$B$29,0),2) -> 346.33 | O40: =INDEX('202001'!$B$5:$C$29,MATCH('월별 설비용량'!O$4,'202001'!$B$5:$B$29,0),2) -> 3516.15 | P40: =INDEX('202001'!$B$5:$C$29,MATCH('월별 설비용량'!P$4,'202001'!$B$5:$B$29,0),2) -> 1562.173 | Q40: =INDEX('202001'!$B$5:$C$29,MATCH('월별 설비용량'!Q$4,'202001'!$B$5:$B$29,0),2) -> 1604.98 | R40: =INDEX('202001'!$B$5:$C$29,MATCH('월별 설비용량'!R$4,'202001'!$B$5:$B$29,0),2) -> 189.96 | S40: =INDEX('202001'!$B$5:$C$29,MATCH('월별 설비용량'!S$4,'202001'!$B$5:$B$29,0),2) -> 255.5 | T40: =INDEX('202001'!$B$5:$C$29,MATCH('월별 설비용량'!T$4,'202001'!$B$5:$B$29,0),2) -> 87.117 | U40: =INDEX('202001'!$B$5:$C$29,MATCH('월별 설비용량'!U$4,'202001'!$B$5:$B$29,0),2) -> 66.148 | V40: =INDEX('202001'!$B$5:$C$29,MATCH('월별 설비용량'!V$4,'202001'!$B$5:$B$29,0),2) -> 391.354 | W40: =INDEX('202001'!$B$5:$C$29,MATCH('월별 설비용량'!W$4,'202001'!$B$5:$B$29,0),2) -> 350 | X40: =SUM(T40:W40) -> 894.619 | Y40: 0 | Z40: 0 | AA40: 0 | AB40: =SUM(Y40:AA40) -> 0 | AC40: =M40+N40+O40+P40+Q40+R40+S40+X40+AB40 -> 8855.402
A41: 2019-12-31 | B41: =M41 -> 479.91 | C41: =N41 -> 346.33 | D41: =O41 -> 3394.089 | E41: =P41 -> 1562.173 | F41: =Q41+R41 -> 1794.94 | G41: =S41 -> 255.5 | H41: =X41 -> 894.619 | I41: =AB41 -> 0 | J41: =AC41 -> 8727.561 | L41: 2019-12-31 | M41: =INDEX('201912'!$B$5:$C$29,MATCH('월별 설비용량'!M$4,'201912'!$B$5:$B$29,0),2) -> 479.91 | N41: =INDEX('201912'!$B$5:$C$29,MATCH('월별 설비용량'!N$4,'201912'!$B$5:$B$29,0),2) -> 346.33 | O41: =INDEX('201912'!$B$5:$C$29,MATCH('월별 설비용량'!O$4,'201912'!$B$5:$B$29,0),2) -> 3394.089 | P41: =INDEX('201912'!$B$5:$C$29,MATCH('월별 설비용량'!P$4,'201912'!$B$5:$B$29,0),2) -> 1562.173 | Q41: =INDEX('201912'!$B$5:$C$29,MATCH('월별 설비용량'!Q$4,'201912'!$B$5:$B$29,0),2) -> 1604.98 | R41: =INDEX('201912'!$B$5:$C$29,MATCH('월별 설비용량'!R$4,'201912'!$B$5:$B$29,0),2) -> 189.96 | S41: =INDEX('201912'!$B$5:$C$29,MATCH('월별 설비용량'!S$4,'201912'!$B$5:$B$29,0),2) -> 255.5 | T41: =INDEX('201912'!$B$5:$C$29,MATCH('월별 설비용량'!T$4,'201912'!$B$5:$B$29,0),2) -> 87.117 | U41: =INDEX('201912'!$B$5:$C$29,MATCH('월별 설비용량'!U$4,'201912'!$B$5:$B$29,0),2) -> 66.148 | V41: =INDEX('201912'!$B$5:$C$29,MATCH('월별 설비용량'!V$4,'201912'!$B$5:$B$29,0),2) -> 391.354 | W41: =INDEX('201912'!$B$5:$C$29,MATCH('월별 설비용량'!W$4,'201912'!$B$5:$B$29,0),2) -> 350 | X41: =SUM(T41:W41) -> 894.619 | Y41: 0 | Z41: 0 | AA41: 0 | AB41: =SUM(Y41:AA41) -> 0 | AC41: =M41+N41+O41+P41+Q41+R41+S41+X41+AB41 -> 8727.561
A42: =L42 -> 2019-11-30 | B42: =M42 -> 449.55 | C42: =N42 -> 346.33 | D42: =O42 -> 3235.782 | E42: =P42 -> 1562.833 | F42: =Q42+R42 -> 1794.94 | G42: =S42 -> 255.5 | H42: =X42 -> 894.619 | I42: =AB42 -> 0 | J42: =AC42 -> 8539.554 | L42: 2019-11-30 | M42: =INDEX('201911'!$B$5:$C$29,MATCH('월별 설비용량'!M$4,'201911'!$B$5:$B$29,0),2) -> 449.55 | N42: =INDEX('201911'!$B$5:$C$29,MATCH('월별 설비용량'!N$4,'201911'!$B$5:$B$29,0),2) -> 346.33 | O42: =INDEX('201911'!$B$5:$C$29,MATCH('월별 설비용량'!O$4,'201911'!$B$5:$B$29,0),2) -> 3235.782 | P42: =INDEX('201911'!$B$5:$C$29,MATCH('월별 설비용량'!P$4,'201911'!$B$5:$B$29,0),2) -> 1562.833 | Q42: =INDEX('201911'!$B$5:$C$29,MATCH('월별 설비용량'!Q$4,'201911'!$B$5:$B$29,0),2) -> 1604.98 | R42: =INDEX('201911'!$B$5:$C$29,MATCH('월별 설비용량'!R$4,'201911'!$B$5:$B$29,0),2) -> 189.96 | S42: =INDEX('201911'!$B$5:$C$29,MATCH('월별 설비용량'!S$4,'201911'!$B$5:$B$29,0),2) -> 255.5 | T42: =INDEX('201911'!$B$5:$C$29,MATCH('월별 설비용량'!T$4,'201911'!$B$5:$B$29,0),2) -> 87.117 | U42: =INDEX('201911'!$B$5:$C$29,MATCH('월별 설비용량'!U$4,'201911'!$B$5:$B$29,0),2) -> 66.148 | V42: =INDEX('201911'!$B$5:$C$29,MATCH('월별 설비용량'!V$4,'201911'!$B$5:$B$29,0),2) -> 391.354 | W42: =INDEX('201911'!$B$5:$C$29,MATCH('월별 설비용량'!W$4,'201911'!$B$5:$B$29,0),2) -> 350 | X42: =SUM(T42:W42) -> 894.619 | Y42: 0 | Z42: 0 | AA42: 0 | AB42: =SUM(Y42:AA42) -> 0 | AC42: =M42+N42+O42+P42+Q42+R42+S42+X42+AB42 -> 8539.554
A43: =L43 -> 2019-10-31 | B43: =M43 -> 444.57 | C43: =N43 -> 346.33 | D43: =O43 -> 3184.691 | E43: =P43 -> 1562.833 | F43: =Q43+R43 -> 1791.038 | G43: =S43 -> 255.5 | H43: =X43 -> 889.619 | I43: =AB43 -> 0 | J43: =AC43 -> 8474.581 | L43: 2019-10-31 | M43: =INDEX('201910'!$B$5:$C$29,MATCH('월별 설비용량'!M$4,'201910'!$B$5:$B$29,0),2) -> 444.57 | N43: =INDEX('201910'!$B$5:$C$29,MATCH('월별 설비용량'!N$4,'201910'!$B$5:$B$29,0),2) -> 346.33 | O43: =INDEX('201910'!$B$5:$C$29,MATCH('월별 설비용량'!O$4,'201910'!$B$5:$B$29,0),2) -> 3184.691 | P43: =INDEX('201910'!$B$5:$C$29,MATCH('월별 설비용량'!P$4,'201910'!$B$5:$B$29,0),2) -> 1562.833 | Q43: =INDEX('201910'!$B$5:$C$29,MATCH('월별 설비용량'!Q$4,'201910'!$B$5:$B$29,0),2) -> 1600.98 | R43: =INDEX('201910'!$B$5:$C$29,MATCH('월별 설비용량'!R$4,'201910'!$B$5:$B$29,0),2) -> 190.058 | S43: =INDEX('201910'!$B$5:$C$29,MATCH('월별 설비용량'!S$4,'201910'!$B$5:$B$29,0),2) -> 255.5 | T43: =INDEX('201910'!$B$5:$C$29,MATCH('월별 설비용량'!T$4,'201910'!$B$5:$B$29,0),2) -> 87.117 | U43: =INDEX('201910'!$B$5:$C$29,MATCH('월별 설비용량'!U$4,'201910'!$B$5:$B$29,0),2) -> 66.148 | V43: =INDEX('201910'!$B$5:$C$29,MATCH('월별 설비용량'!V$4,'201910'!$B$5:$B$29,0),2) -> 386.354 | W43: =INDEX('201910'!$B$5:$C$29,MATCH('월별 설비용량'!W$4,'201910'!$B$5:$B$29,0),2) -> 350 | X43: =SUM(T43:W43) -> 889.619 | Y43: 0 | Z43: 0 | AA43: 0 | AB43: =SUM(Y43:AA43) -> 0 | AC43: =M43+N43+O43+P43+Q43+R43+S43+X43+AB43 -> 8474.581
A44: =L44 -> 2019-09-30 | B44: =M44 -> 443.67 | C44: =N44 -> 346.33 | D44: =O44 -> 3136.998 | E44: =P44 -> 1537.633 | F44: =Q44+R44 -> 1791.038 | G44: =S44 -> 255.5 | H44: =X44 -> 889.619 | I44: =AB44 -> 4515.312 | J44: =AC44 -> 12916.1 | L44: 2019-09-30 | M44: =INDEX('201909'!$B$5:$C$29,MATCH('월별 설비용량'!M$4,'201909'!$B$5:$B$29,0),2) -> 443.67 | N44: =INDEX('201909'!$B$5:$C$29,MATCH('월별 설비용량'!N$4,'201909'!$B$5:$B$29,0),2) -> 346.33 | O44: =INDEX('201909'!$B$5:$C$29,MATCH('월별 설비용량'!O$4,'201909'!$B$5:$B$29,0),2) -> 3136.998 | P44: =INDEX('201909'!$B$5:$C$29,MATCH('월별 설비용량'!P$4,'201909'!$B$5:$B$29,0),2) -> 1537.633 | Q44: =INDEX('201909'!$B$5:$C$29,MATCH('월별 설비용량'!Q$4,'201909'!$B$5:$B$29,0),2) -> 1600.98 | R44: =INDEX('201909'!$B$5:$C$29,MATCH('월별 설비용량'!R$4,'201909'!$B$5:$B$29,0),2) -> 190.058 | S44: =INDEX('201909'!$B$5:$C$29,MATCH('월별 설비용량'!S$4,'201909'!$B$5:$B$29,0),2) -> 255.5 | T44: =INDEX('201909'!$B$5:$C$29,MATCH('월별 설비용량'!T$4,'201909'!$B$5:$B$29,0),2) -> 87.117 | U44: =INDEX('201909'!$B$5:$C$29,MATCH('월별 설비용량'!U$4,'201909'!$B$5:$B$29,0),2) -> 66.148 | V44: =INDEX('201909'!$B$5:$C$29,MATCH('월별 설비용량'!V$4,'201909'!$B$5:$B$29,0),2) -> 386.354 | W44: =INDEX('201909'!$B$5:$C$29,MATCH('월별 설비용량'!W$4,'201909'!$B$5:$B$29,0),2) -> 350 | X44: =SUM(T44:W44) -> 889.619 | Y44: =INDEX('201909'!$B$5:$C$29,MATCH('월별 설비용량'!Y$4,'201909'!$B$5:$B$29,0),2) -> 4243.47 | Z44: 0 | AA44: =INDEX('201909'!$B$5:$C$29,MATCH('월별 설비용량'!AA$4,'201909'!$B$5:$B$29,0),2) -> 271.842 | AB44: =SUM(Y44:AA44) -> 4515.312 | AC44: =M44+N44+O44+P44+Q44+R44+S44+X44+AB44 -> 12916.1
A45: =L45 -> 2019-08-31 | B45: =M45 -> 423.43 | C45: =N45 -> 346.33 | D45: =O45 -> 3101.36 | E45: =P45 -> 1481.308 | F45: =Q45+R45 -> 1791.038 | G45: =S45 -> 255.5 | H45: =X45 -> 880.949 | I45: =AB45 -> 3281.422 | J45: =AC45 -> 11561.337 | L45: 2019-08-31 | M45: =INDEX('201908'!$B$5:$C$29,MATCH('월별 설비용량'!M$4,'201908'!$B$5:$B$29,0),2) -> 423.43 | N45: =INDEX('201908'!$B$5:$C$29,MATCH('월별 설비용량'!N$4,'201908'!$B$5:$B$29,0),2) -> 346.33 | O45: =INDEX('201908'!$B$5:$C$29,MATCH('월별 설비용량'!O$4,'201908'!$B$5:$B$29,0),2) -> 3101.36 | P45: =INDEX('201908'!$B$5:$C$29,MATCH('월별 설비용량'!P$4,'201908'!$B$5:$B$29,0),2) -> 1481.308 | Q45: =INDEX('201908'!$B$5:$C$29,MATCH('월별 설비용량'!Q$4,'201908'!$B$5:$B$29,0),2) -> 1600.98 | R45: =INDEX('201908'!$B$5:$C$29,MATCH('월별 설비용량'!R$4,'201908'!$B$5:$B$29,0),2) -> 190.058 | S45: =INDEX('201908'!$B$5:$C$29,MATCH('월별 설비용량'!S$4,'201908'!$B$5:$B$29,0),2) -> 255.5 | T45: =INDEX('201908'!$B$5:$C$29,MATCH('월별 설비용량'!T$4,'201908'!$B$5:$B$29,0),2) -> 87.117 | U45: =INDEX('201908'!$B$5:$C$29,MATCH('월별 설비용량'!U$4,'201908'!$B$5:$B$29,0),2) -> 65.448 | V45: =INDEX('201908'!$B$5:$C$29,MATCH('월별 설비용량'!V$4,'201908'!$B$5:$B$29,0),2) -> 378.384 | W45: =INDEX('201908'!$B$5:$C$29,MATCH('월별 설비용량'!W$4,'201908'!$B$5:$B$29,0),2) -> 350 | X45: =SUM(T45:W45) -> 880.949 | Y45: =INDEX('201908'!$B$5:$C$29,MATCH('월별 설비용량'!Y$4,'201908'!$B$5:$B$29,0),2) -> 3009.58 | Z45: 0 | AA45: =INDEX('201908'!$B$5:$C$29,MATCH('월별 설비용량'!AA$4,'201908'!$B$5:$B$29,0),2) -> 271.842 | AB45: =SUM(Y45:AA45) -> 3281.422 | AC45: =M45+N45+O45+P45+Q45+R45+S45+X45+AB45 -> 11561.337
A46: =L46 -> 2019-07-31 | B46: =M46 -> 423.43 | C46: =N46 -> 346.33 | D46: =O46 -> 3052.774 | E46: =P46 -> 1481.308 | F46: =Q46+R46 -> 1790.988 | G46: =S46 -> 255.5 | H46: =X46 -> 881.849 | I46: =AB46 -> 3282.322 | J46: =AC46 -> 11514.501 | L46: 2019-07-31 | M46: =INDEX('201907'!$B$5:$C$29,MATCH('월별 설비용량'!M$4,'201907'!$B$5:$B$29,0),2) -> 423.43 | N46: =INDEX('201907'!$B$5:$C$29,MATCH('월별 설비용량'!N$4,'201907'!$B$5:$B$29,0),2) -> 346.33 | O46: =INDEX('201907'!$B$5:$C$29,MATCH('월별 설비용량'!O$4,'201907'!$B$5:$B$29,0),2) -> 3052.774 | P46: =INDEX('201907'!$B$5:$C$29,MATCH('월별 설비용량'!P$4,'201907'!$B$5:$B$29,0),2) -> 1481.308 | Q46: =INDEX('201907'!$B$5:$C$29,MATCH('월별 설비용량'!Q$4,'201907'!$B$5:$B$29,0),2) -> 1600.98 | R46: =INDEX('201907'!$B$5:$C$29,MATCH('월별 설비용량'!R$4,'201907'!$B$5:$B$29,0),2) -> 190.008 | S46: =INDEX('201907'!$B$5:$C$29,MATCH('월별 설비용량'!S$4,'201907'!$B$5:$B$29,0),2) -> 255.5 | T46: =INDEX('201907'!$B$5:$C$29,MATCH('월별 설비용량'!T$4,'201907'!$B$5:$B$29,0),2) -> 87.117 | U46: =INDEX('201907'!$B$5:$C$29,MATCH('월별 설비용량'!U$4,'201907'!$B$5:$B$29,0),2) -> 66.348 | V46: =INDEX('201907'!$B$5:$C$29,MATCH('월별 설비용량'!V$4,'201907'!$B$5:$B$29,0),2) -> 378.384 | W46: =INDEX('201907'!$B$5:$C$29,MATCH('월별 설비용량'!W$4,'201907'!$B$5:$B$29,0),2) -> 350 | X46: 881.849 | Y46: =INDEX('201907'!$B$5:$C$29,MATCH('월별 설비용량'!Y$4,'201907'!$B$5:$B$29,0),2) -> 3009.58 | Z46: 0 | AA46: =INDEX('201907'!$B$5:$C$29,MATCH('월별 설비용량'!AA$4,'201907'!$B$5:$B$29,0),2) -> 272.742 | AB46: =SUM(Y46:AA46) -> 3282.322 | AC46: =M46+N46+O46+P46+Q46+R46+S46+X46+AB46 -> 11514.501
A47: =L47 -> 2019-06-30 | B47: =M47 -> 373.27 | C47: =N47 -> 346.33 | D47: =O47 -> 2995.055 | E47: =P47 -> 1421.308 | F47: =Q47+R47 -> 1790.988 | G47: =S47 -> 255 | H47: =X47 -> 781.849 | I47: =AB47 -> 3278.372 | J47: =AC47 -> 11242.172 | L47: 2019-06-30 | M47: =INDEX('201906'!$B$5:$C$29,MATCH('월별 설비용량'!M$4,'201906'!$B$5:$B$29,0),2) -> 373.27 | N47: =INDEX('201906'!$B$5:$C$29,MATCH('월별 설비용량'!N$4,'201906'!$B$5:$B$29,0),2) -> 346.33 | O47: =INDEX('201906'!$B$5:$C$29,MATCH('월별 설비용량'!O$4,'201906'!$B$5:$B$29,0),2) -> 2995.055 | P47: =INDEX('201906'!$B$5:$C$29,MATCH('월별 설비용량'!P$4,'201906'!$B$5:$B$29,0),2) -> 1421.308 | Q47: =INDEX('201906'!$B$5:$C$29,MATCH('월별 설비용량'!Q$4,'201906'!$B$5:$B$29,0),2) -> 1600.98 | R47: =INDEX('201906'!$B$5:$C$29,MATCH('월별 설비용량'!R$4,'201906'!$B$5:$B$29,0),2) -> 190.008 | S47: =INDEX('201906'!$B$5:$C$29,MATCH('월별 설비용량'!S$4,'201906'!$B$5:$B$29,0),2) -> 255 | T47: =INDEX('201906'!$B$5:$C$29,MATCH('월별 설비용량'!T$4,'201906'!$B$5:$B$29,0),2) -> 87.117 | U47: =INDEX('201906'!$B$5:$C$29,MATCH('월별 설비용량'!U$4,'201906'!$B$5:$B$29,0),2) -> 66.348 | V47: =INDEX('201906'!$B$5:$C$29,MATCH('월별 설비용량'!V$4,'201906'!$B$5:$B$29,0),2) -> 378.384 | W47: =INDEX('201906'!$B$5:$C$29,MATCH('월별 설비용량'!W$4,'201906'!$B$5:$B$29,0),2) -> 250 | X47: 781.849 | Y47: =INDEX('201906'!$B$5:$C$29,MATCH('월별 설비용량'!Y$4,'201906'!$B$5:$B$29,0),2) -> 3009.58 | Z47: 0 | AA47: =INDEX('201906'!$B$5:$C$29,MATCH('월별 설비용량'!AA$4,'201906'!$B$5:$B$29,0),2) -> 268.792 | AB47: =SUM(Y47:AA47) -> 3278.372 | AC47: =M47+N47+O47+P47+Q47+R47+S47+X47+AB47 -> 11242.172
A48: 2019-05-31 | B48: =M48 -> 373.27 | C48: =N48 -> 346.33 | D48: =O48 -> 2851.931 | E48: =P48 -> 1421.308 | F48: =Q48+R48 -> 1788.588 | G48: =S48 -> 255 | H48: =X48 -> 781.099 | I48: =AB48 -> 3278.372 | J48: =AC48 -> 11095.898 | L48: 2019-05-31 | M48: =INDEX('201905'!$B$5:$C$29,MATCH('월별 설비용량'!M$4,'201905'!$B$5:$B$29,0),2) -> 373.27 | N48: =INDEX('201905'!$B$5:$C$29,MATCH('월별 설비용량'!N$4,'201905'!$B$5:$B$29,0),2) -> 346.33 | O48: =INDEX('201905'!$B$5:$C$29,MATCH('월별 설비용량'!O$4,'201905'!$B$5:$B$29,0),2) -> 2851.931 | P48: =INDEX('201905'!$B$5:$C$29,MATCH('월별 설비용량'!P$4,'201905'!$B$5:$B$29,0),2) -> 1421.308 | Q48: =INDEX('201905'!$B$5:$C$29,MATCH('월별 설비용량'!Q$4,'201905'!$B$5:$B$29,0),2) -> 1600.98 | R48: =INDEX('201905'!$B$5:$C$29,MATCH('월별 설비용량'!R$4,'201905'!$B$5:$B$29,0),2) -> 187.608 | S48: =INDEX('201905'!$B$5:$C$29,MATCH('월별 설비용량'!S$4,'201905'!$B$5:$B$29,0),2) -> 255 | T48: =INDEX('201905'!$B$5:$C$29,MATCH('월별 설비용량'!T$4,'201905'!$B$5:$B$29,0),2) -> 86.367 | U48: =INDEX('201905'!$B$5:$C$29,MATCH('월별 설비용량'!U$4,'201905'!$B$5:$B$29,0),2) -> 66.348 | V48: =INDEX('201905'!$B$5:$C$29,MATCH('월별 설비용량'!V$4,'201905'!$B$5:$B$29,0),2) -> 378.384 | W48: =INDEX('201905'!$B$5:$C$29,MATCH('월별 설비용량'!W$4,'201905'!$B$5:$B$29,0),2) -> 250 | X48: 781.099 | Y48: =INDEX('201905'!$B$5:$C$29,MATCH('월별 설비용량'!Y$4,'201905'!$B$5:$B$29,0),2) -> 3009.58 | Z48: 0 | AA48: =INDEX('201905'!$B$5:$C$29,MATCH('월별 설비용량'!AA$4,'201905'!$B$5:$B$29,0),2) -> 268.792 | AB48: =SUM(Y48:AA48) -> 3278.372 | AC48: =M48+N48+O48+P48+Q48+R48+S48+X48+AB48 -> 11095.898
A49: 2019-04-30 | B49: =M49 -> 363.59 | C49: =N49 -> 346.33 | D49: =O49 -> 2811.878 | E49: =P49 -> 1421.308 | F49: =Q49+R49 -> 1788.588 | G49: =S49 -> 255 | H49: =X49 -> 706.099 | I49: =AB49 -> 3278.372 | J49: =AC49 -> 10971.165 | L49: 2019-04-30 | M49: =INDEX('201904'!$B$5:$C$29,MATCH('월별 설비용량'!M$4,'201904'!$B$5:$B$29,0),2) -> 363.59 | N49: =INDEX('201904'!$B$5:$C$29,MATCH('월별 설비용량'!N$4,'201904'!$B$5:$B$29,0),2) -> 346.33 | O49: =INDEX('201904'!$B$5:$C$29,MATCH('월별 설비용량'!O$4,'201904'!$B$5:$B$29,0),2) -> 2811.878 | P49: =INDEX('201904'!$B$5:$C$29,MATCH('월별 설비용량'!P$4,'201904'!$B$5:$B$29,0),2) -> 1421.308 | Q49: =INDEX('201904'!$B$5:$C$29,MATCH('월별 설비용량'!Q$4,'201904'!$B$5:$B$29,0),2) -> 1600.98 | R49: =INDEX('201904'!$B$5:$C$29,MATCH('월별 설비용량'!R$4,'201904'!$B$5:$B$29,0),2) -> 187.608 | S49: =INDEX('201904'!$B$5:$C$29,MATCH('월별 설비용량'!S$4,'201904'!$B$5:$B$29,0),2) -> 255 | T49: =INDEX('201904'!$B$5:$C$29,MATCH('월별 설비용량'!T$4,'201904'!$B$5:$B$29,0),2) -> 86.367 | U49: =INDEX('201904'!$B$5:$C$29,MATCH('월별 설비용량'!U$4,'201904'!$B$5:$B$29,0),2) -> 66.348 | V49: =INDEX('201904'!$B$5:$C$29,MATCH('월별 설비용량'!V$4,'201904'!$B$5:$B$29,0),2) -> 378.384 | W49: =INDEX('201904'!$B$5:$C$29,MATCH('월별 설비용량'!W$4,'201904'!$B$5:$B$29,0),2) -> 175 | X49: 706.099 | Y49: =INDEX('201904'!$B$5:$C$29,MATCH('월별 설비용량'!Y$4,'201904'!$B$5:$B$29,0),2) -> 3009.58 | Z49: 0 | AA49: =INDEX('201904'!$B$5:$C$29,MATCH('월별 설비용량'!AA$4,'201904'!$B$5:$B$29,0),2) -> 268.792 | AB49: =SUM(Y49:AA49) -> 3278.372 | AC49: =M49+N49+O49+P49+Q49+R49+S49+X49+AB49 -> 10971.165
A50: =L50 -> 2019-03-31 | B50: =M50 -> 363.59 | C50: =N50 -> 346.33 | D50: =O50 -> 2777.633 | E50: =P50 -> 1421.308 | F50: =Q50+R50 -> 1788.588 | G50: =S50 -> 255 | H50: =X50 -> 704.757 | I50: =AB50 -> 3278.372 | J50: =AC50 -> 10935.578 | L50: 2019-03-31 | M50: =INDEX('201903'!$B$5:$C$29,MATCH('월별 설비용량'!M$4,'201903'!$B$5:$B$29,0),2) -> 363.59 | N50: =INDEX('201903'!$B$5:$C$29,MATCH('월별 설비용량'!N$4,'201903'!$B$5:$B$29,0),2) -> 346.33 | O50: =INDEX('201903'!$B$5:$C$29,MATCH('월별 설비용량'!O$4,'201903'!$B$5:$B$29,0),2) -> 2777.633 | P50: =INDEX('201903'!$B$5:$C$29,MATCH('월별 설비용량'!P$4,'201903'!$B$5:$B$29,0),2) -> 1421.308 | Q50: =INDEX('201903'!$B$5:$C$29,MATCH('월별 설비용량'!Q$4,'201903'!$B$5:$B$29,0),2) -> 1600.98 | R50: =INDEX('201903'!$B$5:$C$29,MATCH('월별 설비용량'!R$4,'201903'!$B$5:$B$29,0),2) -> 187.608 | S50: =INDEX('201903'!$B$5:$C$29,MATCH('월별 설비용량'!S$4,'201903'!$B$5:$B$29,0),2) -> 255 | T50: =INDEX('201903'!$B$5:$C$29,MATCH('월별 설비용량'!T$4,'201903'!$B$5:$B$29,0),2) -> 83.967 | U50: =INDEX('201903'!$B$5:$C$29,MATCH('월별 설비용량'!U$4,'201903'!$B$5:$B$29,0),2) -> 67.406 | V50: =INDEX('201903'!$B$5:$C$29,MATCH('월별 설비용량'!V$4,'201903'!$B$5:$B$29,0),2) -> 378.384 | W50: =INDEX('201903'!$B$5:$C$29,MATCH('월별 설비용량'!W$4,'201903'!$B$5:$B$29,0),2) -> 175 | X50: 704.757 | Y50: =INDEX('201903'!$B$5:$C$29,MATCH('월별 설비용량'!Y$4,'201903'!$B$5:$B$29,0),2) -> 3009.58 | Z50: 0 | AA50: =INDEX('201903'!$B$5:$C$29,MATCH('월별 설비용량'!AA$4,'201903'!$B$5:$B$29,0),2) -> 268.792 | AB50: =SUM(Y50:AA50) -> 3278.372 | AC50: =M50+N50+O50+P50+Q50+R50+S50+X50+AB50 -> 10935.578
A51: =L51 -> 2019-02-28 | B51: =M51 -> 363.59 | C51: =N51 -> 346.33 | D51: =O51 -> 2729.938 | E51: =P51 -> 1421.308 | F51: =Q51+R51 -> 1788.588 | G51: =S51 -> 255 | H51: =X51 -> 529.757 | I51: =AB51 -> 3278.372 | J51: =AC51 -> 10712.883 | L51: 2019-02-28 | M51: =INDEX('201902'!$B$5:$C$29,MATCH('월별 설비용량'!M$4,'201902'!$B$5:$B$29,0),2) -> 363.59 | N51: =INDEX('201902'!$B$5:$C$29,MATCH('월별 설비용량'!N$4,'201902'!$B$5:$B$29,0),2) -> 346.33 | O51: =INDEX('201902'!$B$5:$C$29,MATCH('월별 설비용량'!O$4,'201902'!$B$5:$B$29,0),2) -> 2729.938 | P51: =INDEX('201902'!$B$5:$C$29,MATCH('월별 설비용량'!P$4,'201902'!$B$5:$B$29,0),2) -> 1421.308 | Q51: =INDEX('201902'!$B$5:$C$29,MATCH('월별 설비용량'!Q$4,'201902'!$B$5:$B$29,0),2) -> 1600.98 | R51: =INDEX('201902'!$B$5:$C$29,MATCH('월별 설비용량'!R$4,'201902'!$B$5:$B$29,0),2) -> 187.608 | S51: =INDEX('201902'!$B$5:$C$29,MATCH('월별 설비용량'!S$4,'201902'!$B$5:$B$29,0),2) -> 255 | T51: =INDEX('201902'!$B$5:$C$29,MATCH('월별 설비용량'!T$4,'201902'!$B$5:$B$29,0),2) -> 83.967 | U51: =INDEX('201902'!$B$5:$C$29,MATCH('월별 설비용량'!U$4,'201902'!$B$5:$B$29,0),2) -> 67.406 | V51: =INDEX('201902'!$B$5:$C$29,MATCH('월별 설비용량'!V$4,'201902'!$B$5:$B$29,0),2) -> 378.384 | X51: =T51+U51+V51 -> 529.757 | Y51: =INDEX('201902'!$B$5:$C$29,MATCH('월별 설비용량'!Y$4,'201902'!$B$5:$B$29,0),2) -> 3009.58 | Z51: 0 | AA51: =INDEX('201902'!$B$5:$C$29,MATCH('월별 설비용량'!AA$4,'201902'!$B$5:$B$29,0),2) -> 268.792 | AB51: =SUM(Y51:AA51) -> 3278.372 | AC51: =M51+N51+O51+P51+Q51+R51+S51+X51+AB51 -> 10712.883
A52: =L52 -> 2019-01-31 | B52: =M52 -> 345.11 | C52: =N52 -> 346.33 | D52: =O52 -> 2687.278 | E52: =P52 -> 1422.718 | F52: =Q52+R52 -> 1788.588 | G52: =S52 -> 255 | H52: =X52 -> 529.757 | I52: =AB52 -> 3275.772 | J52: =AC52 -> 10650.553 | L52: 2019-01-31 | M52: =INDEX('201901'!$B$5:$C$29,MATCH('월별 설비용량'!M$4,'201901'!$B$5:$B$29,0),2) -> 345.11 | N52: =INDEX('201901'!$B$5:$C$29,MATCH('월별 설비용량'!N$4,'201901'!$B$5:$B$29,0),2) -> 346.33 | O52: =INDEX('201901'!$B$5:$C$29,MATCH('월별 설비용량'!O$4,'201901'!$B$5:$B$29,0),2) -> 2687.278 | P52: =INDEX('201901'!$B$5:$C$29,MATCH('월별 설비용량'!P$4,'201901'!$B$5:$B$29,0),2) -> 1422.718 | Q52: =INDEX('201901'!$B$5:$C$29,MATCH('월별 설비용량'!Q$4,'201901'!$B$5:$B$29,0),2) -> 1600.98 | R52: =INDEX('201901'!$B$5:$C$29,MATCH('월별 설비용량'!R$4,'201901'!$B$5:$B$29,0),2) -> 187.608 | S52: =INDEX('201901'!$B$5:$C$29,MATCH('월별 설비용량'!S$4,'201901'!$B$5:$B$29,0),2) -> 255 | T52: =INDEX('201901'!$B$5:$C$29,MATCH('월별 설비용량'!T$4,'201901'!$B$5:$B$29,0),2) -> 83.967 | U52: =INDEX('201901'!$B$5:$C$29,MATCH('월별 설비용량'!U$4,'201901'!$B$5:$B$29,0),2) -> 67.406 | V52: =INDEX('201901'!$B$5:$C$29,MATCH('월별 설비용량'!V$4,'201901'!$B$5:$B$29,0),2) -> 378.384 | X52: =T52+U52+V52 -> 529.757 | Y52: =INDEX('201901'!$B$5:$C$29,MATCH('월별 설비용량'!Y$4,'201901'!$B$5:$B$29,0),2) -> 3009.58 | Z52: 0 | AA52: =INDEX('201901'!$B$5:$C$29,MATCH('월별 설비용량'!AA$4,'201901'!$B$5:$B$29,0),2) -> 266.192 | AB52: =SUM(Y52:AA52) -> 3275.772 | AC52: =M52+N52+O52+P52+Q52+R52+S52+X52+AB52 -> 10650.553
A53: =L53 -> 2018-12-31 | B53: =M53 -> 345.11 | C53: =N53 -> 346.33 | D53: =O53 -> 2626.958 | E53: =P53 -> 1422.718 | F53: =Q53+R53 -> 1788.588 | G53: =S53 -> 255 | H53: =X53 -> 529.757 | I53: =AB53 -> 3275.772 | J53: =AC53 -> 10590.233 | L53: 2018-12-31 | M53: =INDEX('201812'!$B$5:$C$29,MATCH('월별 설비용량'!M$4,'201812'!$B$5:$B$29,0),2) -> 345.11 | N53: =INDEX('201812'!$B$5:$C$29,MATCH('월별 설비용량'!N$4,'201812'!$B$5:$B$29,0),2) -> 346.33 | O53: =INDEX('201812'!$B$5:$C$29,MATCH('월별 설비용량'!O$4,'201812'!$B$5:$B$29,0),2) -> 2626.958 | P53: =INDEX('201812'!$B$5:$C$29,MATCH('월별 설비용량'!P$4,'201812'!$B$5:$B$29,0),2) -> 1422.718 | Q53: =INDEX('201812'!$B$5:$C$29,MATCH('월별 설비용량'!Q$4,'201812'!$B$5:$B$29,0),2) -> 1600.98 | R53: =INDEX('201812'!$B$5:$C$29,MATCH('월별 설비용량'!R$4,'201812'!$B$5:$B$29,0),2) -> 187.608 | S53: =INDEX('201812'!$B$5:$C$29,MATCH('월별 설비용량'!S$4,'201812'!$B$5:$B$29,0),2) -> 255 | T53: =INDEX('201812'!$B$5:$C$29,MATCH('월별 설비용량'!T$4,'201812'!$B$5:$B$29,0),2) -> 83.967 | U53: =INDEX('201812'!$B$5:$C$29,MATCH('월별 설비용량'!U$4,'201812'!$B$5:$B$29,0),2) -> 67.406 | V53: =INDEX('201812'!$B$5:$C$29,MATCH('월별 설비용량'!V$4,'201812'!$B$5:$B$29,0),2) -> 378.384 | X53: =T53+U53+V53 -> 529.757 | Y53: =INDEX('201812'!$B$5:$C$29,MATCH('월별 설비용량'!Y$4,'201812'!$B$5:$B$29,0),2) -> 3009.58 | Z53: 0 | AA53: =INDEX('201812'!$B$5:$C$29,MATCH('월별 설비용량'!AA$4,'201812'!$B$5:$B$29,0),2) -> 266.192 | AB53: =SUM(Y53:AA53) -> 3275.772 | AC53: =M53+N53+O53+P53+Q53+R53+S53+X53+AB53 -> 10590.233
A54: =L54 -> 2018-11-30 | B54: =M54 -> 345.11 | C54: =N54 -> 346.33 | D54: =O54 -> 2565.89 | E54: =P54 -> 1418.518 | F54: =Q54+R54 -> 1785.588 | G54: =S54 -> 255 | H54: =X54 -> 529.757 | I54: =AB54 -> 3274.622 | J54: =AC54 -> 10520.815 | L54: 2018-11-30 | M54: =INDEX('201811'!$B$5:$C$29,MATCH('월별 설비용량'!M$4,'201811'!$B$5:$B$29,0),2) -> 345.11 | N54: =INDEX('201811'!$B$5:$C$29,MATCH('월별 설비용량'!N$4,'201811'!$B$5:$B$29,0),2) -> 346.33 | O54: =INDEX('201811'!$B$5:$C$29,MATCH('월별 설비용량'!O$4,'201811'!$B$5:$B$29,0),2) -> 2565.89 | P54: =INDEX('201811'!$B$5:$C$29,MATCH('월별 설비용량'!P$4,'201811'!$B$5:$B$29,0),2) -> 1418.518 | Q54: =INDEX('201811'!$B$5:$C$29,MATCH('월별 설비용량'!Q$4,'201811'!$B$5:$B$29,0),2) -> 1600.98 | R54: =INDEX('201811'!$B$5:$C$29,MATCH('월별 설비용량'!R$4,'201811'!$B$5:$B$29,0),2) -> 184.608 | S54: =INDEX('201811'!$B$5:$C$29,MATCH('월별 설비용량'!S$4,'201811'!$B$5:$B$29,0),2) -> 255 | T54: =INDEX('201811'!$B$5:$C$29,MATCH('월별 설비용량'!T$4,'201811'!$B$5:$B$29,0),2) -> 83.967 | U54: =INDEX('201811'!$B$5:$C$29,MATCH('월별 설비용량'!U$4,'201811'!$B$5:$B$29,0),2) -> 67.406 | V54: =INDEX('201811'!$B$5:$C$29,MATCH('월별 설비용량'!V$4,'201811'!$B$5:$B$29,0),2) -> 378.384 | X54: =T54+U54+V54 -> 529.757 | Y54: =INDEX('201811'!$B$5:$C$29,MATCH('월별 설비용량'!Y$4,'201811'!$B$5:$B$29,0),2) -> 3009.58 | Z54: 0 | AA54: =INDEX('201811'!$B$5:$C$29,MATCH('월별 설비용량'!AA$4,'201811'!$B$5:$B$29,0),2) -> 265.042 | AB54: =SUM(Y54:AA54) -> 3274.622 | AC54: =M54+N54+O54+P54+Q54+R54+S54+X54+AB54 -> 10520.815
A55: 2018-10-31 | B55: =M55 -> 323.99 | C55: =N55 -> 346.33 | D55: =O55 -> 2517.54 | E55: =P55 -> 1416.218 | F55: =Q55+R55 -> 1785.588 | G55: =S55 -> 255 | H55: =X55 -> 529.757 | I55: =AB55 -> 3271.872 | J55: =AC55 -> 10446.295 | L55: 2018-10-31 | M55: =INDEX('201810'!$B$5:$C$29,MATCH('월별 설비용량'!M$4,'201810'!$B$5:$B$29,0),2) -> 323.99 | N55: =INDEX('201810'!$B$5:$C$29,MATCH('월별 설비용량'!N$4,'201810'!$B$5:$B$29,0),2) -> 346.33 | O55: =INDEX('201810'!$B$5:$C$29,MATCH('월별 설비용량'!O$4,'201810'!$B$5:$B$29,0),2) -> 2517.54 | P55: =INDEX('201810'!$B$5:$C$29,MATCH('월별 설비용량'!P$4,'201810'!$B$5:$B$29,0),2) -> 1416.218 | Q55: =INDEX('201810'!$B$5:$C$29,MATCH('월별 설비용량'!Q$4,'201810'!$B$5:$B$29,0),2) -> 1600.98 | R55: =INDEX('201810'!$B$5:$C$29,MATCH('월별 설비용량'!R$4,'201810'!$B$5:$B$29,0),2) -> 184.608 | S55: =INDEX('201810'!$B$5:$C$29,MATCH('월별 설비용량'!S$4,'201810'!$B$5:$B$29,0),2) -> 255 | T55: =INDEX('201810'!$B$5:$C$29,MATCH('월별 설비용량'!T$4,'201810'!$B$5:$B$29,0),2) -> 83.967 | U55: =INDEX('201810'!$B$5:$C$29,MATCH('월별 설비용량'!U$4,'201810'!$B$5:$B$29,0),2) -> 67.406 | V55: =INDEX('201810'!$B$5:$C$29,MATCH('월별 설비용량'!V$4,'201810'!$B$5:$B$29,0),2) -> 378.384 | X55: =T55+U55+V55 -> 529.757 | Y55: =INDEX('201810'!$B$5:$C$29,MATCH('월별 설비용량'!Y$4,'201810'!$B$5:$B$29,0),2) -> 3009.58 | Z55: 0 | AA55: =INDEX('201810'!$B$5:$C$29,MATCH('월별 설비용량'!AA$4,'201810'!$B$5:$B$29,0),2) -> 262.292 | AB55: =SUM(Y55:AA55) -> 3271.872 | AC55: =M55+N55+O55+P55+Q55+R55+S55+X55+AB55 -> 10446.295
A56: 2018-09-30 | B56: =M56 -> 294.2 | C56: =N56 -> 346.33 | D56: =O56 -> 2485.557 | E56: =P56 -> 1399.318 | F56: 1782.088 | G56: =S56 -> 255 | H56: =X56 -> 529.262 | I56: =AB56 -> 3259.222 | J56: =AC56 -> 10350.977 | L56: 2018-09-30 | M56: =INDEX('201809'!$B$5:$C$29,MATCH('월별 설비용량'!M$4,'201809'!$B$5:$B$29,0),2) -> 294.2 | N56: =INDEX('201809'!$B$5:$C$29,MATCH('월별 설비용량'!N$4,'201809'!$B$5:$B$29,0),2) -> 346.33 | O56: =INDEX('201809'!$B$5:$C$29,MATCH('월별 설비용량'!O$4,'201809'!$B$5:$B$29,0),2) -> 2485.557 | P56: =INDEX('201809'!$B$5:$C$29,MATCH('월별 설비용량'!P$4,'201809'!$B$5:$B$29,0),2) -> 1399.318 | Q56: =INDEX('201809'!$B$5:$C$29,MATCH('월별 설비용량'!Q$4,'201809'!$B$5:$B$29,0),2) -> 1597.48 | R56: =INDEX('201809'!$B$5:$C$29,MATCH('월별 설비용량'!R$4,'201809'!$B$5:$B$29,0),2) -> 184.608 | S56: =INDEX('201809'!$B$5:$C$29,MATCH('월별 설비용량'!S$4,'201809'!$B$5:$B$29,0),2) -> 255 | T56: =INDEX('201809'!$B$5:$C$29,MATCH('월별 설비용량'!T$4,'201809'!$B$5:$B$29,0),2) -> 83.472 | U56: =INDEX('201809'!$B$5:$C$29,MATCH('월별 설비용량'!U$4,'201809'!$B$5:$B$29,0),2) -> 67.406 | V56: =INDEX('201809'!$B$5:$C$29,MATCH('월별 설비용량'!V$4,'201809'!$B$5:$B$29,0),2) -> 378.384 | X56: 529.262 | Y56: =INDEX('201809'!$B$5:$C$29,MATCH('월별 설비용량'!Y$4,'201809'!$B$5:$B$29,0),2) -> 3009.58 | Z56: 0 | AA56: =INDEX('201809'!$B$5:$C$29,MATCH('월별 설비용량'!AA$4,'201809'!$B$5:$B$29,0),2) -> 249.642 | AB56: 3259.222 | AC56: 10350.977
A57: 2018-08-31 | B57: =M57 -> 294.2 | C57: =N57 -> 346.33 | D57: =O57 -> 2445.682 | E57: =P57 -> 1284.718 | F57: 1785.388 | G57: =S57 -> 255 | H57: =X57 -> 529.067 | I57: =AB57 -> 3259.222 | J57: =AC57 -> 10199.607 | L57: 2018-08-31 | M57: =INDEX('201808'!$B$5:$C$29,MATCH('월별 설비용량'!M$4,'201808'!$B$5:$B$29,0),2) -> 294.2 | N57: =INDEX('201808'!$B$5:$C$29,MATCH('월별 설비용량'!N$4,'201808'!$B$5:$B$29,0),2) -> 346.33 | O57: =INDEX('201808'!$B$5:$C$29,MATCH('월별 설비용량'!O$4,'201808'!$B$5:$B$29,0),2) -> 2445.682 | P57: =INDEX('201808'!$B$5:$C$29,MATCH('월별 설비용량'!P$4,'201808'!$B$5:$B$29,0),2) -> 1284.718 | Q57: =INDEX('201808'!$B$5:$C$29,MATCH('월별 설비용량'!Q$4,'201808'!$B$5:$B$29,0),2) -> 1600.78 | R57: =INDEX('201808'!$B$5:$C$29,MATCH('월별 설비용량'!R$4,'201808'!$B$5:$B$29,0),2) -> 184.608 | S57: =INDEX('201808'!$B$5:$C$29,MATCH('월별 설비용량'!S$4,'201808'!$B$5:$B$29,0),2) -> 255 | T57: =INDEX('201808'!$B$5:$C$29,MATCH('월별 설비용량'!T$4,'201808'!$B$5:$B$29,0),2) -> 83.277 | U57: =INDEX('201808'!$B$5:$C$29,MATCH('월별 설비용량'!U$4,'201808'!$B$5:$B$29,0),2) -> 67.406 | V57: =INDEX('201808'!$B$5:$C$29,MATCH('월별 설비용량'!V$4,'201808'!$B$5:$B$29,0),2) -> 378.384 | X57: 529.067 | Y57: =INDEX('201808'!$B$5:$C$29,MATCH('월별 설비용량'!Y$4,'201808'!$B$5:$B$29,0),2) -> 3009.58 | Z57: 0 | AA57: =INDEX('201808'!$B$5:$C$29,MATCH('월별 설비용량'!AA$4,'201808'!$B$5:$B$29,0),2) -> 249.642 | AB57: 3259.222 | AC57: 10199.607
A58: 2018-07-31 | B58: =M58 -> 294.2 | C58: =N58 -> 346.33 | D58: =O58 -> 2398.383 | E58: =P58 -> 1282.418 | F58: 1785.388 | G58: =S58 -> 255 | H58: =X58 -> 529.067 | I58: =AB58 -> 3259.222 | J58: =AC58 -> 10150.008 | L58: 2018-07-31 | M58: =INDEX('201807'!$B$5:$C$29,MATCH('월별 설비용량'!M$4,'201807'!$B$5:$B$29,0),2) -> 294.2 | N58: =INDEX('201807'!$B$5:$C$29,MATCH('월별 설비용량'!N$4,'201807'!$B$5:$B$29,0),2) -> 346.33 | O58: =INDEX('201807'!$B$5:$C$29,MATCH('월별 설비용량'!O$4,'201807'!$B$5:$B$29,0),2) -> 2398.383 | P58: =INDEX('201807'!$B$5:$C$29,MATCH('월별 설비용량'!P$4,'201807'!$B$5:$B$29,0),2) -> 1282.418 | Q58: =INDEX('201807'!$B$5:$C$29,MATCH('월별 설비용량'!Q$4,'201807'!$B$5:$B$29,0),2) -> 1600.78 | R58: =INDEX('201807'!$B$5:$C$29,MATCH('월별 설비용량'!R$4,'201807'!$B$5:$B$29,0),2) -> 184.608 | S58: =INDEX('201807'!$B$5:$C$29,MATCH('월별 설비용량'!S$4,'201807'!$B$5:$B$29,0),2) -> 255 | T58: =INDEX('201807'!$B$5:$C$29,MATCH('월별 설비용량'!T$4,'201807'!$B$5:$B$29,0),2) -> 83.277 | U58: =INDEX('201807'!$B$5:$C$29,MATCH('월별 설비용량'!U$4,'201807'!$B$5:$B$29,0),2) -> 67.406 | V58: =INDEX('201807'!$B$5:$C$29,MATCH('월별 설비용량'!V$4,'201807'!$B$5:$B$29,0),2) -> 378.384 | X58: 529.067 | Y58: =INDEX('201807'!$B$5:$C$29,MATCH('월별 설비용량'!Y$4,'201807'!$B$5:$B$29,0),2) -> 3009.58 | Z58: 0 | AA58: =INDEX('201807'!$B$5:$C$29,MATCH('월별 설비용량'!AA$4,'201807'!$B$5:$B$29,0),2) -> 249.642 | AB58: 3259.222 | AC58: 10150.008
A59: 2018-06-30 | B59: =M59 -> 294.2 | C59: =N59 -> 346.33 | D59: =O59 -> 2302.49 | E59: =P59 -> 1282.418 | F59: 1785.388 | G59: =S59 -> 255 | H59: =X59 -> 528.948 | I59: =AB59 -> 3255.222 | J59: =AC59 -> 10049.996 | L59: 2018-06-30 | M59: =INDEX('201806'!$B$5:$C$29,MATCH('월별 설비용량'!M$4,'201806'!$B$5:$B$29,0),2) -> 294.2 | N59: =INDEX('201806'!$B$5:$C$29,MATCH('월별 설비용량'!N$4,'201806'!$B$5:$B$29,0),2) -> 346.33 | O59: =INDEX('201806'!$B$5:$C$29,MATCH('월별 설비용량'!O$4,'201806'!$B$5:$B$29,0),2) -> 2302.49 | P59: =INDEX('201806'!$B$5:$C$29,MATCH('월별 설비용량'!P$4,'201806'!$B$5:$B$29,0),2) -> 1282.418 | Q59: =INDEX('201806'!$B$5:$C$29,MATCH('월별 설비용량'!Q$4,'201806'!$B$5:$B$29,0),2) -> 1600.78 | R59: =INDEX('201806'!$B$5:$C$29,MATCH('월별 설비용량'!R$4,'201806'!$B$5:$B$29,0),2) -> 184.608 | S59: =INDEX('201806'!$B$5:$C$29,MATCH('월별 설비용량'!S$4,'201806'!$B$5:$B$29,0),2) -> 255 | T59: =INDEX('201806'!$B$5:$C$29,MATCH('월별 설비용량'!T$4,'201806'!$B$5:$B$29,0),2) -> 83.158 | U59: =INDEX('201806'!$B$5:$C$29,MATCH('월별 설비용량'!U$4,'201806'!$B$5:$B$29,0),2) -> 67.406 | V59: =INDEX('201806'!$B$5:$C$29,MATCH('월별 설비용량'!V$4,'201806'!$B$5:$B$29,0),2) -> 378.384 | X59: 528.948 | Y59: =INDEX('201806'!$B$5:$C$29,MATCH('월별 설비용량'!Y$4,'201806'!$B$5:$B$29,0),2) -> 3009.58 | Z59: 0 | AA59: =INDEX('201806'!$B$5:$C$29,MATCH('월별 설비용량'!AA$4,'201806'!$B$5:$B$29,0),2) -> 245.642 | AB59: 3255.222 | AC59: 10049.996
A60: 2018-05-31 | B60: =M60 -> 294.2 | C60: =N60 -> 346.33 | D60: =O60 -> 2253.075 | E60: =P60 -> 1282.418 | F60: 1785.388 | G60: =S60 -> 255 | H60: =X60 -> 528.648 | I60: =AB60 -> 3255.222 | J60: =AC60 -> 10000.281 | L60: 2018-05-31 | M60: =INDEX('201805'!$B$5:$C$29,MATCH('월별 설비용량'!M$4,'201805'!$B$5:$B$29,0),2) -> 294.2 | N60: =INDEX('201805'!$B$5:$C$29,MATCH('월별 설비용량'!N$4,'201805'!$B$5:$B$29,0),2) -> 346.33 | O60: =INDEX('201805'!$B$5:$C$29,MATCH('월별 설비용량'!O$4,'201805'!$B$5:$B$29,0),2) -> 2253.075 | P60: =INDEX('201805'!$B$5:$C$29,MATCH('월별 설비용량'!P$4,'201805'!$B$5:$B$29,0),2) -> 1282.418 | Q60: =INDEX('201805'!$B$5:$C$29,MATCH('월별 설비용량'!Q$4,'201805'!$B$5:$B$29,0),2) -> 1600.78 | R60: =INDEX('201805'!$B$5:$C$29,MATCH('월별 설비용량'!R$4,'201805'!$B$5:$B$29,0),2) -> 184.608 | S60: =INDEX('201805'!$B$5:$C$29,MATCH('월별 설비용량'!S$4,'201805'!$B$5:$B$29,0),2) -> 255 | T60: =INDEX('201805'!$B$5:$C$29,MATCH('월별 설비용량'!T$4,'201805'!$B$5:$B$29,0),2) -> 83.158 | U60: =INDEX('201805'!$B$5:$C$29,MATCH('월별 설비용량'!U$4,'201805'!$B$5:$B$29,0),2) -> 67.106 | V60: =INDEX('201805'!$B$5:$C$29,MATCH('월별 설비용량'!V$4,'201805'!$B$5:$B$29,0),2) -> 378.384 | X60: 528.648 | Y60: =INDEX('201805'!$B$5:$C$29,MATCH('월별 설비용량'!Y$4,'201805'!$B$5:$B$29,0),2) -> 3009.58 | Z60: 0 | AA60: =INDEX('201805'!$B$5:$C$29,MATCH('월별 설비용량'!AA$4,'201805'!$B$5:$B$29,0),2) -> 245.642 | AB60: 3255.222 | AC60: 10000.281
A61: =L61 -> 2018-04-30 | B61: 277.48 | C61: 346.33 | D61: 2199.299 | E61: 1265.878 | F61: =Q61 -> 1785.388 | G61: 255 | H61: 528.948 | I61: 3255.222 | J61: 9913.545 | L61: 2018-04-30 | M61: 277.48 | N61: 346.33 | O61: 2199.299 | P61: 1265.878 | Q61: 1785.388 | S61: 255 | T61: 83.158 | U61: 67.406 | V61: 378.384 | X61: 528.948 | Y61: 3009.58 | Z61: 0 | AA61: 245.642 | AB61: 3255.222 | AC61: =M61+N61+O61+P61+Q61+S61+X61+AB61 -> 9913.545
A62: =L62 -> 2018-03-31 | B62: =M62 -> 257.48 | C62: =N62 -> 346.33 | D62: =O62 -> 2179.661 | E62: =P62 -> 1265.918 | F62: =Q62 -> 1785.388 | G62: =S62 -> 255 | H62: =X62 -> 528.948 | I62: =AB62 -> 3255.222 | J62: =AC62 -> 9527.617 | L62: 2018-03-31 | M62: 257.48 | N62: 346.33 | O62: 2179.661 | P62: 1265.918 | Q62: 1785.388 | S62: 255 | T62: 83.158 | U62: 67.406 | V62: 378.384 | X62: 528.948 | Y62: 3009.58 | Z62: 0 | AA62: 245.642 | AB62: 3255.222 | AC62: 9527.617
A63: =L63 -> 2018-02-28 | B63: =M63 -> 257.04 | C63: =N63 -> 346.33 | D63: =O63 -> 2138.038 | E63: =P63 -> 1265.918 | F63: =Q63 -> 1785.358 | G63: =S63 -> 255 | H63: =X63 -> 528.408 | I63: =AB63 -> 3255.222 | J63: =AC63 -> 9831.314 | L63: 2018-02-28 | M63: 257.04 | N63: 346.33 | O63: 2138.038 | P63: 1265.918 | Q63: 1785.358 | S63: 255 | T63: 82.618 | U63: 67.406 | V63: 378.384 | X63: 528.408 | Y63: 3009.58 | Z63: 0 | AA63: 245.642 | AB63: 3255.222 | AC63: 9831.314
A64: =L64 -> 2018-01-31 | B64: 251.76 | C64: 346.33 | D64: =O64 -> 2113.08 | E64: =P64 -> 1265.918 | F64: =Q64 -> 1785.358 | G64: =S64 -> 255 | H64: =X64 -> 528.408 | I64: =AB64 -> 3255.222 | J64: =AC64 -> 9801.076 | L64: 2018-01-31 | M64: 251.76 | N64: 346.33 | O64: 2113.08 | P64: 1265.918 | Q64: 1785.358 | S64: 255 | T64: 82.618 | U64: 67.406 | V64: 378.384 | X64: 528.408 | Y64: 3009.58 | Z64: 0 | AA64: 245.642 | AB64: 3255.222 | AC64: 9801.076
A65: 2017-12-31 | B65: 238.56 | C65: 346.33 | D65: =O65 -> 1892.789 | E65: =P65 -> 1188.818 | F65: =Q65 -> 1783.94 | G65: =S65 -> 255 | H65: 486.568 | I65: 3212.769 | J65: =AC65 -> 9404.774 | L65: 2017-12-31 | M65: =SUMIF($AA$65:$AA$3060,"연료전지",$C$66:$C$3061) -> 251.76 | N65: =SUMIF($AA$65:$AA$3060,"IGCC",$C$66:$C$3061) -> 346.33 | O65: =SUMIF($AA$65:$AA$3060,"태양광",$C$66:$C$3061) -> 2044.01 | P65: =SUMIF($AA$65:$AA$3060,"풍력",$C$66:$C$3061) -> 1233.718 | Q65: =SUMIF($AA$65:$AA$3060,"수력",$C$66:$C$3061)+SUMIF($AA$65:$AA$3060,"소수력",$C$66:$C$3061) -> 1785.24 | S65: =SUMIF($AA$65:$AA$3060,"해양에너지",$C$66:$C$3061) -> 255 | T65: =SUMIF($AA$65:$AA$3060,"바이오가스",$C$66:$C$3061) -> 82.618 | U65: =SUMIF($AA$65:$AA$3060,"매립가스",$C$66:$C$3061) -> 68.956 | V65: =SUMIF($AA$65:$AA$3060,"바이오매스",$C$66:$C$3061) -> 378.384 | X65: =SUM(T65:V65) -> 529.958 | Y65: =SUMIF($AA$65:$AA$3060,"부생가스",$C$66:$C$3061) -> 3009.58 | Z65: =SUMIF($AA$65:$AA$3060,"폐가스",$C$66:$C$3061) -> 0 | AA65: =SUMIF($AA$65:$AA$3060,"폐기물",$C$66:$C$3061) -> 241.742 | AB65: =SUM(Y65:AA65) -> 3251.322 | AC65: =SUM(M65:S65)+X65+AB65 -> 9697.338
A66: =L66 -> 2017-11-30 | B66: =M66 -> 246.04 | C66: =N66 -> 346.33 | D66: =O66 -> 1931.392 | E66: =P66 -> 1188.818 | F66: =Q66 -> 1783.94 | G66: =S66 -> 255 | H66: 486.758 | I66: 3212.769 | J66: =AC66 -> 9451.047 | K66: =SUM(B74:I74) -> 8960.479 | L66: 2017-11-30 | M66: 246.04 | N66: 346.33 | O66: 1931.392 | P66: 1188.818 | Q66: 1783.94 | S66: 255 | T66: 82.618 | U66: 68.956 | V66: 335.184 | X66: 486.758 | Y66: 3009.58 | Z66: 0 | AA66: 203.189 | AB66: 3212.769 | AC66: 9451.047
A67: =L67 -> 2017-10-31 | B67: =M67 -> 238.56 | C67: =N67 -> 346.33 | D67: =O67 -> 1892.789 | E67: =P67 -> 1188.818 | F67: =Q67 -> 1783.94 | G67: =S67 -> 255 | H67: 486.568 | I67: 3212.769 | J67: =AC67 -> 9404.774 | K67: =SUM(B75:I75) -> 8883.75 | L67: 2017-10-31 | M67: 238.56 | N67: 346.33 | O67: 1892.789 | P67: 1188.818 | Q67: 1783.94 | S67: 255 | T67: 82.428 | U67: 68.956 | V67: 335.184 | X67: 486.568 | Y67: 3009.58 | Z67: 0 | AA67: 203.189 | AB67: 3212.769 | AC67: 9404.774
A68: =L68 -> 2017-09-30 | B68: =M68 -> 235.92 | C68: 346.33 | D68: 1880.827 | E68: 1160.068 | F68: 1783.64 | G68: =S68 -> 255 | H68: 486.568 | I68: 3210.969 | J68: =AC68 -> 9359.322 | L68: 2017-09-30 | M68: 235.92 | N68: 346.33 | O68: 1880.827 | P68: 1160.068 | Q68: 1783.64 | S68: 255 | T68: 82.428 | U68: 68.956 | V68: 335.184 | X68: 486.568 | Y68: 3009.58 | Z68: 0 | AA68: 201.389 | AB68: 3210.969 | AC68: 9359.322
A69: =L69 -> 2017-08-31 | B69: 235.92 | C69: 380.7 | D69: 1860.378 | E69: 1084.168 | F69: 1783.64 | G69: =S69 -> 255 | H69: 486.568 | I69: 3201.869 | J69: =AC69 -> 9288.243 | L69: 2017-08-31 | M69: 235.92 | N69: 380.7 | O69: 1860.378 | P69: 1084.168 | Q69: 1783.64 | S69: 255 | T69: 82.428 | U69: 68.956 | V69: 335.184 | X69: 486.568 | Y69: 3009.58 | Z69: 0 | AA69: 192.289 | AB69: 3201.869 | AC69: 9288.243
A70: =L70 -> 2017-07-31 | B70: =M70 -> 235.92 | C70: =N70 -> 380.7 | D70: =O70 -> 1846.588 | E70: =P70 -> 1079.468 | F70: =Q70 -> 1781.19 | G70: =S70 -> 255 | H70: =X70 -> 486.073 | I70: =AB70 -> 3179.879 | J70: =AC70 -> 9244.818 | L70: 2017-07-31 | M70: 235.92 | N70: 380.7 | O70: 1846.588 | P70: 1079.468 | Q70: 1781.19 | S70: 255 | T70: 81.933 | U70: 68.956 | V70: 335.184 | X70: 486.073 | Y70: 3009.58 | Z70: 0 | AA70: 170.299 | AB70: 3179.879 | AC70: 9244.818
A71: 2017-06-30 | B71: 235.92 | C71: 380.7 | D71: 1816.178 | E71: 1076.168 | F71: 1781.19 | G71: 255 | H71: 486.073 | I71: 3179.079 | J71: 9210.308 | L71: 2017-06-30 | M71: 235.92 | N71: 380.7 | O71: 1816.178 | P71: 1076.168 | Q71: 1781.19 | S71: 255 | T71: 81.933 | U71: 68.956 | V71: 335.184 | X71: 486.073 | Y71: 3009.58 | Z71: 0 | AA71: 169.499 | AB71: 3179.079 | AC71: 9210.308
A72: 2017-05-31 | B72: 235.92 | C72: 380.7 | D72: 1781.538 | E72: 1076.168 | F72: 1780.94 | G72: 255 | H72: 485.083 | I72: 3179.079 | J72: 9174.428 | L72: 2017-05-31 | M72: 235.92 | N72: 380.7 | O72: 1781.538 | P72: 1076.168 | Q72: 1780.94 | S72: 255 | T72: 80.943 | U72: 68.956 | V72: 335.184 | X72: 485.083 | Y72: 3009.58 | Z72: 0 | AA72: 169.499 | AB72: 3179.079 | AC72: 9174.428
A73: 2017-04-30 | B73: 235.92 | C73: 380.7 | D73: 1749.129 | E73: 1076.168 | F73: 1780.94 | G73: 255 | H73: 485.083 | I73: 3179.079 | J73: 9142.019 | L73: 2017-04-30 | M73: 235.92 | N73: 380.7 | O73: 1749.129 | P73: 1076.168 | Q73: 1780.94 | S73: 255 | T73: 80.943 | U73: 68.956 | V73: 335.184 | X73: 485.083 | Y73: 3009.58 | Z73: 0 | AA73: 169.499 | AB73: 3179.079 | AC73: 9142.019
A74: 2017-03-31 | B74: 229.92 | C74: 380.7 | D74: 1705.538 | E74: 1076.168 | F74: 1780.94 | G74: 255 | H74: 355.584 | I74: 3176.629 | J74: 8960.479 | L74: 2017-03-31 | M74: 229.92 | N74: 380.7 | O74: 1705.538 | P74: 1076.168 | Q74: 1780.94 | S74: 255 | T74: 82.294 | U74: 68.956 | V74: 204.334 | X74: 355.584 | Y74: 3009.58 | Z74: 0 | AA74: 167.049 | AB74: 3176.629 | AC74: 8960.479
A75: 2017-02-28 | B75: 214.52 | C75: 380.7 | D75: =O75 -> 1643.209 | E75: 1076.168 | F75: 1781.94 | G75: 255 | H75: 355.584 | I75: 3176.629 | J75: 8883.75 | L75: 2017-02-28 | M75: 214.52 | N75: 380.7 | O75: 1643.209 | P75: 1076.168 | Q75: 1781.94 | S75: 255 | T75: 82.294 | U75: 68.956 | V75: 204.334 | X75: 355.584 | Y75: 3009.58 | Z75: 0 | AA75: 167.049 | AB75: 3176.629 | AC75: 8883.75
A76: 2017-01-31 | B76: 214.52 | C76: 380.7 | D76: 1633.471 | E76: 1076.168 | F76: 1781.94 | G76: 255 | H76: 354.484 | I76: 3176.629 | J76: 8872.912 | L76: 2017-01-31 | M76: 214.52 | N76: 380.7 | O76: 1633.471 | P76: 1076.168 | Q76: 1781.94 | S76: 255 | T76: 82.294 | U76: 68.956 | V76: 203.234 | X76: 354.484 | Y76: 3009.58 | Z76: 0 | AA76: 167.049 | AB76: 3176.629 | AC76: 8872.912
A77: 2016-12-31 | B77: 214.52 | C77: 380.7 | D77: 1612.975 | E77: 1048.088 | F77: 1781.94 | G77: 255 | H77: 353.434 | I77: 3191.264 | J77: 8837.921 | L77: 2016-12-31 | M77: 214.52 | N77: 380.7 | O77: 1612.975 | P77: 1048.088 | Q77: 1781.94 | S77: 255 | T77: 81.244 | U77: 68.956 | V77: 203.234 | X77: 353.434 | Y77: 3009.58 | Z77: 16.5 | AA77: 165.184 | AB77: 3191.264 | AC77: 8837.921
A78: 2016-11-30 | B78: 214.52 | C78: 380.7 | D78: 1523.05 | E78: 1050.728 | F78: 1781.92 | G78: 255 | H78: 315.51 | I78: 3191.264 | J78: 8712.692 | L78: 2016-11-30 | M78: 214.52 | N78: 380.7 | O78: 1523.05 | P78: 1050.728 | Q78: 1781.92 | S78: 255 | T78: 75.68 | U78: 68.956 | V78: 170.874 | X78: 315.51 | Y78: 3009.58 | Z78: 16.5 | AA78: 165.184 | AB78: 3191.264 | AC78: 8712.692
A79: 2016-10-31 | B79: 179.12 | C79: 380.7 | D79: 1489.884 | E79: 1017.878 | F79: 1781.86 | G79: 255 | H79: 315.51 | I79: 3191.264 | J79: 8611.216 | L79: 2016-10-31 | M79: 179.12 | N79: 380.7 | O79: 1489.884 | P79: 1017.878 | Q79: 1781.86 | S79: 255 | T79: 75.68 | U79: 68.956 | V79: 170.874 | X79: 315.51 | Y79: 3009.58 | Z79: 16.5 | AA79: 165.184 | AB79: 3191.264 | AC79: 8611.216
A80: 2016-09-30 | B80: 179.12 | C80: 380.7 | D80: 1479.736 | E80: 968.828 | F80: 1776.86 | G80: 255 | H80: 313.06 | I80: 3191.264 | J80: 8544.568 | L80: 2016-09-30 | M80: 179.12 | N80: 380.7 | O80: 1479.736 | P80: 968.828 | Q80: 1776.86 | S80: 255 | T80: 73.23 | U80: 68.956 | V80: 170.874 | X80: 313.06 | Y80: 3009.58 | Z80: 16.5 | AA80: 165.184 | AB80: 3191.264 | AC80: 8544.568
A81: 2016-08-31 | B81: 179.12 | C81: 380.7 | D81: 1455.598 | E81: 938.828 | F81: 1776.86 | G81: 255 | H81: 274.16 | I81: 3200.964 | J81: 8461.23 | L81: 2016-08-31 | M81: 179.12 | N81: 380.7 | O81: 1455.598 | P81: 938.828 | Q81: 1776.86 | S81: 255 | T81: 73.23 | U81: 68.956 | V81: 131.974 | X81: 274.16 | Y81: 3009.58 | Z81: 16.5 | AA81: 174.884 | AB81: 3200.964 | AC81: 8461.23
A82: 2015-07-31 | B82: 164.8 | C82: 380.7 | D82: 1248.561 | E82: 814.561 | F82: 1761.62 | G82: 255 | H82: 264.423 | I82: 4224.984 | J82: 9114.649 | L82: 2015-07-31 | M82: 164.8 | N82: 380.7 | O82: 1248.561 | P82: 814.561 | Q82: 1761.62 | S82: 255 | T82: 68.435 | U82: 69.214 | V82: 126.774 | X82: 264.423 | Y82: 4016.58 | Z82: 18.22 | AA82: 190.184 | AB82: 4224.984 | AC82: 9114.649
A83: 2015-06-30 | B83: 164.8 | C83: 380.7 | D83: 1189.656 | E83: 807.161 | F83: 1761.62 | G83: 255 | H83: 262.388 | I83: 4226.184 | J83: 9047.509 | L83: 2015-06-30 | M83: 164.8 | N83: 380.7 | O83: 1189.656 | P83: 807.161 | Q83: 1761.62 | S83: 255 | T83: 66.4 | U83: 69.214 | V83: 126.774 | X83: 262.388 | Y83: 4016.58 | Z83: 18.22 | AA83: 191.384 | AB83: 4226.184 | AC83: 9047.509
A84: 2016-05-31 | B84: 173.4 | C84: 380.7 | D84: 1412.196 | E84: 895.528 | F84: 1767.45 | G84: 255 | H84: 270.61 | I84: 3192.464 | J84: 8347.348 | L84: 2016-05-31 | M84: 173.4 | N84: 380.7 | O84: 1412.196 | P84: 895.528 | Q84: 1767.45 | S84: 255 | T84: 72.88 | U84: 68.956 | V84: 128.774 | X84: 270.61 | Y84: 3009.58 | Z84: 16.5 | AA84: 166.384 | AB84: 3192.464 | AC84: 8347.348
A85: 2016-04-30 | B85: 175.8 | C85: 380.7 | D85: 1400.743 | E85: 895.528 | F85: 1767.1 | G85: 255 | H85: 270.61 | I85: 4196.564 | J85: 9342.045 | L85: 2016-04-30 | M85: 175.8 | N85: 380.7 | O85: 1400.743 | P85: 895.528 | Q85: 1767.1 | S85: 255 | T85: 72.88 | U85: 68.956 | V85: 128.774 | X85: 270.61 | Y85: 4016.58 | Z85: 16.5 | AA85: 163.484 | AB85: 4196.564 | AC85: 9342.045
A86: 2016-03-31 | B86: 170.8 | C86: 380.7 | D86: 1392.197 | E86: 876.778 | F86: 1766.74 | G86: 255 | H86: 269.36 | I86: 4193.764 | J86: 9305.339 | L86: 2016-03-31 | M86: 170.8 | N86: 380.7 | O86: 1392.197 | P86: 876.778 | Q86: 1766.74 | S86: 255 | T86: 71.83 | U86: 68.956 | V86: 128.574 | X86: 269.36 | Y86: 4016.58 | Z86: 16.5 | AA86: 160.684 | AB86: 4193.764 | AC86: 9305.339
A87: 2016-02-29 | B87: 170.8 | C87: 380.7 | D87: 1372.582 | E87: 876.778 | F87: 1766.74 | G87: 255 | H87: 269.36 | I87: 4223.264 | J87: 9315.224 | L87: 2016-02-29 | M87: 170.8 | N87: 380.7 | O87: 1372.582 | P87: 876.778 | Q87: 1766.74 | S87: 255 | T87: 71.83 | U87: 68.956 | V87: 128.574 | X87: 269.36 | Y87: 4016.58 | Z87: 16.5 | AA87: 190.184 | AB87: 4223.264 | AC87: 9315.224
A88: 2016-01-31 | B88: 170.8 | C88: 380.7 | D88: 1362.579 | E88: 876.778 | F88: 1766.74 | G88: 255 | H88: 269.36 | I88: 4223.264 | J88: 9305.221 | L88: 2016-01-31 | M88: 170.8 | N88: 380.7 | O88: 1362.579 | P88: 876.778 | Q88: 1766.74 | S88: 255 | T88: 71.83 | U88: 68.956 | V88: 128.574 | X88: 269.36 | Y88: 4016.58 | Z88: 16.5 | AA88: 190.184 | AB88: 4223.264 | AC88: 9305.221
A89: 2015-12-31 | B89: 170.8 | C89: 380.7 | D89: 1339.772 | E89: 846.778 | F89: 1761.74 | G89: 255 | H89: 268.86 | I89: 4223.264 | J89: 9246.914 | L89: 2015-12-31 | M89: 170.8 | N89: 380.7 | O89: 1339.772 | P89: 846.778 | Q89: 1761.74 | S89: 255 | T89: 71.33 | U89: 68.956 | V89: 128.574 | X89: 268.86 | Y89: 4016.58 | Z89: 16.5 | AA89: 190.184 | AB89: 4223.264 | AC89: 9246.914
A90: 2015-11-30 | B90: 170.8 | C90: 380.7 | D90: 1295.277 | E90: 832.778 | F90: 1761.74 | G90: 255 | H90: 266.718 | I90: 4223.264 | J90: 9186.277 | L90: 2015-11-30 | M90: 170.8 | N90: 380.7 | O90: 1295.277 | P90: 832.778 | Q90: 1761.74 | S90: 255 | T90: 68.93 | U90: 69.214 | V90: 128.574 | X90: 266.718 | Y90: 4016.58 | Z90: 16.5 | AA90: 190.184 | AB90: 4223.264 | AC90: 9186.277
A91: 2015-10-31 | B91: 170.8 | C91: 380.7 | D91: 1282.615 | E91: 812.128 | F91: 1761.74 | G91: 255 | H91: 266.718 | I91: 4223.264 | J91: 9152.965 | L91: 2015-10-31 | M91: 170.8 | N91: 380.7 | O91: 1282.615 | P91: 812.128 | Q91: 1761.74 | S91: 255 | T91: 68.93 | U91: 69.214 | V91: 128.574 | X91: 266.718 | Y91: 4016.58 | Z91: 16.5 | AA91: 190.184 | AB91: 4223.264 | AC91: 9152.965
A92: 2015-09-30 | B92: 164.8 | C92: 380.7 | D92: 1273.69 | E92: 812.11 | F92: 1761.62 | G92: 255 | H92: 266.188 | I92: 4224.984 | J92: 9139.092 | L92: 2015-09-30 | M92: 164.8 | N92: 380.7 | O92: 1273.69 | P92: 812.11 | Q92: 1761.62 | S92: 255 | T92: 68.4 | U92: 69.214 | V92: 128.574 | X92: 266.188 | Y92: 4016.58 | Z92: 18.22 | AA92: 190.184 | AB92: 4224.984 | AC92: 9139.092
A93: 2015-08-31 | B93: 164.8 | C93: 380.7 | D93: 1258.072 | E93: 814.561 | F93: 1761.62 | G93: 255 | H93: 646.923 | I93: 4224.984 | J93: 9125.96 | L93: 2015-08-31 | M93: 164.8 | N93: 380.7 | O93: 1258.072 | P93: 814.561 | Q93: 1761.62 | S93: 255 | T93: 68.4 | U93: 69.214 | V93: 128.574 | X93: 646.923 | Y93: 4016.58 | Z93: 18.22 | AA93: 190.184 | AB93: 4224.984 | AC93: 9125.96
A94: 2015-07-31 | B94: 164.8 | C94: 380.7 | D94: 1248.561 | E94: 814.561 | F94: 1761.62 | G94: 255 | H94: 264.423 | I94: 4224.984 | J94: 9114.649 | L94: 2015-07-31 | M94: 164.8 | N94: 380.7 | O94: 1248.561 | P94: 814.561 | Q94: 1761.62 | S94: 255 | T94: 68.435 | U94: 69.214 | V94: 126.774 | X94: 264.423 | Y94: 4016.58 | Z94: 18.22 | AA94: 190.184 | AB94: 4224.984 | AC94: 9114.649
A95: 2015-06-30 | B95: 164.8 | C95: 380.7 | D95: 1189.656 | E95: 807.161 | F95: 1761.62 | G95: 255 | H95: 262.388 | I95: 4226.184 | J95: 9047.509 | L95: 2015-06-30 | M95: 164.8 | N95: 380.7 | O95: 1189.656 | P95: 807.161 | Q95: 1761.62 | S95: 255 | T95: 66.4 | U95: 69.214 | V95: 126.774 | X95: 262.388 | Y95: 4016.58 | Z95: 18.22 | AA95: 191.384 | AB95: 4226.184 | AC95: 9047.509
A96: 2015-05-31 | B96: 164.8 | C96: 380.7 | D96: 1157.373 | E96: 747.761 | F96: 1761.02 | G96: 255 | H96: 269.888 | I96: 4224.309 | J96: 8960.851 | L96: 2015-05-31 | M96: 164.8 | N96: 380.7 | O96: 1157.373 | P96: 747.761 | Q96: 1761.02 | S96: 255 | T96: 68.4 | U96: 69.214 | V96: 132.274 | X96: 269.888 | Y96: 4016.58 | Z96: 18.22 | AA96: 189.509 | AB96: 4224.309 | AC96: 8960.851
A97: 2015-04-30 | B97: 164.8 | C97: 380.7 | D97: 1133.634 | E97: 677.761 | F97: 1761.02 | G97: 255 | H97: 163.088 | I97: 4222.589 | J97: 8758.592 | L97: 2015-04-30 | M97: 164.8 | N97: 380.7 | O97: 1133.634 | P97: 677.761 | Q97: 1761.02 | S97: 255 | T97: 67.1 | U97: 69.214 | V97: 26.774 | X97: 163.088 | Y97: 4016.58 | Z97: 16.5 | AA97: 189.509 | AB97: 4222.589 | AC97: 8758.592
A98: 2015-03-31 | B98: 164.8 | C98: 0 | D98: 1120.578 | E98: 647.761 | F98: 1761.02 | G98: 255 | H98: 162.393 | I98: 4212.589 | J98: 8324.141 | L98: 2015-03-31 | M98: 164.8 | N98: 0 | O98: 1120.578 | P98: 647.761 | Q98: 1761.02 | S98: 255 | T98: 66.405 | U98: 69.214 | V98: 26.774 | X98: 162.393 | Y98: 4016.58 | Z98: 16.5 | AA98: 179.509 | AB98: 4212.589 | AC98: 8324.141
L99: 2015-02-28 | M99: 164.8 | N99: 0 | O99: 1089.382 | P99: 647.761 | Q99: 1758.68 | S99: 255 | T99: 67.205 | U99: 69.214 | V99: 21.914 | X99: 158.333 | Y99: 4016.58 | Z99: 0 | AA99: 179.509 | AB99: 4196.089 | AC99: 8270.045
L100: 2015-01-31 | M100: 164.8 | N100: 0 | O100: 1078.091 | P100: 645.461 | Q100: 1758.68 | S100: 255 | T100: 67.205 | U100: 69.214 | V100: 18.964 | X100: 155.383 | Y100: 4016.58 | Z100: 0 | AA100: 179.509 | AB100: 4196.089 | AC100: 8253.504
M106: 원자력합
M107: 석탄합 | N107: 유연탄 | O107: 무연탄
M108: LNG합
M109: 유류합 | N109: 중유 | O109: 경유
M110: 양수합
L111: ┌ | M111: 신재생합 | N111: 소수력 | O111: 수력 | P111: 바이오가스 | Q111: 매립가스 | R111: 바이오매스 | S111: 바이오중유 | T111: 부생가스 | U111: 폐기물 | V111: 태양광 | W111: 풍력 | X111: 연료전지 | Y111: 해양에너지
L112: │ | M112: 수력합 | N112: 소수력 | O112: 수력
L113: │ | M113: 바이오합 | N113: 바이오가스 | O113: 매립가스 | P113: 바이오매스 | Q113: 바이오중유
L114: └ | M114: 신에너지 | N114: 연료전지 | O114: IGCC
M115: 폐기물합 | N115: 부생가스 | O115: 폐기물
M116: 기타합 | N116: 가스압 | O116: 기타
O117: *기타 : 증류탑폐열활용발전기, 군장에너지#3, 신승에너지 여열 회수 발전기, 명성환경 소각 폐열 발전소

Sheet 202212
A1: 정산요소 내역
A2: 조회기간 : 2022-12-01 ~ 2022-12-31
A3: 단위 : MWh
A4: 연료원코드 | B4: 연료원 | C4: 설비용량(MW) | D4: A | E4: RA | F4: ARA | G4: MGO | H4: AMGO | I4: PSE | J4: FCA | K4: OFCA | L4: OR
A5: 01 | B5: 원자력 | C5: 24650 | D5: 14504658 | E5: 14511465 | F5: 14156017.49 | G5: 14143351.38 | H5: 14143351.38 | I5: 0 | J5: 14310080.93 | K5: 14511465 | L5: 0
A6: 02 | B6: 유연탄 | C6: 39220.782 | D6: 22052280 | E6: 21808101 | F6: 21804731.34 | G6: 17887036.58 | H6: 17887009.79 | I6: 0 | J6: 21505723.56 | K6: 21808101 | L6: 0
A7: 03 | B7: 무연탄 | C7: 400 | D7: 268584 | E7: 268584 | F7: 268584 | G7: 246785.6121 | H7: 246785.6121 | I7: 0 | J7: 268584 | K7: 268584 | L7: 0
A8: 05 | B8: 바이오가스 | C8: 85.32 | D8: 0 | E8: 0 | F8: 0 | G8: 34166.13744 | H8: 34166.13744 | I8: 0 | J8: 0 | K8: 0 | L8: 0
A9: 06 | B9: 부생가스 | C9: 4327.49 | D9: 0 | E9: 0 | F9: 0 | G9: 49289.80979 | H9: 49289.80979 | I9: 0 | J9: 0 | K9: 0 | L9: 0
A10: 07 | B10: 소수력 | C10: 193.172 | D10: 0 | E10: 0 | F10: 0 | G10: 34259.48242 | H10: 34259.48242 | I10: 0 | J10: 0 | K10: 0 | L10: 0
A11: 08 | B11: 수력 | C11: 1609.852 | D11: 156884 | E11: 156443 | F11: 156443 | G11: 159175.4886 | H11: 159175.4886 | I11: 0 | J11: 0 | K11: 0 | L11: 0
A12: 09 | B12: 양수 | C12: 4700 | D12: 1280 | E12: 1280 | F12: 1280 | G12: 305514.6748 | H12: 305514.6748 | I12: 0 | J12: 0 | K12: 0 | L12: 0
A13: 10 | B13: 매립가스 | C13: 63.734 | D13: 0 | E13: 0 | F13: 0 | G13: 20257.27058 | H13: 20257.27058 | I13: 0 | J13: 0 | K13: 0 | L13: 0
A14: 12 | B14: 중유 | C14: 226 | D14: 80025 | E14: 74018 | F14: 73973.93638 | G14: 67573.70949 | H14: 67573.70949 | I14: 0 | J14: 74018.88375 | K14: 74018 | L14: 0
A15: 13 | B15: 태양광 | C15: 6878.365 | D15: 0 | E15: 0 | F15: 0 | G15: 439949.5407 | H15: 439949.5407 | I15: 0 | J15: 0 | K15: 0 | L15: 0
A16: 15 | B16: 폐기물 | C16: 363.077 | D16: 0 | E16: 0 | F16: 0 | G16: 86958.53412 | H16: 86958.53412 | I16: 0 | J16: 0 | K16: 0 | L16: 0
A17: 16 | B17: 풍력 | C17: 1892.233 | D17: 0 | E17: 0 | F17: 0 | G17: 445112.0623 | H17: 445112.0623 | I17: 0 | J17: 0 | K17: 0 | L17: 0
A18: 17 | B18: LNG | C18: 42107.876 | D18: 32211197 | E18: 31589753 | F18: 31578723.99 | G18: 16405915.48 | H18: 16400174.14 | I18: 0 | J18: 31592251.86 | K18: 31589653 | L18: 4934
A19: 18 | B19: LPG | C19: 88 | D19: 58031 | E19: 58031 | F19: 58031 | G19: 26664.09043 | H19: 26664.09043 | I19: 0 | J19: 58031 | K19: 58031 | L19: 0
A20: 20 | B20: 연료전지 | C20: 871.868 | D20: 0 | E20: 0 | F20: 0 | G20: 480097.5797 | H20: 480097.5797 | I20: 0 | J20: 0 | K20: 0 | L20: 0
A21: 21 | B21: 경유 | C21: 612.045 | D21: 506705 | E21: 506784 | F21: 506770 | G21: 46438.87422 | H21: 46436.76514 | I21: 0 | J21: 506784 | K21: 506784 | L21: 0
A22: 22 | B22: 해양에너지 | C22: 255.5 | D22: 0 | E22: 0 | F22: 0 | G22: 36478.80146 | H22: 36478.80146 | I22: 0 | J22: 0 | K22: 0 | L22: 0
A23: 23 | B23: 가스압 | C23: 0.3 | D23: 0 | E23: 0 | F23: 0 | G23: 0 | H23: 0 | I23: 0 | J23: 0 | K23: 0 | L23: 0
A24: 24 | B24: 바이오매스 | C24: 1248.013 | D24: 0 | E24: 0 | F24: 0 | G24: 722011.171 | H24: 722011.171 | I24: 0 | J24: 0 | K24: 0 | L24: 0
A25: 25 | B25: IGCC | C25: 346.33 | D25: 158586 | E25: 145768 | F25: 145642.066 | G25: 140544.3995 | H25: 140544.3995 | I25: 0 | J25: 145784.0949 | K25: 145768 | L25: 0
A26: 32 | B26: 바이오중유 | C26: 390 | D26: 271027 | E26: 270548 | F26: 270548 | G26: 151977.8277 | H26: 151977.8277 | I26: 0 | J26: 270548.5379 | K26: 270548 | L26: 0
A27: 40 | B27: RPS | C27: 0 | D27: 0 | E27: 0 | F27: 0 | G27: 0 | H27: 0 | I27: 0 | J27: 0 | K27: 0 | L27: 0
A28: 41 | B28: DER | C28: 0 | D28: 0 | E28: 0 | F28: 0 | G28: 0 | H28: 0 | I28: 0 | J28: 0 | K28: 0 | L28: 0
A29: 99 | B29: 기타 | C29: 21.4 | D29: 0 | E29: 0 | F29: 0 | G29: 12802.95136 | H29: 12802.95136 | I29: 0 | J29: 0 | K29: 0 | L29: 0
A30: 원자력합 | B30: 원자력합 | C30: 24650 | D30: 14504658 | E30: 14511465 | F30: 14156017.49 | G30: 14143351.38 | H30: 14143351.38 | I30: 0 | J30: 14310080.93 | K30: 14511465 | L30: 0
A31: 석탄합 | B31: 석탄합 | C31: 39620.782 | D31: 22320864 | E31: 22076685 | F31: 22073315.34 | G31: 18133822.19 | H31: 18133795.4 | I31: 0 | J31: 21774307.56 | K31: 22076685 | L31: 0
A32: LNG합 | B32: LNG합 | C32: 42107.876 | D32: 32211197 | E32: 31589753 | F32: 31578723.99 | G32: 16405915.48 | H32: 16400174.14 | I32: 0 | J32: 31592251.86 | K32: 31589653 | L32: 4934
A33: 유류합 | B33: 유류합 | C33: 838.045 | D33: 586730 | E33: 580802 | F33: 580743.9364 | G33: 114012.5837 | H33: 114010.4746 | I33: 0 | J33: 580802.8838 | K33: 580802 | L33: 0
A34: 양수합 | B34: 양수합 | C34: 4700 | D34: 1280 | E34: 1280 | F34: 1280 | G34: 305514.6748 | H34: 305514.6748 | I34: 0 | J34: 0 | K34: 0 | L34: 0
A35: 신재생합 | B35: 신재생합 | C35: 13834.387 | D35: 586497 | E35: 572759 | F35: 572633.066 | G35: 2664029.762 | H35: 2664029.762 | I35: 0 | J35: 416332.6328 | K35: 416316 | L35: 0
A36: 기타합 | B36: 기타합 | C36: 4800.267 | D36: 58031 | E36: 58031 | F36: 58031 | G36: 175715.3857 | H36: 175715.3857 | I36: 0 | J36: 58031 | K36: 58031 | L36: 0
A37: 총계 | C37: 130551.357 | D37: 70269257 | E37: 69390775 | F37: 69020744.82 | G37: 51942361.45 | H37: 51936591.21 | I37: 0 | J37: 68731806.87 | K37: 69232952 | L37: 4934

Sheet 202211
A1: 정산요소 내역
A2: 조회기간 : 2022-11-01 ~ 2022-11-30
A3: 단위 : MWh
A4: 연료원코드 | B4: 연료원 | C4: 설비용량(MW) | D4: A | E4: RA | F4: ARA | G4: MGO | H4: AMGO | I4: PSE | J4: FCA | K4: OFCA | L4: OR
A5: 01 | B5: 원자력 | C5: 24650 | D5: 13419488 | E5: 13352196 | F5: 13352192.33 | G5: 13336544.25 | H5: 13336543.66 | I5: 0 | J5: 13028882.79 | K5: 13352196 | L5: 0
A6: 02 | B6: 유연탄 | C6: 39220.782 | D6: 19126398 | E6: 18781385 | F6: 18779733.58 | G6: 14319555.98 | H6: 14319555.98 | I6: 0 | J6: 18492138.29 | K6: 18781385 | L6: 0
A7: 03 | B7: 무연탄 | C7: 400 | D7: 139078 | E7: 137190 | F7: 137182.2386 | G7: 125924.2676 | H7: 125924.2676 | I7: 0 | J7: 137203.7361 | K7: 137190 | L7: 0
A8: 05 | B8: 바이오가스 | C8: 85.32 | D8: 0 | E8: 0 | F8: 0 | G8: 32550.55542 | H8: 32550.55542 | I8: 0 | J8: 0 | K8: 0 | L8: 0
A9: 06 | B9: 부생가스 | C9: 4327.49 | D9: 0 | E9: 0 | F9: 0 | G9: 44318.91274 | H9: 44318.91274 | I9: 0 | J9: 0 | K9: 0 | L9: 0
A10: 07 | B10: 소수력 | C10: 193.172 | D10: 0 | E10: 0 | F10: 0 | G10: 34449.86503 | H10: 34449.86503 | I10: 0 | J10: 0 | K10: 0 | L10: 0
A11: 08 | B11: 수력 | C11: 1609.852 | D11: 164007 | E11: 167919 | F11: 167919 | G11: 174484.4649 | H11: 174484.4649 | I11: 0 | J11: 0 | K11: 0 | L11: 0
A12: 09 | B12: 양수 | C12: 4700 | D12: 8591 | E12: 8469 | F12: 7742.125974 | G12: 311647.7288 | H12: 311647.7288 | I12: 0 | J12: 0 | K12: 0 | L12: 0
A13: 10 | B13: 매립가스 | C13: 63.734 | D13: 0 | E13: 0 | F13: 0 | G13: 18834.60066 | H13: 18834.60066 | I13: 0 | J13: 0 | K13: 0 | L13: 0
A14: 12 | B14: 중유 | C14: 226 | D14: 81267 | E14: 77668 | F14: 77653.79614 | G14: 51807.86116 | H14: 51807.86116 | I14: 0 | J14: 77668.36242 | K14: 77668 | L14: 0
A15: 13 | B15: 태양광 | C15: 6791.779 | D15: 0 | E15: 0 | F15: 0 | G15: 588037.5668 | H15: 588037.5668 | I15: 0 | J15: 0 | K15: 0 | L15: 0
A16: 15 | B16: 폐기물 | C16: 363.077 | D16: 0 | E16: 0 | F16: 0 | G16: 86780.25627 | H16: 86780.25627 | I16: 0 | J16: 0 | K16: 0 | L16: 0
A17: 16 | B17: 풍력 | C17: 1798.533 | D17: 0 | E17: 0 | F17: 0 | G17: 254193.9649 | H17: 254193.9649 | I17: 0 | J17: 0 | K17: 0 | L17: 0
A18: 17 | B18: LNG | C18: 42107.876 | D18: 26680666 | E18: 25963868 | F18: 25941102.86 | G18: 12366487.26 | H18: 12366464.37 | I18: 0 | J18: 25966094.28 | K18: 25963696 | L18: 111517
A19: 18 | B19: LPG | C19: 88 | D19: 35922 | E19: 35922 | F19: 35922 | G19: 900.372816 | H19: 900.237968 | I19: 0 | J19: 35922 | K19: 35922 | L19: 0
A20: 20 | B20: 연료전지 | C20: 871.868 | D20: 0 | E20: 0 | F20: 0 | G20: 439050.4678 | H20: 439050.4678 | I20: 0 | J20: 0 | K20: 0 | L20: 0
A21: 21 | B21: 경유 | C21: 612.045 | D21: 392749 | E21: 393493 | F21: 393459.9088 | G21: 25475.10767 | H21: 25475.10767 | I21: 0 | J21: 393493.1111 | K21: 393493 | L21: 0
A22: 22 | B22: 해양에너지 | C22: 255.5 | D22: 0 | E22: 0 | F22: 0 | G22: 35045.07737 | H22: 35045.07737 | I22: 0 | J22: 0 | K22: 0 | L22: 0
A23: 23 | B23: 가스압 | C23: 0.3 | D23: 0 | E23: 0 | F23: 0 | G23: 0 | H23: 0 | I23: 0 | J23: 0 | K23: 0 | L23: 0
A24: 24 | B24: 바이오매스 | C24: 1248.013 | D24: 0 | E24: 0 | F24: 0 | G24: 688475.5447 | H24: 688475.5447 | I24: 0 | J24: 0 | K24: 0 | L24: 0
A25: 25 | B25: IGCC | C25: 346.33 | D25: 0 | E25: 0 | F25: 0 | G25: 0 | H25: 0 | I25: 0 | J25: 0 | K25: 0 | L25: 0
A26: 32 | B26: 바이오중유 | C26: 390 | D26: 248913 | E26: 247782 | F26: 247781.004 | G26: 136304.8459 | H26: 136304.8459 | I26: 0 | J26: 247796.1702 | K26: 247782 | L26: 0
A27: 40 | B27: RPS | C27: 0 | D27: 0 | E27: 0 | F27: 0 | G27: 0 | H27: 0 | I27: 0 | J27: 0 | K27: 0 | L27: 0
A28: 41 | B28: DER | C28: 0 | D28: 0 | E28: 0 | F28: 0 | G28: 0 | H28: 0 | I28: 0 | J28: 0 | K28: 0 | L28: 0
A29: 99 | B29: 기타 | C29: 21.4 | D29: 0 | E29: 0 | F29: 0 | G29: 12568.45319 | H29: 12568.45319 | I29: 0 | J29: 0 | K29: 0 | L29: 0
A30: 원자력합 | B30: 원자력합 | C30: 24650 | D30: 13419488 | E30: 13352196 | F30: 13352192.33 | G30: 13336544.25 | H30: 13336543.66 | I30: 0 | J30: 13028882.79 | K30: 13352196 | L30: 0
A31: 석탄합 | B31: 석탄합 | C31: 39620.782 | D31: 19265476 | E31: 18918575 | F31: 18916915.81 | G31: 14445480.25 | H31: 14445480.25 | I31: 0 | J31: 18629342.02 | K31: 18918575 | L31: 0
A32: LNG합 | B32: LNG합 | C32: 42107.876 | D32: 26680666 | E32: 25963868 | F32: 25941102.86 | G32: 12366487.26 | H32: 12366464.37 | I32: 0 | J32: 25966094.28 | K32: 25963696 | L32: 111517
A33: 유류합 | B33: 유류합 | C33: 838.045 | D33: 474016 | E33: 471161 | F33: 471113.7049 | G33: 77282.96884 | H33: 77282.96884 | I33: 0 | J33: 471161.4735 | K33: 471161 | L33: 0
A34: 양수합 | B34: 양수합 | C34: 4700 | D34: 8591 | E34: 8469 | F34: 7742.125974 | G34: 311647.7288 | H34: 311647.7288 | I34: 0 | J34: 0 | K34: 0 | L34: 0
A35: 신재생합 | B35: 신재생합 | C35: 13654.101 | D35: 412920 | E35: 415701 | F35: 415700.004 | G35: 2401426.954 | H35: 2401426.954 | I35: 0 | J35: 247796.1702 | K35: 247782 | L35: 0
A36: 기타합 | B36: 기타합 | C36: 4800.267 | D36: 35922 | E36: 35922 | F36: 35922 | G36: 144567.995 | H36: 144567.8602 | I36: 0 | J36: 35922 | K36: 35922 | L36: 0
A37: 총계 | C37: 130371.071 | D37: 60297079 | E37: 59165892 | F37: 59140688.84 | G37: 43083437.41 | H37: 43083413.78 | I37: 0 | J37: 58379198.74 | K37: 58989332 | L37: 111517

Sheet 202210
A1: 정산요소 내역
A2: 조회기간 : 2022-10-01 ~ 2022-10-31
A3: 단위 : MWh
A4: 연료원코드 | B4: 연료원 | C4: 설비용량(MW) | D4: A | E4: RA | F4: ARA | G4: MGO | H4: AMGO | I4: PSE | J4: FCA | K4: OFCA | L4: OR
A5: 01 | B5: 원자력 | C5: 24650 | D5: 13715012 | E5: 13701058 | F5: 13700567.82 | G5: 13682526.03 | H5: 13682526.03 | I5: 0 | J5: 13613944.83 | K5: 13701058 | L5: 0
A6: 02 | B6: 유연탄 | C6: 39220.782 | D6: 19089034 | E6: 18965175 | F6: 18964287.89 | G6: 13785130.17 | H6: 13785082.08 | I6: 0 | J6: 18965425.35 | K6: 19495421 | L6: 0
A7: 03 | B7: 무연탄 | C7: 400 | D7: 199619 | E7: 194121 | F7: 194103.8038 | G7: 177133.7338 | H7: 177133.7338 | I7: 0 | J7: 194182.0368 | K7: 194121 | L7: 0
A8: 05 | B8: 바이오가스 | C8: 85.609 | D8: 0 | E8: 0 | F8: 0 | G8: 20908.60429 | H8: 20908.60429 | I8: 0 | J8: 0 | K8: 0 | L8: 0
A9: 06 | B9: 부생가스 | C9: 4327.49 | D9: 0 | E9: 0 | F9: 0 | G9: 112294.1816 | H9: 112294.1816 | I9: 0 | J9: 0 | K9: 0 | L9: 0
A10: 07 | B10: 소수력 | C10: 193.172 | D10: 0 | E10: 0 | F10: 0 | G10: 39785.16499 | H10: 39785.16499 | I10: 0 | J10: 0 | K10: 0 | L10: 0
A11: 08 | B11: 수력 | C11: 1609.852 | D11: 188117 | E11: 202205 | F11: 202205 | G11: 207666.9638 | H11: 207666.9638 | I11: 0 | J11: 0 | K11: 0 | L11: 0
A12: 09 | B12: 양수 | C12: 4700 | D12: 3410 | E12: 3262 | F12: 3262 | G12: 323024.1471 | H12: 323024.1471 | I12: 0 | J12: 0 | K12: 0 | L12: 0
A13: 10 | B13: 매립가스 | C13: 63.734 | D13: 0 | E13: 0 | F13: 0 | G13: 15514.52505 | H13: 15514.52505 | I13: 0 | J13: 0 | K13: 0 | L13: 0
A14: 12 | B14: 중유 | C14: 226 | D14: 105778 | E14: 94260 | F14: 93778 | G14: 43939.94481 | H14: 43939.94481 | I14: 0 | J14: 94260.28654 | K14: 94260 | L14: 0
A15: 13 | B15: 태양광 | C15: 6720.086 | D15: 0 | E15: 0 | F15: 0 | G15: 776861.8759 | H15: 776861.8759 | I15: 0 | J15: 0 | K15: 0 | L15: 0
A16: 15 | B16: 폐기물 | C16: 363.077 | D16: 0 | E16: 0 | F16: 0 | G16: 90810.98908 | H16: 90810.98908 | I16: 0 | J16: 0 | K16: 0 | L16: 0
A17: 16 | B17: 풍력 | C17: 1774.533 | D17: 0 | E17: 0 | F17: 0 | G17: 252269.7049 | H17: 252269.7049 | I17: 0 | J17: 0 | K17: 0 | L17: 0
A18: 17 | B18: LNG | C18: 42107.876 | D18: 23858821 | E18: 23612773 | F18: 23571557.73 | G18: 11146865.21 | H18: 11146850.27 | I18: 0 | J18: 23614699.75 | K18: 23612610 | L18: 160039
A19: 18 | B19: LPG | C19: 88 | D19: 38688 | E19: 38688 | F19: 38688 | G19: 557.60432 | H19: 557.071723 | I19: 0 | J19: 38688 | K19: 38688 | L19: 0
A20: 20 | B20: 연료전지 | C20: 860.068 | D20: 0 | E20: 0 | F20: 0 | G20: 440650.3162 | H20: 440650.3162 | I20: 0 | J20: 0 | K20: 0 | L20: 0
A21: 21 | B21: 경유 | C21: 612.045 | D21: 166950 | E21: 166254 | F21: 166252.3778 | G21: 22306.49674 | H21: 22306.49674 | I21: 0 | J21: 164713.5069 | K21: 164630 | L21: 0
A22: 22 | B22: 해양에너지 | C22: 255.5 | D22: 0 | E22: 0 | F22: 0 | G22: 39706.34366 | H22: 39706.34366 | I22: 0 | J22: 0 | K22: 0 | L22: 0
A23: 23 | B23: 가스압 | C23: 0.3 | D23: 0 | E23: 0 | F23: 0 | G23: 0 | H23: 0 | I23: 0 | J23: 0 | K23: 0 | L23: 0
A24: 24 | B24: 바이오매스 | C24: 1248.013 | D24: 0 | E24: 0 | F24: 0 | G24: 720768.1875 | H24: 720768.1875 | I24: 0 | J24: 0 | K24: 0 | L24: 0
A25: 25 | B25: IGCC | C25: 346.33 | D25: 78745 | E25: 78745 | F25: 78745 | G25: 77527.21312 | H25: 77527.21312 | I25: 0 | J25: 78882.03504 | K25: 78745 | L25: 0
A26: 32 | B26: 바이오중유 | C26: 390 | D26: 219927 | E26: 218392 | F26: 218392 | G26: 107825.3361 | H26: 107825.3361 | I26: 0 | J26: 218395.3115 | K26: 218392 | L26: 0
A27: 40 | B27: RPS | C27: 0 | D27: 0 | E27: 0 | F27: 0 | G27: 0 | H27: 0 | I27: 0 | J27: 0 | K27: 0 | L27: 0
A28: 41 | B28: DER | C28: 0 | D28: 0 | E28: 0 | F28: 0 | G28: 0 | H28: 0 | I28: 0 | J28: 0 | K28: 0 | L28: 0
A29: 99 | B29: 기타 | C29: 21.4 | D29: 0 | E29: 0 | F29: 0 | G29: 12966.37567 | H29: 12966.37567 | I29: 0 | J29: 0 | K29: 0 | L29: 0
A30: 원자력합 | B30: 원자력합 | C30: 24650 | D30: 13715012 | E30: 13701058 | F30: 13700567.82 | G30: 13682526.03 | H30: 13682526.03 | I30: 0 | J30: 13701058 | K30: 0
A31: 석탄합 | B31: 석탄합 | C31: 39620.782 | D31: 19288653 | E31: 19159296 | F31: 19158391.69 | G31: 13962263.9 | H31: 13962215.82 | I31: 0 | J31: 19689542 | K31: 0
A32: LNG합 | B32: LNG합 | C32: 42107.876 | D32: 23858821 | E32: 23612773 | F32: 23571557.73 | G32: 11146865.21 | H32: 11146850.27 | I32: 0 | J32: 23612610 | K32: 160039
A33: 유류합 | B33: 유류합 | C33: 838.045 | D33: 272728 | E33: 260514 | F33: 260030.3778 | G33: 66246.44156 | H33: 66246.44156 | I33: 0 | J33: 258890 | K33: 0
A34: 양수합 | B34: 양수합 | C34: 4700 | D34: 3410 | E34: 3262 | F34: 3262 | G34: 323024.1471 | H34: 323024.1471 | I34: 0 | J34: 0 | K34: 0
A35: 신재생합 | B35: 신재생합 | C35: 18237.464 | D35: 486789 | E35: 499342 | F35: 499342 | G35: 2902589.406 | H35: 2902589.406 | I35: 0 | J35: 297137 | K35: 0
A36: 기타합 | B36: 기타합 | C36: 21.7 | D36: 0 | E36: 0 | F36: 0 | G36: 12966.37567 | H36: 12966.37567 | I36: 0 | J36: 0 | K36: 0
A37: 수력합 | B37: 수력합 | C37: 1803.024 | D37: 188117 | E37: 202205 | F37: 202205 | G37: 247452.1288 | H37: 247452.1288 | I37: 0 | J37: 0 | K37: 0
A38: 폐기물합 | B38: 폐기물합 | C38: 4690.567 | D38: 0 | E38: 0 | F38: 0 | G38: 203105.1706 | H38: 203105.1706 | I38: 0 | J38: 0 | K38: 0
A39: 바이오합 | B39: 바이오합 | C39: 1787.356 | D39: 219927 | E39: 218392 | F39: 218392 | G39: 865016.653 | H39: 865016.653 | I39: 0 | J39: 218392 | K39: 0
A40: 총계 | C40: 130263.867 | D40: 57664101 | E40: 57274933 | F40: 57231839.61 | G40: 42097039.13 | H40: 42096975.57 | I40: 0 | J40: 56983191.11 | K40: 57597925 | L40: 160039

Sheet 202209
A1: 정산요소 내역
A2: 조회기간 : 2022-09-01 ~ 2022-09-30
A3: 단위 : MWh
A4: 연료원코드 | B4: 연료원 | C4: 설비용량(MW) | D4: A | E4: RA | F4: ARA | G4: MGO | H4: AMGO | I4: PSE | J4: FCA | K4: OFCA | L4: OR
A5: 01 | B5: 원자력 | C5: 24650 | D5: 13700898 | E5: 13434105 | F5: 13432130.26 | G5: 13402906.34 | H5: 13402906.34 | I5: 0 | J5: 12539497.02 | K5: 13434105 | L5: 0
A6: 02 | B6: 유연탄 | C6: 38180.782 | D6: 20435468 | E6: 20308305 | F6: 20307927.03 | G6: 14781080.11 | H6: 14781080.11 | I6: 0 | J6: 20308990.69 | K6: 20666427 | L6: 0
A7: 03 | B7: 무연탄 | C7: 400 | D7: 164610 | E7: 164113 | F7: 163019.9354 | G7: 134079.8192 | H7: 134079.8192 | I7: 0 | J7: 164153.0899 | K7: 164113 | L7: 0
A8: 05 | B8: 바이오가스 | C8: 85.609 | D8: 0 | E8: 0 | F8: 0 | G8: 14707.64912 | H8: 14707.64912 | I8: 0 | J8: 0 | K8: 0 | L8: 0
A9: 06 | B9: 부생가스 | C9: 4327.49 | D9: 0 | E9: 0 | F9: 0 | G9: 48698.56523 | H9: 48698.56523 | I9: 0 | J9: 0 | K9: 0 | L9: 0
A10: 07 | B10: 소수력 | C10: 193.172 | D10: 0 | E10: 0 | F10: 0 | G10: 49450.81212 | H10: 49450.81212 | I10: 0 | J10: 0 | K10: 0 | L10: 0
A11: 08 | B11: 수력 | C11: 1609.852 | D11: 411788 | E11: 417526 | F11: 417526 | G11: 430396.1865 | H11: 430396.1865 | I11: 0 | J11: 0 | K11: 0 | L11: 0
A12: 09 | B12: 양수 | C12: 4700 | D12: 6150 | E12: 6148 | F12: 6148 | G12: 315227.5173 | H12: 315227.5173 | I12: 0 | J12: 0 | K12: 0 | L12: 0
A13: 10 | B13: 매립가스 | C13: 63.734 | D13: 0 | E13: 0 | F13: 0 | G13: 17392.53157 | H13: 17392.53157 | I13: 0 | J13: 0 | K13: 0 | L13: 0
A14: 12 | B14: 중유 | C14: 226 | D14: 114107 | E14: 113996 | F14: 113995.388 | G14: 23270.31926 | H14: 23270.31926 | I14: 0 | J14: 113996 | K14: 113996 | L14: 0
A15: 13 | B15: 태양광 | C15: 6658.877 | D15: 0 | E15: 0 | F15: 0 | G15: 696313.5452 | H15: 696313.5452 | I15: 0 | J15: 0 | K15: 0 | L15: 0
A16: 15 | B16: 폐기물 | C16: 363.077 | D16: 0 | E16: 0 | F16: 0 | G16: 85234.1945 | H16: 85234.1945 | I16: 0 | J16: 0 | K16: 0 | L16: 0
A17: 16 | B17: 풍력 | C17: 1774.533 | D17: 0 | E17: 0 | F17: 0 | G17: 226015.0781 | H17: 226015.0781 | I17: 0 | J17: 0 | K17: 0 | L17: 0
A18: 17 | B18: LNG | C18: 42107.876 | D18: 26465139 | E18: 26270263 | F18: 26265817.27 | G18: 11033690.72 | H18: 11033690.72 | I18: 0 | J18: 26270383.82 | K18: 26270201 | L18: 211851
A19: 18 | B19: LPG | C19: 88 | D19: 37440 | E19: 37440 | F19: 37440 | G19: 1262.805152 | H19: 1262.805152 | I19: 0 | J19: 37440 | K19: 37440 | L19: 0
A20: 20 | B20: 연료전지 | C20: 843.068 | D20: 0 | E20: 0 | F20: 0 | G20: 423357.4312 | H20: 423357.4312 | I20: 0 | J20: 0 | K20: 0 | L20: 0
A21: 21 | B21: 경유 | C21: 612.045 | D21: 371366 | E21: 363182 | F21: 363113.187 | G21: 29261.94936 | H21: 29261.94936 | I21: 0 | J21: 363231.6695 | K21: 363182 | L21: 1083
A22: 22 | B22: 해양에너지 | C22: 255.5 | D22: 0 | E22: 0 | F22: 0 | G22: 39890.33815 | H22: 39890.33815 | I22: 0 | J22: 0 | K22: 0 | L22: 0
A23: 23 | B23: 가스압 | C23: 0.3 | D23: 0 | E23: 0 | F23: 0 | G23: 0 | H23: 0 | I23: 0 | J23: 0 | K23: 0 | L23: 0
A24: 24 | B24: 바이오매스 | C24: 1248.013 | D24: 0 | E24: 0 | F24: 0 | G24: 627681.4398 | H24: 627681.4398 | I24: 0 | J24: 0 | K24: 0 | L24: 0
A25: 25 | B25: IGCC | C25: 346.33 | D25: 196721 | E25: 192846 | F25: 192807.7004 | G25: 135438.968 | H25: 135438.968 | I25: 0 | J25: 192864.903 | K25: 192846 | L25: 0
A26: 32 | B26: 바이오중유 | C26: 390 | D26: 268486 | E26: 268498 | F26: 268496.4677 | G26: 139242.3481 | H26: 139242.3481 | I26: 0 | J26: 268498 | K26: 268498 | L26: 0
A27: 40 | B27: RPS | C27: 0 | D27: 0 | E27: 0 | F27: 0 | G27: 0 | H27: 0 | I27: 0 | J27: 0 | K27: 0 | L27: 0
A28: 41 | B28: DER | C28: 0 | D28: 0 | E28: 0 | F28: 0 | G28: 0 | H28: 0 | I28: 0 | J28: 0 | K28: 0 | L28: 0
A29: 99 | B29: 기타 | C29: 21.4 | D29: 0 | E29: 0 | F29: 0 | G29: 10935.83201 | H29: 10935.83201 | I29: 0 | J29: 0 | K29: 0 | L29: 0
A30: 원자력합 | B30: 원자력합 | C30: 24650 | D30: 13700898 | E30: 13434105 | F30: 13432130.26 | G30: 13402906.34 | H30: 13402906.34 | I30: 0 | J30: 13434105 | K30: 0
A31: 석탄합 | B31: 석탄합 | C31: 38580.782 | D31: 20600078 | E31: 20472418 | F31: 20470946.97 | G31: 14915159.93 | H31: 14915159.93 | I31: 0 | J31: 20830540 | K31: 0
A32: LNG합 | B32: LNG합 | C32: 42107.876 | D32: 26465139 | E32: 26270263 | F32: 26265817.27 | G32: 11033690.72 | H32: 11033690.72 | I32: 0 | J32: 26270201 | K32: 211851
A33: 유류합 | B33: 유류합 | C33: 838.045 | D33: 485473 | E33: 477178 | F33: 477108.5749 | G33: 52532.26862 | H33: 52532.26862 | I33: 0 | J33: 477178 | K33: 1083
A34: 양수합 | B34: 양수합 | C34: 4700 | D34: 6150 | E34: 6148 | F34: 6148 | G34: 315227.5173 | H34: 315227.5173 | I34: 0 | J34: 0 | K34: 0
A35: 신재생합 | B35: 신재생합 | C35: 18159.255 | D35: 876995 | E35: 878870 | F35: 878830.1681 | G35: 2933819.088 | H35: 2933819.088 | I35: 0 | J35: 461344 | K35: 0
A36: 기타합 | B36: 기타합 | C36: 21.7 | D36: 0 | E36: 0 | F36: 0 | G36: 10935.83201 | H36: 10935.83201 | I36: 0 | J36: 0 | K36: 0
A37: 수력합 | B37: 수력합 | C37: 1803.024 | D37: 411788 | E37: 417526 | F37: 417526 | G37: 479846.9986 | H37: 479846.9986 | I37: 0 | J37: 0 | K37: 0
A38: 폐기물합 | B38: 폐기물합 | C38: 4690.567 | D38: 0 | E38: 0 | F38: 0 | G38: 133932.7597 | H38: 133932.7597 | I38: 0 | J38: 0 | K38: 0
A39: 바이오합 | B39: 바이오합 | C39: 1787.356 | D39: 268486 | E39: 268498 | F39: 268496.4677 | G39: 799023.9686 | H39: 799023.9686 | I39: 0 | J39: 268498 | K39: 0
A40: 총계 | C40: 129145.658 | D40: 62172173 | E40: 61576422 | F40: 61568421.25 | G40: 42665534.51 | H40: 42665534.51 | I40: 0 | J40: 60259055.19 | K40: 61510808 | L40: 212934

Sheet 202208
A1: 정산요소 내역
A2: 조회기간 : 2022-08-01 ~ 2022-08-31
A3: 단위 : MWh
A4: 연료원코드 | B4: 연료원 | C4: 설비용량(MW) | D4: A | E4: RA | F4: ARA | G4: MGO | H4: AMGO | I4: PSE | J4: FCA | K4: OFCA | L4: OR
A5: 01 | B5: 원자력 | C5: 24650 | D5: 15621122 | E5: 15506068 | F5: 15503695.39 | G5: 15487381.67 | H5: 15487381.67 | I5: 14967648 | J5: 14942678.08 | K5: 15506068 | L5: 0
A6: 02 | B6: 유연탄 | C6: 38180.782 | D6: 22761736 | E6: 22596932 | F6: 22596834.47 | G6: 17754657.44 | H6: 17754657.44 | I6: 21971103 | J6: 22597897.8 | K6: 23149017 | L6: 0
A7: 03 | B7: 무연탄 | C7: 400 | D7: 268584 | E7: 268502 | F7: 268502 | G7: 245318.954 | H7: 245318.954 | I7: 268584 | J7: 268506.0845 | K7: 268502 | L7: 0
A8: 05 | B8: 바이오가스 | C8: 85.609 | D8: 0 | E8: 0 | F8: 0 | G8: 32942.88367 | H8: 32942.88367 | I8: 0 | J8: 0 | K8: 0 | L8: 0
A9: 06 | B9: 부생가스 | C9: 4327.49 | D9: 0 | E9: 0 | F9: 0 | G9: 65398.72716 | H9: 65398.72716 | I9: 0 | J9: 0 | K9: 0 | L9: 0
A10: 07 | B10: 소수력 | C10: 193.172 | D10: 0 | E10: 0 | F10: 0 | G10: 49975.76907 | H10: 49975.76907 | I10: 0 | J10: 0 | K10: 0 | L10: 0
A11: 08 | B11: 수력 | C11: 1609.852 | D11: 570423 | E11: 621801 | F11: 621801 | G11: 634846.4241 | H11: 634846.4241 | I11: 570422 | J11: 0 | K11: 0 | L11: 0
A12: 09 | B12: 양수 | C12: 4700 | D12: 3776 | E12: 3776 | F12: 3776 | G12: 328061.0356 | H12: 328061.0356 | I12: 1929 | J12: 0 | K12: 0 | L12: 0
A13: 10 | B13: 매립가스 | C13: 63.734 | D13: 0 | E13: 0 | F13: 0 | G13: 20213.82053 | H13: 20213.82053 | I13: 0 | J13: 0 | K13: 0 | L13: 0
A14: 12 | B14: 중유 | C14: 226 | D14: 121363 | E14: 121162 | F14: 120936.3875 | G14: 23184.75794 | H14: 23184.75794 | I14: 23076 | J14: 121162.8328 | K14: 121162 | L14: 0
A15: 13 | B15: 태양광 | C15: 6493.738 | D15: 0 | E15: 0 | F15: 0 | G15: 642662.0382 | H15: 642662.0382 | I15: 0 | J15: 0 | K15: 0 | L15: 0
A16: 15 | B16: 폐기물 | C16: 363.077 | D16: 0 | E16: 0 | F16: 0 | G16: 88777.58605 | H16: 88777.58605 | I16: 0 | J16: 0 | K16: 0 | L16: 0
A17: 16 | B17: 풍력 | C17: 1753.533 | D17: 0 | E17: 0 | F17: 0 | G17: 234303.1283 | H17: 234303.1283 | I17: 0 | J17: 0 | K17: 0 | L17: 0
A18: 17 | B18: LNG | C18: 41915.448 | D18: 28622283 | E18: 28473621 | F18: 28470359.64 | G18: 12906324.48 | H18: 12906323.26 | I18: 9271159 | J18: 28473687.68 | K18: 28473565 | L18: 194520
A19: 18 | B19: LPG | C19: 88 | D19: 38688 | E19: 38688 | F19: 38688 | G19: 1474.799424 | H19: 1474.799424 | I19: 0 | J19: 38688 | K19: 38688 | L19: 0
A20: 20 | B20: 연료전지 | C20: 825.668 | D20: 0 | E20: 0 | F20: 0 | G20: 433776.514 | H20: 433776.514 | I20: 0 | J20: 0 | K20: 0 | L20: 0
A21: 21 | B21: 경유 | C21: 612.045 | D21: 388563 | E21: 389144 | F21: 389143.1593 | G21: 13220.6256 | H21: 13220.6256 | I21: 11574 | J21: 389190.4556 | K21: 389144 | L21: 0
A22: 22 | B22: 해양에너지 | C22: 255.5 | D22: 0 | E22: 0 | F22: 0 | G22: 38444.74334 | H22: 38444.74334 | I22: 0 | J22: 0 | K22: 0 | L22: 0
A23: 23 | B23: 가스압 | C23: 0.3 | D23: 0 | E23: 0 | F23: 0 | G23: 0 | H23: 0 | I23: 0 | J23: 0 | K23: 0 | L23: 0
A24: 24 | B24: 바이오매스 | C24: 1248.013 | D24: 0 | E24: 0 | F24: 0 | G24: 694944.4709 | H24: 694944.4709 | I24: 0 | J24: 0 | K24: 0 | L24: 0
A25: 25 | B25: IGCC | C25: 346.33 | D25: 203400 | E25: 196982 | F25: 196982.2086 | G25: 194185.9438 | H25: 194185.9438 | I25: 203400 | J25: 197094.1414 | K25: 196982 | L25: 0
A26: 32 | B26: 바이오중유 | C26: 390 | D26: 276201 | E26: 273904 | F26: 273900.0094 | G26: 152417.8106 | H26: 152417.8106 | I26: 39173 | J26: 273923.1782 | K26: 273904 | L26: 0
A27: 40 | B27: RPS | C27: 0 | D27: 0 | E27: 0 | F27: 0 | G27: 0 | H27: 0 | I27: 0 | J27: 0 | K27: 0 | L27: 0
A28: 99 | B28: 기타 | C28: 21.4 | D28: 0 | E28: 0 | F28: 0 | G28: 13129.03919 | H28: 13129.03919 | I28: 0 | J28: 0 | K28: 0 | L28: 0
A29: 원자력합 | B29: 원자력합 | C29: 24650 | D29: 15621122 | E29: 15506068 | F29: 15503695.39 | G29: 15487381.67 | H29: 15487381.67 | I29: 14967648 | J29: 14942678.08 | K29: 15506068 | L29: 0
A30: 석탄합 | B30: 석탄합 | C30: 38580.782 | D30: 23030320 | E30: 22865434 | F30: 22865336.47 | G30: 17999976.39 | H30: 17999976.39 | I30: 22239687 | J30: 22866403.89 | K30: 23417519 | L30: 0
A31: LNG합 | B31: LNG합 | C31: 41915.448 | D31: 28622283 | E31: 28473621 | F31: 28470359.64 | G31: 12906324.48 | H31: 12906323.26 | I31: 9271159 | J31: 28473687.68 | K31: 28473565 | L31: 194520
A32: 유류합 | B32: 유류합 | C32: 838.045 | D32: 509926 | E32: 510306 | F32: 510079.5467 | G32: 36405.38354 | H32: 36405.38354 | I32: 34650 | J32: 510353.2884 | K32: 510306 | L32: 0
A33: 양수합 | B33: 양수합 | C33: 4700 | D33: 3776 | E33: 3776 | F33: 3776 | G33: 328061.0356 | H33: 328061.0356 | I33: 1929 | J33: 0 | K33: 0 | L33: 0
A34: 신재생합 | B34: 신재생합 | C34: 17955.716 | D34: 1050024 | E34: 1092687 | F34: 1092683.218 | G34: 3282889.86 | H34: 3282889.86 | I34: 812995 | J34: 471017.3196 | K34: 470886 | L34: 0
A35: 기타합 | B35: 기타합 | C35: 21.7 | D35: 0 | E35: 0 | F35: 0 | G35: 13129.03919 | H35: 13129.03919 | I35: 0 | J35: 0 | K35: 0 | L35: 0
A36: 수력합 | B36: 수력합 | C36: 1803.024 | D36: 570423 | E36: 621801 | F36: 621801 | G36: 684822.1932 | H36: 684822.1932 | I36: 570422 | J36: 0 | K36: 0 | L36: 0
A37: 폐기물합 | B37: 폐기물합 | C37: 4690.567 | D37: 0 | E37: 0 | F37: 0 | G37: 154176.3132 | H37: 154176.3132 | I37: 0 | J37: 0 | K37: 0 | L37: 0
A38: 바이오합 | B38: 바이오합 | C38: 1787.356 | D38: 276201 | E38: 273904 | F38: 273900.0094 | G38: 900518.9857 | H38: 900518.9857 | I38: 39173 | J38: 273923.1782 | K38: 273904 | L38: 0
A39: 총계 | C39: 128749.691 | D39: 68876139 | E39: 68490580 | F39: 68484618.27 | G39: 50055642.67 | H39: 50055641.45 | I39: 47328068 | J39: 67302828.26 | K39: 68417032 | L39: 194520

Sheet 202207
A1: 정산요소 내역
A2: 조회기간 : 2022-07-01 ~ 2022-07-31
A3: 단위 : MWh
A4: 연료원코드 | B4: 연료원 | C4: 설비용량(MW) | D4: A | E4: RA | F4: ARA | G4: MGO | H4: AMGO | I4: PSE | J4: FCA | K4: OFCA | L4: OR
A5: 01 | B5: 원자력 | C5: 24650 | D5: 14646624 | E5: 14609271 | F5: 14607759.83 | G5: 14590408.3 | H5: 14590408.3 | I5: 14471595 | J5: 14472058.17 | K5: 14609271 | L5: 0
A6: 02 | B6: 유연탄 | C6: 38180.782 | D6: 22477740 | E6: 22275350 | F6: 22274139.2 | G6: 18519926.95 | H6: 18519926.95 | I6: 22066990 | J6: 22277080.87 | K6: 22309988 | L6: 0
A7: 03 | B7: 무연탄 | C7: 400 | D7: 268584 | E7: 268584 | F7: 268579.5116 | G7: 246015.2268 | H7: 246015.2268 | I7: 268584 | J7: 268584.5124 | K7: 268584 | L7: 0
A8: 05 | B8: 바이오가스 | C8: 85.609 | D8: 0 | E8: 0 | F8: 0 | G8: 33037.11691 | H8: 33037.11691 | I8: 0 | J8: 0 | K8: 0 | L8: 0
A9: 06 | B9: 부생가스 | C9: 4327.49 | D9: 0 | E9: 0 | F9: 0 | G9: 31983.89718 | H9: 31983.89718 | I9: 0 | J9: 0 | K9: 0 | L9: 0
A10: 07 | B10: 소수력 | C10: 193.172 | D10: 0 | E10: 0 | F10: 0 | G10: 51979.58053 | H10: 51979.58053 | I10: 0 | J10: 0 | K10: 0 | L10: 0
A11: 08 | B11: 수력 | C11: 1609.852 | D11: 313088 | E11: 336462 | F11: 336462 | G11: 341209.4583 | H11: 341209.4583 | I11: 313086 | J11: 0 | K11: 0 | L11: 0
A12: 09 | B12: 양수 | C12: 4700 | D12: 280 | E12: 280 | F12: 280 | G12: 286006.0724 | H12: 286006.0724 | I12: -1355 | J12: 0 | K12: 0 | L12: 0
A13: 10 | B13: 매립가스 | C13: 63.734 | D13: 0 | E13: 0 | F13: 0 | G13: 16621.2888 | H13: 16621.2888 | I13: 0 | J13: 0 | K13: 0 | L13: 0
A14: 12 | B14: 중유 | C14: 266 | D14: 145249 | E14: 143796 | F14: 143743.5052 | G14: 45393.13583 | H14: 45393.13583 | I14: 27794 | J14: 143800.7511 | K14: 143796 | L14: 0
A15: 13 | B15: 태양광 | C15: 6360.156 | D15: 0 | E15: 0 | F15: 0 | G15: 741851.8727 | H15: 741851.8727 | I15: 0 | J15: 0 | K15: 0 | L15: 0
A16: 15 | B16: 폐기물 | C16: 363.077 | D16: 0 | E16: 0 | F16: 0 | G16: 97153.9292 | H16: 97153.9292 | I16: 0 | J16: 0 | K16: 0 | L16: 0
A17: 16 | B17: 풍력 | C17: 1753.533 | D17: 0 | E17: 0 | F17: 0 | G17: 135265.5777 | H17: 135265.5777 | I17: 0 | J17: 0 | K17: 0 | L17: 0
A18: 17 | B18: LNG | C18: 42497.463 | D18: 28118535 | E18: 27515335 | F18: 27509032.12 | G18: 14475051.63 | H18: 14475051.63 | I18: 10920370 | J18: 27516686.81 | K18: 27515054 | L18: 222301
A19: 18 | B19: LPG | C19: 88 | D19: 36806 | E19: 36806 | F19: 36806 | G19: 948.82312 | H19: 948.82312 | I19: 0 | J19: 36806 | K19: 36806 | L19: 0
A20: 20 | B20: 연료전지 | C20: 809.828 | D20: 0 | E20: 0 | F20: 0 | G20: 426115.0022 | H20: 426115.0022 | I20: 0 | J20: 0 | K20: 0 | L20: 0
A21: 21 | B21: 경유 | C21: 612.045 | D21: 381918 | E21: 374470 | F21: 374470 | G21: 33265.94645 | H21: 33264.07504 | I21: 11922 | J21: 374524.3469 | K21: 374470 | L21: 6647
A22: 22 | B22: 해양에너지 | C22: 255.5 | D22: 0 | E22: 0 | F22: 0 | G22: 35715.69557 | H22: 35715.69557 | I22: 0 | J22: 0 | K22: 0 | L22: 0
A23: 23 | B23: 가스압 | C23: 0.3 | D23: 0 | E23: 0 | F23: 0 | G23: 0 | H23: 0 | I23: 0 | J23: 0 | K23: 0 | L23: 0
A24: 24 | B24: 바이오매스 | C24: 1245.013 | D24: 0 | E24: 0 | F24: 0 | G24: 566578.7698 | H24: 566578.7698 | I24: 0 | J24: 0 | K24: 0 | L24: 0
A25: 25 | B25: IGCC | C25: 346.33 | D25: 195978 | E25: 190170 | F25: 190169.6214 | G25: 188875.3849 | H25: 188875.3849 | I25: 195978 | J25: 190679.4696 | K25: 190170 | L25: 0
A26: 32 | B26: 바이오중유 | C26: 350 | D26: 185234 | E26: 181151 | F26: 180626.9767 | G26: 108404.9234 | H26: 108404.9234 | I26: 15112 | J26: 181152.008 | K26: 181151 | L26: 0
A27: 40 | B27: RPS | C27: 0 | D27: 0 | E27: 0 | F27: 0 | G27: 0 | H27: 0 | I27: 0 | J27: 0 | K27: 0 | L27: 0
A28: 99 | B28: 기타 | C28: 21.4 | D28: 0 | E28: 0 | F28: 0 | G28: 11106.60568 | H28: 11106.60568 | I28: 0 | J28: 0 | K28: 0 | L28: 0
A29: 원자력합 | B29: 원자력합 | C29: 24650 | D29: 14646624 | E29: 14609271 | F29: 14607759.83 | G29: 14590408.3 | H29: 14590408.3 | I29: 14471595 | J29: 14472058.17 | K29: 14609271 | L29: 0
A30: 석탄합 | B30: 석탄합 | C30: 38580.782 | D30: 22746324 | E30: 22543934 | F30: 22542718.71 | G30: 18765942.18 | H30: 18765942.18 | I30: 22335574 | J30: 22545665.38 | K30: 22578572 | L30: 0
A31: LNG합 | B31: LNG합 | C31: 42497.463 | D31: 28118535 | E31: 27515335 | F31: 27509032.12 | G31: 14475051.63 | H31: 14475051.63 | I31: 10920370 | J31: 27516686.81 | K31: 27515054 | L31: 222301
A32: 유류합 | B32: 유류합 | C32: 878.045 | D32: 527167 | E32: 518266 | F32: 518213.5052 | G32: 78659.08228 | H32: 78657.21087 | I32: 39716 | J32: 518325.0979 | K32: 518266 | L32: 6647
A33: 양수합 | B33: 양수합 | C33: 4700 | D33: 280 | E33: 280 | F33: 280 | G33: 286006.0724 | H33: 286006.0724 | I33: -1355 | J33: 0 | K33: 0 | L33: 0
A34: 신재생합 | B34: 신재생합 | C34: 17763.294 | D34: 694300 | E34: 707783 | F34: 707258.5981 | G34: 2774792.497 | H34: 2774792.497 | I34: 524176 | J34: 371831.4776 | K34: 371321 | L34: 0
A35: 기타합 | B35: 기타합 | C35: 21.7 | D35: 0 | E35: 0 | F35: 0 | G35: 11106.60568 | H35: 11106.60568 | I35: 0 | J35: 0 | K35: 0 | L35: 0
A36: 수력합 | B36: 수력합 | C36: 1803.024 | D36: 313088 | E36: 336462 | F36: 336462 | G36: 393189.0388 | H36: 393189.0388 | I36: 313086 | J36: 0 | K36: 0 | L36: 0
A37: 폐기물합 | B37: 폐기물합 | C37: 4690.567 | D37: 0 | E37: 0 | F37: 0 | G37: 129137.8264 | H37: 129137.8264 | I37: 0 | J37: 0 | K37: 0 | L37: 0
A38: 바이오합 | B38: 바이오합 | C38: 1744.356 | D38: 185234 | E38: 181151 | F38: 180626.9767 | G38: 724642.0989 | H38: 724642.0989 | I38: 15112 | J38: 181152.008 | K38: 181151 | L38: 0
A39: 총계 | C39: 129179.284 | D39: 66770036 | E39: 65931675 | F39: 65922068.77 | G39: 50982915.19 | H39: 50982913.32 | I39: 48290076 | J39: 65461372.94 | K39: 65629290 | L39: 228948

Sheet 202206
A1: 정산요소 내역
A2: 조회기간 : 2022-06-01 ~ 2022-06-30
A3: 단위 : MWh
A4: 연료원코드 | B4: 연료원 | C4: 설비용량(MW) | D4: A | E4: RA | F4: ARA | G4: MGO | H4: AMGO | I4: PSE | J4: FCA | K4: OFCA | L4: OR
A5: 1 | B5: 원자력 | C5: 24650 | D5: 14132388 | E5: 14028760 | F5: 13971321.39 | G5: 13956297.18 | H5: 13956297.18 | I5: 14085628 | J5: 14002828.92 | K5: 14028760 | L5: 0
A6: 2 | B6: 유연탄 | C6: 38180.782 | D6: 18897568 | E6: 18493887 | F6: 18485479.22 | G6: 14658756.46 | H6: 14658756.46 | I6: 18485657 | J6: 18497439.02 | K6: 18682207 | L6: 0
A7: 3 | B7: 무연탄 | C7: 400 | D7: 155580 | E7: 152776 | F7: 152773.058 | G7: 140103.7935 | H7: 140103.7935 | I7: 155580 | J7: 152809.3546 | K7: 152776 | L7: 0
A8: 5 | B8: 바이오가스 | C8: 85.609 | D8: 0 | E8: 0 | F8: 0 | G8: 28912.06019 | H8: 28912.06019 | I8: 0 | J8: 0 | K8: 0 | L8: 0
A9: 6 | B9: 부생가스 | C9: 4327.49 | D9: 0 | E9: 0 | F9: 0 | G9: 29248.77529 | H9: 29248.77529 | I9: 0 | J9: 0 | K9: 0 | L9: 0
A10: 7 | B10: 소수력 | C10: 193.092 | D10: 0 | E10: 0 | F10: 0 | G10: 42815.48479 | H10: 42815.48479 | I10: 0 | J10: 0 | K10: 0 | L10: 0
A11: 8 | B11: 수력 | C11: 1609.852 | D11: 207219 | E11: 228619 | F11: 228619 | G11: 232362.1623 | H11: 232362.1623 | I11: 207218 | J11: 0 | K11: 0 | L11: 0
A12: 9 | B12: 양수 | C12: 4700 | D12: 10610 | E12: 9930 | F12: 9930 | G12: 275659.7653 | H12: 275659.7653 | I12: -3761 | J12: 0 | K12: 0 | L12: 0
A13: 10 | B13: 매립가스 | C13: 63.734 | D13: 0 | E13: 0 | F13: 0 | G13: 19355.54174 | H13: 19355.54174 | I13: 0 | J13: 0 | K13: 0 | L13: 0
A14: 12 | B14: 중유 | C14: 266 | D14: 84708 | E14: 81999 | F14: 81965.23988 | G14: 30483.64694 | H14: 30483.64694 | I14: 12190 | J14: 82039.85018 | K14: 81999 | L14: 0
A15: 13 | B15: 태양광 | C15: 6290.191 | D15: 0 | E15: 0 | F15: 0 | G15: 718657.4872 | H15: 718657.4872 | I15: 0 | J15: 0 | K15: 0 | L15: 0
A16: 15 | B16: 폐기물 | C16: 363.077 | D16: 0 | E16: 0 | F16: 0 | G16: 86271.78021 | H16: 86271.78021 | I16: 0 | J16: 0 | K16: 0 | L16: 0
A17: 16 | B17: 풍력 | C17: 1753.533 | D17: 0 | E17: 0 | F17: 0 | G17: 246879.7785 | H17: 246879.7785 | I17: 0 | J17: 0 | K17: 0 | L17: 0
A18: 17 | B18: LNG | C18: 41528.026 | D18: 23619710 | E18: 23030693 | F18: 23019402.05 | G18: 12206145.25 | H18: 12206144.51 | I18: 7859066 | J18: 23031309.42 | K18: 23030411 | L18: 280124
A19: 18 | B19: LPG | C19: 88 | D19: 37440 | E19: 37440 | F19: 37440 | G19: 671.196624 | H19: 671.196624 | I19: 0 | J19: 37440 | K19: 37440 | L19: 0
A20: 20 | B20: 연료전지 | C20: 800.228 | D20: 0 | E20: 0 | F20: 0 | G20: 399527.2571 | H20: 399527.2571 | I20: 0 | J20: 0 | K20: 0 | L20: 0
A21: 21 | B21: 경유 | C21: 612.045 | D21: 385975 | E21: 381033 | F21: 376622 | G21: 27962.02298 | H21: 27962.02298 | I21: 11565 | J21: 381054.3188 | K21: 381033 | L21: 4021
A22: 22 | B22: 해양에너지 | C22: 255.5 | D22: 0 | E22: 0 | F22: 0 | G22: 22694.45842 | H22: 22694.45842 | I22: 0 | J22: 0 | K22: 0 | L22: 0
A23: 23 | B23: 가스압 | C23: 0.3 | D23: 0 | E23: 0 | F23: 0 | G23: 0 | H23: 0 | I23: 0 | J23: 0 | K23: 0 | L23: 0
A24: 24 | B24: 바이오매스 | C24: 1245.013 | D24: 0 | E24: 0 | F24: 0 | G24: 478850.6013 | H24: 478850.6013 | I24: 0 | J24: 0 | K24: 0 | L24: 0
A25: 25 | B25: IGCC | C25: 346.33 | D25: 66019 | E25: 56878 | F25: 56878.46336 | G25: 93957.52856 | H25: 93957.52856 | I25: 66019 | J25: 56980.84928 | K25: 56878 | L25: 0
A26: 32 | B26: 바이오중유 | C26: 350 | D26: 172080 | E26: 172080 | F26: 172080 | G26: 99918.0985 | H26: 99918.0985 | I26: 12761 | J26: 172080.6539 | K26: 172080 | L26: 0
A27: 40 | B27: RPS | C27: 0 | D27: 0 | E27: 0 | F27: 0 | G27: 0 | H27: 0 | I27: 0 | J27: 0 | K27: 0 | L27: 0
A28: 99 | B28: 기타 | C28: 21.4 | D28: 0 | E28: 0 | F28: 0 | G28: 12385.81637 | H28: 12385.81637 | I28: 0 | J28: 0 | K28: 0 | L28: 0
A29: 원자력합 | B29: 원자력합 | C29: 24650 | D29: 14132388 | E29: 14028760 | F29: 13971321.39 | G29: 13956297.18 | H29: 13956297.18 | I29: 14085628 | J29: 14002828.92 | K29: 14028760 | L29: 0
A30: 석탄합 | B30: 석탄합 | C30: 38580.782 | D30: 19053148 | E30: 18646663 | F30: 18638252.28 | G30: 14798860.25 | H30: 14798860.25 | I30: 18641237 | J30: 18650248.37 | K30: 18834983 | L30: 0
A31: LNG합 | B31: LNG합 | C31: 41528.026 | D31: 23619710 | E31: 23030693 | F31: 23019402.05 | G31: 12206145.25 | H31: 12206144.51 | I31: 7859066 | J31: 23031309.42 | K31: 23030411 | L31: 280124
A32: 유류합 | B32: 유류합 | C32: 878.045 | D32: 470683 | E32: 463032 | F32: 458587.2399 | G32: 58445.66993 | H32: 58445.66993 | I32: 23755 | J32: 463094.169 | K32: 463032 | L32: 4021
A33: 양수합 | B33: 양수합 | C33: 4700 | D33: 10610 | E33: 9930 | F33: 9930 | G33: 275659.7653 | H33: 275659.7653 | I33: -3761 | J33: 0 | K33: 0 | L33: 0
A34: 신재생합 | B34: 신재생합 | C34: 17683.649 | D34: 445318 | E34: 457577 | F34: 457577.4634 | G34: 2499451.014 | H34: 2499451.014 | I34: 285998 | J34: 229061.5032 | K34: 228958 | L34: 0
A35: 기타합 | B35: 기타합 | C35: 21.7 | D35: 0 | E35: 0 | F35: 0 | G35: 12385.81637 | H35: 12385.81637 | I35: 0 | J35: 0 | K35: 0 | L35: 0
A36: 수력합 | B36: 수력합 | C36: 1802.944 | D36: 207219 | E36: 228619 | F36: 228619 | G36: 275177.6471 | H36: 275177.6471 | I36: 207218 | J36: 0 | K36: 0 | L36: 0
A37: 폐기물합 | B37: 폐기물합 | C37: 4690.567 | D37: 0 | E37: 0 | F37: 0 | G37: 115520.5555 | H37: 115520.5555 | I37: 0 | J37: 0 | K37: 0 | L37: 0
A38: 바이오합 | B38: 바이오합 | C38: 1744.356 | D38: 172080 | E38: 172080 | F38: 172080 | G38: 627036.3018 | H38: 627036.3018 | I38: 12761 | J38: 172080.6539 | K38: 172080 | L38: 0
A39: 총계 | C39: 128130.202 | D39: 57769297 | E39: 56674095 | F39: 56592510.43 | G39: 43807916.14 | H39: 43807915.41 | I39: 40891923 | J39: 56413982.38 | K39: 56623584 | L39: 284145

Sheet 202205
A1: 정산요소 내역
A2: 조회기간 : 2022-05-01 ~ 2022-05-31
A3: 단위 : MWh
A4: 연료원코드 | B4: 연료원 | C4: 설비용량(MW) | D4: A | E4: RA | F4: ARA | G4: MGO | H4: AMGO | I4: PSE | J4: FCA | K4: OFCA | L4: OR
A5: 1 | B5: 원자력 | C5: 23250 | D5: 13957102 | E5: 13926493 | F5: 13926482.13 | G5: 13911955.78 | H5: 13911955.78 | I5: 13957102 | J5: 13927454.63 | K5: 13926493 | L5: 0
A6: 2 | B6: 유연탄 | C6: 38180.782 | D6: 15745364 | E6: 15434424 | F6: 15433217.63 | G6: 12910851.12 | H6: 12910851.12 | I6: 15280761 | J6: 15436300.46 | K6: 15444895 | L6: 0
A7: 3 | B7: 무연탄 | C7: 400 | D7: 252114 | E7: 251138 | F7: 251138 | G7: 148959.4134 | H7: 148959.4134 | I7: 0 | J7: 251147.9436 | K7: 251138 | L7: 0
A8: 5 | B8: 바이오가스 | C8: 85.609 | D8: 0 | E8: 0 | F8: 0 | G8: 36616.18823 | H8: 36616.18823 | I8: 0 | J8: 0 | K8: 0 | L8: 0
A9: 6 | B9: 부생가스 | C9: 4327.49 | D9: 0 | E9: 0 | F9: 0 | G9: 36934.22637 | H9: 36934.22637 | I9: 0 | J9: 0 | K9: 0 | L9: 0
A10: 7 | B10: 소수력 | C10: 201.29 | D10: 0 | E10: 0 | F10: 0 | G10: 46631.94948 | H10: 46631.94948 | I10: 0 | J10: 0 | K10: 0 | L10: 0
A11: 8 | B11: 수력 | C11: 1609.852 | D11: 191188 | E11: 191852 | F11: 191852 | G11: 193998.727 | H11: 193998.727 | I11: 191191 | J11: 0 | K11: 0 | L11: 0
A12: 9 | B12: 양수 | C12: 4700 | D12: 3508 | E12: 3508 | F12: 3508 | G12: 292838.097 | H12: 292838.097 | I12: -115 | J12: 0 | K12: 0 | L12: 0
A13: 10 | B13: 매립가스 | C13: 63.734 | D13: 0 | E13: 0 | F13: 0 | G13: 19555.10537 | H13: 19555.10537 | I13: 0 | J13: 0 | K13: 0 | L13: 0
A14: 12 | B14: 중유 | C14: 270.3 | D14: 100859 | E14: 99257 | F14: 99251.38746 | G14: 30488.81222 | H14: 30486.66176 | I14: 15887 | J14: 99273.73169 | K14: 99257 | L14: 0
A15: 13 | B15: 태양광 | C15: 6270.92 | D15: 0 | E15: 0 | F15: 0 | G15: 1000574.093 | H15: 1000574.093 | I15: 0 | J15: 0 | K15: 0 | L15: 0
A16: 15 | B16: 폐기물 | C16: 363.077 | D16: 0 | E16: 0 | F16: 0 | G16: 85165.14022 | H16: 85165.14022 | I16: 0 | J16: 0 | K16: 0 | L16: 0
A17: 16 | B17: 풍력 | C17: 1753.533 | D17: 0 | E17: 0 | F17: 0 | G17: 243521.289 | H17: 243521.289 | I17: 0 | J17: 0 | K17: 0 | L17: 0
A18: 17 | B18: LNG | C18: 41528.026 | D18: 22684092 | E18: 22455950 | F18: 22440068.32 | G18: 11817152.61 | H18: 11817152.61 | I18: 9238308 | J18: 22457481.06 | K18: 22455869 | L18: 200968.8
A19: 18 | B19: LPG | C19: 88 | D19: 30556 | E19: 30556 | F19: 30556 | G19: 159.196128 | H19: 159.196128 | I19: 0 | J19: 30556 | K19: 30556 | L19: 0
A20: 20 | B20: 연료전지 | C20: 800.228 | D20: 0 | E20: 0 | F20: 0 | G20: 466046.4853 | H20: 466046.4853 | I20: 0 | J20: 0 | K20: 0 | L20: 0
A21: 21 | B21: 경유 | C21: 612.045 | D21: 360552 | E21: 353424 | F21: 353416.5711 | G21: 6582.244144 | H21: 6582.244144 | I21: 282 | J21: 353424 | K21: 353424 | L21: 2221
A22: 22 | B22: 해양에너지 | C22: 255.5 | D22: 0 | E22: 0 | F22: 0 | G22: 38067.93062 | H22: 38067.93062 | I22: 0 | J22: 0 | K22: 0 | L22: 0
A23: 23 | B23: 가스압 | C23: 0.3 | D23: 0 | E23: 0 | F23: 0 | G23: 0 | H23: 0 | I23: 0 | J23: 0 | K23: 0 | L23: 0
A24: 24 | B24: 바이오매스 | C24: 1245.013 | D24: 0 | E24: 0 | F24: 0 | G24: 617542.9467 | H24: 617542.9467 | I24: 0 | J24: 0 | K24: 0 | L24: 0
A25: 25 | B25: IGCC | C25: 346.33 | D25: 0 | E25: 0 | F25: 0 | G25: 5796.75992 | H25: 5796.75992 | I25: 0 | J25: 0 | K25: 0 | L25: 0
A26: 32 | B26: 바이오중유 | C26: 350 | D26: 241229 | E26: 241190 | F26: 241180.8809 | G26: 134459.1222 | H26: 134459.1222 | I26: 36580 | J26: 241190.1082 | K26: 241190 | L26: 0
A27: 40 | B27: RPS | C27: 0 | D27: 0 | E27: 0 | F27: 0 | G27: 0 | H27: 0 | I27: 0 | J27: 0 | K27: 0 | L27: 0
A28: 99 | B28: 기타 | C28: 21.4 | D28: 0 | E28: 0 | F28: 0 | G28: 12954.01091 | H28: 12954.01091 | I28: 0 | J28: 0 | K28: 0 | L28: 0
A29: 원자력합 | B29: 원자력합 | C29: 23250 | D29: 13957102 | E29: 13926493 | F29: 13926482.13 | G29: 13911955.78 | H29: 13911955.78 | I29: 13957102 | J29: 13927454.63 | K29: 13926493 | L29: 0
A30: 석탄합 | B30: 석탄합 | C30: 38580.782 | D30: 15997478 | E30: 15685562 | F30: 15684355.63 | G30: 13059810.53 | H30: 13059810.53 | I30: 15280761 | J30: 15687448.4 | K30: 15696033 | L30: 0
A31: LNG합 | B31: LNG합 | C31: 41528.026 | D31: 22684092 | E31: 22455950 | F31: 22440068.32 | G31: 11817152.61 | H31: 11817152.61 | I31: 9238308 | J31: 22457481.06 | K31: 22455869 | L31: 200968.8
A32: 유류합 | B32: 유류합 | C32: 882.345 | D32: 461411 | E32: 452681 | F32: 452667.9586 | G32: 37071.05637 | H32: 37068.9059 | I32: 16169 | J32: 452697.7317 | K32: 452681 | L32: 2221
A33: 양수합 | B33: 양수합 | C33: 4700 | D33: 3508 | E33: 3508 | F33: 3508 | G33: 292838.097 | H33: 292838.097 | I33: -115 | J33: 0 | K33: 0 | L33: 0
A34: 신재생합 | B34: 신재생합 | C34: 17672.576 | D34: 432417 | E34: 433042 | F34: 433032.8809 | G34: 2924909.964 | H34: 2924909.964 | I34: 227771 | J34: 241190.1082 | K34: 241190 | L34: 0
A35: 기타합 | B35: 기타합 | C35: 21.7 | D35: 0 | E35: 0 | F35: 0 | G35: 12954.01091 | H35: 12954.01091 | I35: 0 | J35: 0 | K35: 0 | L35: 0
A36: 수력합 | B36: 수력합 | C36: 1811.142 | D36: 191188 | E36: 191852 | F36: 191852 | G36: 240630.6765 | H36: 240630.6765 | I36: 191191 | J36: 0 | K36: 0 | L36: 0
A37: 폐기물합 | B37: 폐기물합 | C37: 4690.567 | D37: 0 | E37: 0 | F37: 0 | G37: 122099.3666 | H37: 122099.3666 | I37: 0 | J37: 0 | K37: 0 | L37: 0
A38: 바이오합 | B38: 바이오합 | C38: 1744.356 | D38: 241229 | E38: 241190 | F38: 241180.8809 | G38: 808173.3625 | H38: 808173.3625 | I38: 36580 | J38: 241190.1082 | K38: 241190 | L38: 0
A39: 총계 | C39: 126723.429 | D39: 53566564 | E39: 52987792 | F39: 52970670.92 | G39: 42056851.25 | H39: 42056849.1 | I39: 38719996 | J39: 52796827.93 | K39: 52802822 | L39: 203189.8

Sheet 202204
A1: 정산요소 내역
A2: 조회기간 : 2022-04-01 ~ 2022-04-30
A3: 단위 : MWh
A4: 연료원코드 | B4: 연료원 | C4: 설비용량(MW) | D4: A | E4: RA | F4: ARA | G4: MGO | H4: AMGO | I4: PSE | J4: FCA | K4: OFCA | L4: OR
A5: 01 | B5: 원자력 | C5: 23250 | D5: 12811336 | E5: 12759905 | F5: 12759874.38 | G5: 12747591.17 | H5: 12747591.17 | I5: 12811336 | J5: 12760752.22 | K5: 12759905 | L5: 0
A6: 02 | B6: 유연탄 | C6: 37140.782 | D6: 13827683 | E6: 13629758 | F6: 13626708.46 | G6: 12597684.54 | H6: 12597684.54 | I6: 13816730 | J6: 13631507.13 | K6: 13629758 | L6: 0
A7: 03 | B7: 무연탄 | C7: 400 | D7: 231341 | E7: 229905 | F7: 229905 | G7: 212594.277 | H7: 212594.277 | I7: 231341 | J7: 229924.02 | K7: 229905 | L7: 0
A8: 05 | B8: 바이오가스 | C8: 85.609 | D8: 0 | E8: 0 | F8: 0 | G8: 32908.23843 | H8: 32908.23843 | I8: 0 | J8: 0 | K8: 0 | L8: 0
A9: 06 | B9: 부생가스 | C9: 4327.49 | D9: 0 | E9: 0 | F9: 0 | G9: 48116.5386 | H9: 48116.5386 | I9: 0 | J9: 0 | K9: 0 | L9: 0
A10: 07 | B10: 소수력 | C10: 201.29 | D10: 0 | E10: 0 | F10: 0 | G10: 41974.86761 | H10: 41974.86761 | I10: 0 | J10: 0 | K10: 0 | L10: 0
A11: 08 | B11: 수력 | C11: 1609.852 | D11: 157560 | E11: 156880 | F11: 156880 | G11: 160654.5553 | H11: 160654.5553 | I11: 157567 | J11: 0 | K11: 0 | L11: 0
A12: 09 | B12: 양수 | C12: 4700 | D12: 6468 | E12: 6168 | F12: 6168 | G12: 265680.7473 | H12: 265680.7473 | I12: 212 | J12: 0 | K12: 0 | L12: 0
A13: 10 | B13: 매립가스 | C13: 63.734 | D13: 0 | E13: 0 | F13: 0 | G13: 4938.155872 | H13: 4938.155872 | I13: 0 | J13: 0 | K13: 0 | L13: 0
A14: 12 | B14: 중유 | C14: 270.3 | D14: 106926 | E14: 106475 | F14: 106472.491 | G14: 58705.20917 | H14: 58705.20917 | I14: 48553 | J14: 106478.4624 | K14: 106475 | L14: 0
A15: 13 | B15: 태양광 | C15: 6202.126 | D15: 0 | E15: 0 | F15: 0 | G15: 883697.1686 | H15: 883697.1686 | I15: 0 | J15: 0 | K15: 0 | L15: 0
A16: 15 | B16: 폐기물 | C16: 363.077 | D16: 0 | E16: 0 | F16: 0 | G16: 86796.86075 | H16: 86796.86075 | I16: 0 | J16: 0 | K16: 0 | L16: 0
A17: 16 | B17: 풍력 | C17: 1734.733 | D17: 0 | E17: 0 | F17: 0 | G17: 258455.0502 | H17: 258455.0502 | I17: 0 | J17: 0 | K17: 0 | L17: 0
A18: 17 | B18: LNG | C18: 41528.026 | D18: 25351360 | E18: 25116837 | F18: 25109574.45 | G18: 12632969.71 | H18: 12632948.61 | I18: 10990905 | J18: 25117947.8 | K18: 25116824 | L18: 10268
A19: 18 | B19: LPG | C19: 88 | D19: 35818 | E19: 35818 | F19: 35818 | G19: 0 | H19: 0 | I19: 0 | J19: 35818 | K19: 35818 | L19: 0
A20: 20 | B20: 연료전지 | C20: 800.228 | D20: 0 | E20: 0 | F20: 0 | G20: 450156.7669 | H20: 450156.7669 | I20: 0 | J20: 0 | K20: 0 | L20: 0
A21: 21 | B21: 경유 | C21: 612.045 | D21: 411357 | E21: 410535 | F21: 410461.5696 | G21: 15954.97047 | H21: 15954.97047 | I21: 16363 | J21: 410555.9279 | K21: 410535 | L21: 1864
A22: 22 | B22: 해양에너지 | C22: 255.5 | D22: 0 | E22: 0 | F22: 0 | G22: 37509.2059 | H22: 37509.2059 | I22: 0 | J22: 0 | K22: 0 | L22: 0
A23: 23 | B23: 가스압 | C23: 0.3 | D23: 0 | E23: 0 | F23: 0 | G23: 0 | H23: 0 | I23: 0 | J23: 0 | K23: 0 | L23: 0
A24: 24 | B24: 바이오매스 | C24: 1245.013 | D24: 0 | E24: 0 | F24: 0 | G24: 491927.3339 | H24: 491927.3339 | I24: 0 | J24: 0 | K24: 0 | L24: 0
A25: 25 | B25: IGCC | C25: 346.33 | D25: 0 | E25: 0 | F25: 0 | G25: 125474.5929 | H25: 125474.5929 | I25: 0 | J25: 0 | K25: 0 | L25: 0
A26: 32 | B26: 바이오중유 | C26: 350 | D26: 208583 | E26: 208016 | F26: 208008.9864 | G26: 112795.0083 | H26: 112795.0083 | I26: 5248 | J26: 208025.5667 | K26: 208016 | L26: 0
A27: 40 | B27: RPS | C27: 0 | D27: 0 | E27: 0 | F27: 0 | G27: 0 | H27: 0 | I27: 0 | J27: 0 | K27: 0 | L27: 0
A28: 99 | B28: 기타 | C28: 21.4 | D28: 0 | E28: 0 | F28: 0 | G28: 11574.22066 | H28: 11574.22066 | I28: 0 | J28: 0 | K28: 0 | L28: 0
A29: 원자력합 | B29: 원자력합 | C29: 23250 | D29: 12811336 | E29: 12759905 | F29: 12759874.38 | G29: 12747591.17 | H29: 12747591.17 | I29: 12811336 | J29: 12760752.22 | K29: 12759905 | L29: 0
A30: 석탄합 | B30: 석탄합 | C30: 37540.782 | D30: 14059024 | E30: 13859663 | F30: 13856613.46 | G30: 12810278.82 | H30: 12810278.82 | I30: 14048071 | J30: 13861431.15 | K30: 13859663 | L30: 0
A31: LNG합 | B31: LNG합 | C31: 41528.026 | D31: 25351360 | E31: 25116837 | F31: 25109574.45 | G31: 12632969.71 | H31: 12632948.61 | I31: 10990905 | J31: 25117947.8 | K31: 25116824 | L31: 10268
A32: 유류합 | B32: 유류합 | C32: 882.345 | D32: 518283 | E32: 517010 | F32: 516934.0607 | G32: 74660.17965 | H32: 74660.17965 | I32: 64916 | J32: 517034.3904 | K32: 517010 | L32: 1864
A33: 양수합 | B33: 양수합 | C33: 4700 | D33: 6468 | E33: 6168 | F33: 6168 | G33: 265680.7473 | H33: 265680.7473 | I33: 212 | J33: 0 | K33: 0 | L33: 0
A34: 신재생합 | B34: 신재생합 | C34: 17584.982 | D34: 366143 | E34: 364896 | F34: 364888.9864 | G34: 2735404.343 | H34: 2735404.343 | I34: 162815 | J34: 208025.5667 | K34: 208016 | L34: 0
A35: 기타합 | B35: 기타합 | C35: 21.7 | D35: 0 | E35: 0 | F35: 0 | G35: 11574.22066 | H35: 11574.22066 | I35: 0 | J35: 0 | K35: 0 | L35: 0
A36: 수력합 | B36: 수력합 | C36: 1811.142 | D36: 157560 | E36: 156880 | F36: 156880 | G36: 202629.423 | H36: 202629.423 | I36: 157567 | J36: 0 | K36: 0 | L36: 0
A37: 폐기물합 | B37: 폐기물합 | C37: 4690.567 | D37: 0 | E37: 0 | F37: 0 | G37: 134913.3994 | H37: 134913.3994 | I37: 0 | J37: 0 | K37: 0 | L37: 0
A38: 바이오합 | B38: 바이오합 | C38: 1744.356 | D38: 208583 | E38: 208016 | F38: 208008.9864 | G38: 642568.7365 | H38: 642568.7365 | I38: 5248 | J38: 208025.5667 | K38: 208016 | L38: 0
A39: 총계 | C39: 125595.835 | D39: 53148432 | E39: 52660297 | F39: 52649871.33 | G39: 41278159.19 | H39: 41278138.09 | I39: 38078255 | J39: 52501009.13 | K39: 52497236 | L39: 12132

Sheet 202203
A1: 정산요소 내역
A2: 조회기간 : 2022-03-01 ~ 2022-03-31
A3: 단위 : MWh
A4: 연료원코드 | B4: 연료원 | C4: 설비용량(MW) | D4: A | E4: RA | F4: ARA | G4: MGO | H4: AMGO | I4: PSE | J4: FCA | K4: OFCA | L4: OR
A5: 01 | B5: 원자력 | C5: 23250 | D5: 13525292 | E5: 13525663 | F5: 13525581.21 | G5: 13197795.38 | H5: 13197795.38 | I5: 13525292 | J5: 13526733.75 | K5: 13525663 | L5: 0
A6: 02 | B6: 유연탄 | C6: 37140.782 | D6: 13948191 | E6: 13898493 | F6: 13895641.63 | G6: 13621716.67 | H6: 13621716.67 | I6: 13947231 | J6: 13902912.77 | K6: 13898493 | L6: 0
A7: 03 | B7: 무연탄 | C7: 400 | D7: 630 | E7: 106 | F7: 106 | G7: 104.447928 | H7: 104.447928 | I7: 630 | J7: 106.181768 | K7: 106 | L7: 0
A8: 05 | B8: 바이오가스 | C8: 85.609 | D8: 0 | E8: 0 | F8: 0 | G8: 21400.79477 | H8: 21400.79477 | I8: 0 | J8: 0 | K8: 0 | L8: 0
A9: 06 | B9: 부생가스 | C9: 4327.49 | D9: 0 | E9: 0 | F9: 0 | G9: 43058.45637 | H9: 43058.45637 | I9: 0 | J9: 0 | K9: 0 | L9: 0
A10: 07 | B10: 소수력 | C10: 201.29 | D10: 0 | E10: 0 | F10: 0 | G10: 41983.24316 | H10: 41983.24316 | I10: 0 | J10: 0 | K10: 0 | L10: 0
A11: 08 | B11: 수력 | C11: 1609.852 | D11: 155019 | E11: 162647 | F11: 162647 | G11: 164847.6148 | H11: 164847.6148 | I11: 155034 | J11: 0 | K11: 0 | L11: 0
A12: 09 | B12: 양수 | C12: 4700 | D12: 18425 | E12: 15609 | F12: 15609 | G12: 342797.6215 | H12: 342797.6215 | I12: 6631 | J12: 0 | K12: 0 | L12: 0
A13: 10 | B13: 매립가스 | C13: 63.734 | D13: 0 | E13: 0 | F13: 0 | G13: 16482.31847 | H13: 16482.31847 | I13: 0 | J13: 0 | K13: 0 | L13: 0
A14: 12 | B14: 중유 | C14: 270.3 | D14: 129176 | E14: 127650 | F14: 127645.2043 | G14: 83721.58637 | H14: 83721.58637 | I14: 52556 | J14: 127651.5645 | K14: 127650 | L14: 0
A15: 13 | B15: 태양광 | C15: 6144.654 | D15: 0 | E15: 0 | F15: 0 | G15: 680462.1974 | H15: 680462.1974 | I15: 0 | J15: 0 | K15: 0 | L15: 0
A16: 15 | B16: 폐기물 | C16: 363.077 | D16: 0 | E16: 0 | F16: 0 | G16: 85471.61829 | H16: 85471.61829 | I16: 0 | J16: 0 | K16: 0 | L16: 0
A17: 16 | B17: 풍력 | C17: 1726.733 | D17: 0 | E17: 0 | F17: 0 | G17: 302192.201 | H17: 302192.201 | I17: 0 | J17: 0 | K17: 0 | L17: 0
A18: 17 | B18: LNG | C18: 41528.026 | D18: 29636937 | E18: 29328855 | F18: 29319296.21 | G18: 16314250.12 | H18: 16314243.05 | I18: 15215861 | J18: 29330145.82 | K18: 29328588 | L18: 27852
A19: 18 | B19: LPG | C19: 88 | D19: 50184 | E19: 50184 | F19: 50184 | G19: 6219.766336 | H19: 6219.766336 | I19: 0 | J19: 50185.54536 | K19: 50184 | L19: 0
A20: 20 | B20: 연료전지 | C20: 787.908 | D20: 0 | E20: 0 | F20: 0 | G20: 454560.2086 | H20: 454560.2086 | I20: 0 | J20: 0 | K20: 0 | L20: 0
A21: 21 | B21: 경유 | C21: 612.045 | D21: 490671 | E21: 489140 | F21: 487948.4742 | G21: 33321.88138 | H21: 33320.34466 | I21: 20745 | J21: 489140.2376 | K21: 489140 | L21: 0
A22: 22 | B22: 해양에너지 | C22: 255.5 | D22: 0 | E22: 0 | F22: 0 | G22: 27134.16072 | H22: 27134.16072 | I22: 0 | J22: 0 | K22: 0 | L22: 0
A23: 23 | B23: 가스압 | C23: 0.3 | D23: 0 | E23: 0 | F23: 0 | G23: 0 | H23: 0 | I23: 0 | J23: 0 | K23: 0 | L23: 0
A24: 24 | B24: 바이오매스 | C24: 1245.013 | D24: 0 | E24: 0 | F24: 0 | G24: 506347.8478 | H24: 506347.8478 | I24: 0 | J24: 0 | K24: 0 | L24: 0
A25: 25 | B25: IGCC | C25: 346.33 | D25: 0 | E25: 0 | F25: 0 | G25: 190873.4408 | H25: 190873.4408 | I25: 0 | J25: 0 | K25: 0 | L25: 0
A26: 32 | B26: 바이오중유 | C26: 350 | D26: 163609 | E26: 162973 | F26: 162973 | G26: 90700.36903 | H26: 90700.36903 | I26: 843 | J26: 162973 | K26: 162973 | L26: 0
A27: 40 | B27: RPS | C27: 0 | D27: 0 | E27: 0 | F27: 0 | G27: 0 | H27: 0 | I27: 0 | J27: 0 | K27: 0 | L27: 0
A28: 99 | B28: 기타 | C28: 21.4 | D28: 0 | E28: 0 | F28: 0 | G28: 43094.9406 | H28: 43094.9406 | I28: 0 | J28: 0 | K28: 0 | L28: 0
A29: 원자력합 | B29: 원자력합 | C29: 23250 | D29: 13525292 | E29: 13525663 | F29: 13525581.21 | G29: 13197795.38 | H29: 13197795.38 | I29: 13525292 | J29: 13526733.75 | K29: 13525663 | L29: 0
A30: 석탄합 | B30: 석탄합 | C30: 37540.782 | D30: 13948821 | E30: 13898599 | F30: 13895747.63 | G30: 13621821.12 | H30: 13621821.12 | I30: 13947861 | J30: 13903018.95 | K30: 13898599 | L30: 0
A31: LNG합 | B31: LNG합 | C31: 41528.026 | D31: 29636937 | E31: 29328855 | F31: 29319296.21 | G31: 16314250.12 | H31: 16314243.05 | I31: 15215861 | J31: 29330145.82 | K31: 29328588 | L31: 27852
A32: 유류합 | B32: 유류합 | C32: 882.345 | D32: 619847 | E32: 616790 | F32: 615593.6786 | G32: 117043.4677 | H32: 117041.931 | I32: 73301 | J32: 616791.8021 | K32: 616790 | L32: 0
A33: 양수합 | B33: 양수합 | C33: 4700 | D33: 18425 | E33: 15609 | F33: 15609 | G33: 342797.6215 | H33: 342797.6215 | I33: 6631 | J33: 0 | K33: 0 | L33: 0
A34: 신재생합 | B34: 신재생합 | C34: 17507.19 | D34: 318628 | E34: 325620 | F34: 325620 | G34: 2625514.471 | H34: 2625514.471 | I34: 155877 | J34: 162973 | K34: 162973 | L34: 0
A35: 기타합 | B35: 기타합 | C35: 21.7 | D35: 0 | E35: 0 | F35: 0 | G35: 43094.9406 | H35: 43094.9406 | I35: 0 | J35: 0 | K35: 0 | L35: 0
A36: 수력합 | B36: 수력합 | C36: 1811.142 | D36: 155019 | E36: 162647 | F36: 162647 | G36: 206830.858 | H36: 206830.858 | I36: 155034 | J36: 0 | K36: 0 | L36: 0
A37: 폐기물합 | B37: 폐기물합 | C37: 4690.567 | D37: 0 | E37: 0 | F37: 0 | G37: 128530.0747 | H37: 128530.0747 | I37: 0 | J37: 0 | K37: 0 | L37: 0
A38: 바이오합 | B38: 바이오합 | C38: 1744.356 | D38: 163609 | E38: 162973 | F38: 162973 | G38: 634931.3301 | H38: 634931.3301 | I38: 843 | J38: 162973 | K38: 162973 | L38: 0
A39: 총계 | C39: 125518.043 | D39: 58118134 | E39: 57761320 | F39: 57747631.73 | G39: 46268536.89 | H39: 46268528.28 | I39: 42924823 | J39: 57589848.86 | K39: 57582797 | L39: 27852

Sheet 202202
A1: 정산요소 내역
A2: 조회기간 : 2022-02-01 ~ 2022-02-28
A3: 단위 : MWh
A4: 연료원코드 | B4: 연료원 | C4: 설비용량(MW) | D4: A | E4: RA | F4: ARA | G4: MGO | H4: AMGO | I4: PSE | J4: FCA | K4: OFCA | L4: OR
A5: 01 | B5: 원자력 | C5: 23250 | D5: 13385164 | E5: 13345565 | F5: 13345423.86 | G5: 13313981.86 | H5: 13313981.86 | I5: 13385114 | J5: 13347084.87 | K5: 13345565 | L5: 0
A6: 02 | B6: 유연탄 | C6: 37390.782 | D6: 18209156 | E6: 17853945 | F6: 17850195.66 | G6: 15433123.94 | H6: 15433123.94 | I6: 17932325 | J6: 17854386.43 | K6: 17853945 | L6: 0
A7: 03 | B7: 무연탄 | C7: 400 | D7: 0 | E7: 0 | F7: 0 | G7: 0 | H7: 0 | I7: 0 | J7: 0 | K7: 0 | L7: 0
A8: 05 | B8: 바이오가스 | C8: 85.609 | D8: 0 | E8: 0 | F8: 0 | G8: 29815.06002 | H8: 29815.06002 | I8: 0 | J8: 0 | K8: 0 | L8: 0
A9: 06 | B9: 부생가스 | C9: 4327.49 | D9: 0 | E9: 0 | F9: 0 | G9: 55930.16901 | H9: 55930.16901 | I9: 0 | J9: 0 | K9: 0 | L9: 0
A10: 07 | B10: 소수력 | C10: 201.29 | D10: 0 | E10: 0 | F10: 0 | G10: 31097.16916 | H10: 31097.16916 | I10: 0 | J10: 0 | K10: 0 | L10: 0
A11: 08 | B11: 수력 | C11: 1609.852 | D11: 130128 | E11: 130347 | F11: 130347 | G11: 133955.0906 | H11: 133955.0906 | I11: 130133 | J11: 0 | K11: 0 | L11: 0
A12: 09 | B12: 양수 | C12: 4700 | D12: 4935 | E12: 4935 | F12: 4935 | G12: 322853.8372 | H12: 322853.8372 | I12: -1985 | J12: 0 | K12: 0 | L12: 0
A13: 10 | B13: 매립가스 | C13: 63.734 | D13: 0 | E13: 0 | F13: 0 | G13: 16565.87321 | H13: 16565.87321 | I13: 0 | J13: 0 | K13: 0 | L13: 0
A14: 12 | B14: 중유 | C14: 270.3 | D14: 132058 | E14: 130412 | F14: 130410.0271 | G14: 108679.4861 | H14: 108679.4861 | I14: 51211 | J14: 130412.5219 | K14: 130412 | L14: 0
A15: 13 | B15: 태양광 | C15: 6084.459 | D15: 0 | E15: 0 | F15: 0 | G15: 630522.8535 | H15: 630522.8535 | I15: 0 | J15: 0 | K15: 0 | L15: 0
A16: 15 | B16: 폐기물 | C16: 360.177 | D16: 0 | E16: 0 | F16: 0 | G16: 73840.6173 | H16: 73840.6173 | I16: 0 | J16: 0 | K16: 0 | L16: 0
A17: 16 | B17: 풍력 | C17: 1726.733 | D17: 0 | E17: 0 | F17: 0 | G17: 406108.1499 | H17: 406108.1499 | I17: 0 | J17: 0 | K17: 0 | L17: 0
A18: 17 | B18: LNG | C18: 41528.026 | D18: 28778693 | E18: 28485843 | F18: 28479570.45 | G18: 13335409.79 | H18: 13335407.8 | I18: 10345627 | J18: 28486707.05 | K18: 28485824 | L18: 44369
A19: 18 | B19: LPG | C19: 88 | D19: 51744 | E19: 51744 | F19: 51744 | G19: 19326.76267 | H19: 19326.76267 | I19: 0 | J19: 51744 | K19: 51744 | L19: 0
A20: 20 | B20: 연료전지 | C20: 783.708 | D20: 0 | E20: 0 | F20: 0 | G20: 403346.9186 | H20: 403346.9186 | I20: 0 | J20: 0 | K20: 0 | L20: 0
A21: 21 | B21: 경유 | C21: 612.045 | D21: 455741 | E21: 455624 | F21: 455624 | G21: 32857.01272 | H21: 32857.01272 | I21: 48800 | J21: 455624 | K21: 455624 | L21: 0
A22: 22 | B22: 해양에너지 | C22: 255.5 | D22: 0 | E22: 0 | F22: 0 | G22: 34351.70395 | H22: 34351.70395 | I22: 0 | J22: 0 | K22: 0 | L22: 0
A23: 23 | B23: 가스압 | C23: 0.3 | D23: 0 | E23: 0 | F23: 0 | G23: 0 | H23: 0 | I23: 0 | J23: 0 | K23: 0 | L23: 0
A24: 24 | B24: 바이오매스 | C24: 935.013 | D24: 0 | E24: 0 | F24: 0 | G24: 428814.8004 | H24: 428814.8004 | I24: 0 | J24: 0 | K24: 0 | L24: 0
A25: 25 | B25: IGCC | C25: 346.33 | D25: 0 | E25: 0 | F25: 0 | G25: 164442.3374 | H25: 164442.3374 | I25: 0 | J25: 0 | K25: 0 | L25: 0
A26: 32 | B26: 바이오중유 | C26: 350 | D26: 176064 | E26: 176064 | F26: 176064 | G26: 97256.64318 | H26: 97256.64318 | I26: 252 | J26: 176064 | K26: 176064 | L26: 0
A27: 40 | B27: RPS | C27: 0 | D27: 0 | E27: 0 | F27: 0 | G27: 0 | H27: 0 | I27: 0 | J27: 0 | K27: 0 | L27: 0
A28: 99 | B28: 기타 | C28: 81.4 | D28: 0 | E28: 0 | F28: 0 | G28: 44609.97042 | H28: 44609.97042 | I28: 0 | J28: 0 | K28: 0 | L28: 0
A29: 원자력합 | B29: 원자력합 | C29: 23250 | D29: 13385164 | E29: 13345565 | F29: 13345423.86 | G29: 13313981.86 | H29: 13313981.86 | I29: 13385114 | J29: 13347084.87 | K29: 13345565 | L29: 0
A30: 석탄합 | B30: 석탄합 | C30: 37790.782 | D30: 18209156 | E30: 17853945 | F30: 17850195.66 | G30: 15433123.94 | H30: 15433123.94 | I30: 17932325 | J30: 17854386.43 | K30: 17853945 | L30: 0
A31: LNG합 | B31: LNG합 | C31: 41528.026 | D31: 28778693 | E31: 28485843 | F31: 28479570.45 | G31: 13335409.79 | H31: 13335407.8 | I31: 10345627 | J31: 28486707.05 | K31: 28485824 | L31: 44369
A32: 유류합 | B32: 유류합 | C32: 882.345 | D32: 587799 | E32: 586036 | F32: 586034.0271 | G32: 141536.4988 | H32: 141536.4988 | I32: 100011 | J32: 586036.5219 | K32: 586036 | L32: 0
A33: 양수합 | B33: 양수합 | C33: 4700 | D33: 4935 | E33: 4935 | F33: 4935 | G33: 322853.8372 | H33: 322853.8372 | I33: -1985 | J33: 0 | K33: 0 | L33: 0
A34: 신재생합 | B34: 신재생합 | C34: 17129.895 | D34: 306192 | E34: 306411 | F34: 306411 | G34: 2506047.386 | H34: 2506047.386 | I34: 130385 | J34: 176064 | K34: 176064 | L34: 0
A35: 기타합 | B35: 기타합 | C35: 81.7 | D35: 0 | E35: 0 | F35: 0 | G35: 44609.97042 | H35: 44609.97042 | I35: 0 | J35: 0 | K35: 0 | L35: 0
A36: 수력합 | B36: 수력합 | C36: 1811.142 | D36: 130128 | E36: 130347 | F36: 130347 | G36: 165052.2597 | H36: 165052.2597 | I36: 130133 | J36: 0 | K36: 0 | L36: 0
A37: 폐기물합 | B37: 폐기물합 | C37: 4687.667 | D37: 0 | E37: 0 | F37: 0 | G37: 129770.7863 | H37: 129770.7863 | I37: 0 | J37: 0 | K37: 0 | L37: 0
A38: 바이오합 | B38: 바이오합 | C38: 1434.356 | D38: 176064 | E38: 176064 | F38: 176064 | G38: 572452.3768 | H38: 572452.3768 | I38: 252 | J38: 176064 | K38: 176064 | L38: 0
A39: 총계 | C39: 125450.748 | D39: 61323683 | E39: 60634479 | F39: 60624314 | G39: 45116890.05 | H39: 45116888.06 | I39: 41891477 | J39: 60502022.87 | K39: 60499178 | L39: 44369

Sheet 202201
A1: 정산요소 내역
A2: 조회기간 : 2022-01-01 ~ 2022-01-31
A3: 단위 : MWh
A4: 연료원코드 | B4: 연료원 | C4: 설비용량(MW) | D4: A | E4: RA | F4: ARA | G4: MGO | H4: AMGO | I4: PSE | J4: FCA | K4: OFCA | L4: OR
A5: 01 | B5: 원자력 | C5: 23250 | D5: 15347414 | E5: 15354461 | F5: 15354437.64 | G5: 15330922.15 | H5: 15330922.15 | I5: 15347414 | J5: 15355383.95 | K5: 15354461 | L5: 0
A6: 02 | B6: 유연탄 | C6: 37390.782 | D6: 21113436 | E6: 20755283 | F6: 20746507.35 | G6: 17756115.84 | H6: 17755979.57 | I6: 20959837 | J6: 20755730.42 | K6: 20755283 | L6: 0
A7: 03 | B7: 무연탄 | C7: 400 | D7: 0 | E7: 0 | F7: 0 | G7: 0 | H7: 0 | I7: 0 | J7: 0 | K7: 0 | L7: 0
A8: 05 | B8: 바이오가스 | C8: 85.609 | D8: 0 | E8: 0 | F8: 0 | G8: 33343.03716 | H8: 33343.03716 | I8: 0 | J8: 0 | K8: 0 | L8: 0
A9: 06 | B9: 부생가스 | C9: 4327.49 | D9: 0 | E9: 0 | F9: 0 | G9: 45984.63719 | H9: 45984.63719 | I9: 0 | J9: 0 | K9: 0 | L9: 0
A10: 07 | B10: 소수력 | C10: 201.29 | D10: 0 | E10: 0 | F10: 0 | G10: 35406.69936 | H10: 35406.69936 | I10: 0 | J10: 0 | K10: 0 | L10: 0
A11: 08 | B11: 수력 | C11: 1609.852 | D11: 146562 | E11: 147432 | F11: 147432 | G11: 151734.4947 | H11: 151734.4947 | I11: 146567 | J11: 0 | K11: 0 | L11: 0
A12: 09 | B12: 양수 | C12: 4700 | D12: 290 | E12: 290 | F12: 290 | G12: 329450.5767 | H12: 329450.5767 | I12: 290 | J12: 0 | K12: 0 | L12: 0
A13: 10 | B13: 매립가스 | C13: 63.734 | D13: 0 | E13: 0 | F13: 0 | G13: 17604.977 | H13: 17604.977 | I13: 0 | J13: 0 | K13: 0 | L13: 0
A14: 12 | B14: 중유 | C14: 1470.3 | D14: 967536 | E14: 965863 | F14: 965861.201 | G14: 448647.551 | H14: 448647.551 | I14: 42144 | J14: 965863.9513 | K14: 965863 | L14: 0
A15: 13 | B15: 태양광 | C15: 5929.75 | D15: 0 | E15: 0 | F15: 0 | G15: 541224.5597 | H15: 541224.5597 | I15: 0 | J15: 0 | K15: 0 | L15: 0
A16: 15 | B16: 폐기물 | C16: 360.177 | D16: 0 | E16: 0 | F16: 0 | G16: 76156.85179 | H16: 76156.85179 | I16: 0 | J16: 0 | K16: 0 | L16: 0
A17: 16 | B17: 풍력 | C17: 1726.733 | D17: 0 | E17: 0 | F17: 0 | G17: 344581.8922 | H17: 344581.8922 | I17: 0 | J17: 0 | K17: 0 | L17: 0
A18: 17 | B18: LNG | C18: 41528.026 | D18: 32037098 | E18: 31610357 | F18: 31605201.88 | G18: 14972435.16 | H18: 14972427.08 | I18: 11399975 | J18: 31610876.2 | K18: 31610309 | L18: 10985
A19: 18 | B19: LPG | C19: 88 | D19: 56424 | E19: 56424 | F19: 56424 | G19: 18532.38744 | H19: 18532.38744 | I19: 0 | J19: 56424.3051 | K19: 56424 | L19: 0
A20: 20 | B20: 연료전지 | C20: 768.708 | D20: 0 | E20: 0 | F20: 0 | G20: 439925.4532 | H20: 439925.4532 | I20: 0 | J20: 0 | K20: 0 | L20: 0
A21: 21 | B21: 경유 | C21: 612.045 | D21: 501899 | E21: 490132 | F21: 490132 | G21: 17831.18299 | H21: 17829.89426 | I21: 22613 | J21: 490132 | K21: 490132 | L21: 0
A22: 22 | B22: 해양에너지 | C22: 255.5 | D22: 0 | E22: 0 | F22: 0 | G22: 38801.77855 | H22: 38801.77855 | I22: 0 | J22: 0 | K22: 0 | L22: 0
A23: 23 | B23: 가스압 | C23: 0.3 | D23: 0 | E23: 0 | F23: 0 | G23: 0 | H23: 0 | I23: 0 | J23: 0 | K23: 0 | L23: 0
A24: 24 | B24: 바이오매스 | C24: 935.013 | D24: 0 | E24: 0 | F24: 0 | G24: 385612.129 | H24: 385612.129 | I24: 0 | J24: 0 | K24: 0 | L24: 0
A25: 25 | B25: IGCC | C25: 346.33 | D25: 0 | E25: 0 | F25: 0 | G25: 188624.548 | H25: 188624.548 | I25: 0 | J25: 0 | K25: 0 | L25: 0
A26: 32 | B26: 바이오중유 | C26: 350 | D26: 229230 | E26: 230094 | F26: 230094 | G26: 131839.6799 | H26: 131839.6799 | I26: 3176 | J26: 230096.5025 | K26: 230094 | L26: 0
A27: 40 | B27: RPS | C27: 0 | D27: 0 | E27: 0 | F27: 0 | G27: 0 | H27: 0 | I27: 0 | J27: 0 | K27: 0 | L27: 0
A28: 99 | B28: 기타 | C28: 81.4 | D28: 0 | E28: 0 | F28: 0 | G28: 48540.53169 | H28: 48540.53169 | I28: 0 | J28: 0 | K28: 0 | L28: 0
A29: 원자력합 | B29: 원자력합 | C29: 23250 | D29: 15347414 | E29: 15354461 | F29: 15354437.64 | G29: 15330922.15 | H29: 15330922.15 | I29: 15347414 | J29: 15355383.95 | K29: 15354461 | L29: 0
A30: 석탄합 | B30: 석탄합 | C30: 37790.782 | D30: 21113436 | E30: 20755283 | F30: 20746507.35 | G30: 17756115.84 | H30: 17755979.57 | I30: 20959837 | J30: 20755730.42 | K30: 20755283 | L30: 0
A31: LNG합 | B31: LNG합 | C31: 41528.026 | D31: 32037098 | E31: 31610357 | F31: 31605201.88 | G31: 14972435.16 | H31: 14972427.08 | I31: 11399975 | J31: 31610876.2 | K31: 31610309 | L31: 10985
A32: 유류합 | B32: 유류합 | C32: 2082.345 | D32: 1469435 | E32: 1455995 | F32: 1455993.201 | G32: 466478.734 | H32: 466477.4453 | I32: 64757 | J32: 1455995.951 | K32: 1455995 | L32: 0
A33: 양수합 | B33: 양수합 | C33: 4700 | D33: 290 | E33: 290 | F33: 290 | G33: 329450.5767 | H33: 329450.5767 | I33: 290 | J33: 0 | K33: 0 | L33: 0
A34: 신재생합 | B34: 신재생합 | C34: 16960.186 | D34: 375792 | E34: 377526 | F34: 377526 | G34: 2430840.738 | H34: 2430840.738 | I34: 149743 | J34: 230096.5025 | K34: 230094 | L34: 0
A35: 기타합 | B35: 기타합 | C35: 81.7 | D35: 0 | E35: 0 | F35: 0 | G35: 48540.53169 | H35: 48540.53169 | I35: 0 | J35: 0 | K35: 0 | L35: 0
A36: 수력합 | B36: 수력합 | C36: 1811.142 | D36: 146562 | E36: 147432 | F36: 147432 | G36: 187141.1941 | H36: 187141.1941 | I36: 146567 | J36: 0 | K36: 0 | L36: 0
A37: 폐기물합 | B37: 폐기물합 | C37: 4687.667 | D37: 0 | E37: 0 | F37: 0 | G37: 122141.489 | H37: 122141.489 | I37: 0 | J37: 0 | K37: 0 | L37: 0
A38: 바이오합 | B38: 바이오합 | C38: 1434.356 | D38: 229230 | E38: 230094 | F38: 230094 | G38: 568399.8231 | H38: 568399.8231 | I38: 3176 | J38: 230096.5025 | K38: 230094 | L38: 0
A39: 총계 | C39: 126481.039 | D39: 70399889 | E39: 69610336 | F39: 69596380.07 | G39: 51353316.11 | H39: 51353170.48 | I39: 47922016 | J39: 69464507.33 | K39: 69462566 | L39: 10985

Sheet 202112
A1: 정산요소 내역
A2: 조회기간 : 2021-12-01 ~ 2021-12-31
A3: 단위 : MWh
A4: 연료원코드 | B4: 연료원 | C4: 설비용량(MW) | D4: A | E4: RA | F4: ARA | G4: MGO | H4: AMGO | I4: PSE | J4: FCA | K4: OFCA | L4: OR
A5: 1 | B5: 원자력 | C5: 23250 | D5: 15765709 | E5: 15757933 | F5: 15749225 | G5: 15732304.04 | H5: 15732304.04 | I5: 15765187 | J5: 15758712.91 | K5: 15757933 | L5: 0
A6: 2 | B6: 유연탄 | C6: 37890.782 | D6: 19257710 | E6: 19102901 | F6: 19102010.6 | G6: 17397776.54 | H6: 17397776.54 | I6: 19249049 | J6: 19105597.27 | K6: 19102901 | L6: 0
A7: 3 | B7: 무연탄 | C7: 400 | D7: 0 | E7: 0 | F7: 0 | G7: 0.544917 | H7: 0.544917 | I7: 0 | J7: 0.544917 | K7: 0 | L7: 0
A8: 5 | B8: 바이오가스 | C8: 85.149 | D8: 0 | E8: 0 | F8: 0 | G8: 31877.05055 | H8: 31877.05055 | I8: 0 | J8: 0 | K8: 0 | L8: 0
A9: 6 | B9: 부생가스 | C9: 4327.49 | D9: 0 | E9: 0 | F9: 0 | G9: 50685.87312 | H9: 50685.87312 | I9: 0 | J9: 0 | K9: 0 | L9: 0
A10: 7 | B10: 소수력 | C10: 204.29 | D10: 0 | E10: 0 | F10: 0 | G10: 39477.69525 | H10: 39477.69525 | I10: 0 | J10: 0 | K10: 0 | L10: 0
A11: 8 | B11: 수력 | C11: 1609.852 | D11: 134104 | E11: 135422 | F11: 135419.675 | G11: 137930.9064 | H11: 137930.9064 | I11: 134105 | J11: 0 | K11: 0 | L11: 0
A12: 9 | B12: 양수 | C12: 4700 | D12: 3955 | E12: 3955 | F12: 3942.051416 | G12: 337287.0738 | H12: 337287.0738 | I12: -10356 | J12: 0 | K12: 0 | L12: 0
A13: 10 | B13: 매립가스 | C13: 63.734 | D13: 0 | E13: 0 | F13: 0 | G13: 14597.51811 | H13: 14597.51811 | I13: 0 | J13: 0 | K13: 0 | L13: 0
A14: 12 | B14: 중유 | C14: 1470.3 | D14: 969642 | E14: 968786 | F14: 968779.8151 | G14: 166768.927 | H14: 166768.927 | I14: 23306 | J14: 968786.9666 | K14: 968786 | L14: 0
A15: 13 | B15: 태양광 | C15: 5787.596 | D15: 0 | E15: 0 | F15: 0 | G15: 417117.9407 | H15: 417117.9407 | I15: 0 | J15: 0 | K15: 0 | L15: 0
A16: 15 | B16: 폐기물 | C16: 360.177 | D16: 0 | E16: 0 | F16: 0 | G16: 89510.63819 | H16: 89510.63819 | I16: 0 | J16: 0 | K16: 0 | L16: 0
A17: 16 | B17: 풍력 | C17: 1726.733 | D17: 0 | E17: 0 | F17: 0 | G17: 430829.146 | H17: 430829.146 | I17: 0 | J17: 0 | K17: 0 | L17: 0
A18: 17 | B18: LNG | C18: 41528.026 | D18: 31813817 | E18: 30951672 | F18: 30916383.62 | G18: 14088369.93 | H18: 14088369.93 | I18: 11712728 | J18: 30854836.16 | K18: 30951545 | L18: 86063
A19: 18 | B19: LPG | C19: 88 | D19: 53325 | E19: 52925 | F19: 52925 | G19: 11825.53893 | H19: 11825.53893 | I19: 0 | J19: 52925 | K19: 52925 | L19: 0
A20: 20 | B20: 연료전지 | C20: 776.708 | D20: 0 | E20: 0 | F20: 0 | G20: 446916.2895 | H20: 446916.2895 | I20: 0 | J20: 0 | K20: 0 | L20: 0
A21: 21 | B21: 경유 | C21: 612.045 | D21: 417799 | E21: 417980 | F21: 417979.3905 | G21: 2530.718288 | H21: 2530.718288 | I21: 2573 | J21: 417980 | K21: 417980 | L21: 0
A22: 22 | B22: 해양에너지 | C22: 255.5 | D22: 0 | E22: 0 | F22: 0 | G22: 37607.23954 | H22: 37607.23954 | I22: 0 | J22: 0 | K22: 0 | L22: 0
A23: 23 | B23: 가스압 | C23: 0.3 | D23: 0 | E23: 0 | F23: 0 | G23: 0 | H23: 0 | I23: 0 | J23: 0 | K23: 0 | L23: 0
A24: 24 | B24: 바이오매스 | C24: 935.013 | D24: 0 | E24: 0 | F24: 0 | G24: 436900.7232 | H24: 436900.7232 | I24: 0 | J24: 0 | K24: 0 | L24: 0
A25: 25 | B25: IGCC | C25: 346.33 | D25: 0 | E25: 0 | F25: 0 | G25: 177038.9958 | H25: 177038.9958 | I25: 0 | J25: 0 | K25: 0 | L25: 0
A26: 32 | B26: 바이오중유 | C26: 350 | D26: 246865 | E26: 246774 | F26: 246774 | G26: 133794.4132 | H26: 133794.4132 | I26: 2069 | J26: 246774 | K26: 246774 | L26: 0
A27: 40 | B27: RPS | C27: 0 | D27: 0 | E27: 0 | F27: 0 | G27: 0 | H27: 0 | I27: 0 | J27: 0 | K27: 0 | L27: 0
A28: 99 | B28: 기타 | C28: 81.4 | D28: 0 | E28: 0 | F28: 0 | G28: 49040.3722 | H28: 49040.3722 | I28: 0 | J28: 0 | K28: 0 | L28: 0
A29: 원자력합 | B29: 원자력합 | C29: 23250 | D29: 15765709 | E29: 15757933 | F29: 15749225 | G29: 15732304.04 | H29: 15732304.04 | I29: 15765187 | J29: 15758712.91 | K29: 15757933 | L29: 0
A30: 석탄합 | B30: 석탄합 | C30: 38290.782 | D30: 19257710 | E30: 19102901 | F30: 19102010.6 | G30: 17397777.08 | H30: 17397777.08 | I30: 19249049 | J30: 19105597.81 | K30: 19102901 | L30: 0
A31: LNG합 | B31: LNG합 | C31: 41528.026 | D31: 31813817 | E31: 30951672 | F31: 30916383.62 | G31: 14088369.93 | H31: 14088369.93 | I31: 11712728 | J31: 30854836.16 | K31: 30951545 | L31: 86063
A32: 유류합 | B32: 유류합 | C32: 2082.345 | D32: 1387441 | E32: 1386766 | F32: 1386759.206 | G32: 169299.6453 | H32: 169299.6453 | I32: 25879 | J32: 1386766.967 | K32: 1386766 | L32: 0
A33: 양수합 | B33: 양수합 | C33: 4700 | D33: 3955 | E33: 3955 | F33: 3942.051416 | G33: 337287.0738 | H33: 337287.0738 | I33: -10356 | J33: 0 | K33: 0 | L33: 0
A34: 신재생합 | B34: 신재생합 | C34: 16828.572 | D34: 380969 | E34: 382196 | F34: 382193.675 | G34: 2444284.43 | H34: 2444284.43 | I34: 136174 | J34: 246774 | K34: 246774 | L34: 0
A35: 기타합 | B35: 기타합 | C35: 81.7 | D35: 0 | E35: 0 | F35: 0 | G35: 49040.3722 | H35: 49040.3722 | I35: 0 | J35: 0 | K35: 0 | L35: 0
A36: 수력합 | B36: 수력합 | C36: 1814.142 | D36: 134104 | E36: 135422 | F36: 135419.675 | G36: 177408.6017 | H36: 177408.6017 | I36: 134105 | J36: 0 | K36: 0 | L36: 0
A37: 폐기물합 | B37: 폐기물합 | C37: 4687.667 | D37: 0 | E37: 0 | F37: 0 | G37: 140196.5113 | H37: 140196.5113 | I37: 0 | J37: 0 | K37: 0 | L37: 0
A38: 바이오합 | B38: 바이오합 | C38: 1433.896 | D38: 246865 | E38: 246774 | F38: 246774 | G38: 617169.7051 | H38: 617169.7051 | I38: 2069 | J38: 246774 | K38: 246774 | L38: 0
A39: 총계 | C39: 126849.425 | D39: 68662926 | E39: 67638348 | F39: 67593439.14 | G39: 50230188.11 | H39: 50230188.11 | I39: 46878661 | J39: 67405612.84 | K39: 67498844 | L39: 86063

Sheet 202111
A1: 정산요소 내역
A2: 조회기간 : 2021-11-01 ~ 2021-11-30
A3: 단위 : MWh
A4: 연료원코드 | B4: 연료원 | C4: 설비용량(MW) | D4: A | E4: RA | F4: ARA | G4: MGO | H4: AMGO | I4: PSE | J4: FCA | K4: OFCA | L4: OR
A5: 1 | B5: 원자력 | C5: 23250 | D5: 12971881 | E5: 12919389 | F5: 12900897.84 | G5: 12888501.51 | H5: 12888501.51 | I5: 12971881 | J5: 12920634.73 | K5: 12919389 | L5: 0
A6: 2 | B6: 유연탄 | C6: 37890.782 | D6: 18698341 | E6: 18551928 | F6: 18541433.09 | G6: 15288848.02 | H6: 15288848.02 | I6: 18641139 | J6: 18557701.87 | K6: 18551928 | L6: 0
A7: 3 | B7: 무연탄 | C7: 400 | D7: 219354 | E7: 216533 | F7: 216481.5692 | G7: 201386.6628 | H7: 201386.6628 | I7: 218645 | J7: 216577.5267 | K7: 216533 | L7: 0
A8: 5 | B8: 바이오가스 | C8: 85.149 | D8: 0 | E8: 0 | F8: 0 | G8: 31825.05568 | H8: 31825.05568 | I8: 0 | J8: 0 | K8: 0 | L8: 0
A9: 6 | B9: 부생가스 | C9: 4327.49 | D9: 0 | E9: 0 | F9: 0 | G9: 67230.42336 | H9: 67230.42336 | I9: 0 | J9: 0 | K9: 0 | L9: 0
A10: 7 | B10: 소수력 | C10: 204.29 | D10: 0 | E10: 0 | F10: 0 | G10: 39688.06589 | H10: 39688.06589 | I10: 0 | J10: 0 | K10: 0 | L10: 0
A11: 8 | B11: 수력 | C11: 1609.852 | D11: 129170 | E11: 130790 | F11: 130790 | G11: 134249.4195 | H11: 134249.4195 | I11: 129165 | J11: 0 | K11: 0 | L11: 0
A12: 9 | B12: 양수 | C12: 4700 | D12: 10331 | E12: 10331 | F12: 10331 | G12: 255202.6497 | H12: 255202.6497 | I12: -11259 | J12: 0 | K12: 0 | L12: 0
A13: 10 | B13: 매립가스 | C13: 63.734 | D13: 0 | E13: 0 | F13: 0 | G13: 21627.87689 | H13: 21627.87689 | I13: 0 | J13: 0 | K13: 0 | L13: 0
A14: 12 | B14: 중유 | C14: 1470.3 | D14: 902807 | E14: 901403 | F14: 901399.2155 | G14: 141174.0917 | H14: 141174.0917 | I14: 11293 | J14: 901408.8645 | K14: 901403 | L14: 0
A15: 13 | B15: 태양광 | C15: 5537.377 | D15: 0 | E15: 0 | F15: 0 | G15: 442463.7308 | H15: 442463.7308 | I15: 0 | J15: 0 | K15: 0 | L15: 0
A16: 15 | B16: 폐기물 | C16: 359.077 | D16: 0 | E16: 0 | F16: 0 | G16: 88428.15247 | H16: 88428.15247 | I16: 0 | J16: 0 | K16: 0 | L16: 0
A17: 16 | B17: 풍력 | C17: 1707.933 | D17: 0 | E17: 0 | F17: 0 | G17: 340451.0152 | H17: 340451.0152 | I17: 0 | J17: 0 | K17: 0 | L17: 0
A18: 17 | B18: LNG | C18: 41978.026 | D18: 26237883 | E18: 25485974 | F18: 25469335.97 | G18: 12797983.89 | H18: 12797974.95 | I18: 8788538 | J18: 25480772.36 | K18: 25485590 | L18: 111387
A19: 18 | B19: LPG | C19: 88 | D19: 37631 | E19: 37631 | F19: 37631 | G19: 129.376352 | H19: 129.376352 | I19: 0 | J19: 37631 | K19: 37631 | L19: 0
A20: 20 | B20: 연료전지 | C20: 776.708 | D20: 0 | E20: 0 | F20: 0 | G20: 411443.2788 | H20: 411443.2788 | I20: 0 | J20: 0 | K20: 0 | L20: 0
A21: 21 | B21: 경유 | C21: 612.045 | D21: 468239 | E21: 467626 | F21: 467626 | G21: 12733.37666 | H21: 12733.37666 | I21: 2509 | J21: 467627.102 | K21: 467626 | L21: 0
A22: 22 | B22: 해양에너지 | C22: 255.5 | D22: 0 | E22: 0 | F22: 0 | G22: 36253.42524 | H22: 36253.42524 | I22: 0 | J22: 0 | K22: 0 | L22: 0
A23: 23 | B23: 가스압 | C23: 0.3 | D23: 0 | E23: 0 | F23: 0 | G23: 0 | H23: 0 | I23: 0 | J23: 0 | K23: 0 | L23: 0
A24: 24 | B24: 바이오매스 | C24: 935.013 | D24: 0 | E24: 0 | F24: 0 | G24: 330687.549 | H24: 330687.549 | I24: 0 | J24: 0 | K24: 0 | L24: 0
A25: 25 | B25: IGCC | C25: 346.33 | D25: 0 | E25: 0 | F25: 0 | G25: 168923.7508 | H25: 168923.7508 | I25: 0 | J25: 0 | K25: 0 | L25: 0
A26: 32 | B26: 바이오중유 | C26: 350 | D26: 229758 | E26: 229719 | F26: 229719 | G26: 89078.38593 | H26: 89078.38593 | I26: 0 | J26: 229719.0253 | K26: 229719 | L26: 0
A27: 40 | B27: RPS | C27: 0 | D27: 0 | E27: 0 | F27: 0 | G27: 0 | H27: 0 | I27: 0 | J27: 0 | K27: 0 | L27: 0
A28: 99 | B28: 기타 | C28: 81.4 | D28: 0 | E28: 0 | F28: 0 | G28: 47636.76168 | H28: 47636.76168 | I28: 0 | J28: 0 | K28: 0 | L28: 0
A29: 원자력합 | B29: 원자력합 | C29: 23250 | D29: 12971881 | E29: 12919389 | F29: 12900897.84 | G29: 12888501.51 | H29: 12888501.51 | I29: 12971881 | J29: 12920634.73 | K29: 12919389 | L29: 0
A30: 석탄합 | B30: 석탄합 | C30: 38290.782 | D30: 18917695 | E30: 18768461 | F30: 18757914.66 | G30: 15490234.68 | H30: 15490234.68 | I30: 18859784 | J30: 18774279.39 | K30: 18768461 | L30: 0
A31: LNG합 | B31: LNG합 | C31: 41978.026 | D31: 26237883 | E31: 25485974 | F31: 25469335.97 | G31: 12797983.89 | H31: 12797974.95 | I31: 8788538 | J31: 25480772.36 | K31: 25485590 | L31: 111387
A32: 유류합 | B32: 유류합 | C32: 2082.345 | D32: 1371046 | E32: 1369029 | F32: 1369025.216 | G32: 153907.4684 | H32: 153907.4684 | I32: 13802 | J32: 1369035.967 | K32: 1369029 | L32: 0
A33: 양수합 | B33: 양수합 | C33: 4700 | D33: 10331 | E33: 10331 | F33: 10331 | G33: 255202.6497 | H33: 255202.6497 | I33: -11259 | J33: 0 | K33: 0 | L33: 0
A34: 신재생합 | B34: 신재생합 | C34: 16558.453 | D34: 358928 | E34: 360509 | F34: 360509 | G34: 2202350.13 | H34: 2202350.13 | I34: 129165 | J34: 229719.0253 | K34: 229719 | L34: 0
A35: 기타합 | B35: 기타합 | C35: 81.7 | D35: 0 | E35: 0 | F35: 0 | G35: 47636.76168 | H35: 47636.76168 | I35: 0 | J35: 0 | K35: 0 | L35: 0
A36: 수력합 | B36: 수력합 | C36: 1814.142 | D36: 129170 | E36: 130790 | F36: 130790 | G36: 173937.4854 | H36: 173937.4854 | I36: 129165 | J36: 0 | K36: 0 | L36: 0
A37: 폐기물합 | B37: 폐기물합 | C37: 4686.567 | D37: 0 | E37: 0 | F37: 0 | G37: 155658.5758 | H37: 155658.5758 | I37: 0 | J37: 0 | K37: 0 | L37: 0
A38: 바이오합 | B38: 바이오합 | C38: 1433.896 | D38: 229758 | E38: 229719 | F38: 229719 | G38: 473218.8675 | H38: 473218.8675 | I38: 0 | J38: 229719.0253 | K38: 229719 | L38: 0
A39: 총계 | C39: 127029.306 | D39: 59905395 | E39: 58951324 | F39: 58905644.69 | G39: 43835946.47 | H39: 43835937.53 | I39: 40751911 | J39: 58812072.48 | K39: 58809819 | L39: 111387

Sheet 202110
A1: 정산요소 내역
A2: 조회기간 : 2021-10-01 ~ 2021-10-31
A3: 단위 : MWh
A4: 연료원코드 | B4: 연료원 | C4: 설비용량(MW) | D4: A | E4: RA | F4: ARA | G4: MGO | H4: AMGO | I4: PSE | J4: FCA | K4: OFCA | L4: OR
A5: 1 | B5: 원자력 | C5: 23250 | D5: 12904773 | E5: 12806052 | F5: 12805999.24 | G5: 12789148.1 | H5: 12789148.1 | I5: 12904773 | J5: 12807095.49 | K5: 12806052 | L5: 0
A6: 2 | B6: 유연탄 | C6: 37890.782 | D6: 16309610 | E6: 16117658 | F6: 16116748.97 | G6: 14555768.9 | H6: 14555768.9 | I6: 15841060 | J6: 15754948.92 | K6: 16117658 | L6: 0
A7: 3 | B7: 무연탄 | C7: 400 | D7: 80459 | E7: 78427 | F7: 78416.99823 | G7: 77034.93034 | H7: 77034.93034 | I7: 80324 | J7: 78481.46099 | K7: 78427 | L7: 0
A8: 5 | B8: 바이오가스 | C8: 85.149 | D8: 0 | E8: 0 | F8: 0 | G8: 20444.35452 | H8: 20444.35452 | I8: 0 | J8: 0 | K8: 0 | L8: 0
A9: 6 | B9: 부생가스 | C9: 4327.49 | D9: 0 | E9: 0 | F9: 0 | G9: 51485.58188 | H9: 51485.58188 | I9: 0 | J9: 0 | K9: 0 | L9: 0
A10: 7 | B10: 소수력 | C10: 204.29 | D10: 0 | E10: 0 | F10: 0 | G10: 50832.82175 | H10: 50832.82175 | I10: 0 | J10: 0 | K10: 0 | L10: 0
A11: 8 | B11: 수력 | C11: 1609.852 | D11: 146740 | E11: 155576 | F11: 155576 | G11: 159402.6461 | H11: 159402.6461 | I11: 146741 | J11: 0 | K11: 0 | L11: 0
A12: 9 | B12: 양수 | C12: 4700 | D12: 9490 | E12: 9490 | F12: 9451.314895 | G12: 291516.5214 | H12: 291516.5214 | I12: 2523 | J12: 0 | K12: 0 | L12: 0
A13: 10 | B13: 매립가스 | C13: 63.734 | D13: 0 | E13: 0 | F13: 0 | G13: 22112.07072 | H13: 22112.07072 | I13: 0 | J13: 0 | K13: 0 | L13: 0
A14: 12 | B14: 중유 | C14: 1470.3 | D14: 935564 | E14: 935476 | F14: 935476 | G14: 196571.1712 | H14: 196571.1712 | I14: 8451 | J14: 935489.087 | K14: 935476 | L14: 0
A15: 13 | B15: 태양광 | C15: 5430.35 | D15: 0 | E15: 0 | F15: 0 | G15: 559217.1748 | H15: 559217.1748 | I15: 0 | J15: 0 | K15: 0 | L15: 0
A16: 15 | B16: 폐기물 | C16: 359.077 | D16: 0 | E16: 0 | F16: 0 | G16: 96121.85462 | H16: 96121.85462 | I16: 0 | J16: 0 | K16: 0 | L16: 0
A17: 16 | B17: 풍력 | C17: 1707.933 | D17: 0 | E17: 0 | F17: 0 | G17: 203260.9409 | H17: 203260.9409 | I17: 0 | J17: 0 | K17: 0 | L17: 0
A18: 17 | B18: LNG | C18: 41817.056 | D18: 24160611 | E18: 23893040 | F18: 23885546.85 | G18: 12591160.87 | H18: 12590902.92 | I18: 10826200 | J18: 23892493.1 | K18: 23892566 | L18: 472932
A19: 18 | B19: LPG | C19: 88 | D19: 39648 | E19: 39456 | F19: 39456 | G19: 394.179856 | H19: 394.179856 | I19: 0 | J19: 39456 | K19: 39456 | L19: 0
A20: 20 | B20: 연료전지 | C20: 750.748 | D20: 0 | E20: 0 | F20: 0 | G20: 421609.9946 | H20: 421609.9946 | I20: 0 | J20: 0 | K20: 0 | L20: 0
A21: 21 | B21: 경유 | C21: 612.045 | D21: 236107 | E21: 214717 | F21: 211434.9371 | G21: 11397.70358 | H21: 11397.70358 | I21: 3346 | J21: 214719.0764 | K21: 214717 | L21: 0
A22: 22 | B22: 해양에너지 | C22: 255.5 | D22: 0 | E22: 0 | F22: 0 | G22: 37052.38085 | H22: 37052.38085 | I22: 0 | J22: 0 | K22: 0 | L22: 0
A23: 23 | B23: 가스압 | C23: 0.3 | D23: 0 | E23: 0 | F23: 0 | G23: 0 | H23: 0 | I23: 0 | J23: 0 | K23: 0 | L23: 0
A24: 24 | B24: 바이오매스 | C24: 935.013 | D24: 0 | E24: 0 | F24: 0 | G24: 395005.2841 | H24: 395005.2841 | I24: 0 | J24: 0 | K24: 0 | L24: 0
A25: 25 | B25: IGCC | C25: 346.33 | D25: 0 | E25: 0 | F25: 0 | G25: 99640.98312 | H25: 99640.98312 | I25: 0 | J25: 0 | K25: 0 | L25: 0
A26: 32 | B26: 바이오중유 | C26: 350 | D26: 240140 | E26: 239967 | F26: 239937.2854 | G26: 98268.7356 | H26: 98268.7356 | I26: 0 | J26: 239899.4262 | K26: 239895 | L26: 0
A27: 40 | B27: RPS | C27: 0 | D27: 0 | E27: 0 | F27: 0 | G27: 0 | H27: 0 | I27: 0 | J27: 0 | K27: 0 | L27: 0
A28: 99 | B28: 기타 | C28: 81.4 | D28: 0 | E28: 0 | F28: 0 | G28: 50855.61297 | H28: 50855.61297 | I28: 0 | J28: 0 | K28: 0 | L28: 0
A29: 원자력합 | B29: 원자력합 | C29: 23250 | D29: 12904773 | E29: 12806052 | F29: 12805999.24 | G29: 12789148.1 | H29: 12789148.1 | I29: 12904773 | J29: 12807095.49 | K29: 12806052 | L29: 0
A30: 석탄합 | B30: 석탄합 | C30: 38290.782 | D30: 16390069 | E30: 16196085 | F30: 16195165.97 | G30: 14632803.83 | H30: 14632803.83 | I30: 15921384 | J30: 15833430.38 | K30: 16196085 | L30: 0
A31: LNG합 | B31: LNG합 | C31: 41817.056 | D31: 24160611 | E31: 23893040 | F31: 23885546.85 | G31: 12591160.87 | H31: 12590902.92 | I31: 10826200 | J31: 23892493.1 | K31: 23892566 | L31: 472932
A32: 유류합 | B32: 유류합 | C32: 2082.345 | D32: 1171671 | E32: 1150193 | F32: 1146910.937 | G32: 207968.8748 | H32: 207968.8748 | I32: 11797 | J32: 1150208.163 | K32: 1150193 | L32: 0
A33: 양수합 | B33: 양수합 | C33: 4700 | D33: 9490 | E33: 9490 | F33: 9451.314895 | G33: 291516.5214 | H33: 291516.5214 | I33: 2523 | J33: 0 | K33: 0 | L33: 0
A34: 신재생합 | B34: 신재생합 | C34: 16425.466 | D34: 386880 | E34: 395543 | F34: 395513.2854 | G34: 2214454.824 | H34: 2214454.824 | I34: 146741 | J34: 239899.4262 | K34: 239895 | L34: 0
A35: 기타합 | B35: 기타합 | C35: 81.7 | D35: 0 | E35: 0 | F35: 0 | G35: 50855.61297 | H35: 50855.61297 | I35: 0 | J35: 0 | K35: 0 | L35: 0
A36: 수력합 | B36: 수력합 | C36: 1814.142 | D36: 146740 | E36: 155576 | F36: 155576 | G36: 210235.4678 | H36: 210235.4678 | I36: 146741 | J36: 0 | K36: 0 | L36: 0
A37: 폐기물합 | B37: 폐기물합 | C37: 4686.567 | D37: 0 | E37: 0 | F37: 0 | G37: 147607.4365 | H37: 147607.4365 | I37: 0 | J37: 0 | K37: 0 | L37: 0
A38: 바이오합 | B38: 바이오합 | C38: 1433.896 | D38: 240140 | E38: 239967 | F38: 239937.2854 | G38: 535830.4449 | H38: 535830.4449 | I38: 0 | J38: 239899.4262 | K38: 239895 | L38: 0
A39: 총계 | C39: 126735.349 | D39: 55063142 | E39: 54489859 | F39: 54478043.6 | G39: 42778302.81 | H39: 42778044.86 | I39: 39813418 | J39: 53962582.56 | K39: 54324247 | L39: 472932

Sheet 202109
A1: 정산요소 내역
A2: 조회기간 : 2021-08-01 ~ 2021-08-31
A3: 단위 : MWh
A4: 연료원코드 | B4: 연료원 | C4: 설비용량(MW) | D4: A | E4: RA | F4: ARA | G4: MGO | H4: AMGO | I4: PSE | J4: FCA | K4: OFCA | L4: OR | M4: ECR | N4: ECRP | O4: EACO | P4: REACO
A5: 1 | B5: 원자력 | C5: 23250 | D5: 12204535 | E5: 12155299 | F5: 12155040.21 | G5: 12139694.46 | H5: 12139694.46 | I5: 12204535 | J5: 12156763.52 | K5: 12155299 | L5: 0 | M5: 0 | N5: 0 | O5: 0 | P5: 0
A6: 2 | B6: 유연탄 | C6: 37890.782 | D6: 22878433 | E6: 22669703 | F6: 22667536.01 | G6: 19600416.71 | H6: 19600416.71 | I6: 22313659 | J6: 22257289.8 | K6: 22669147 | L6: 0 | M6: 0 | N6: 0 | O6: 0 | P6: 0
A7: 3 | B7: 무연탄 | C7: 400 | D7: 221412 | E7: 222824 | F7: 222824 | G7: 212453.6007 | H7: 212453.6007 | I7: 218839 | J7: 222914.286 | K7: 222824 | L7: 0 | M7: 0 | N7: 0 | O7: 0 | P7: 0
A8: 5 | B8: 바이오가스 | C8: 85.149 | D8: 0 | E8: 0 | F8: 0 | G8: 31985.26783 | H8: 31985.26783 | I8: 0 | J8: 0 | K8: 0 | L8: 0 | M8: 0 | N8: 0 | O8: 0 | P8: 0
A9: 6 | B9: 부생가스 | C9: 4327.49 | D9: 0 | E9: 0 | F9: 0 | G9: 110928.2289 | H9: 110928.2289 | I9: 0 | J9: 0 | K9: 0 | L9: 0 | M9: 0 | N9: 0 | O9: 0 | P9: 0
A10: 7 | B10: 소수력 | C10: 205.29 | D10: 0 | E10: 0 | F10: 0 | G10: 62726.01022 | H10: 62726.01022 | I10: 0 | J10: 0 | K10: 0 | L10: 0 | M10: 0 | N10: 0 | O10: 0 | P10: 0
A11: 8 | B11: 수력 | C11: 1609.852 | D11: 205173 | E11: 210057 | F11: 210055.4069 | G11: 220114.6471 | H11: 220114.6471 | I11: 205173 | J11: 0 | K11: 0 | L11: 0 | M11: 0 | N11: 0 | O11: 0 | P11: 0
A12: 9 | B12: 양수 | C12: 4700 | D12: 6852 | E12: 6852 | F12: 6852 | G12: 317359.7647 | H12: 317359.7647 | I12: 5198 | J12: 0 | K12: 0 | L12: 0 | M12: 0 | N12: 0 | O12: 0 | P12: 0
A13: 10 | B13: 매립가스 | C13: 63.734 | D13: 0 | E13: 0 | F13: 0 | G13: 14977.30496 | H13: 14977.30496 | I13: 0 | J13: 0 | K13: 0 | L13: 0 | M13: 0 | N13: 0 | O13: 0 | P13: 0
A14: 12 | B14: 중유 | C14: 1470.3 | D14: 961612 | E14: 924319 | F14: 924317.9539 | G14: 62671.32698 | H14: 62671.32698 | I14: 20754 | J14: 924335.1878 | K14: 924319 | L14: 0 | M14: 0 | N14: 0 | O14: 0 | P14: 0
A15: 13 | B15: 태양광 | C15: 5191.445 | D15: 0 | E15: 0 | F15: 0 | G15: 529813.4767 | H15: 529813.4767 | I15: 0 | J15: 0 | K15: 0 | L15: 0 | M15: 0 | N15: 0 | O15: 0 | P15: 0
A16: 15 | B16: 폐기물 | C16: 359.077 | D16: 0 | E16: 0 | F16: 0 | G16: 88566.91375 | H16: 88566.91375 | I16: 0 | J16: 0 | K16: 0 | L16: 0 | M16: 0 | N16: 0 | O16: 0 | P16: 0
A17: 16 | B17: 풍력 | C17: 1707.933 | D17: 0 | E17: 0 | F17: 0 | G17: 153700.6624 | H17: 153700.6624 | I17: 0 | J17: 0 | K17: 0 | L17: 0 | M17: 0 | N17: 0 | O17: 0 | P17: 0
A18: 17 | B18: LNG | C18: 41498.336 | D18: 29048374 | E18: 28937457 | F18: 28931484.91 | G18: 13488666.05 | H18: 13488604.61 | I18: 10891389 | J18: 28938142.6 | K18: 28937112 | L18: 476658.7629 | M18: 0 | N18: 0 | O18: 0 | P18: 0
A19: 18 | B19: LPG | C19: 88 | D19: 37632 | E19: 37632 | F19: 37632 | G19: 0 | H19: 0 | I19: 0 | J19: 37632 | K19: 37632 | L19: 0 | M19: 0 | N19: 0 | O19: 0 | P19: 0
A20: 20 | B20: 연료전지 | C20: 735.748 | D20: 0 | E20: 0 | F20: 0 | G20: 410941.2897 | H20: 410941.2897 | I20: 0 | J20: 0 | K20: 0 | L20: 0 | M20: 0 | N20: 0 | O20: 0 | P20: 0
A21: 21 | B21: 경유 | C21: 612.045 | D21: 446201 | E21: 447024 | F21: 447022.5899 | G21: 4485.158608 | H21: 4485.158608 | I21: 17051 | J21: 446998 | K21: 446998 | L21: 0 | M21: 0 | N21: 0 | O21: 0 | P21: 0
A22: 22 | B22: 해양에너지 | C22: 255.5 | D22: 0 | E22: 0 | F22: 0 | G22: 37015.92955 | H22: 37015.92955 | I22: 0 | J22: 0 | K22: 0 | L22: 0 | M22: 0 | N22: 0 | O22: 0 | P22: 0
A23: 23 | B23: 가스압 | C23: 0.3 | D23: 0 | E23: 0 | F23: 0 | G23: 0 | H23: 0 | I23: 0 | J23: 0 | K23: 0 | L23: 0 | M23: 0 | N23: 0 | O23: 0 | P23: 0
A24: 24 | B24: 바이오매스 | C24: 935.013 | D24: 0 | E24: 0 | F24: 0 | G24: 401168.4365 | H24: 401168.4365 | I24: 0 | J24: 0 | K24: 0 | L24: 0 | M24: 0 | N24: 0 | O24: 0 | P24: 0
A25: 25 | B25: IGCC | C25: 346.33 | D25: 0 | E25: 0 | F25: 0 | G25: 175607.4785 | H25: 175607.4785 | I25: 0 | J25: 0 | K25: 0 | L25: 0 | M25: 0 | N25: 0 | O25: 0 | P25: 0
A26: 32 | B26: 바이오중유 | C26: 350 | D26: 248004 | E26: 247964 | F26: 247963.0724 | G26: 145174.0985 | H26: 145174.0985 | I26: 4846 | J26: 247964.7182 | K26: 247964 | L26: 0 | M26: 0 | N26: 0 | O26: 0 | P26: 0
A27: 40 | B27: RPS | C27: 0 | D27: 0 | E27: 0 | F27: 0 | G27: 0 | H27: 0 | I27: 0 | J27: 0 | K27: 0 | L27: 0 | M27: 0 | N27: 0 | O27: 0 | P27: 0
A28: 99 | B28: 기타 | C28: 81.4 | D28: 0 | E28: 0 | F28: 0 | G28: 45655.23605 | H28: 45655.23605 | I28: 0 | J28: 0 | K28: 0 | L28: 0 | M28: 0 | N28: 0 | O28: 0 | P28: 0
A29: 원자력합 | B29: 원자력합 | C29: 23250 | D29: 12204535 | E29: 12155299 | F29: 12155040.21 | G29: 12139694.46 | H29: 12139694.46 | I29: 12204535 | J29: 12156763.52 | K29: 12155299 | L29: 0
A30: 석탄합 | B30: 석탄합 | C30: 38290.782 | D30: 23099845 | E30: 22892527 | F30: 22890360.01 | G30: 19812870.31 | H30: 19812870.31 | I30: 22532498 | J30: 22480204.09 | K30: 22891971 | L30: 0
A31: LNG합 | B31: LNG합 | C31: 41498.336 | D31: 29048374 | E31: 28937457 | F31: 28931484.91 | G31: 13488666.05 | H31: 13488604.61 | I31: 10891389 | J31: 28938142.6 | K31: 28937112 | L31: 476658.7629
A32: 유류합 | B32: 유류합 | C32: 2082.345 | D32: 1407813 | E32: 1371343 | F32: 1371340.544 | G32: 67156.48559 | H32: 67156.48559 | I32: 37805 | J32: 1371333.188 | K32: 1371317 | L32: 0
A33: 양수합 | B33: 양수합 | C33: 4700 | D33: 6852 | E33: 6852 | F33: 6852 | G33: 317359.7647 | H33: 317359.7647 | I33: 5198 | J33: 0 | K33: 0 | L33: 0
A34: 신재생합 | B34: 신재생합 | C34: 16172.561 | D34: 453177 | E34: 458021 | F34: 458018.4793 | G34: 2382719.745 | H34: 2382719.745 | I34: 210019 | J34: 247964.7182 | K34: 247964 | L34: 0
A35: 기타합 | B35: 기타합 | C35: 81.7 | D35: 0 | E35: 0 | F35: 0 | G35: 45655.23605 | H35: 45655.23605 | I35: 0 | J35: 0 | K35: 0 | L35: 0
A36: 수력합 | B36: 수력합 | C36: 1815.142 | D36: 205173 | E36: 210057 | F36: 210055.4069 | G36: 282840.6573 | H36: 282840.6573 | I36: 205173 | J36: 0 | K36: 0 | L36: 0
A37: 폐기물합 | B37: 폐기물합 | C37: 4686.567 | D37: 0 | E37: 0 | F37: 0 | G37: 199495.1427 | H37: 199495.1427 | I37: 0 | J37: 0 | K37: 0 | L37: 0
A38: 바이오합 | B38: 바이오합 | C38: 1433.896 | D38: 248004 | E38: 247964 | F38: 247963.0724 | G38: 593305.1077 | H38: 593305.1077 | I38: 4846 | J38: 247964.7182 | K38: 247964 | L38: 0
A39: 총계 | C39: 126163.724 | D39: 66258228 | E39: 65859131 | F39: 65850728.16 | G39: 48254122.05 | H39: 48254060.6 | I39: 45881444 | J39: 65232040.11 | K39: 65641295 | L39: 476658.7629 | M39: 0 | N39: 0 | O39: 0 | P39: 0

Sheet 202108
A1: 정산요소 내역
A2: 조회기간 : 2021-08-01 ~ 2021-08-31
A3: 단위 : MWh
A4: 연료원코드 | B4: 연료원 | C4: 설비용량(MW) | D4: A | E4: RA | F4: ARA | G4: MGO | H4: AMGO | I4: PSE | J4: FCA | K4: OFCA | L4: OR
A5: 1 | B5: 원자력 | C5: 23250 | D5: 12204535 | E5: 12155299 | F5: 12155040.21 | G5: 12139694.46 | H5: 12139694.46 | I5: 12204535 | J5: 12156763.52 | K5: 12155299 | L5: 0
A6: 2 | B6: 유연탄 | C6: 37890.782 | D6: 22878433 | E6: 22669703 | F6: 22667536.01 | G6: 19600416.71 | H6: 19600416.71 | I6: 22313659 | J6: 22257289.8 | K6: 22669147 | L6: 0
A7: 3 | B7: 무연탄 | C7: 400 | D7: 221412 | E7: 222824 | F7: 222824 | G7: 212453.6007 | H7: 212453.6007 | I7: 218839 | J7: 222914.286 | K7: 222824 | L7: 0
A8: 5 | B8: 바이오가스 | C8: 85.149 | D8: 0 | E8: 0 | F8: 0 | G8: 31985.26783 | H8: 31985.26783 | I8: 0 | J8: 0 | K8: 0 | L8: 0
A9: 6 | B9: 부생가스 | C9: 4327.49 | D9: 0 | E9: 0 | F9: 0 | G9: 129134.7094 | H9: 129134.7094 | I9: 0 | J9: 0 | K9: 0 | L9: 0
A10: 7 | B10: 소수력 | C10: 205.29 | D10: 0 | E10: 0 | F10: 0 | G10: 62695.33457 | H10: 62695.33457 | I10: 0 | J10: 0 | K10: 0 | L10: 0
A11: 8 | B11: 수력 | C11: 1604.852 | D11: 205173 | E11: 210057 | F11: 210055.4069 | G11: 220114.6471 | H11: 220114.6471 | I11: 205173 | J11: 0 | K11: 0 | L11: 0
A12: 9 | B12: 양수 | C12: 4700 | D12: 6852 | E12: 6852 | F12: 6852 | G12: 317359.7647 | H12: 317359.7647 | I12: 5198 | J12: 0 | K12: 0 | L12: 0
A13: 10 | B13: 매립가스 | C13: 63.734 | D13: 0 | E13: 0 | F13: 0 | G13: 14977.30496 | H13: 14977.30496 | I13: 0 | J13: 0 | K13: 0 | L13: 0
A14: 12 | B14: 중유 | C14: 1470.3 | D14: 961612 | E14: 924319 | F14: 924317.9539 | G14: 62671.32698 | H14: 62671.32698 | I14: 20754 | J14: 924335.1878 | K14: 924319 | L14: 0
A15: 13 | B15: 태양광 | C15: 5189.611 | D15: 0 | E15: 0 | F15: 0 | G15: 527680.3948 | H15: 527680.3948 | I15: 0 | J15: 0 | K15: 0 | L15: 0
A16: 15 | B16: 폐기물 | C16: 359.077 | D16: 0 | E16: 0 | F16: 0 | G16: 88566.91375 | H16: 88566.91375 | I16: 0 | J16: 0 | K16: 0 | L16: 0
A17: 16 | B17: 풍력 | C17: 1707.933 | D17: 0 | E17: 0 | F17: 0 | G17: 153675.7525 | H17: 153675.7525 | I17: 0 | J17: 0 | K17: 0 | L17: 0
A18: 17 | B18: LNG | C18: 41498.336 | D18: 29048374 | E18: 28937457 | F18: 28931400.62 | G18: 13488666.05 | H18: 13488604.61 | I18: 10891389 | J18: 28938142.6 | K18: 28937112 | L18: 476658.7629
A19: 18 | B19: LPG | C19: 88 | D19: 37632 | E19: 37632 | F19: 37632 | G19: 0 | H19: 0 | I19: 0 | J19: 37632 | K19: 37632 | L19: 0
A20: 20 | B20: 연료전지 | C20: 735.748 | D20: 0 | E20: 0 | F20: 0 | G20: 410941.2897 | H20: 410941.2897 | I20: 0 | J20: 0 | K20: 0 | L20: 0
A21: 21 | B21: 경유 | C21: 612.045 | D21: 446201 | E21: 447024 | F21: 447022.5899 | G21: 4485.158608 | H21: 4485.158608 | I21: 17051 | J21: 446998 | K21: 446998 | L21: 0
A22: 22 | B22: 해양에너지 | C22: 255.5 | D22: 0 | E22: 0 | F22: 0 | G22: 37015.92955 | H22: 37015.92955 | I22: 0 | J22: 0 | K22: 0 | L22: 0
A23: 23 | B23: 가스압 | C23: 0.3 | D23: 0 | E23: 0 | F23: 0 | G23: 0 | H23: 0 | I23: 0 | J23: 0 | K23: 0 | L23: 0
A24: 24 | B24: 바이오매스 | C24: 935.013 | D24: 0 | E24: 0 | F24: 0 | G24: 401168.4197 | H24: 401168.4197 | I24: 0 | J24: 0 | K24: 0 | L24: 0
A25: 25 | B25: IGCC | C25: 346.33 | D25: 0 | E25: 0 | F25: 0 | G25: 175607.4785 | H25: 175607.4785 | I25: 0 | J25: 0 | K25: 0 | L25: 0
A26: 32 | B26: 바이오중유 | C26: 350 | D26: 248004 | E26: 247964 | F26: 247963.0724 | G26: 145174.0985 | H26: 145174.0985 | I26: 4846 | J26: 247964.7182 | K26: 247964 | L26: 0
A27: 40 | B27: RPS | C27: 0 | D27: 0 | E27: 0 | F27: 0 | G27: 0 | H27: 0 | I27: 0 | J27: 0 | K27: 0 | L27: 0
A28: 99 | B28: 기타 | C28: 81.4 | D28: 0 | E28: 0 | F28: 0 | G28: 45655.23605 | H28: 45655.23605 | I28: 0 | J28: 0 | K28: 0 | L28: 0
A29: 원자력합 | B29: 원자력합 | C29: 23250 | D29: 12204535 | E29: 12155299 | F29: 12155040.21 | G29: 12139694.46 | H29: 12139694.46 | I29: 12204535 | J29: 12156763.52 | K29: 12155299 | L29: 0
A30: 석탄합 | B30: 석탄합 | C30: 38290.782 | D30: 23099845 | E30: 22892527 | F30: 22890360.01 | G30: 19812870.31 | H30: 19812870.31 | I30: 22532498 | J30: 22480204.09 | K30: 22891971 | L30: 0
A31: LNG합 | B31: LNG합 | C31: 41498.336 | D31: 29048374 | E31: 28937457 | F31: 28931400.62 | G31: 13488666.05 | H31: 13488604.61 | I31: 10891389 | J31: 28938142.6 | K31: 28937112 | L31: 476658.7629
A32: 유류합 | B32: 유류합 | C32: 2082.345 | D32: 1407813 | E32: 1371343 | F32: 1371340.544 | G32: 67156.48559 | H32: 67156.48559 | I32: 37805 | J32: 1371333.188 | K32: 1371317 | L32: 0
A33: 양수합 | B33: 양수합 | C33: 4700 | D33: 6852 | E33: 6852 | F33: 6852 | G33: 317359.7647 | H33: 317359.7647 | I33: 5198 | J33: 0 | K33: 0 | L33: 0
A34: 신재생합 | B34: 신재생합 | C34: 16165.727 | D34: 453177 | E34: 458021 | F34: 458018.4793 | G34: 2398737.541 | H34: 2398737.541 | I34: 210019 | J34: 247964.7182 | K34: 247964 | L34: 0
A35: 기타합 | B35: 기타합 | C35: 81.7 | D35: 0 | E35: 0 | F35: 0 | G35: 45655.23605 | H35: 45655.23605 | I35: 0 | J35: 0 | K35: 0 | L35: 0
A36: 수력합 | B36: 수력합 | C36: 1810.142 | D36: 205173 | E36: 210057 | F36: 210055.4069 | G36: 282809.9817 | H36: 282809.9817 | I36: 205173 | J36: 0 | K36: 0 | L36: 0
A37: 폐기물합 | B37: 폐기물합 | C37: 4686.567 | D37: 0 | E37: 0 | F37: 0 | G37: 217701.6232 | H37: 217701.6232 | I37: 0 | J37: 0 | K37: 0 | L37: 0
A38: 바이오합 | B38: 바이오합 | C38: 1433.896 | D38: 248004 | E38: 247964 | F38: 247963.0724 | G38: 593305.0909 | H38: 593305.0909 | I38: 4846 | J38: 247964.7182 | K38: 247964 | L38: 0
A39: 총계 | C39: 126156.89 | D39: 66258228 | E39: 65859131 | F39: 65850643.87 | G39: 48270139.84 | H39: 48270078.4 | I39: 45881444 | J39: 65232040.11 | K39: 65641295 | L39: 476658.7629

Sheet 202107
A1: 정산요소 내역
A2: 조회기간 : 2021-07-01 ~ 2021-07-31
A3: 단위 : MWh
A4: 연료원코드 | B4: 연료원 | C4: 설비용량(MW) | D4: A | E4: RA | F4: ARA | G4: MGO | H4: AMGO | I4: PSE | J4: FCA | K4: OFCA | L4: OR
A5: 1 | B5: 원자력 | C5: 23250 | D5: 11786385 | E5: 11716895 | F5: 11716651.81 | G5: 11704354.3 | H5: 11704354.3 | I5: 11783240 | J5: 11719404.38 | K5: 11716895 | L5: 0
A6: 2 | B6: 유연탄 | C6: 37890.782 | D6: 23236377 | E6: 22997842 | F6: 22994886.53 | G6: 20146617.92 | H6: 20146617.92 | I6: 22441889 | J6: 22444421.62 | K6: 22997826 | L6: 0
A7: 3 | B7: 무연탄 | C7: 400 | D7: 224529 | E7: 226724 | F7: 226724 | G7: 214941.7375 | H7: 214941.7375 | I7: 220085 | J7: 226766.7345 | K7: 226724 | L7: 0
A8: 5 | B8: 바이오가스 | C8: 85.149 | D8: 0 | E8: 0 | F8: 0 | G8: 36061.67608 | H8: 36061.67608 | I8: 0 | J8: 0 | K8: 0 | L8: 0
A9: 6 | B9: 부생가스 | C9: 4243.47 | D9: 0 | E9: 0 | F9: 0 | G9: 114973.6106 | H9: 114973.6106 | I9: 0 | J9: 0 | K9: 0 | L9: 0
A10: 7 | B10: 소수력 | C10: 205.29 | D10: 0 | E10: 0 | F10: 0 | G10: 60795.67517 | H10: 60795.67517 | I10: 0 | J10: 0 | K10: 0 | L10: 0
A11: 8 | B11: 수력 | C11: 1604.852 | D11: 270564 | E11: 292224 | F11: 292222.3885 | G11: 300990.4098 | H11: 300990.4098 | I11: 270563 | J11: 0 | K11: 0 | L11: 0
A12: 9 | B12: 양수 | C12: 4700 | D12: 10403 | E12: 10403 | F12: 10403 | G12: 342716.4449 | H12: 342716.4449 | I12: 4964 | J12: 0 | K12: 0 | L12: 0
A13: 10 | B13: 매립가스 | C13: 63.734 | D13: 0 | E13: 0 | F13: 0 | G13: 17063.92431 | H13: 17063.92431 | I13: 0 | J13: 0 | K13: 0 | L13: 0
A14: 12 | B14: 중유 | C14: 1470.3 | D14: 956523 | E14: 937593 | F14: 937587.8768 | G14: 251901.9063 | H14: 251901.9063 | I14: 14590 | J14: 937596.8825 | K14: 937593 | L14: 0
A15: 13 | B15: 태양광 | C15: 5113.682 | D15: 0 | E15: 0 | F15: 0 | G15: 624673.2021 | H15: 624673.2021 | I15: 0 | J15: 0 | K15: 0 | L15: 0
A16: 15 | B16: 폐기물 | C16: 359.077 | D16: 0 | E16: 0 | F16: 0 | G16: 96119.30873 | H16: 96119.30873 | I16: 0 | J16: 0 | K16: 0 | L16: 0
A17: 16 | B17: 풍력 | C17: 1691.933 | D17: 0 | E17: 0 | F17: 0 | G17: 120621.4809 | H17: 120621.4809 | I17: 0 | J17: 0 | K17: 0 | L17: 0
A18: 17 | B18: LNG | C18: 41498.336 | D18: 28623417 | E18: 28417764 | F18: 28408361.19 | G18: 15270242.83 | H18: 15270242.83 | I18: 12086134 | J18: 28418908.44 | K18: 28417710 | L18: 215676
A19: 18 | B19: LPG | C19: 88 | D19: 38064 | E19: 38064 | F19: 38064 | G19: 1205.965936 | H19: 1205.965936 | I19: 0 | J19: 38064 | K19: 38064 | L19: 0
A20: 20 | B20: 연료전지 | C20: 700.948 | D20: 0 | E20: 0 | F20: 0 | G20: 387504.3226 | H20: 387504.3226 | I20: 0 | J20: 0 | K20: 0 | L20: 0
A21: 21 | B21: 경유 | C21: 612.045 | D21: 446810 | E21: 445872 | F21: 445872 | G21: 9235.680776 | H21: 9235.680776 | I21: 14978 | J21: 445875.3254 | K21: 445872 | L21: 0
A22: 22 | B22: 해양에너지 | C22: 255.5 | D22: 0 | E22: 0 | F22: 0 | G22: 37168.79678 | H22: 37168.79678 | I22: 0 | J22: 0 | K22: 0 | L22: 0
A23: 23 | B23: 가스압 | C23: 0.3 | D23: 0 | E23: 0 | F23: 0 | G23: 0 | H23: 0 | I23: 0 | J23: 0 | K23: 0 | L23: 0
A24: 24 | B24: 바이오매스 | C24: 835.013 | D24: 0 | E24: 0 | F24: 0 | G24: 421204.0122 | H24: 421204.0122 | I24: 0 | J24: 0 | K24: 0 | L24: 0
A25: 25 | B25: IGCC | C25: 346.33 | D25: 0 | E25: 0 | F25: 0 | G25: 11750.91568 | H25: 11750.91568 | I25: 0 | J25: 0 | K25: 0 | L25: 0
A26: 32 | B26: 바이오중유 | C26: 350 | D26: 248496 | E26: 248496 | F26: 248496 | G26: 136388.3994 | H26: 136388.3994 | I26: 3114 | J26: 248496 | K26: 248496 | L26: 0
A27: 40 | B27: RPS | C27: 0 | D27: 0 | E27: 0 | F27: 0 | G27: 0 | H27: 0 | I27: 0 | J27: 0 | K27: 0 | L27: 0
A28: 99 | B28: 기타 | C28: 81.4 | D28: 0 | E28: 0 | F28: 0 | G28: 50283.17829 | H28: 50283.17829 | I28: 0 | J28: 0 | K28: 0 | L28: 0
A29: 원자력합 | B29: 원자력합 | C29: 23250 | D29: 11786385 | E29: 11716895 | F29: 11716651.81 | G29: 11704354.3 | H29: 11704354.3 | I29: 11783240 | J29: 11719404.38 | K29: 11716895 | L29: 0
A30: 석탄합 | B30: 석탄합 | C30: 38290.782 | D30: 23460906 | E30: 23224566 | F30: 23221610.53 | G30: 20361559.65 | H30: 20361559.65 | I30: 22661974 | J30: 22671188.36 | K30: 23224550 | L30: 0
A31: LNG합 | B31: LNG합 | C31: 41498.336 | D31: 28623417 | E31: 28417764 | F31: 28408361.19 | G31: 15270242.83 | H31: 15270242.83 | I31: 12086134 | J31: 28418908.44 | K31: 28417710 | L31: 215676
A32: 유류합 | B32: 유류합 | C32: 2082.345 | D32: 1403333 | E32: 1383465 | F32: 1383459.877 | G32: 261137.5871 | H32: 261137.5871 | I32: 29568 | J32: 1383472.208 | K32: 1383465 | L32: 0
A33: 양수합 | B33: 양수합 | C33: 4700 | D33: 10403 | E33: 10403 | F33: 10403 | G33: 342716.4449 | H33: 342716.4449 | I33: 4964 | J33: 0 | K33: 0 | L33: 0
A34: 신재생합 | B34: 신재생합 | C34: 15854.978 | D34: 519060 | E34: 540720 | F34: 540718.3885 | G34: 2365315.734 | H34: 2365315.734 | I34: 273677 | J34: 248496 | K34: 248496 | L34: 0
A35: 기타합 | B35: 기타합 | C35: 81.7 | D35: 0 | E35: 0 | F35: 0 | G35: 50283.17829 | H35: 50283.17829 | I35: 0 | J35: 0 | K35: 0 | L35: 0
A36: 수력합 | B36: 수력합 | C36: 1810.142 | D36: 270564 | E36: 292224 | F36: 292222.3885 | G36: 361786.0849 | H36: 361786.0849 | I36: 270563 | J36: 0 | K36: 0 | L36: 0
A37: 폐기물합 | B37: 폐기물합 | C37: 4602.547 | D37: 0 | E37: 0 | F37: 0 | G37: 211092.9194 | H37: 211092.9194 | I37: 0 | J37: 0 | K37: 0 | L37: 0
A38: 바이오합 | B38: 바이오합 | C38: 1333.896 | D38: 248496 | E38: 248496 | F38: 248496 | G38: 610718.0119 | H38: 610718.0119 | I38: 3114 | J38: 248496 | K38: 248496 | L38: 0
A39: 총계 | C39: 125846.141 | D39: 65841568 | E39: 65331877 | F39: 65319268.79 | G39: 50356815.69 | H39: 50356815.69 | I39: 46839557 | J39: 64479533.39 | K39: 65029180 | L39: 215676

Sheet 202106
A1: 정산요소 내역
A2: 조회기간 : 2021-06-01 ~ 2021-06-30
A3: 단위 : MWh
A4: 연료원코드 | B4: 연료원 | C4: 설비용량(MW) | D4: 설비용량(%) | E4: A | F4: A(%) | G4: RA | H4: RA(%) | I4: ARA | J4: ARA(%) | K4: MGO | L4: MGO(%) | M4: AMGO | N4: AMGO(%) | O4: PSE | P4: PSE(%) | Q4: FCA | R4: FCA(%) | S4: OFCA | T4: OFCA(%) | U4: OR | V4: OR(%)
A5: 1 | B5: 원자력 | C5: 23250 | D5: 18.48707856 | E5: 10830303 | F5: 19.13077287 | G5: 10803191 | H5: 19.34797215 | I5: 10803033.62 | J5: 19.35346342 | K5: 10792590.28 | L5: 25.43231609 | M5: 10792590.28 | N5: 25.43231609 | O5: 10830173 | P5: 27.33775121 | Q5: 10804513.86 | R5: 19.61220631 | S5: 10803191 | T5: 19.46460473 | U5: 0 | V5: 0
A6: 2 | B6: 유연탄 | C6: 37890.782 | D6: 30.12859628 | E6: 18326080 | F6: 32.37140033 | G6: 17944926 | H6: 32.13846062 | I6: 17939797.53 | J6: 32.13886277 | K6: 15824260.23 | L6: 37.28924915 | M6: 15824260.23 | N6: 37.28924915 | O6: 17558217 | P6: 44.32082184 | Q6: 17530153.58 | R6: 31.82049589 | S6: 17944926 | T6: 32.33219625 | U6: 0 | V6: 0
A7: 3 | B7: 무연탄 | C7: 400 | D7: 0.3180572655 | E7: 132085 | F7: 0.2333164765 | G7: 134134 | H7: 0.2402272529 | I7: 134132.5556 | J7: 0.2402963463 | K7: 128036.5746 | L7: 0.3017131709 | M7: 128036.5746 | N7: 0.3017131709 | O7: 131786 | P7: 0.3326570019 | Q7: 134430.4259 | R7: 0.2440162772 | S7: 134134 | T7: 0.2416753801 | U7: 0 | V7: 0
A8: 5 | B8: 바이오가스 | C8: 85.149 | D8: 0.06770564525 | E8: 0 | F8: 0 | G8: 0 | H8: 0 | I8: 0 | J8: 0 | K8: 32588.31634 | L8: 0.07679309048 | M8: 32588.31634 | N8: 0.07679309048 | O8: 0 | P8: 0 | Q8: 0 | R8: 0 | S8: 0 | T8: 0 | U8: 0 | V8: 0
A9: 6 | B9: 부생가스 | C9: 4243.47 | D9: 3.374166161 | E9: 0 | F9: 0 | G9: 0 | H9: 0 | I9: 0 | J9: 0 | K9: 88822.71204 | L9: 0.2093072404 | M9: 88822.71204 | N9: 0.2093072404 | O9: 0 | P9: 0 | Q9: 0 | R9: 0 | S9: 0 | T9: 0 | U9: 0 | V9: 0
A10: 7 | B10: 소수력 | C10: 205.29 | D10: 0.1632349401 | E10: 0 | F10: 0 | G10: 0 | H10: 0 | I10: 0 | J10: 0 | K10: 55309.91516 | L10: 0.1303356477 | M10: 55309.91516 | N10: 0.1303356477 | O10: 0 | P10: 0 | Q10: 0 | R10: 0 | S10: 0 | T10: 0 | U10: 0 | V10: 0
A11: 8 | B11: 수력 | C11: 1604.852 | D11: 1.276087097 | E11: 333722 | F11: 0.5894904127 | G11: 327011 | H11: 0.5856602666 | I11: 327011 | J11: 0.5858350207 | K11: 329240.1793 | L11: 0.7758415811 | M11: 329240.1793 | N11: 0.7758415811 | O11: 333723 | P11: 0.8423906383 | Q11: 0 | R11: 0 | S11: 0 | T11: 0 | U11: 0 | V11: 0
A12: 9 | B12: 양수 | C12: 4700 | D12: 3.73717287 | E12: 11451 | F12: 0.02022717926 | G12: 7465 | H12: 0.01336943984 | I12: 7465 | J12: 0.01337342912 | K12: 294612.3832 | L12: 0.6942425365 | M12: 294612.3832 | N12: 0.6942425365 | O12: -178 | P12: -0.0004493113559 | Q12: 0 | R12: 0 | S12: 0 | T12: 0 | U12: 0 | V12: 0
A13: 10 | B13: 매립가스 | C13: 63.734 | D13: 0.0506776544 | E13: 0 | F13: 0 | G13: 0 | H13: 0 | I13: 0 | J13: 0 | K13: 5118.794889 | L13: 0.01206223957 | M13: 5118.794889 | N13: 0.01206223957 | O13: 0 | P13: 0 | Q13: 0 | R13: 0 | S13: 0 | T13: 0 | U13: 0 | V13: 0
A14: 12 | B14: 중유 | C14: 1470.3 | D14: 1.169098994 | E14: 894798 | F14: 1.580581569 | G14: 894101 | H14: 1.601289957 | I14: 894099.3607 | J14: 1.601764826 | K14: 151609.6568 | L14: 0.3572622155 | M14: 151609.6568 | N14: 0.3572622155 | O14: 6760 | P14: 0.01706373464 | Q14: 894103.6645 | R14: 1.622964787 | S14: 894101 | T14: 1.610942781 | U14: 0 | V14: 0
A15: 13 | B15: 태양광 | C15: 5031.057 | D15: 4.00041058 | E15: 0 | F15: 0 | G15: 0 | H15: 0 | I15: 0 | J15: 0 | K15: 627964.3822 | L15: 1.47977346 | M15: 627964.3822 | N15: 1.47977346 | O15: 0 | P15: 0 | Q15: 0 | R15: 0 | S15: 0 | T15: 0 | U15: 0 | V15: 0
A16: 15 | B16: 폐기물 | C16: 359.077 | D16: 0.2855176218 | E16: 0 | F16: 0 | G16: 0 | H16: 0 | I16: 0 | J16: 0 | K16: 95568.40912 | L16: 0.2252032112 | M16: 95568.40912 | N16: 0.2252032112 | O16: 0 | P16: 0 | Q16: 0 | R16: 0 | S16: 0 | T16: 0 | U16: 0 | V16: 0
A17: 16 | B17: 풍력 | C17: 1691.933 | D17: 1.345328959 | E17: 0 | F17: 0 | G17: 0 | H17: 0 | I17: 0 | J17: 0 | K17: 130009.4125 | L17: 0.3063620861 | M17: 130009.4125 | N17: 0.3063620861 | O17: 0 | P17: 0 | Q17: 0 | R17: 0 | S17: 0 | T17: 0 | U17: 0 | V17: 0
A18: 17 | B18: LNG | C18: 41498.336 | D18: 32.99711818 | E18: 25440948 | F18: 44.93918572 | G18: 25087587 | H18: 44.9306075 | I18: 25076657.06 | J18: 44.92443345 | K18: 12980242.8 | L18: 30.58743352 | M18: 12980242.8 | N18: 30.58743352 | O18: 10740590 | P18: 27.11162391 | Q18: 25089665.5 | R18: 45.54241891 | S18: 25087490 | T18: 45.20128141 | U18: 189941 | V18: 100
A19: 18 | B19: LPG | C19: 88 | D19: 0.06997259841 | E19: 37440 | F19: 0.06613445038 | G19: 37440 | H19: 0.0670531584 | I19: 37440 | J19: 0.06707316626 | K19: 64.372448 | L19: 0.0001516911513 | M19: 64.372448 | N19: 0.0001516911513 | O19: 0 | P19: 0 | Q19: 37440 | R19: 0.06796057779 | S19: 37440 | T19: 0.06745736524 | U19: 0 | V19: 0
A20: 20 | B20: 연료전지 | C20: 700.948 | D20: 0.5573540104 | E20: 0 | F20: 0 | G20: 0 | H20: 0 | I20: 0 | J20: 0 | K20: 353644.1023 | L20: 0.8333484695 | M20: 353644.1023 | N20: 0.8333484695 | O20: 0 | P20: 0 | Q20: 0 | R20: 0 | S20: 0 | T20: 0 | U20: 0 | V20: 0
A21: 21 | B21: 경유 | C21: 612.045 | D21: 0.4866633977 | E21: 434178 | F21: 0.7669370566 | G21: 430151 | H21: 0.7703788231 | I21: 429723.4659 | J21: 0.7698427745 | K21: 18345.23678 | L21: 0.04322983162 | M21: 18345.23678 | N21: 0.04322983162 | O21: 12595 | P21: 0.03179256476 | Q21: 430151.3016 | R21: 0.7808047807 | S21: 430151 | T21: 0.7750227862 | U21: 0 | V21: 0
A22: 22 | B22: 해양에너지 | C22: 255.5 | D22: 0.2031590783 | E22: 0 | F22: 0 | G22: 0 | H22: 0 | I22: 0 | J22: 0 | K22: 35974.43623 | L22: 0.08477234931 | M22: 35974.43623 | N22: 0.08477234931 | O22: 0 | P22: 0 | Q22: 0 | R22: 0 | S22: 0 | T22: 0 | U22: 0 | V22: 0
A23: 23 | B23: 가스압 | C23: 0.3 | D23: 0.0002385429491 | E23: 0 | F23: 0 | G23: 0 | H23: 0 | I23: 0 | J23: 0 | K23: 0 | L23: 0 | M23: 0 | N23: 0 | O23: 0 | P23: 0 | Q23: 0 | R23: 0 | S23: 0 | T23: 0 | U23: 0 | V23: 0
A24: 24 | B24: 바이오매스 | C24: 835.013 | D24: 0.6639548786 | E24: 0 | F24: 0 | G24: 0 | H24: 0 | I24: 0 | J24: 0 | K24: 341403.2973 | L24: 0.8045034921 | M24: 341403.2973 | N24: 0.8045034921 | O24: 0 | P24: 0 | Q24: 0 | R24: 0 | S24: 0 | T24: 0 | U24: 0 | V24: 0
A25: 25 | B25: IGCC | C25: 346.33 | D25: 0.2753819319 | E25: 0 | F25: 0 | G25: 0 | H25: 0 | I25: 0 | J25: 0 | K25: 0.00056 | L25: 1.3196e-09 | M25: 0.00056 | N25: 1.3196e-09 | O25: 0 | P25: 0 | Q25: 0 | R25: 0 | S25: 0 | T25: 0 | U25: 0 | V25: 0
A26: 32 | B26: 바이오중유 | C26: 350 | D26: 0.2783001073 | E26: 170942 | F26: 0.3019539321 | G26: 170290 | H26: 0.3049808318 | I26: 170280.492 | J26: 0.305054801 | K26: 99625.26426 | L26: 0.2347630314 | M26: 99625.26426 | N26: 0.2347630314 | O26: 2515 | P26: 0.006348416068 | Q26: 170303.4263 | R26: 0.3091324587 | S26: 170290 | T26: 0.3068193036 | U26: 0 | V26: 0
A27: 40 | B27: RPS | C27: 0 | D27: 0 | E27: 0 | F27: 0 | G27: 0 | H27: 0 | I27: 0 | J27: 0 | K27: 0 | L27: 0 | M27: 0 | N27: 0 | O27: 0 | P27: 0 | Q27: 0 | R27: 0 | S27: 0 | T27: 0 | U27: 0 | V27: 0
A28: 99 | B28: 기타 | C28: 81.4 | D28: 0.06472465353 | E28: 0 | F28: 0 | G28: 0 | H28: 0 | I28: 0 | J28: 0 | K28: 51490.73395 | L28: 0.1213358969 | M28: 51490.73395 | N28: 0.1213358969 | O28: 0 | P28: 0 | Q28: 0 | R28: 0 | S28: 0 | T28: 0 | U28: 0 | V28: 0
A29: 원자력합 | B29: 원자력합 | C29: 23250 | D29: 18.48707856 | E29: 10830303 | F29: 19.13077287 | G29: 10803191 | H29: 19.34797215 | I29: 10803033.62 | J29: 19.35346342 | K29: 10792590.28 | L29: 25.43231609 | M29: 10792590.28 | N29: 25.43231609 | O29: 10830173 | P29: 27.33775121 | Q29: 10804513.86 | R29: 19.61220631 | S29: 10803191 | T29: 19.46460473 | U29: 0 | V29: 0
A30: 석탄합 | B30: 석탄합 | C30: 38290.782 | D30: 30.44665354 | E30: 18458165 | F30: 32.60471681 | G30: 18079060 | H30: 32.37868787 | I30: 18073930.08 | J30: 32.37915912 | K30: 15952296.8 | L30: 37.59096232 | M30: 15952296.8 | N30: 37.59096232 | O30: 17690003 | P30: 44.65347884 | Q30: 17664584.01 | R30: 32.06451217 | S30: 18079060 | T30: 32.57387163 | U30: 0 | V30: 0
A31: LNG합 | B31: LNG합 | C31: 41498.336 | D31: 32.99711818 | E31: 25440948 | F31: 44.93918572 | G31: 25087587 | H31: 44.9306075 | I31: 25076657.06 | J31: 44.92443345 | K31: 12980242.8 | L31: 30.58743352 | M31: 12980242.8 | N31: 30.58743352 | O31: 10740590 | P31: 27.11162391 | Q31: 25089665.5 | R31: 45.54241891 | S31: 25087490 | T31: 45.20128141 | U31: 189941 | V31: 100
A32: 유류합 | B32: 유류합 | C32: 2082.345 | D32: 1.655762391 | E32: 1328976 | F32: 2.347518625 | G32: 1324252 | H32: 2.37166878 | I32: 1323822.827 | J32: 2.3716076 | K32: 169954.8936 | L32: 0.4004920471 | M32: 169954.8936 | N32: 0.4004920471 | O32: 19355 | P32: 0.0488562994 | Q32: 1324254.966 | R32: 2.403769568 | S32: 1324252 | T32: 2.385965567 | U32: 0 | V32: 0
A33: 양수합 | B33: 양수합 | C33: 4700 | D33: 3.73717287 | E33: 11451 | F33: 0.02022717926 | G33: 7465 | H33: 0.01336943984 | I33: 7465 | J33: 0.01337342912 | K33: 294612.3832 | L33: 0.6942425365 | M33: 294612.3832 | N33: 0.6942425365 | O33: -178 | P33: -0.0004493113559 | Q33: 0 | R33: 0 | S33: 0 | T33: 0 | U33: 0 | V33: 0
A34: 신재생합 | B34: 신재생합 | C34: 15772.353 | D34: 12.54127866 | E34: 504664 | F34: 0.8914443448 | G34: 497301 | H34: 0.8906410984 | I34: 497291.492 | J34: 0.8908898217 | K34: 2195269.222 | L34: 5.1730659 | M34: 2195269.222 | N34: 5.1730659 | O34: 336238 | P34: 0.8487390544 | Q34: 170303.4263 | R34: 0.3091324587 | S34: 170290 | T34: 0.3068193036 | U34: 0 | V34: 0
A35: 기타합 | B35: 기타합 | C35: 81.7 | D35: 0.06496319648 | E35: 0 | F35: 0 | G35: 0 | H35: 0 | I35: 0 | J35: 0 | K35: 51490.73395 | L35: 0.1213358969 | M35: 51490.73395 | N35: 0.1213358969 | O35: 0 | P35: 0 | Q35: 0 | R35: 0 | S35: 0 | T35: 0 | U35: 0 | V35: 0
A36: 수력합 | B36: 수력합 | C36: 1810.142 | D36: 1.439322037 | E36: 333722 | F36: 0.5894904127 | G36: 327011 | H36: 0.5856602666 | I36: 327011 | J36: 0.5858350207 | K36: 384550.0945 | L36: 0.9061772289 | M36: 384550.0945 | N36: 0.9061772289 | O36: 333723 | P36: 0.8423906383 | Q36: 0 | R36: 0 | S36: 0 | T36: 0 | U36: 0 | V36: 0
A37: 폐기물합 | B37: 폐기물합 | C37: 4602.547 | D37: 3.659683783 | E37: 0 | F37: 0 | G37: 0 | H37: 0 | I37: 0 | J37: 0 | K37: 184391.1212 | L37: 0.4345104516 | M37: 184391.1212 | N37: 0.4345104516 | O37: 0 | P37: 0 | Q37: 0 | R37: 0 | S37: 0 | T37: 0 | U37: 0 | V37: 0
A38: 바이오합 | B38: 바이오합 | C38: 1333.896 | D38: 1.060638286 | E38: 170942 | F38: 0.3019539321 | G38: 170290 | H38: 0.3049808318 | I38: 170280.492 | J38: 0.305054801 | K38: 478735.6728 | L38: 1.128121853 | M38: 478735.6728 | N38: 1.128121853 | O38: 2515 | P38: 0.006348416068 | Q38: 170303.4263 | R38: 0.3091324587 | S38: 170290 | T38: 0.3068193036 | U38: 0 | V38: 0
A39: 총계 | C39: 125763.516 | D39: 100 | E39: 56611947 | F39: 100 | G39: 55836296 | H39: 100 | I39: 55819640.08 | J39: 100 | K39: 42436521.49 | L39: 100 | M39: 42436521.49 | N39: 100 | O39: 39616181 | P39: 100 | Q39: 55090761.76 | R39: 100 | S39: 55501723 | T39: 100 | U39: 189941 | V39: 100

Sheet 202105
A1: 정산요소 내역
A2: 조회기간 : 2021-05-01 ~ 2021-05-31
A3: 단위 : MWh
A4: 연료원코드 | B4: 연료원 | C4: 설비용량(MW) | D4: A | E4: RA | F4: ARA | G4: MGO | H4: AMGO | I4: PSE | J4: FCA | K4: OFCA | L4: OR
A5: 1 | B5: 원자력 | C5: 23250 | D5: 12293569 | E5: 12185758 | F5: 12174949.15 | G5: 12166291.07 | H5: 12166291.07 | I5: 12292353 | J5: 12187723.44 | K5: 12185758 | L5: 0
A6: 2 | B6: 유연탄 | C6: 37890.782 | D6: 15052814 | E6: 14650557 | F6: 14649930.66 | G6: 13693545.42 | H6: 13693545.42 | I6: 14145667 | J6: 13987347.49 | K6: 14650557 | L6: 0
A7: 3 | B7: 무연탄 | C7: 400 | D7: 219874 | E7: 221246 | F7: 221246 | G7: 210905.264 | H7: 210905.264 | I7: 219826 | J7: 221353.6217 | K7: 221246 | L7: 0
A8: 5 | B8: 바이오가스 | C8: 85.149 | D8: 0 | E8: 0 | F8: 0 | G8: 37065.28894 | H8: 37065.28894 | I8: 0 | J8: 0 | K8: 0 | L8: 0
A9: 6 | B9: 부생가스 | C9: 4243.47 | D9: 0 | E9: 0 | F9: 0 | G9: 34001.82593 | H9: 34001.82593 | I9: 0 | J9: 0 | K9: 0 | L9: 0
A10: 7 | B10: 소수력 | C10: 202.704 | D10: 0 | E10: 0 | F10: 0 | G10: 55822.13051 | H10: 55822.13051 | I10: 0 | J10: 0 | K10: 0 | L10: 0
A11: 8 | B11: 수력 | C11: 1604.852 | D11: 258637 | E11: 269856 | F11: 269856 | G11: 271796.2408 | H11: 271796.2408 | I11: 258647 | J11: 0 | K11: 0 | L11: 0
A12: 9 | B12: 양수 | C12: 4700 | D12: 8448 | E12: 8448 | F12: 8448 | G12: 302418.9261 | H12: 302418.9261 | I12: -16150 | J12: 0 | K12: 0 | L12: 0
A13: 10 | B13: 매립가스 | C13: 63.734 | D13: 0 | E13: 0 | F13: 0 | G13: 18362.62526 | H13: 18362.62526 | I13: 0 | J13: 0 | K13: 0 | L13: 0
A14: 12 | B14: 중유 | C14: 1470.3 | D14: 946956 | E14: 944796 | F14: 944795.3627 | G14: 209973.3918 | H14: 209973.3918 | I14: 3508 | J14: 944796.0816 | K14: 944796 | L14: 0
A15: 13 | B15: 태양광 | C15: 4954.495 | D15: 0 | E15: 0 | F15: 0 | G15: 631693.1585 | H15: 631693.1585 | I15: 0 | J15: 0 | K15: 0 | L15: 0
A16: 15 | B16: 폐기물 | C16: 354.277 | D16: 0 | E16: 0 | F16: 0 | G16: 80986.37603 | H16: 80986.37603 | I16: 0 | J16: 0 | K16: 0 | L16: 0
A17: 16 | B17: 풍력 | C17: 1691.933 | D17: 0 | E17: 0 | F17: 0 | G17: 272331.3452 | H17: 272331.3452 | I17: 0 | J17: 0 | K17: 0 | L17: 0
A18: 17 | B18: LNG | C18: 41498.336 | D18: 25492930 | E18: 25223200 | F18: 25209758.32 | G18: 11882562.37 | H18: 11882562.37 | I18: 10672593 | J18: 25225696.72 | K18: 25222930 | L18: 141387
A19: 18 | B19: LPG | C19: 88 | D19: 51888 | E19: 51888 | F19: 51888 | G19: 0 | H19: 0 | I19: 0 | J19: 51888 | K19: 51888 | L19: 0
A20: 20 | B20: 연료전지 | C20: 674.768 | D20: 0 | E20: 0 | F20: 0 | G20: 382493.9402 | H20: 382493.9402 | I20: 0 | J20: 0 | K20: 0 | L20: 0
A21: 21 | B21: 경유 | C21: 612.045 | D21: 451435 | E21: 452534 | F21: 452534 | G21: 10701.59944 | H21: 10701.59944 | I21: 1078 | J21: 452534 | K21: 452534 | L21: 0
A22: 22 | B22: 해양에너지 | C22: 255.5 | D22: 0 | E22: 0 | F22: 0 | G22: 39037.40585 | H22: 39037.40585 | I22: 0 | J22: 0 | K22: 0 | L22: 0
A23: 23 | B23: 가스압 | C23: 0.3 | D23: 0 | E23: 0 | F23: 0 | G23: 0 | H23: 0 | I23: 0 | J23: 0 | K23: 0 | L23: 0
A24: 24 | B24: 바이오매스 | C24: 835.013 | D24: 0 | E24: 0 | F24: 0 | G24: 482222.6815 | H24: 482222.6815 | I24: 0 | J24: 0 | K24: 0 | L24: 0
A25: 25 | B25: IGCC | C25: 346.33 | D25: 0 | E25: 0 | F25: 0 | G25: 133123.2773 | H25: 133123.2773 | I25: 0 | J25: 0 | K25: 0 | L25: 0
A26: 32 | B26: 바이오중유 | C26: 350 | D26: 162937 | E26: 162805 | F26: 162566.2773 | G26: 78336.52837 | H26: 78336.52837 | I26: 252 | J26: 163072.576 | K26: 162805 | L26: 0
A27: 40 | B27: RPS | C27: 0 | D27: 0 | E27: 0 | F27: 0 | G27: 0 | H27: 0 | I27: 0 | J27: 0 | K27: 0 | L27: 0
A28: 99 | B28: 기타 | C28: 81.4 | D28: 0 | E28: 0 | F28: 0 | G28: 45305.47229 | H28: 45305.47229 | I28: 0 | J28: 0 | K28: 0 | L28: 0
A29: 원자력합 | B29: 원자력합 | C29: 23250 | D29: 12293569 | E29: 12185758 | F29: 12174949.15 | G29: 12166291.07 | H29: 12166291.07 | I29: 12292353 | J29: 12187723.44 | K29: 12185758 | L29: 0
A30: 석탄합 | B30: 석탄합 | C30: 38290.782 | D30: 15272688 | E30: 14871803 | F30: 14871176.66 | G30: 13904450.68 | H30: 13904450.68 | I30: 14365493 | J30: 14208701.11 | K30: 14871803 | L30: 0
A31: LNG합 | B31: LNG합 | C31: 41498.336 | D31: 25492930 | E31: 25223200 | F31: 25209758.32 | G31: 11882562.37 | H31: 11882562.37 | I31: 10672593 | J31: 25225696.72 | K31: 25222930 | L31: 141387
A32: 유류합 | B32: 유류합 | C32: 2082.345 | D32: 1398391 | E32: 1397330 | F32: 1397329.363 | G32: 220674.9912 | H32: 220674.9912 | I32: 4586 | J32: 1397330.082 | K32: 1397330 | L32: 0
A33: 양수합 | B33: 양수합 | C33: 4700 | D33: 8448 | E33: 8448 | F33: 8448 | G33: 302418.9261 | H33: 302418.9261 | I33: -16150 | J33: 0 | K33: 0 | L33: 0
A34: 신재생합 | B34: 신재생합 | C34: 15662.225 | D34: 421574 | E34: 432661 | F34: 432422.2773 | G34: 2517272.824 | H34: 2517272.824 | I34: 258899 | J34: 163072.576 | K34: 162805 | L34: 0
A35: 기타합 | B35: 기타합 | C35: 81.7 | D35: 0 | E35: 0 | F35: 0 | G35: 45305.47229 | H35: 45305.47229 | I35: 0 | J35: 0 | K35: 0 | L35: 0
A36: 수력합 | B36: 수력합 | C36: 1807.556 | D36: 258637 | E36: 269856 | F36: 269856 | G36: 327618.3713 | H36: 327618.3713 | I36: 258647 | J36: 0 | K36: 0 | L36: 0
A37: 폐기물합 | B37: 폐기물합 | C37: 4597.747 | D37: 0 | E37: 0 | F37: 0 | G37: 114988.202 | H37: 114988.202 | I37: 0 | J37: 0 | K37: 0 | L37: 0
A38: 바이오합 | B38: 바이오합 | C38: 1333.896 | D38: 162937 | E38: 162805 | F38: 162566.2773 | G38: 615987.1241 | H38: 615987.1241 | I38: 252 | J38: 163072.576 | K38: 162805 | L38: 0
A39: 총계 | C39: 125653.388 | D39: 54939488 | E39: 54171088 | F39: 54145971.77 | G39: 41038976.34 | H39: 41038976.34 | I39: 37577774 | J39: 53234411.93 | K39: 53892514 | L39: 141387

Sheet 202104
A1: 정산요소 내역
A2: 조회기간 : 2021-04-01 ~ 2021-04-30
A3: 단위 : MWh
A4: 연료원코드 | B4: 연료원 | C4: 설비용량(MW) | D4: A | E4: RA | F4: ARA | G4: MGO | H4: AMGO | I4: PSE | J4: FCA | K4: OFCA | L4: OR
A5: 1 | B5: 원자력 | C5: 23250 | D5: 12120200 | E5: 11974025 | F5: 11973994.05 | G5: 11965764.6 | H5: 11965764.6 | I5: 12116826 | J5: 11975754.99 | K5: 11974025 | L5: 0
A6: 2 | B6: 유연탄 | C6: 37970.782 | D6: 13080646 | E6: 12478785 | F6: 12477357.88 | G6: 12222115.9 | H6: 12222115.9 | I6: 11938246 | J6: 11688429.58 | K6: 12478785 | L6: 0
A7: 3 | B7: 무연탄 | C7: 400 | D7: 112312 | E7: 110946 | F7: 110890.332 | G7: 107967.8207 | H7: 107967.8207 | I7: 111956 | J7: 110963.6118 | K7: 110946 | L7: 0
A8: 5 | B8: 바이오가스 | C8: 84.549 | D8: 0 | E8: 0 | F8: 0 | G8: 32782.46546 | H8: 32782.46546 | I8: 0 | J8: 0 | K8: 0 | L8: 0
A9: 6 | B9: 부생가스 | C9: 4243.47 | D9: 0 | E9: 0 | F9: 0 | G9: 108819.5985 | H9: 108819.5985 | I9: 0 | J9: 0 | K9: 0 | L9: 0
A10: 7 | B10: 소수력 | C10: 197.704 | D10: 0 | E10: 0 | F10: 0 | G10: 46827.95825 | H10: 46827.95825 | I10: 0 | J10: 0 | K10: 0 | L10: 0
A11: 8 | B11: 수력 | C11: 1604.852 | D11: 179863 | E11: 179808 | F11: 179808 | G11: 185294.3667 | H11: 185294.3667 | I11: 179862 | J11: 0 | K11: 0 | L11: 0
A12: 9 | B12: 양수 | C12: 4700 | D12: 5274 | E12: 5274 | F12: 5274 | G12: 318670.2078 | H12: 318670.2078 | I12: -24020 | J12: 0 | K12: 0 | L12: 0
A13: 10 | B13: 매립가스 | C13: 63.734 | D13: 0 | E13: 0 | F13: 0 | G13: 12536.0847 | H13: 12536.0847 | I13: 0 | J13: 0 | K13: 0 | L13: 0
A14: 12 | B14: 중유 | C14: 1470.3 | D14: 699108 | E14: 693717 | F14: 693711.916 | G14: 79849.9598 | H14: 79849.9598 | I14: 16460 | J14: 693730.3518 | K14: 693717 | L14: 0
A15: 13 | B15: 태양광 | C15: 4897.311 | D15: 0 | E15: 0 | F15: 0 | G15: 659435.5127 | H15: 659435.5127 | I15: 0 | J15: 0 | K15: 0 | L15: 0
A16: 15 | B16: 폐기물 | C16: 354.277 | D16: 0 | E16: 0 | F16: 0 | G16: 82329.15864 | H16: 82329.15864 | I16: 0 | J16: 0 | K16: 0 | L16: 0
A17: 16 | B17: 풍력 | C17: 1691.933 | D17: 0 | E17: 0 | F17: 0 | G17: 268066.7438 | H17: 268066.7438 | I17: 0 | J17: 0 | K17: 0 | L17: 0
A18: 17 | B18: LNG | C18: 41791.836 | D18: 25559640 | E18: 25283359 | F18: 25245526.61 | G18: 13058737.84 | H18: 13058737.59 | I18: 13114473 | J18: 25286903.83 | K18: 25283333 | L18: 284732
A19: 18 | B19: LPG | C19: 88 | D19: 53280 | E19: 53280 | F19: 53280 | G19: 0 | H19: 0 | I19: 0 | J19: 53280 | K19: 53280 | L19: 0
A20: 20 | B20: 연료전지 | C20: 674.768 | D20: 0 | E20: 0 | F20: 0 | G20: 373002.2693 | H20: 373002.2693 | I20: 0 | J20: 0 | K20: 0 | L20: 0
A21: 21 | B21: 경유 | C21: 612.045 | D21: 463004 | E21: 462809 | F21: 462809 | G21: 17235.53406 | H21: 17235.53406 | I21: 4956 | J21: 462809 | K21: 462809 | L21: 0
A22: 22 | B22: 해양에너지 | C22: 255.5 | D22: 0 | E22: 0 | F22: 0 | G22: 39428.76307 | H22: 39428.76307 | I22: 0 | J22: 0 | K22: 0 | L22: 0
A23: 23 | B23: 가스압 | C23: 0.3 | D23: 0 | E23: 0 | F23: 0 | G23: 0 | H23: 0 | I23: 0 | J23: 0 | K23: 0 | L23: 0
A24: 24 | B24: 바이오매스 | C24: 835.013 | D24: 0 | E24: 0 | F24: 0 | G24: 389278.9173 | H24: 389278.9173 | I24: 0 | J24: 0 | K24: 0 | L24: 0
A25: 25 | B25: IGCC | C25: 346.33 | D25: 0 | E25: 0 | F25: 0 | G25: 195758.4636 | H25: 195758.4636 | I25: 0 | J25: 0 | K25: 0 | L25: 0
A26: 32 | B26: 바이오중유 | C26: 350 | D26: 239207 | E26: 239207 | F26: 239207 | G26: 97645.02238 | H26: 97645.02238 | I26: 4016 | J26: 239214.7357 | K26: 239207 | L26: 0
A27: 40 | B27: RPS | C27: 0 | D27: 0 | E27: 0 | F27: 0 | G27: 0 | H27: 0 | I27: 0 | J27: 0 | K27: 0 | L27: 0
A28: 99 | B28: 기타 | C28: 81.4 | D28: 0 | E28: 0 | F28: 0 | G28: 43727.26248 | H28: 43727.26248 | I28: 0 | J28: 0 | K28: 0 | L28: 0
A29: 원자력합 | B29: 원자력합 | C29: 23250 | D29: 12120200 | E29: 11974025 | F29: 11973994.05 | G29: 11965764.6 | H29: 11965764.6 | I29: 12116826 | J29: 11975754.99 | K29: 11974025 | L29: 0
A30: 석탄합 | B30: 석탄합 | C30: 38370.782 | D30: 13192958 | E30: 12589731 | F30: 12588248.21 | G30: 12330083.72 | H30: 12330083.72 | I30: 12050202 | J30: 11799393.19 | K30: 12589731 | L30: 0
A31: LNG합 | B31: LNG합 | C31: 41791.836 | D31: 25559640 | E31: 25283359 | F31: 25245526.61 | G31: 13058737.84 | H31: 13058737.59 | I31: 13114473 | J31: 25286903.83 | K31: 25283333 | L31: 284732
A32: 유류합 | B32: 유류합 | C32: 2082.345 | D32: 1162112 | E32: 1156526 | F32: 1156520.916 | G32: 97085.49386 | H32: 97085.49386 | I32: 21416 | J32: 1156539.352 | K32: 1156526 | L32: 0
A33: 양수합 | B33: 양수합 | C33: 4700 | D33: 5274 | E33: 5274 | F33: 5274 | G33: 318670.2078 | H33: 318670.2078 | I33: -24020 | J33: 0 | K33: 0 | L33: 0
A34: 신재생합 | B34: 신재생합 | C34: 15599.441 | D34: 419070 | E34: 419015 | F34: 419015 | G34: 2491205.324 | H34: 2491205.324 | I34: 183878 | J34: 239214.7357 | K34: 239207 | L34: 0
A35: 기타합 | B35: 기타합 | C35: 81.7 | D35: 0 | E35: 0 | F35: 0 | G35: 43727.26248 | H35: 43727.26248 | I35: 0 | J35: 0 | K35: 0 | L35: 0
A36: 수력합 | B36: 수력합 | C36: 1802.556 | D36: 179863 | E36: 179808 | F36: 179808 | G36: 232122.3249 | H36: 232122.3249 | I36: 179862 | J36: 0 | K36: 0 | L36: 0
A37: 폐기물합 | B37: 폐기물합 | C37: 4597.747 | D37: 0 | E37: 0 | F37: 0 | G37: 191148.7571 | H37: 191148.7571 | I37: 0 | J37: 0 | K37: 0 | L37: 0
A38: 바이오합 | B38: 바이오합 | C38: 1333.296 | D38: 239207 | E38: 239207 | F38: 239207 | G38: 532242.4899 | H38: 532242.4899 | I38: 4016 | J38: 239214.7357 | K38: 239207 | L38: 0
A39: 총계 | C39: 125964.104 | D39: 52512534 | E39: 51481210 | F39: 51441858.79 | G39: 40305274.45 | H39: 40305274.2 | I39: 37462775 | J39: 50511086.1 | K39: 51296102 | L39: 284732

Sheet 202103
A1: 정산요소 내역
A2: 조회기간 : 2021-03-01 ~ 2021-03-31
A3: 단위 : MWh
A4: 연료원코드 | B4: 연료원 | C4: 설비용량(MW) | D4: A | E4: RA | F4: ARA | G4: MGO | H4: AMGO | I4: PSE | J4: FCA | K4: OFCA | L4: OR
A5: 1 | B5: 원자력 | C5: 23250 | D5: 13211582 | E5: 13165659 | F5: 13166014.46 | G5: 13159239.64 | H5: 13159239.64 | I5: 13209360 | J5: 13167669.64 | K5: 13165659 | L5: 0
A6: 2 | B6: 유연탄 | C6: 37970.782 | D6: 12997815 | E6: 12511401 | F6: 12505653.8 | G6: 12504794.71 | H6: 12504781.83 | I6: 12612642 | J6: 12375260.36 | K6: 12511401 | L6: 0
A7: 3 | B7: 무연탄 | C7: 400 | D7: 136111 | E7: 132319 | F7: 132308.539 | G7: 128633.8968 | H7: 128633.8968 | I7: 135949 | J7: 132365.1759 | K7: 132319 | L7: 0
A8: 5 | B8: 바이오가스 | C8: 84.549 | D8: 0 | E8: 0 | F8: 0 | G8: 26163.43563 | H8: 26163.43563 | I8: 0 | J8: 0 | K8: 0 | L8: 0
A9: 6 | B9: 부생가스 | C9: 4243.47 | D9: 0 | E9: 0 | F9: 0 | G9: 163432.4186 | H9: 163432.4186 | I9: 0 | J9: 0 | K9: 0 | L9: 0
A10: 7 | B10: 소수력 | C10: 192.704 | D10: 0 | E10: 0 | F10: 0 | G10: 43275.26513 | H10: 43275.26513 | I10: 0 | J10: 0 | K10: 0 | L10: 0
A11: 8 | B11: 수력 | C11: 1604.852 | D11: 141876 | E11: 149375 | F11: 149375 | G11: 153912.6055 | H11: 153912.6055 | I11: 141877 | J11: 0 | K11: 0 | L11: 0
A12: 9 | B12: 양수 | C12: 4700 | D12: 22104 | E12: 19687 | F12: 19687 | G12: 307907.388 | H12: 307907.388 | I12: 19657 | J12: 0 | K12: 0 | L12: 0
A13: 10 | B13: 매립가스 | C13: 63.734 | D13: 0 | E13: 0 | F13: 0 | G13: 16112.96201 | H13: 16112.96201 | I13: 0 | J13: 0 | K13: 0 | L13: 0
A14: 12 | B14: 중유 | C14: 1470.3 | D14: 940106 | E14: 939578 | F14: 939577.159 | G14: 55350.25344 | H14: 55347.95723 | I14: 20907 | J14: 939578.1512 | K14: 939578 | L14: 0
A15: 13 | B15: 태양광 | C15: 4834.088 | D15: 0 | E15: 0 | F15: 0 | G15: 578502.21 | H15: 578502.21 | I15: 0 | J15: 0 | K15: 0 | L15: 0
A16: 15 | B16: 폐기물 | C16: 354.277 | D16: 0 | E16: 0 | F16: 0 | G16: 90956.83929 | H16: 90956.83929 | I16: 0 | J16: 0 | K16: 0 | L16: 0
A17: 16 | B17: 풍력 | C17: 1691.933 | D17: 0 | E17: 0 | F17: 0 | G17: 268598.5723 | H17: 268598.5723 | I17: 0 | J17: 0 | K17: 0 | L17: 0
A18: 17 | B18: LNG | C18: 40746.086 | D18: 29888908 | E18: 29628176 | F18: 29623329.95 | G18: 14982782.36 | H18: 14982773.83 | I18: 14818480 | J18: 29634224.68 | K18: 29628150 | L18: 237341
A19: 18 | B19: LPG | C19: 88 | D19: 55416 | E19: 55296 | F19: 55296 | G19: 3277.09088 | H19: 3277.09088 | I19: 0 | J19: 55296.82294 | K19: 55296 | L19: 0
A20: 20 | B20: 연료전지 | C20: 674.768 | D20: 0 | E20: 0 | F20: 0 | G20: 376253.1635 | H20: 376253.1635 | I20: 0 | J20: 0 | K20: 0 | L20: 0
A21: 21 | B21: 경유 | C21: 612.045 | D21: 485993 | E21: 485419 | F21: 484890 | G21: 22090.33994 | H21: 22090.33994 | I21: 13475 | J21: 485500.6643 | K21: 485419 | L21: 0
A22: 22 | B22: 해양에너지 | C22: 255.5 | D22: 0 | E22: 0 | F22: 0 | G22: 42756.19706 | H22: 42756.19706 | I22: 0 | J22: 0 | K22: 0 | L22: 0
A23: 23 | B23: 가스압 | C23: 0.3 | D23: 0 | E23: 0 | F23: 0 | G23: 0 | H23: 0 | I23: 0 | J23: 0 | K23: 0 | L23: 0
A24: 24 | B24: 바이오매스 | C24: 850.654 | D24: 0 | E24: 0 | F24: 0 | G24: 411173.7259 | H24: 411173.7259 | I24: 0 | J24: 0 | K24: 0 | L24: 0
A25: 25 | B25: IGCC | C25: 346.33 | D25: 0 | E25: 0 | F25: 0 | G25: 163434.306 | H25: 163434.306 | I25: 0 | J25: 0 | K25: 0 | L25: 0
A26: 32 | B26: 바이오중유 | C26: 350 | D26: 233485 | E26: 233435 | F26: 233435 | G26: 123386.7404 | H26: 123386.7404 | I26: 10522 | J26: 233440.6474 | K26: 233435 | L26: 0
A27: 40 | B27: RPS | C27: 0 | D27: 0 | E27: 0 | F27: 0 | G27: 0 | H27: 0 | I27: 0 | J27: 0 | K27: 0 | L27: 0
A28: 99 | B28: 기타 | C28: 81.4 | D28: 0 | E28: 0 | F28: 0 | G28: 40029.7036 | H28: 40029.7036 | I28: 0 | J28: 0 | K28: 0 | L28: 0
A29: 원자력합 | B29: 원자력합 | C29: 23250 | D29: 13211582 | E29: 13165659 | F29: 13166014.46 | G29: 13159239.64 | H29: 13159239.64 | I29: 13209360 | J29: 13167669.64 | K29: 13165659 | L29: 0
A30: 석탄합 | B30: 석탄합 | C30: 38370.782 | D30: 13133926 | E30: 12643720 | F30: 12637962.34 | G30: 12633428.61 | H30: 12633415.72 | I30: 12748591 | J30: 12507625.53 | K30: 12643720 | L30: 0
A31: LNG합 | B31: LNG합 | C31: 40746.086 | D31: 29888908 | E31: 29628176 | F31: 29623329.95 | G31: 14982782.36 | H31: 14982773.83 | I31: 14818480 | J31: 29634224.68 | K31: 29628150 | L31: 237341
A32: 유류합 | B32: 유류합 | C32: 2082.345 | D32: 1426099 | E32: 1424997 | F32: 1424467.159 | G32: 77440.59338 | H32: 77438.29717 | I32: 34382 | J32: 1425078.815 | K32: 1424997 | L32: 0
A33: 양수합 | B33: 양수합 | C33: 4700 | D33: 22104 | E33: 19687 | F33: 19687 | G33: 307907.388 | H33: 307907.388 | I33: 19657 | J33: 0 | K33: 0 | L33: 0
A34: 신재생합 | B34: 신재생합 | C34: 15546.859 | D34: 375361 | E34: 382810 | F34: 382810 | G34: 2457958.441 | H34: 2457958.441 | I34: 152399 | J34: 233440.6474 | K34: 233435 | L34: 0
A35: 기타합 | B35: 기타합 | C35: 81.7 | D35: 0 | E35: 0 | F35: 0 | G35: 40029.7036 | H35: 40029.7036 | I35: 0 | J35: 0 | K35: 0 | L35: 0
A36: 수력합 | B36: 수력합 | C36: 1797.556 | D36: 141876 | E36: 149375 | F36: 149375 | G36: 197187.8706 | H36: 197187.8706 | I36: 141877 | J36: 0 | K36: 0 | L36: 0
A37: 폐기물합 | B37: 폐기물합 | C37: 4597.747 | D37: 0 | E37: 0 | F37: 0 | G37: 254389.2579 | H37: 254389.2579 | I37: 0 | J37: 0 | K37: 0 | L37: 0
A38: 바이오합 | B38: 바이오합 | C38: 1348.937 | D38: 233485 | E38: 233435 | F38: 233435 | G38: 576836.864 | H38: 576836.864 | I38: 10522 | J38: 233440.6474 | K38: 233435 | L38: 0
A39: 총계 | C39: 124865.772 | D39: 58113396 | E39: 57320345 | F39: 57309566.91 | G39: 43662063.82 | H39: 43662040.11 | I39: 40982869 | J39: 57023336.13 | K39: 57151257 | L39: 237341

Sheet 202102
A1: 정산요소 내역
A2: 조회기간 : 2021-02-01 ~ 2021-02-28
A3: 단위 : MWh
A4: 연료원코드 | B4: 연료원 | C4: 설비용량(MW) | D4: A | E4: RA | F4: ARA | G4: MGO | H4: AMGO | I4: PSE | J4: FCA | K4: OFCA | L4: OR
A5: 1 | B5: 원자력 | C5: 23250 | D5: 12220410 | E5: 12194706 | F5: 12194308.38 | G5: 12132702.32 | H5: 12132702.32 | I5: 12219433 | J5: 12196518.25 | K5: 12194706 | L5: 0
A6: 2 | B6: 유연탄 | C6: 37970.782 | D6: 15285490 | E6: 14935812 | F6: 14935660.39 | G6: 13706205.63 | H6: 13706205.63 | I6: 14434092 | J6: 14352192.62 | K6: 14935812 | L6: 0
A7: 3 | B7: 무연탄 | C7: 400 | D7: 150830 | E7: 150830 | F7: 150799.45 | G7: 120058.6582 | H7: 120058.6582 | I7: 132528 | J7: 150830.2769 | K7: 150830 | L7: 0
A8: 5 | B8: 바이오가스 | C8: 84.549 | D8: 0 | E8: 0 | F8: 0 | G8: 30652.28219 | H8: 30652.28219 | I8: 0 | J8: 0 | K8: 0 | L8: 0
A9: 6 | B9: 부생가스 | C9: 4243.47 | D9: 0 | E9: 0 | F9: 0 | G9: 129932.9245 | H9: 129932.9245 | I9: 0 | J9: 0 | K9: 0 | L9: 0
A10: 7 | B10: 소수력 | C10: 192.704 | D10: 0 | E10: 0 | F10: 0 | G10: 28687.04569 | H10: 28687.04569 | I10: 0 | J10: 0 | K10: 0 | L10: 0
A11: 8 | B11: 수력 | C11: 1604.852 | D11: 137696 | E11: 137329 | F11: 137329 | G11: 138299.5676 | H11: 138299.5676 | I11: 137702 | J11: 0 | K11: 0 | L11: 0
A12: 9 | B12: 양수 | C12: 4700 | D12: 4792 | E12: 4792 | F12: 4792 | G12: 307172.2004 | H12: 307172.2004 | I12: 3342 | J12: 0 | K12: 0 | L12: 0
A13: 10 | B13: 매립가스 | C13: 65.85 | D13: 0 | E13: 0 | F13: 0 | G13: 14001.90451 | H13: 14001.90451 | I13: 0 | J13: 0 | K13: 0 | L13: 0
A14: 12 | B14: 중유 | C14: 1470.3 | D14: 838796 | E14: 838478 | F14: 838478 | G14: 151495.8615 | H14: 151495.8615 | I14: 5097 | J14: 838478.392 | K14: 838478 | L14: 0
A15: 13 | B15: 태양광 | C15: 4749.803 | D15: 0 | E15: 0 | F15: 0 | G15: 447571.3516 | H15: 447571.3516 | I15: 0 | J15: 0 | K15: 0 | L15: 0
A16: 15 | B16: 폐기물 | C16: 354.277 | D16: 0 | E16: 0 | F16: 0 | G16: 68491.82698 | H16: 68491.82698 | I16: 0 | J16: 0 | K16: 0 | L16: 0
A17: 16 | B17: 풍력 | C17: 1691.933 | D17: 0 | E17: 0 | F17: 0 | G17: 384718.0573 | H17: 384718.0573 | I17: 0 | J17: 0 | K17: 0 | L17: 0
A18: 17 | B18: LNG | C18: 40746.086 | D18: 27829745 | E18: 27563596 | F18: 27559200.25 | G18: 13282515.91 | H18: 13282515.91 | I18: 12355652 | J18: 27563913.56 | K18: 27563416 | L18: 81651
A19: 18 | B19: LPG | C19: 88 | D19: 53088 | E19: 53088 | F19: 53088 | G19: 12644.41998 | H19: 12644.41998 | I19: 0 | J19: 53088 | K19: 53088 | L19: 0
A20: 20 | B20: 연료전지 | C20: 673.828 | D20: 0 | E20: 0 | F20: 0 | G20: 329944.0394 | H20: 329944.0394 | I20: 0 | J20: 0 | K20: 0 | L20: 0
A21: 21 | B21: 경유 | C21: 612.045 | D21: 447694 | E21: 448118 | F21: 448118 | G21: 3187.075976 | H21: 3187.075976 | I21: 3194 | J21: 448120.2667 | K21: 448118 | L21: 0
A22: 22 | B22: 해양에너지 | C22: 255.5 | D22: 0 | E22: 0 | F22: 0 | G22: 35192.15614 | H22: 35192.15614 | I22: 0 | J22: 0 | K22: 0 | L22: 0
A23: 23 | B23: 가스압 | C23: 0.3 | D23: 0 | E23: 0 | F23: 0 | G23: 0 | H23: 0 | I23: 0 | J23: 0 | K23: 0 | L23: 0
A24: 24 | B24: 바이오매스 | C24: 850.654 | D24: 0 | E24: 0 | F24: 0 | G24: 301100.7247 | H24: 301100.7247 | I24: 0 | J24: 0 | K24: 0 | L24: 0
A25: 25 | B25: IGCC | C25: 346.33 | D25: 0 | E25: 0 | F25: 0 | G25: 177626.9757 | H25: 177626.9757 | I25: 0 | J25: 0 | K25: 0 | L25: 0
A26: 32 | B26: 바이오중유 | C26: 350 | D26: 144268 | E26: 147363 | F26: 147305.903 | G26: 84912.00698 | H26: 84912.00698 | I26: 0 | J26: 147537.9655 | K26: 147363 | L26: 0
A27: 40 | B27: RPS | C27: 0 | D27: 0 | E27: 0 | F27: 0 | G27: 0 | H27: 0 | I27: 0 | J27: 0 | K27: 0 | L27: 0
A28: 99 | B28: 기타 | C28: 81.4 | D28: 0 | E28: 0 | F28: 0 | G28: 47366.51149 | H28: 47366.51149 | I28: 0 | J28: 0 | K28: 0 | L28: 0
A29: 원자력합 | B29: 원자력합 | C29: 23250 | D29: 12220410 | E29: 12194706 | F29: 12194308.38 | G29: 12132702.32 | H29: 12132702.32 | I29: 12219433 | J29: 12196518.25 | K29: 12194706 | L29: 0
A30: 석탄합 | B30: 석탄합 | C30: 38370.782 | D30: 15436320 | E30: 15086642 | F30: 15086459.84 | G30: 13826264.28 | H30: 13826264.28 | I30: 14566620 | J30: 14503022.9 | K30: 15086642 | L30: 0
A31: LNG합 | B31: LNG합 | C31: 40746.086 | D31: 27829745 | E31: 27563596 | F31: 27559200.25 | G31: 13282515.91 | H31: 13282515.91 | I31: 12355652 | J31: 27563913.56 | K31: 27563416 | L31: 81651
A32: 유류합 | B32: 유류합 | C32: 2082.345 | D32: 1286490 | E32: 1286596 | F32: 1286596 | G32: 154682.9374 | H32: 154682.9374 | I32: 8291 | J32: 1286598.659 | K32: 1286596 | L32: 0
A33: 양수합 | B33: 양수합 | C33: 4700 | D33: 4792 | E33: 4792 | F33: 4792 | G33: 307172.2004 | H33: 307172.2004 | I33: 3342 | J33: 0 | K33: 0 | L33: 0
A34: 신재생합 | B34: 신재생합 | C34: 15463.75 | D34: 281964 | E34: 284692 | F34: 284634.903 | G34: 2171130.863 | H34: 2171130.863 | I34: 137702 | J34: 147537.9655 | K34: 147363 | L34: 0
A35: 기타합 | B35: 기타합 | C35: 81.7 | D35: 0 | E35: 0 | F35: 0 | G35: 47366.51149 | H35: 47366.51149 | I35: 0 | J35: 0 | K35: 0 | L35: 0
A36: 수력합 | B36: 수력합 | C36: 1797.556 | D36: 137696 | E36: 137329 | F36: 137329 | G36: 166986.6133 | H36: 166986.6133 | I36: 137702 | J36: 0 | K36: 0 | L36: 0
A37: 폐기물합 | B37: 폐기물합 | C37: 4597.747 | D37: 0 | E37: 0 | F37: 0 | G37: 198424.7514 | H37: 198424.7514 | I37: 0 | J37: 0 | K37: 0 | L37: 0
A38: 바이오합 | B38: 바이오합 | C38: 1351.053 | D38: 144268 | E38: 147363 | F38: 147305.903 | G38: 430666.9184 | H38: 430666.9184 | I38: 0 | J38: 147537.9655 | K38: 147363 | L38: 0
A39: 총계 | C39: 124782.663 | D39: 57112809 | E39: 56474112 | F39: 56469079.37 | G39: 41934479.45 | H39: 41934479.45 | I39: 39291040 | J39: 55750679.34 | K39: 56331811 | L39: 81651

Sheet 202101
A1: 정산요소 내역
A2: 조회기간 : 2021-01-01 ~ 2021-01-31
A3: 단위 : MWh
A4: 연료원코드 | B4: 연료원 | C4: 설비용량(MW) | D4: A | E4: RA | F4: ARA | G4: MGO | H4: AMGO | I4: PSE | J4: FCA | K4: OFCA | L4: OR
A5: 1 | B5: 원자력 | C5: 23250 | D5: 13415416 | E5: 13401579 | F5: 13291457.79 | G5: 13282069.49 | H5: 13282069.49 | I5: 13415416 | J5: 13402848.68 | K5: 13401579 | L5: 0
A6: 2 | B6: 유연탄 | C6: 37964.282 | D6: 18404457 | E6: 18461014 | F6: 18459214.17 | G6: 16739500.59 | H6: 16739500.59 | I6: 18180289 | J6: 18359779.72 | K6: 18461014 | L6: 0
A7: 3 | B7: 무연탄 | C7: 400 | D7: 222244 | E7: 227072 | F7: 227072 | G7: 213039.6503 | H7: 213039.6503 | I7: 114408 | J7: 227084.193 | K7: 227072 | L7: 0
A8: 5 | B8: 바이오가스 | C8: 84.549 | D8: 0 | E8: 0 | F8: 0 | G8: 32585.99315 | H8: 32585.99315 | I8: 0 | J8: 0 | K8: 0 | L8: 0
A9: 6 | B9: 부생가스 | C9: 4243.47 | D9: 0 | E9: 0 | F9: 0 | G9: 129624.4412 | H9: 129624.4412 | I9: 0 | J9: 0 | K9: 0 | L9: 0
A10: 7 | B10: 소수력 | C10: 192.704 | D10: 0 | E10: 0 | F10: 0 | G10: 33465.7753 | H10: 33465.7753 | I10: 0 | J10: 0 | K10: 0 | L10: 0
A11: 8 | B11: 수력 | C11: 1604.98 | D11: 153581 | E11: 153568 | F11: 153568 | G11: 155941.1412 | H11: 155941.1412 | I11: 153595 | J11: 0 | K11: 0 | L11: 0
A12: 9 | B12: 양수 | C12: 4700 | D12: 2980 | E12: 2980 | F12: 2980 | G12: 322997.8918 | H12: 322997.8918 | I12: 2023 | J12: 0 | K12: 0 | L12: 0
A13: 10 | B13: 매립가스 | C13: 65.85 | D13: 0 | E13: 0 | F13: 0 | G13: 12499.11002 | H13: 12499.11002 | I13: 0 | J13: 0 | K13: 0 | L13: 0
A14: 12 | B14: 중유 | C14: 1470.3 | D14: 920431 | E14: 903949 | F14: 903949.196 | G14: 315812.4006 | H14: 315812.4006 | I14: 6563 | J14: 903950.8813 | K14: 903949 | L14: 0
A15: 13 | B15: 태양광 | C15: 4680.726 | D15: 0 | E15: 0 | F15: 0 | G15: 337707.9041 | H15: 337707.9041 | I15: 0 | J15: 0 | K15: 0 | L15: 0
A16: 15 | B16: 폐기물 | C16: 353.782 | D16: 0 | E16: 0 | F16: 0 | G16: 81676.31445 | H16: 81676.31445 | I16: 0 | J16: 0 | K16: 0 | L16: 0
A17: 16 | B17: 풍력 | C17: 1653.133 | D17: 0 | E17: 0 | F17: 0 | G17: 374016.4192 | H17: 374016.4192 | I17: 0 | J17: 0 | K17: 0 | L17: 0
A18: 17 | B18: LNG | C18: 40746.086 | D18: 31545499 | E18: 30966315 | F18: 30954597.87 | G18: 16765302.84 | H18: 16765302.84 | I18: 15107792 | J18: 30967488.08 | K18: 30965921 | L18: 27974
A19: 18 | B19: LPG | C19: 88 | D19: 57992 | E19: 57878 | F19: 57880.964 | G19: 21225.03723 | H19: 21225.03723 | I19: 0 | J19: 57890.06824 | K19: 57878 | L19: 0
A20: 20 | B20: 연료전지 | C20: 654.028 | D20: 0 | E20: 0 | F20: 0 | G20: 359975.6043 | H20: 359975.6043 | I20: 0 | J20: 0 | K20: 0 | L20: 0
A21: 21 | B21: 경유 | C21: 612.045 | D21: 504885 | E21: 506087 | F21: 505922.039 | G21: 17311.20994 | H21: 17311.20994 | I21: 2988 | J21: 506087 | K21: 506087 | L21: 0
A22: 22 | B22: 해양에너지 | C22: 255.5 | D22: 0 | E22: 0 | F22: 0 | G22: 39503.43943 | H22: 39503.43943 | I22: 0 | J22: 0 | K22: 0 | L22: 0
A23: 23 | B23: 가스압 | C23: 0.3 | D23: 0 | E23: 0 | F23: 0 | G23: 0 | H23: 0 | I23: 0 | J23: 0 | K23: 0 | L23: 0
A24: 24 | B24: 바이오매스 | C24: 850.654 | D24: 0 | E24: 0 | F24: 0 | G24: 339910.5143 | H24: 339910.5143 | I24: 0 | J24: 0 | K24: 0 | L24: 0
A25: 25 | B25: IGCC | C25: 346.33 | D25: 0 | E25: 0 | F25: 0 | G25: 190565.373 | H25: 190565.373 | I25: 0 | J25: 0 | K25: 0 | L25: 0
A26: 32 | B26: 바이오중유 | C26: 350 | D26: 140616 | E26: 140616 | F26: 140616 | G26: 76965.47376 | H26: 76965.47376 | I26: 0 | J26: 140616 | K26: 140616 | L26: 0
A27: 40 | B27: RPS | C27: 0 | D27: 0 | E27: 0 | F27: 0 | G27: 0 | H27: 0 | I27: 0 | J27: 0 | K27: 0 | L27: 0
A28: 99 | B28: 기타 | C28: 81.4 | D28: 0 | E28: 0 | F28: 0 | G28: 51765.16314 | H28: 51765.16314 | I28: 0 | J28: 0 | K28: 0 | L28: 0
A29: 원자력합 | B29: 원자력합 | C29: 23250 | D29: 13415416 | E29: 13401579 | F29: 13291457.79 | G29: 13282069.49 | H29: 13282069.49 | I29: 13415416 | J29: 13402848.68 | K29: 13401579 | L29: 0
A30: 석탄합 | B30: 석탄합 | C30: 38364.282 | D30: 18626701 | E30: 18688086 | F30: 18686286.17 | G30: 16952540.24 | H30: 16952540.24 | I30: 18294697 | J30: 18586863.91 | K30: 18688086 | L30: 0
A31: LNG합 | B31: LNG합 | C31: 40746.086 | D31: 31545499 | E31: 30966315 | F31: 30954597.87 | G31: 16765302.84 | H31: 16765302.84 | I31: 15107792 | J31: 30967488.08 | K31: 30965921 | L31: 27974
A32: 유류합 | B32: 유류합 | C32: 2082.345 | D32: 1425316 | E32: 1410036 | F32: 1409871.235 | G32: 333123.6106 | H32: 333123.6106 | I32: 9551 | J32: 1410037.881 | K32: 1410036 | L32: 0
A33: 양수합 | B33: 양수합 | C33: 4700 | D33: 2980 | E33: 2980 | F33: 2980 | G33: 322997.8918 | H33: 322997.8918 | I33: 2023 | J33: 0 | K33: 0 | L33: 0
A34: 신재생합 | B34: 신재생합 | C34: 15335.706 | D34: 294197 | E34: 294184 | F34: 294184 | G34: 2164437.503 | H34: 2164437.503 | I34: 153595 | J34: 140616 | K34: 140616 | L34: 0
A35: 기타합 | B35: 기타합 | C35: 81.7 | D35: 0 | E35: 0 | F35: 0 | G35: 51765.16314 | H35: 51765.16314 | I35: 0 | J35: 0 | K35: 0 | L35: 0
A36: 수력합 | B36: 수력합 | C36: 1797.684 | D36: 153581 | E36: 153568 | F36: 153568 | G36: 189406.9165 | H36: 189406.9165 | I36: 153595 | J36: 0 | K36: 0 | L36: 0
A37: 폐기물합 | B37: 폐기물합 | C37: 4597.252 | D37: 0 | E37: 0 | F37: 0 | G37: 211300.7556 | H37: 211300.7556 | I37: 0 | J37: 0 | K37: 0 | L37: 0
A38: 바이오합 | B38: 바이오합 | C38: 1351.053 | D38: 140616 | E38: 140616 | F38: 140616 | G38: 461961.0912 | H38: 461961.0912 | I38: 0 | J38: 140616 | K38: 140616 | L38: 0
A39: 총계 | C39: 124648.119 | D39: 65368101 | E39: 64821058 | F39: 64697258.04 | G39: 49893461.77 | H39: 49893461.77 | I39: 46983074 | J39: 64565744.61 | K39: 64664116 | L39: 27974

Sheet 202012
A1: 정산요소 내역
A2: 조회기간 : 2020-12-01 ~ 2020-12-31
A3: 단위 : MWh
A4: 연료원코드 | B4: 연료원 | C4: 설비용량(MW) | D4: A | E4: RA | F4: ARA | G4: MGO | H4: AMGO | I4: PSE | J4: FCA | K4: OFCA | L4: OR
A5: 1 | B5: 원자력 | C5: 23250 | D5: 14386203 | E5: 14360504 | F5: 14360496.18 | G5: 14353736.3 | H5: 14353736.3 | I5: 14385589 | J5: 14362568.71 | K5: 14360504 | L5: 0
A6: 2 | B6: 유연탄 | C6: 37946.282 | D6: 15707953 | E6: 15311661 | F6: 15310457.7 | G6: 14870711.83 | H6: 14870711.83 | I6: 15383964 | J6: 15256981.53 | K6: 15311661 | L6: 0
A7: 3 | B7: 무연탄 | C7: 400 | D7: 209064 | E7: 209064 | F7: 209064 | G7: 205821.4741 | H7: 205821.4741 | I7: 209064 | J7: 209076.67 | K7: 209064 | L7: 0
A8: 5 | B8: 바이오가스 | C8: 84.549 | D8: 0 | E8: 0 | F8: 0 | G8: 33757.03715 | H8: 33757.03715 | I8: 0 | J8: 0 | K8: 0 | L8: 0
A9: 6 | B9: 부생가스 | C9: 4243.47 | D9: 0 | E9: 0 | F9: 0 | G9: 137335.2258 | H9: 137335.2258 | I9: 0 | J9: 0 | K9: 0 | L9: 0
A10: 7 | B10: 소수력 | C10: 192.704 | D10: 0 | E10: 0 | F10: 0 | G10: 36487.4626 | H10: 36487.4626 | I10: 0 | J10: 0 | K10: 0 | L10: 0
A11: 8 | B11: 수력 | C11: 1604.98 | D11: 151584 | E11: 150636 | F11: 150636 | G11: 153522.5889 | H11: 153522.5889 | I11: 151592 | J11: 0 | K11: 0 | L11: 0
A12: 9 | B12: 양수 | C12: 4700 | D12: 51965 | E12: 49444 | F12: 49444 | G12: 302064.1877 | H12: 302064.1877 | I12: -31910 | J12: 0 | K12: 0 | L12: 0
A13: 10 | B13: 매립가스 | C13: 65.85 | D13: 0 | E13: 0 | F13: 0 | G13: 14461.28868 | H13: 14461.28868 | I13: 0 | J13: 0 | K13: 0 | L13: 0
A14: 12 | B14: 중유 | C14: 1470.3 | D14: 942093 | E14: 938683 | F14: 938680.658 | G14: 428944.9663 | H14: 428944.9663 | I14: 5196 | J14: 938683.0262 | K14: 938683 | L14: 0
A15: 13 | B15: 태양광 | C15: 4645.762 | D15: 0 | E15: 0 | F15: 0 | G15: 339356.2846 | H15: 339356.2846 | I15: 0 | J15: 0 | K15: 0 | L15: 0
A16: 15 | B16: 폐기물 | C16: 353.782 | D16: 0 | E16: 0 | F16: 0 | G16: 87879.24482 | H16: 87879.24482 | I16: 0 | J16: 0 | K16: 0 | L16: 0
A17: 16 | B17: 풍력 | C17: 1642.333 | D17: 0 | E17: 0 | F17: 0 | G17: 399050.8165 | H17: 399050.8165 | I17: 0 | J17: 0 | K17: 0 | L17: 0
A18: 17 | B18: LNG | C18: 40746.086 | D18: 30428969 | E18: 29774166 | F18: 29767453.27 | G18: 16154881.76 | H18: 16154869.37 | I18: 15547912 | J18: 29774845.98 | K18: 29774132 | L18: 82283
A19: 18 | B19: LPG | C19: 88 | D19: 58031 | E19: 58031 | F19: 58031 | G19: 9098.324256 | H19: 9098.324256 | I19: 0 | J19: 58031 | K19: 58031 | L19: 0
A20: 20 | B20: 연료전지 | C20: 604.308 | D20: 0 | E20: 0 | F20: 0 | G20: 352861.4347 | H20: 352861.4347 | I20: 0 | J20: 0 | K20: 0 | L20: 0
A21: 21 | B21: 경유 | C21: 612.045 | D21: 490828 | E21: 492437 | F21: 491426 | G21: 14157.97734 | H21: 14157.97734 | I21: 1951 | J21: 492458.3758 | K21: 492437 | L21: 0
A22: 22 | B22: 해양에너지 | C22: 255.5 | D22: 0 | E22: 0 | F22: 0 | G22: 37084.76628 | H22: 37084.76628 | I22: 0 | J22: 0 | K22: 0 | L22: 0
A23: 23 | B23: 가스압 | C23: 0.3 | D23: 0 | E23: 0 | F23: 0 | G23: 0 | H23: 0 | I23: 0 | J23: 0 | K23: 0 | L23: 0
A24: 24 | B24: 바이오매스 | C24: 850.654 | D24: 0 | E24: 0 | F24: 0 | G24: 359780.8849 | H24: 359780.8849 | I24: 0 | J24: 0 | K24: 0 | L24: 0
A25: 25 | B25: IGCC | C25: 346.33 | D25: 0 | E25: 0 | F25: 0 | G25: 197702.1883 | H25: 197702.1883 | I25: 0 | J25: 0 | K25: 0 | L25: 0
A26: 32 | B26: 바이오중유 | C26: 350 | D26: 140616 | E26: 140616 | F26: 140616 | G26: 69183.68666 | H26: 69183.68666 | I26: 0 | J26: 140616 | K26: 140616 | L26: 0
A27: 40 | B27: RPS | C27: 0 | D27: 0 | E27: 0 | F27: 0 | G27: 0 | H27: 0 | I27: 0 | J27: 0 | K27: 0 | L27: 0
A28: 99 | B28: 기타 | C28: 81.4 | D28: 0 | E28: 0 | F28: 0 | G28: 50347.26955 | H28: 50347.26955 | I28: 0 | J28: 0 | K28: 0 | L28: 0
A29: 원자력합 | B29: 원자력합 | C29: 23250 | D29: 14386203 | E29: 14360504 | F29: 14360496.18 | G29: 14353736.3 | H29: 14353736.3 | I29: 14385589 | J29: 14362568.71 | K29: 14360504 | L29: 0
A30: 석탄합 | B30: 석탄합 | C30: 38346.282 | D30: 15917017 | E30: 15520725 | F30: 15519521.7 | G30: 15076533.3 | H30: 15076533.3 | I30: 15593028 | J30: 15466058.2 | K30: 15520725 | L30: 0
A31: LNG합 | B31: LNG합 | C31: 40746.086 | D31: 30428969 | E31: 29774166 | F31: 29767453.27 | G31: 16154881.76 | H31: 16154869.37 | I31: 15547912 | J31: 29774845.98 | K31: 29774132 | L31: 82283
A32: 유류합 | B32: 유류합 | C32: 2082.345 | D32: 1432921 | E32: 1431120 | F32: 1430106.658 | G32: 443102.9436 | H32: 443102.9436 | I32: 7147 | J32: 1431141.402 | K32: 1431120 | L32: 0
A33: 양수합 | B33: 양수합 | C33: 4700 | D33: 51965 | E33: 49444 | F33: 49444 | G33: 302064.1877 | H33: 302064.1877 | I33: -31910 | J33: 0 | K33: 0 | L33: 0
A34: 신재생합 | B34: 신재생합 | C34: 15240.222 | D34: 292200 | E34: 291252 | F34: 291252 | G34: 2218462.91 | H34: 2218462.91 | I34: 151592 | J34: 140616 | K34: 140616 | L34: 0
A35: 기타합 | B35: 기타합 | C35: 81.7 | D35: 0 | E35: 0 | F35: 0 | G35: 50347.26954 | H35: 50347.26954 | I35: 0 | J35: 0 | K35: 0 | L35: 0
A36: 수력합 | B36: 수력합 | C36: 1797.684 | D36: 151584 | E36: 150636 | F36: 150636 | G36: 190010.0515 | H36: 190010.0515 | I36: 151592 | J36: 0 | K36: 0 | L36: 0
A37: 폐기물합 | B37: 폐기물합 | C37: 4597.252 | D37: 0 | E37: 0 | F37: 0 | G37: 225214.4706 | H37: 225214.4706 | I37: 0 | J37: 0 | K37: 0 | L37: 0
A38: 바이오합 | B38: 바이오합 | C38: 1351.053 | D38: 140616 | E38: 140616 | F38: 140616 | G38: 477182.8974 | H38: 477182.8974 | I38: 0 | J38: 140616 | K38: 140616 | L38: 0
A39: 총계 | C39: 124534.635 | D39: 62567306 | E39: 61485242 | F39: 61476304.81 | G39: 48608227 | H39: 48608214.6 | I39: 45653358 | J39: 61233261.29 | K39: 61285128 | L39: 82283

Sheet 202011
A1: 정산요소 내역
A2: 조회기간 : 2020-11-01 ~ 2020-11-30
A3: 단위 : MWh
A4: 연료원코드 | B4: 연료원 | C4: 설비용량(MW) | D4: A | E4: RA | F4: ARA | G4: MGO | H4: AMGO | I4: PSE | J4: FCA | K4: OFCA | L4: OR
A5: 1 | B5: 원자력 | C5: 23250 | D5: 13439876 | E5: 13391661 | F5: 13391599.08 | G5: 13383711.89 | H5: 13383711.89 | I5: 13439664 | J5: 13393484.02 | K5: 13391660 | L5: 0
A6: 2 | B6: 유연탄 | C6: 37946.282 | D6: 19351439 | E6: 19155067 | F6: 19153350.62 | G6: 13565721.33 | H6: 13565721.33 | I6: 14437839 | J6: 19156053.7 | K6: 19155067 | L6: 0
A7: 3 | B7: 무연탄 | C7: 400 | D7: 259920 | E7: 259920 | F7: 259920 | G7: 233578.0566 | H7: 233578.0566 | I7: 259920 | J7: 259920 | K7: 259920 | L7: 0
A8: 5 | B8: 바이오가스 | C8: 84.549 | D8: 0 | E8: 0 | F8: 0 | G8: 28686.38005 | H8: 28686.38005 | I8: 0 | J8: 0 | K8: 0 | L8: 0
A9: 6 | B9: 부생가스 | C9: 4243.47 | D9: 0 | E9: 0 | F9: 0 | G9: 89707.74099 | H9: 89707.74099 | I9: 0 | J9: 0 | K9: 0 | L9: 0
A10: 7 | B10: 소수력 | C10: 192.377 | D10: 0 | E10: 0 | F10: 0 | G10: 36304.45567 | H10: 36304.45567 | I10: 0 | J10: 0 | K10: 0 | L10: 0
A11: 8 | B11: 수력 | C11: 1604.98 | D11: 155812 | E11: 159552 | F11: 159552 | G11: 162496.1114 | H11: 162496.1114 | I11: 155816 | J11: 0 | K11: 0 | L11: 0
A12: 9 | B12: 양수 | C12: 4700 | D12: 32758 | E12: 28834 | F12: 28834 | G12: 222085.0969 | H12: 222085.0969 | I12: 6508 | J12: 0 | K12: 0 | L12: 0
A13: 10 | B13: 매립가스 | C13: 65.85 | D13: 0 | E13: 0 | F13: 0 | G13: 15942.68493 | H13: 15942.68493 | I13: 0 | J13: 0 | K13: 0 | L13: 0
A14: 12 | B14: 중유 | C14: 1470.3 | D14: 911722 | E14: 911784 | F14: 911769.504 | G14: 284652.986 | H14: 284652.986 | I14: 2931 | J14: 911791.3989 | K14: 911784 | L14: 0
A15: 13 | B15: 태양광 | C15: 4485.509 | D15: 0 | E15: 0 | F15: 0 | G15: 360258.7773 | H15: 360258.7773 | I15: 0 | J15: 0 | K15: 0 | L15: 0
A16: 15 | B16: 폐기물 | C16: 347.082 | D16: 0 | E16: 0 | F16: 0 | G16: 88544.30172 | H16: 88544.30172 | I16: 0 | J16: 0 | K16: 0 | L16: 0
A17: 16 | B17: 풍력 | C17: 1642.333 | D17: 0 | E17: 0 | F17: 0 | G17: 321649.8334 | H17: 321649.8334 | I17: 0 | J17: 0 | K17: 0 | L17: 0
A18: 17 | B18: LNG | C18: 40746.086 | D18: 25860735 | E18: 25373840 | F18: 25358050.82 | G18: 12322760.08 | H18: 12322758.23 | I18: 10949273 | J18: 25382866.81 | K18: 25373771 | L18: 147578
A19: 18 | B19: LPG | C19: 88 | D19: 37440 | E19: 37440 | F19: 37440 | G19: 0 | H19: 0 | I19: 0 | J19: 37440 | K19: 37440 | L19: 0
A20: 20 | B20: 연료전지 | C20: 600.648 | D20: 0 | E20: 0 | F20: 0 | G20: 334162.7859 | H20: 334162.7859 | I20: 0 | J20: 0 | K20: 0 | L20: 0
A21: 21 | B21: 경유 | C21: 612.045 | D21: 401311 | E21: 395617 | F21: 395617 | G21: 36602.53302 | H21: 36602.53302 | I21: 0 | J21: 361386 | K21: 395617 | L21: 0
A22: 22 | B22: 해양에너지 | C22: 255.5 | D22: 0 | E22: 0 | F22: 0 | G22: 36401.57916 | H22: 36401.57916 | I22: 0 | J22: 0 | K22: 0 | L22: 0
A23: 23 | B23: 가스압 | C23: 0.3 | D23: 0 | E23: 0 | F23: 0 | G23: 0 | H23: 0 | I23: 0 | J23: 0 | K23: 0 | L23: 0
A24: 24 | B24: 바이오매스 | C24: 846.054 | D24: 0 | E24: 0 | F24: 0 | G24: 305225.695 | H24: 305225.695 | I24: 0 | J24: 0 | K24: 0 | L24: 0
A25: 25 | B25: IGCC | C25: 346.33 | D25: 0 | E25: 0 | F25: 0 | G25: 190148.4015 | H25: 190148.4015 | I25: 0 | J25: 0 | K25: 0 | L25: 0
A26: 32 | B26: 바이오중유 | C26: 350 | D26: 166749 | E26: 166731 | F26: 166731 | G26: 70971.12529 | H26: 70971.12529 | I26: 2691 | J26: 166731 | K26: 166731 | L26: 0
A27: 40 | B27: RPS | C27: 0 | D27: 0 | E27: 0 | F27: 0 | G27: 0 | H27: 0 | I27: 0 | J27: 0 | K27: 0 | L27: 0
A28: 99 | B28: 기타 | C28: 81.4 | D28: 0 | E28: 0 | F28: 0 | G28: 11223.2185 | H28: 11223.2185 | I28: 0 | J28: 0 | K28: 0 | L28: 0
A29: 원자력합 | B29: 원자력합 | C29: 23250 | D29: 13439876 | E29: 13391661 | F29: 13391599.08 | G29: 13383711.89 | H29: 13383711.89 | I29: 13439664 | J29: 13393484.02 | K29: 13391660 | L29: 0
A30: 석탄합 | B30: 석탄합 | C30: 38346.282 | D30: 19611359 | E30: 19414987 | F30: 19413270.62 | G30: 13799299.38 | H30: 13799299.38 | I30: 14697759 | J30: 19415973.7 | K30: 19414987 | L30: 0
A31: LNG합 | B31: LNG합 | C31: 40746.086 | D31: 25860735 | E31: 25373840 | F31: 25358050.82 | G31: 12322760.08 | H31: 12322758.23 | I31: 10949273 | J31: 25382866.81 | K31: 25373771 | L31: 147578
A32: 유류합 | B32: 유류합 | C32: 2082.345 | D32: 1313033 | E32: 1307401 | F32: 1307386.504 | G32: 321255.519 | H32: 321255.519 | I32: 2931 | J32: 1273177.399 | K32: 1307401 | L32: 0
A33: 양수합 | B33: 양수합 | C33: 4700 | D33: 32758 | E33: 28834 | F33: 28834 | G33: 222085.0969 | H33: 222085.0969 | I33: 6508 | J33: 0 | K33: 0 | L33: 0
A34: 신재생합 | B34: 신재생합 | C34: 15064.682 | D34: 322561 | E34: 326283 | F34: 326283 | G34: 2040499.872 | H34: 2040499.872 | I34: 158507 | J34: 166731 | K34: 166731 | L34: 0
A35: 기타합 | B35: 기타합 | C35: 81.7 | D35: 0 | E35: 0 | F35: 0 | G35: 11223.2185 | H35: 11223.2185 | I35: 0 | J35: 0 | K35: 0 | L35: 0
A36: 수력합 | B36: 수력합 | C36: 1797.357 | D36: 155812 | E36: 159552 | F36: 159552 | G36: 198800.567 | H36: 198800.567 | I36: 155816 | J36: 0 | K36: 0 | L36: 0
A37: 폐기물합 | B37: 폐기물합 | C37: 4590.552 | D37: 0 | E37: 0 | F37: 0 | G37: 178252.0427 | H37: 178252.0427 | I37: 0 | J37: 0 | K37: 0 | L37: 0
A38: 바이오합 | B38: 바이오합 | C38: 1346.453 | D38: 166749 | E38: 166731 | F38: 166731 | G38: 420825.8853 | H38: 420825.8853 | I38: 2691 | J38: 166731 | K38: 166731 | L38: 0
A39: 총계 | C39: 124359.095 | D39: 60617762 | E39: 59880446 | F39: 59862864.03 | G39: 42100835.06 | H39: 42100833.21 | I39: 39254642 | J39: 59669672.93 | K39: 59691990 | L39: 147578

Sheet 202010
A1: 정산요소 내역
A2: 조회기간 : 2020-10-01 ~ 2020-10-31
A3: 단위 : MWh
A4: 연료원코드 | B4: 연료원 | C4: 설비용량(MW) | D4: A | E4: RA | F4: ARA | G4: MGO | H4: AMGO | I4: PSE | J4: FCA | K4: OFCA | L4: OR
A5: 1 | B5: 원자력 | C5: 23250 | D5: 12866942 | E5: 12881408 | F5: 12818913.44 | G5: 12811638.87 | H5: 12811638.87 | I5: 12864369 | J5: 12883733.14 | K5: 12881408 | L5: 0
A6: 2 | B6: 유연탄 | C6: 36906.282 | D6: 20745543 | E6: 20562819 | F6: 20562648.2 | G6: 13581390.68 | H6: 13581390.68 | I6: 14875576 | J6: 20563526.66 | K6: 20562819 | L6: 0
A7: 3 | B7: 무연탄 | C7: 400 | D7: 148227 | E7: 143830 | F7: 143817.227 | G7: 9416.953471 | H7: 9416.953471 | I7: 0 | J7: 143839.6723 | K7: 143830 | L7: 0
A8: 5 | B8: 바이오가스 | C8: 84.549 | D8: 0 | E8: 0 | F8: 0 | G8: 17035.99291 | H8: 17035.99291 | I8: 0 | J8: 0 | K8: 0 | L8: 0
A9: 6 | B9: 부생가스 | C9: 4243.47 | D9: 0 | E9: 0 | F9: 0 | G9: 154829.9515 | H9: 154829.9515 | I9: 0 | J9: 0 | K9: 0 | L9: 0
A10: 7 | B10: 소수력 | C10: 192.377 | D10: 0 | E10: 0 | F10: 0 | G10: 41279.37118 | H10: 41279.37118 | I10: 0 | J10: 0 | K10: 0 | L10: 0
A11: 8 | B11: 수력 | C11: 1604.98 | D11: 184333 | E11: 182200 | F11: 182200 | G11: 185546.5408 | H11: 185546.5408 | I11: 184336 | J11: 0 | K11: 0 | L11: 0
A12: 9 | B12: 양수 | C12: 4700 | D12: 1700 | E12: 1700 | F12: 1700 | G12: 242520.0156 | H12: 242520.0156 | I12: -1626 | J12: 0 | K12: 0 | L12: 0
A13: 10 | B13: 매립가스 | C13: 65.85 | D13: 0 | E13: 0 | F13: 0 | G13: 13429.49193 | H13: 13429.49193 | I13: 0 | J13: 0 | K13: 0 | L13: 0
A14: 12 | B14: 중유 | C14: 1470.3 | D14: 945223 | E14: 944968 | F14: 944963.422 | G14: 132969.2256 | H14: 132969.2256 | I14: 4067 | J14: 944968 | K14: 944968 | L14: 0
A15: 13 | B15: 태양광 | C15: 4358.022 | D15: 0 | E15: 0 | F15: 0 | G15: 495898.8379 | H15: 495898.8379 | I15: 0 | J15: 0 | K15: 0 | L15: 0
A16: 15 | B16: 폐기물 | C16: 347.082 | D16: 0 | E16: 0 | F16: 0 | G16: 92633.15228 | H16: 92633.15228 | I16: 0 | J16: 0 | K16: 0 | L16: 0
A17: 16 | B17: 풍력 | C17: 1621.333 | D17: 0 | E17: 0 | F17: 0 | G17: 229671.5843 | H17: 229671.5843 | I17: 0 | J17: 0 | K17: 0 | L17: 0
A18: 17 | B18: LNG | C18: 40746.086 | D18: 23549708 | E18: 23162307 | F18: 23120586.7 | G18: 10990540.1 | H18: 10990540.1 | I18: 9263214 | J18: 23165381.89 | K18: 23162194 | L18: 129644
A19: 18 | B19: LPG | C19: 88 | D19: 32448 | E19: 32448 | F19: 32448 | G19: 0 | H19: 0 | I19: 0 | J19: 32448 | K19: 32448 | L19: 0
A20: 20 | B20: 연료전지 | C20: 603.048 | D20: 0 | E20: 0 | F20: 0 | G20: 334400.7806 | H20: 334400.7806 | I20: 0 | J20: 0 | K20: 0 | L20: 0
A21: 21 | B21: 경유 | C21: 612.045 | D21: 374595 | E21: 366288 | F21: 366288 | G21: 7146.286896 | H21: 7146.286896 | I21: 0 | J21: 359151 | K21: 366288 | L21: 0
A22: 22 | B22: 해양에너지 | C22: 255.5 | D22: 0 | E22: 0 | F22: 0 | G22: 41275.42054 | H22: 41275.42054 | I22: 0 | J22: 0 | K22: 0 | L22: 0
A23: 23 | B23: 가스압 | C23: 0.3 | D23: 0 | E23: 0 | F23: 0 | G23: 0 | H23: 0 | I23: 0 | J23: 0 | K23: 0 | L23: 0
A24: 24 | B24: 바이오매스 | C24: 846.054 | D24: 0 | E24: 0 | F24: 0 | G24: 264494.8974 | H24: 264494.8974 | I24: 0 | J24: 0 | K24: 0 | L24: 0
A25: 25 | B25: IGCC | C25: 346.33 | D25: 0 | E25: 0 | F25: 0 | G25: 190795.4446 | H25: 190795.4446 | I25: 0 | J25: 0 | K25: 0 | L25: 0
A26: 32 | B26: 바이오중유 | C26: 350 | D26: 195672 | E26: 195672 | F26: 195672 | G26: 83856.89743 | H26: 83856.89743 | I26: 3319 | J26: 195672 | K26: 195672 | L26: 0
A27: 40 | B27: RPS | C27: 0 | D27: 0 | E27: 0 | F27: 0 | G27: 0 | H27: 0 | I27: 0 | J27: 0 | K27: 0 | L27: 0
A28: 99 | B28: 기타 | C28: 84.29 | D28: 0 | E28: 0 | F28: 0 | G28: 44852.82532 | H28: 44852.82532 | I28: 0 | J28: 0 | K28: 0 | L28: 0
A29: 원자력합 | B29: 원자력합 | C29: 23250 | D29: 12866942 | E29: 12881408 | F29: 12818913.44 | G29: 12811638.87 | H29: 12811638.87 | I29: 12864369 | J29: 12883733.14 | K29: 12881408 | L29: 0
A30: 석탄합 | B30: 석탄합 | C30: 37306.282 | D30: 20893770 | E30: 20706649 | F30: 20706465.43 | G30: 13590807.64 | H30: 13590807.64 | I30: 14875576 | J30: 20707366.33 | K30: 20706649 | L30: 0
A31: LNG합 | B31: LNG합 | C31: 40746.086 | D31: 23549708 | E31: 23162307 | F31: 23120586.7 | G31: 10990540.1 | H31: 10990540.1 | I31: 9263214 | J31: 23165381.89 | K31: 23162194 | L31: 129644
A32: 유류합 | B32: 유류합 | C32: 2082.345 | D32: 1319818 | E32: 1311256 | F32: 1311251.422 | G32: 140115.5125 | H32: 140115.5125 | I32: 4067 | J32: 1304119 | K32: 1311256 | L32: 0
A33: 양수합 | B33: 양수합 | C33: 4700 | D33: 1700 | E33: 1700 | F33: 1700 | G33: 242520.0156 | H33: 242520.0156 | I33: -1626 | J33: 0 | K33: 0 | L33: 0
A34: 신재생합 | B34: 신재생합 | C34: 14918.595 | D34: 380005 | E34: 377872 | F34: 377872 | G34: 2145148.363 | H34: 2145148.363 | I34: 187655 | J34: 195672 | K34: 195672 | L34: 0
A35: 기타합 | B35: 기타합 | C35: 84.59 | D35: 0 | E35: 0 | F35: 0 | G35: 44852.82532 | H35: 44852.82532 | I35: 0 | J35: 0 | K35: 0 | L35: 0
A36: 수력합 | B36: 수력합 | C36: 1797.357 | D36: 184333 | E36: 182200 | F36: 182200 | G36: 226825.912 | H36: 226825.912 | I36: 184336 | J36: 0 | K36: 0 | L36: 0
A37: 폐기물합 | B37: 폐기물합 | C37: 4590.552 | D37: 0 | E37: 0 | F37: 0 | G37: 247463.1038 | H37: 247463.1038 | I37: 0 | J37: 0 | K37: 0 | L37: 0
A38: 바이오합 | B38: 바이오합 | C38: 1346.453 | D38: 195672 | E38: 195672 | F38: 195672 | G38: 378817.2796 | H38: 378817.2796 | I38: 3319 | J38: 195672 | K38: 195672 | L38: 0
A39: 총계 | C39: 123175.898 | D39: 59044391 | E39: 58473640 | F39: 58369237 | G39: 39965623.33 | H39: 39965623.33 | I39: 37193255 | J39: 58288720.36 | K39: 58289627 | L39: 129644

Sheet 202009
A1: 정산요소 내역
A2: 조회기간 : 2020-09-01 ~ 2020-09-30
A3: 단위 : MWh
A4: 연료원코드 | B4: 연료원 | C4: 설비용량(MW) | D4: A | E4: RA | F4: ARA | G4: MGO | H4: AMGO | I4: PSE | J4: FCA | K4: OFCA | L4: OR
A5: 1 | B5: 원자력 | C5: 23250 | D5: 9073183 | E5: 8966695 | F5: 8843687.354 | G5: 8835019.103 | H5: 8835019.103 | I5: 8978263 | J5: 8967909.166 | K5: 8966695 | L5: 0
A6: 2 | B6: 유연탄 | C6: 36906.282 | D6: 21967195 | E6: 21864613 | F6: 21864126.41 | G6: 17400513.86 | H6: 17400513.86 | I6: 20128551 | J6: 21865948.49 | K6: 21864613 | L6: 0
A7: 3 | B7: 무연탄 | C7: 400 | D7: 224439 | E7: 224439 | F7: 224390.733 | G7: 15787.25366 | H7: 15787.25366 | I7: 0 | J7: 224439 | K7: 224439 | L7: 0
A8: 5 | B8: 바이오가스 | C8: 84.549 | D8: 0 | E8: 0 | F8: 0 | G8: 19560.72339 | H8: 19560.72339 | I8: 0 | J8: 0 | K8: 0 | L8: 0
A9: 6 | B9: 부생가스 | C9: 4243.47 | D9: 0 | E9: 0 | F9: 0 | G9: 533351.7888 | H9: 533351.7888 | I9: 0 | J9: 0 | K9: 0 | L9: 0
A10: 7 | B10: 소수력 | C10: 192.377 | D10: 0 | E10: 0 | F10: 0 | G10: 54052.04925 | H10: 54052.04925 | I10: 0 | J10: 0 | K10: 0 | L10: 0
A11: 8 | B11: 수력 | C11: 1604.98 | D11: 535041 | E11: 552756 | F11: 552756 | G11: 565612.3689 | H11: 565612.3689 | I11: 535039 | J11: 0 | K11: 0 | L11: 0
A12: 9 | B12: 양수 | C12: 4700 | D12: 14967 | E12: 14967 | F12: 14967 | G12: 250082.3428 | H12: 250082.3428 | I12: -11386 | J12: 0 | K12: 0 | L12: 0
A13: 10 | B13: 매립가스 | C13: 66.15 | D13: 0 | E13: 0 | F13: 0 | G13: 15196.64158 | H13: 15196.64158 | I13: 0 | J13: 0 | K13: 0 | L13: 0
A14: 12 | B14: 중유 | C14: 1558.3 | D14: 949984 | E14: 936591 | F14: 936580.473 | G14: 511722.1531 | H14: 511721.908 | I14: 8437 | J14: 936591 | K14: 936591 | L14: 0
A15: 13 | B15: 태양광 | C15: 4319.649 | D15: 0 | E15: 0 | F15: 0 | G15: 423063.5396 | H15: 423063.5396 | I15: 0 | J15: 0 | K15: 0 | L15: 0
A16: 15 | B16: 폐기물 | C16: 337.582 | D16: 0 | E16: 0 | F16: 0 | G16: 86347.29405 | H16: 86347.29405 | I16: 0 | J16: 0 | K16: 0 | L16: 0
A17: 16 | B17: 풍력 | C17: 1621.333 | D17: 0 | E17: 0 | F17: 0 | G17: 188627.803 | H17: 188627.803 | I17: 0 | J17: 0 | K17: 0 | L17: 0
A18: 17 | B18: LNG | C18: 40746.086 | D18: 24854135 | E18: 24536655 | F18: 24518512.64 | G18: 11485264.84 | H18: 11485260.6 | I18: 9428046 | J18: 24537027.09 | K18: 24536512 | L18: 239145
A19: 20 | B19: 연료전지 | C19: 602.048 | D19: 0 | E19: 0 | F19: 0 | G19: 316828.1458 | H19: 316828.1458 | I19: 0 | J19: 0 | K19: 0 | L19: 0
A20: 21 | B20: 경유 | C20: 612.045 | D20: 340313 | E20: 336190 | F20: 336190 | G20: 577.62208 | H20: 577.62208 | I20: 0 | J20: 335681 | K20: 336311 | L20: 0
A21: 22 | B21: 해양에너지 | C21: 255.5 | D21: 0 | E21: 0 | F21: 0 | G21: 40257.1087 | H21: 40257.1087 | I21: 0 | J21: 0 | K21: 0 | L21: 0
A22: 23 | B22: 가스압 | C22: 0.3 | D22: 0 | E22: 0 | F22: 0 | G22: 0 | H22: 0 | I22: 0 | J22: 0 | K22: 0 | L22: 0
A23: 24 | B23: 바이오매스 | C23: 746.054 | D23: 0 | E23: 0 | F23: 0 | G23: 346581.7299 | H23: 346581.7299 | I23: 0 | J23: 0 | K23: 0 | L23: 0
A24: 25 | B24: IGCC | C24: 346.33 | D24: 0 | E24: 0 | F24: 0 | G24: 173144.1348 | H24: 173144.1348 | I24: 0 | J24: 0 | K24: 0 | L24: 0
A25: 32 | B25: 바이오중유 | C25: 350 | D25: 225313 | E25: 224687 | F25: 224687 | G25: 125806.5738 | H25: 125806.5738 | I25: 19346 | J25: 224687 | K25: 224687 | L25: 0
A26: 40 | B26: RPS | C26: 0 | D26: 0 | E26: 0 | F26: 0 | G26: 0 | H26: 0 | I26: 0 | J26: 0 | K26: 0 | L26: 0
A27: 99 | B27: 기타 | C27: 84.29 | D27: 0 | E27: 0 | F27: 0 | G27: 43578.97947 | H27: 43578.97947 | I27: 0 | J27: 0 | K27: 0 | L27: 0
A28: 원자력합 | B28: 원자력합 | C28: 23250 | D28: 9073183 | E28: 8966695 | F28: 8843687.354 | G28: 8835019.103 | H28: 8835019.103 | I28: 8978263 | J28: 8967909.166 | K28: 8966695 | L28: 0
A29: 석탄합 | B29: 석탄합 | C29: 37306.282 | D29: 22191634 | E29: 22089052 | F29: 22088517.14 | G29: 17416301.11 | H29: 17416301.11 | I29: 20128551 | J29: 22090387.49 | K29: 22089052 | L29: 0
A30: LNG합 | B30: LNG합 | C30: 40746.086 | D30: 24854135 | E30: 24536655 | F30: 24518512.64 | G30: 11485264.84 | H30: 11485260.6 | I30: 9428046 | J30: 24537027.09 | K30: 24536512 | L30: 239145
A31: 유류합 | B31: 유류합 | C31: 2170.345 | D31: 1290297 | E31: 1272781 | F31: 1272770.473 | G31: 512299.7752 | H31: 512299.5301 | I31: 8437 | J31: 1272272 | K31: 1272902 | L31: 0
A32: 양수합 | B32: 양수합 | C32: 4700 | D32: 14967 | E32: 14967 | F32: 14967 | G32: 250082.3428 | H32: 250082.3428 | I32: -11386 | J32: 0 | K32: 0 | L32: 0
A33: 신재생합 | B33: 신재생합 | C33: 14770.022 | D33: 760354 | E33: 777443 | F33: 777443 | G33: 2888429.902 | H33: 2888429.902 | I33: 554385 | J33: 224687 | K33: 224687 | L33: 0
A34: 기타합 | B34: 기타합 | C34: 84.59 | D34: 0 | E34: 0 | F34: 0 | G34: 43578.97947 | H34: 43578.97947 | I34: 0 | J34: 0 | K34: 0 | L34: 0
A35: 수력합 | B35: 수력합 | C35: 1797.357 | D35: 535041 | E35: 552756 | F35: 552756 | G35: 619664.4181 | H35: 619664.4181 | I35: 535039 | J35: 0 | K35: 0 | L35: 0
A36: 폐기물합 | B36: 폐기물합 | C36: 4581.052 | D36: 0 | E36: 0 | F36: 0 | G36: 619699.0828 | H36: 619699.0828 | I36: 0 | J36: 0 | K36: 0 | L36: 0
A37: 바이오합 | B37: 바이오합 | C37: 1246.753 | D37: 225313 | E37: 224687 | F37: 224687 | G37: 507145.6686 | H37: 507145.6686 | I37: 19346 | J37: 224687 | K37: 224687 | L37: 0
A38: 총계 | C38: 123027.325 | D38: 58184570 | E38: 57657593 | F38: 57515897.6 | G38: 41430976.05 | H38: 41430971.57 | I38: 39086296 | J38: 57092282.74 | K38: 57089848 | L38: 239145

Sheet 202008
A1: 정산요소 내역
A2: 조회기간 : 2020-08-01 ~ 2020-08-31
A3: 단위 : MWh
A4: 연료원코드 | B4: 연료원 | C4: 설비용량(MW) | D4: A | E4: RA | F4: ARA | G4: MGO | H4: AMGO | I4: PSE | J4: FCA | K4: OFCA | L4: OR
A5: 1 | B5: 원자력 | C5: 23250 | D5: 11953074 | E5: 11932911 | F5: 11932796.91 | G5: 11925927.54 | H5: 11925927.54 | I5: 11951252 | J5: 11935461.88 | K5: 11932911 | L5: 0
A6: 2 | B6: 유연탄 | C6: 36906.282 | D6: 23470228 | E6: 23346582 | F6: 23341697.83 | G6: 19294932.76 | H6: 19294905.98 | I6: 21683022 | J6: 23347440.85 | K6: 23346582 | L6: 0
A7: 3 | B7: 무연탄 | C7: 400 | D7: 268584 | E7: 268584 | F7: 268584 | G7: 138814.8449 | H7: 138814.8449 | I7: 0 | J7: 268584 | K7: 268584 | L7: 0
A8: 5 | B8: 바이오가스 | C8: 84.549 | D8: 0 | E8: 0 | F8: 0 | G8: 31783.80335 | H8: 31783.80335 | I8: 0 | J8: 0 | K8: 0 | L8: 0
A9: 6 | B9: 부생가스 | C9: 4243.47 | D9: 0 | E9: 0 | F9: 0 | G9: 607199.8458 | H9: 607199.8458 | I9: 0 | J9: 0 | K9: 0 | L9: 0
A10: 7 | B10: 소수력 | C10: 192.377 | D10: 0 | E10: 0 | F10: 0 | G10: 52073.8719 | H10: 52073.8719 | I10: 0 | J10: 0 | K10: 0 | L10: 0
A11: 8 | B11: 수력 | C11: 1604.98 | D11: 753198 | E11: 725057 | F11: 725057 | G11: 737421.3773 | H11: 737421.3773 | I11: 753202 | J11: 0 | K11: 0 | L11: 0
A12: 9 | B12: 양수 | C12: 4700 | D12: 30159 | E12: 30159 | F12: 30159 | G12: 270941.5562 | H12: 270941.5562 | I12: 1525 | J12: 0 | K12: 0 | L12: 0
A13: 10 | B13: 매립가스 | C13: 66.15 | D13: 0 | E13: 0 | F13: 0 | G13: 13703.71023 | H13: 13703.71023 | I13: 0 | J13: 0 | K13: 0 | L13: 0
A14: 12 | B14: 중유 | C14: 1558.3 | D14: 1000468 | E14: 994918 | F14: 994918 | G14: 130529.3706 | H14: 130528.6328 | I14: 10012 | J14: 994925.5595 | K14: 994918 | L14: 0
A15: 13 | B15: 태양광 | C15: 4264.22 | D15: 0 | E15: 0 | F15: 0 | G15: 429078.1519 | H15: 429078.1519 | I15: 0 | J15: 0 | K15: 0 | L15: 0
A16: 15 | B16: 폐기물 | C16: 337.582 | D16: 0 | E16: 0 | F16: 0 | G16: 69497.83514 | H16: 69497.83514 | I16: 0 | J16: 0 | K16: 0 | L16: 0
A17: 16 | B17: 풍력 | C17: 1578.133 | D17: 0 | E17: 0 | F17: 0 | G17: 251794.1227 | H17: 251794.1227 | I17: 0 | J17: 0 | K17: 0 | L17: 0
A18: 17 | B18: LNG | C18: 40746.086 | D18: 28338336 | E18: 28227512 | F18: 28220946.75 | G18: 12762676.07 | H18: 12762674.57 | I18: 9326126 | J18: 28228632.2 | K18: 28227226 | L18: 261403
A19: 20 | B19: 연료전지 | C19: 561.468 | D19: 0 | E19: 0 | F19: 0 | G19: 313905.7845 | H19: 313905.7845 | I19: 0 | J19: 0 | K19: 0 | L19: 0
A20: 21 | B20: 경유 | C20: 562.828 | D20: 341083 | E20: 337993 | F20: 335954.021 | G20: 4717.201888 | H20: 4717.201888 | I20: 0 | J20: 336956.3583 | K20: 337993 | L20: 1677.020608
A21: 22 | B21: 해양에너지 | C21: 255.5 | D21: 0 | E21: 0 | F21: 0 | G21: 38001.61709 | H21: 38001.61709 | I21: 0 | J21: 0 | K21: 0 | L21: 0
A22: 23 | B22: 가스압 | C22: 0.3 | D22: 0 | E22: 0 | F22: 0 | G22: 0 | H22: 0 | I22: 0 | J22: 0 | K22: 0 | L22: 0
A23: 24 | B23: 바이오매스 | C23: 641.054 | D23: 0 | E23: 0 | F23: 0 | G23: 305001.1736 | H23: 305001.1736 | I23: 0 | J23: 0 | K23: 0 | L23: 0
A24: 25 | B24: IGCC | C24: 346.33 | D24: 0 | E24: 0 | F24: 0 | G24: 142188.6967 | H24: 142188.6967 | I24: 0 | J24: 0 | K24: 0 | L24: 0
A25: 32 | B25: 바이오중유 | C25: 350 | D25: 250646 | E25: 247301 | F25: 247301 | G25: 128225.519 | H25: 128225.519 | I25: 28357 | J25: 247301.2459 | K25: 247301 | L25: 0
A26: 40 | B26: RPS | C26: 0 | D26: 0 | E26: 0 | F26: 0 | G26: 0 | H26: 0 | I26: 0 | J26: 0 | K26: 0 | L26: 0
A27: 99 | B27: 기타 | C27: 84.29 | D27: 0 | E27: 0 | F27: 0 | G27: 38314.82561 | H27: 38314.82561 | I27: 0 | J27: 0 | K27: 0 | L27: 0
A28: 원자력합 | B28: 원자력합 | C28: 23250 | D28: 11953074 | E28: 11932911 | F28: 11932796.91 | G28: 11925927.54 | H28: 11925927.54 | I28: 11951252 | J28: 11935461.88 | K28: 11932911 | L28: 0
A29: 석탄합 | B29: 석탄합 | C29: 37306.282 | D29: 23738812 | E29: 23615166 | F29: 23610281.83 | G29: 19433747.61 | H29: 19433720.83 | I29: 21683022 | J29: 23616024.85 | K29: 23615166 | L29: 0
A30: LNG합 | B30: LNG합 | C30: 40746.086 | D30: 28338336 | E30: 28227512 | F30: 28220946.75 | G30: 12762676.07 | H30: 12762674.57 | I30: 9326126 | J30: 28228632.2 | K30: 28227226 | L30: 261403
A31: 유류합 | B31: 유류합 | C31: 2121.128 | D31: 1341551 | E31: 1332911 | F31: 1330872.021 | G31: 135246.5725 | H31: 135245.8347 | I31: 10012 | J31: 1331881.918 | K31: 1332911 | L31: 1677.020608
A32: 양수합 | B32: 양수합 | C32: 4700 | D32: 30159 | E32: 30159 | F32: 30159 | G32: 270941.5562 | H32: 270941.5562 | I32: 1525 | J32: 0 | K32: 0 | L32: 0
A33: 신재생합 | B33: 신재생합 | C33: 14525.813 | D33: 1003844 | E33: 972358 | F33: 972358 | G33: 3119875.509 | H33: 3119875.509 | I33: 781559 | J33: 247301.2459 | K33: 247301 | L33: 0
A34: 기타합 | B34: 기타합 | C34: 84.59 | D34: 0 | E34: 0 | F34: 0 | G34: 38314.82561 | H34: 38314.82561 | I34: 0 | J34: 0 | K34: 0 | L34: 0
A35: 수력합 | B35: 수력합 | C35: 1797.357 | D35: 753198 | E35: 725057 | F35: 725057 | G35: 789495.2492 | H35: 789495.2492 | I35: 753202 | J35: 0 | K35: 0 | L35: 0
A36: 폐기물합 | B36: 폐기물합 | C36: 4581.052 | D36: 0 | E36: 0 | F36: 0 | G36: 676697.6809 | H36: 676697.6809 | I36: 0 | J36: 0 | K36: 0 | L36: 0
A37: 바이오합 | B37: 바이오합 | C37: 1141.753 | D37: 250646 | E37: 247301 | F37: 247301 | G37: 478714.2061 | H37: 478714.2061 | I37: 28357 | J37: 247301.2459 | K37: 247301 | L37: 0
A38: 총계 | C38: 122733.899 | D38: 66405776 | E38: 66111017 | F38: 66097414.51 | G38: 47686729.68 | H38: 47686700.66 | I38: 43753496 | J38: 65359302.08 | K38: 65355515 | L38: 263080.0206

Sheet 202007
A1: 정산요소 내역
A2: 조회기간 : 2020-07-01 ~ 2020-07-31
A3: 단위 : MWh
A4: 연료원코드 | B4: 연료원 | C4: 설비용량(MW) | D4: A | E4: RA | F4: ARA | G4: MGO | H4: AMGO | I4: PSE | J4: FCA | K4: OFCA | L4: OR
A5: 1 | B5: 원자력 | C5: 23250 | D5: 13184977 | E5: 13077121 | F5: 13077014.06 | G5: 13069346.63 | H5: 13069346.63 | I5: 13184977 | J5: 13079541.01 | K5: 13077121 | L5: 0
A6: 2 | B6: 유연탄 | C6: 36906.282 | D6: 22121212 | E6: 21829485 | F6: 21825097.22 | G6: 17696542.75 | H6: 17696542.75 | I6: 20405203 | J6: 21830579.82 | K6: 21829485 | L6: 0
A7: 3 | B7: 무연탄 | C7: 400 | D7: 268584 | E7: 268584 | F7: 268584 | G7: 246771.7496 | H7: 246771.7496 | I7: 170848 | J7: 268587.2434 | K7: 268584 | L7: 0
A8: 5 | B8: 바이오가스 | C8: 84.054 | D8: 0 | E8: 0 | F8: 0 | G8: 35096.86714 | H8: 35096.86714 | I8: 0 | J8: 0 | K8: 0 | L8: 0
A9: 6 | B9: 부생가스 | C9: 4243.47 | D9: 0 | E9: 0 | F9: 0 | G9: 620331.7463 | H9: 620331.7463 | I9: 0 | J9: 0 | K9: 0 | L9: 0
A10: 7 | B10: 소수력 | C10: 192.09 | D10: 0 | E10: 0 | F10: 0 | G10: 56892.86762 | H10: 56892.86762 | I10: 0 | J10: 0 | K10: 0 | L10: 0
A11: 8 | B11: 수력 | C11: 1604.98 | D11: 292738 | E11: 298067 | F11: 298067 | G11: 311796.303 | H11: 311796.303 | I11: 292737 | J11: 0 | K11: 0 | L11: 0
A12: 9 | B12: 양수 | C12: 4700 | D12: 21275 | E12: 19363 | F12: 19363 | G12: 236372.2772 | H12: 236372.2772 | I12: -6832 | J12: 0 | K12: 0 | L12: 0
A13: 10 | B13: 매립가스 | C13: 66.15 | D13: 0 | E13: 0 | F13: 0 | G13: 9520.346128 | H13: 9520.346128 | I13: 0 | J13: 0 | K13: 0 | L13: 0
A14: 12 | B14: 중유 | C14: 1558.3 | D14: 997481 | E14: 996439 | F14: 996411.956 | G14: 18124.54741 | H14: 18124.35572 | I14: 3743 | J14: 996439.0097 | K14: 996439 | L14: 0
A15: 13 | B15: 태양광 | C15: 4239.839 | D15: 0 | E15: 0 | F15: 0 | G15: 370022.914 | H15: 370022.914 | I15: 0 | J15: 0 | K15: 0 | L15: 0
A16: 15 | B16: 폐기물 | C16: 337.582 | D16: 0 | E16: 0 | F16: 0 | G16: 91306.08729 | H16: 91306.08729 | I16: 0 | J16: 0 | K16: 0 | L16: 0
A17: 16 | B17: 풍력 | C17: 1578.133 | D17: 0 | E17: 0 | F17: 0 | G17: 157028.3926 | H17: 157028.3926 | I17: 0 | J17: 0 | K17: 0 | L17: 0
A18: 17 | B18: LNG | C18: 40746.086 | D18: 29009723 | E18: 28853510 | F18: 28843389.65 | G18: 10065415.4 | H18: 10065415.29 | I18: 6395264 | J18: 28854464.83 | K18: 28853477 | L18: 249720
A19: 20 | B19: 연료전지 | C19: 572.668 | D19: 0 | E19: 0 | F19: 0 | G19: 299319.7805 | H19: 299319.7805 | I19: 0 | J19: 0 | K19: 0 | L19: 0
A20: 21 | B20: 경유 | C20: 562.828 | D20: 351602 | E20: 347806 | F20: 347806 | G20: 3010.52696 | H20: 3010.52696 | I20: 0 | J20: 344646 | K20: 347806 | L20: 0
A21: 22 | B21: 해양에너지 | C21: 255.5 | D21: 0 | E21: 0 | F21: 0 | G21: 37268.65301 | H21: 37268.65301 | I21: 0 | J21: 0 | K21: 0 | L21: 0
A22: 23 | B22: 가스압 | C22: 0.3 | D22: 0 | E22: 0 | F22: 0 | G22: 0 | H22: 0 | I22: 0 | J22: 0 | K22: 0 | L22: 0
A23: 24 | B23: 바이오매스 | C23: 641.054 | D23: 0 | E23: 0 | F23: 0 | G23: 208606.1689 | H23: 208606.1689 | I23: 0 | J23: 0 | K23: 0 | L23: 0
A24: 25 | B24: IGCC | C24: 346.33 | D24: 0 | E24: 0 | F24: 0 | G24: 66567.75552 | H24: 66567.75552 | I24: 0 | J24: 0 | K24: 0 | L24: 0
A25: 32 | B25: 바이오중유 | C25: 350 | D25: 231466 | E25: 228252 | F25: 228069.193 | G25: 100507.7901 | H25: 100507.7901 | I25: 1180 | J25: 228258.0674 | K25: 228252 | L25: 0
A26: 40 | B26: RPS | C26: 0 | D26: 0 | E26: 0 | F26: 0 | G26: 0 | H26: 0 | I26: 0 | J26: 0 | K26: 0 | L26: 0
A27: 99 | B27: 기타 | C27: 84.29 | D27: 0 | E27: 0 | F27: 0 | G27: 46821.09761 | H27: 46821.09761 | I27: 0 | J27: 0 | K27: 0 | L27: 0
A28: 원자력합 | B28: 원자력합 | C28: 23250 | D28: 13184977 | E28: 13077121 | F28: 13077014.06 | G28: 13069346.63 | H28: 13069346.63 | I28: 13184977 | J28: 13079541.01 | K28: 13077121 | L28: 0
A29: 석탄합 | B29: 석탄합 | C29: 37306.282 | D29: 22389796 | E29: 22098069 | F29: 22093681.22 | G29: 17943314.5 | H29: 17943314.5 | I29: 20576051 | J29: 22099167.06 | K29: 22098069 | L29: 0
A30: LNG합 | B30: LNG합 | C30: 40746.086 | D30: 29009723 | E30: 28853510 | F30: 28843389.65 | G30: 10065415.4 | H30: 10065415.29 | I30: 6395264 | J30: 28854464.83 | K30: 28853477 | L30: 249720
A31: 유류합 | B31: 유류합 | C31: 2121.128 | D31: 1349083 | E31: 1344245 | F31: 1344217.956 | G31: 21135.07437 | H31: 21134.88268 | I31: 3743 | J31: 1341085.01 | K31: 1344245 | L31: 0
A32: 양수합 | B32: 양수합 | C32: 4700 | D32: 21275 | E32: 19363 | F32: 19363 | G32: 236372.2772 | H32: 236372.2772 | I32: -6832 | J32: 0 | K32: 0 | L32: 0
A33: 신재생합 | B33: 신재생합 | C33: 14511.85 | D33: 524204 | E33: 526319 | F33: 526136.193 | G33: 2364265.672 | H33: 2364265.672 | I33: 293917 | J33: 228258.0674 | K33: 228252 | L33: 0
A34: 기타합 | B34: 기타합 | C34: 84.59 | D34: 0 | E34: 0 | F34: 0 | G34: 46821.09761 | H34: 46821.09761 | I34: 0 | J34: 0 | K34: 0 | L34: 0
A35: 수력합 | B35: 수력합 | C35: 1797.07 | D35: 292738 | E35: 298067 | F35: 298067 | G35: 368689.1706 | H35: 368689.1706 | I35: 292737 | J35: 0 | K35: 0 | L35: 0
A36: 폐기물합 | B36: 폐기물합 | C36: 4581.052 | D36: 0 | E36: 0 | F36: 0 | G36: 711637.8335 | H36: 711637.8335 | I36: 0 | J36: 0 | K36: 0 | L36: 0
A37: 바이오합 | B37: 바이오합 | C37: 1141.258 | D37: 231466 | E37: 228252 | F37: 228069.193 | G37: 353731.1723 | H37: 353731.1723 | I37: 1180 | J37: 228258.0674 | K37: 228252 | L37: 0
A38: 총계 | C38: 122719.936 | D38: 66479058 | E38: 65918627 | F38: 65903802.09 | G38: 43746670.65 | H38: 43746670.35 | I38: 40447120 | J38: 65602515.98 | K38: 65601164 | L38: 249720

Sheet 202006
A1: 정산요소 내역
A2: 조회기간 : 2020-06-01 ~ 2020-06-30
A3: 단위 : MWh
A4: 연료원코드 | B4: 연료원 | C4: 설비용량(MW) | D4: A | E4: RA | F4: ARA | G4: MGO | H4: AMGO | I4: PSE | J4: FCA | K4: OFCA | L4: OR
A5: 1 | B5: 원자력 | C5: 23250 | D5: 13430527 | E5: 13417510 | F5: 13417494.74 | G5: 13408670.87 | H5: 13408670.87 | I5: 13430527 | J5: 13418974.89 | K5: 13417510 | L5: 0
A6: 2 | B6: 유연탄 | C6: 36906.282 | D6: 20126360 | E6: 19798300 | F6: 19793827.71 | G6: 15357694.31 | H6: 15357669.17 | I6: 18663134 | J6: 19799020.89 | K6: 19798300 | L6: 0
A7: 3 | B7: 무연탄 | C7: 600 | D7: 259920 | E7: 259868 | F7: 259868 | G7: 239196.9651 | H7: 239196.9651 | I7: 95882 | J7: 259871.2097 | K7: 259868 | L7: 0
A8: 5 | B8: 바이오가스 | C8: 83.209 | D8: 0 | E8: 0 | F8: 0 | G8: 33275.73195 | H8: 33275.73195 | I8: 0 | J8: 0 | K8: 0 | L8: 0
A9: 6 | B9: 부생가스 | C9: 4243.47 | D9: 0 | E9: 0 | F9: 0 | G9: 709668.0399 | H9: 709668.0399 | I9: 0 | J9: 0 | K9: 0 | L9: 0
A10: 7 | B10: 소수력 | C10: 192.09 | D10: 0 | E10: 0 | F10: 0 | G10: 52097.30126 | H10: 52097.30126 | I10: 0 | J10: 0 | K10: 0 | L10: 0
A11: 8 | B11: 수력 | C11: 1604.98 | D11: 225594 | E11: 223423 | F11: 223423 | G11: 231057.3363 | H11: 231057.3363 | I11: 225595 | J11: 0 | K11: 0 | L11: 0
A12: 9 | B12: 양수 | C12: 4700 | D12: 700 | E12: 700 | F12: 700 | G12: 224317.3858 | H12: 224317.3858 | I12: -4366 | J12: 0 | K12: 0 | L12: 0
A13: 10 | B13: 매립가스 | C13: 66.15 | D13: 0 | E13: 0 | F13: 0 | G13: 15315.28055 | H13: 15315.28055 | I13: 0 | J13: 0 | K13: 0 | L13: 0
A14: 12 | B14: 중유 | C14: 1558.3 | D14: 898538 | E14: 894349 | F14: 894156.741 | G14: 27451.3355 | H14: 27451.3355 | I14: 7626 | J14: 894349.7063 | K14: 894349 | L14: 0
A15: 13 | B15: 태양광 | C15: 4203.117 | D15: 0 | E15: 0 | F15: 0 | G15: 489167.3257 | H15: 489167.3257 | I15: 0 | J15: 0 | K15: 0 | L15: 0
A16: 15 | B16: 폐기물 | C16: 327.682 | D16: 0 | E16: 0 | F16: 0 | G16: 83038.76923 | H16: 83038.76923 | I16: 0 | J16: 0 | K16: 0 | L16: 0
A17: 16 | B17: 풍력 | C17: 1575.133 | D17: 0 | E17: 0 | F17: 0 | G17: 155164.7241 | H17: 155164.7241 | I17: 0 | J17: 0 | K17: 0 | L17: 0
A18: 17 | B18: LNG | C18: 40296.086 | D18: 25490662 | E18: 25090642 | F18: 25063398.72 | G18: 9058003.324 | H18: 9057534.519 | I18: 4946378 | J18: 25091243.02 | K18: 25090624 | L18: 268240
A19: 20 | B19: 연료전지 | C19: 549.568 | D19: 0 | E19: 0 | F19: 0 | G19: 278818.7373 | H19: 278818.7373 | I19: 0 | J19: 0 | K19: 0 | L19: 0
A20: 21 | B20: 경유 | C20: 562.828 | D20: 342692 | E20: 336548 | F20: 336548 | G20: 1116.066224 | H20: 1116.066224 | I20: 0 | J20: 335477 | K20: 336548 | L20: 0
A21: 22 | B21: 해양에너지 | C21: 255.5 | D21: 0 | E21: 0 | F21: 0 | G21: 35500.25606 | H21: 35500.25606 | I21: 0 | J21: 0 | K21: 0 | L21: 0
A22: 23 | B22: 가스압 | C22: 0.3 | D22: 0 | E22: 0 | F22: 0 | G22: 0 | H22: 0 | I22: 0 | J22: 0 | K22: 0 | L22: 0
A23: 24 | B23: 바이오매스 | C23: 441.054 | D23: 0 | E23: 0 | F23: 0 | G23: 169469.6192 | H23: 169469.6192 | I23: 0 | J23: 0 | K23: 0 | L23: 0
A24: 25 | B24: IGCC | C24: 346.33 | D24: 0 | E24: 0 | F24: 0 | G24: 0 | H24: 0 | I24: 0 | J24: 0 | K24: 0 | L24: 0
A25: 32 | B25: 바이오중유 | C25: 350 | D25: 153737 | E25: 153753 | F25: 153734.653 | G25: 84684.9066 | H25: 84684.9066 | I25: 3670 | J25: 153753 | K25: 153753 | L25: 0
A26: 40 | B26: RPS | C26: 0 | D26: 0 | E26: 0 | F26: 0 | G26: 0 | H26: 0 | I26: 0 | J26: 0 | K26: 0 | L26: 0
A27: 99 | B27: 기타 | C27: 84.29 | D27: 0 | E27: 0 | F27: 0 | G27: 51581.1759 | H27: 51581.1759 | I27: 0 | J27: 0 | K27: 0 | L27: 0
A28: 원자력합 | B28: 원자력합 | C28: 23250 | D28: 13430527 | E28: 13417510 | F28: 13417494.74 | G28: 13408670.87 | H28: 13408670.87 | I28: 13430527 | J28: 13418974.89 | K28: 13417510 | L28: 0
A29: 석탄합 | B29: 석탄합 | C29: 37506.282 | D29: 20386280 | E29: 20058168 | F29: 20053695.71 | G29: 15596891.28 | H29: 15596866.14 | I29: 18759016 | J29: 20058892.1 | K29: 20058168 | L29: 0
A30: LNG합 | B30: LNG합 | C30: 40296.086 | D30: 25490662 | E30: 25090642 | F30: 25063398.72 | G30: 9058003.324 | H30: 9057534.519 | I30: 4946378 | J30: 25091243.02 | K30: 25090624 | L30: 268240
A31: 유류합 | B31: 유류합 | C31: 2121.128 | D31: 1241230 | E31: 1230897 | F31: 1230704.741 | G31: 28567.40172 | H31: 28567.40172 | I31: 7626 | J31: 1229826.706 | K31: 1230897 | L31: 0
A32: 양수합 | B32: 양수합 | C32: 4700 | D32: 700 | E32: 700 | F32: 700 | G32: 224317.3858 | H32: 224317.3858 | I32: -4366 | J32: 0 | K32: 0 | L32: 0
A33: 신재생합 | B33: 신재생합 | C33: 14238.283 | D33: 379331 | E33: 377176 | F33: 377157.653 | G33: 2337258.028 | H33: 2337258.028 | I33: 229265 | J33: 153753 | K33: 153753 | L33: 0
A34: 기타합 | B34: 기타합 | C34: 84.59 | D34: 0 | E34: 0 | F34: 0 | G34: 51581.17591 | H34: 51581.17591 | I34: 0 | J34: 0 | K34: 0 | L34: 0
A35: 수력합 | B35: 수력합 | C35: 1797.07 | D35: 225594 | E35: 223423 | F35: 223423 | G35: 283154.6375 | H35: 283154.6375 | I35: 225595 | J35: 0 | K35: 0 | L35: 0
A36: 폐기물합 | B36: 폐기물합 | C36: 4571.152 | D36: 0 | E36: 0 | F36: 0 | G36: 792706.8092 | H36: 792706.8092 | I36: 0 | J36: 0 | K36: 0 | L36: 0
A37: 바이오합 | B37: 바이오합 | C37: 940.413 | D37: 153737 | E37: 153753 | F37: 153734.653 | G37: 302745.5384 | H37: 302745.5384 | I37: 3670 | J37: 153753 | K37: 153753 | L37: 0
A38: 총계 | C38: 122196.369 | D38: 60928730 | E38: 60175093 | F38: 60143151.57 | G38: 40705289.47 | H38: 40704795.52 | I38: 37368446 | J38: 59952689.71 | K38: 59950952 | L38: 268240

Sheet 202005
A1: 정산요소 내역
A2: 조회기간 : 2020-05-01 ~ 2020-05-31
A3: 단위 : MWh
A4: 연료원코드 | B4: 연료원 | C4: 설비용량(MW) | D4: A | E4: RA | F4: ARA | G4: MGO | H4: AMGO | I4: PSE | J4: FCA | K4: OFCA | L4: OR
A5: 1 | B5: 원자력 | C5: 23250 | D5: 14558105 | E5: 14575906 | F5: 14563440.3 | G5: 14555453.43 | H5: 14555453.43 | I5: 14558105 | J5: 14577364.02 | K5: 14575906 | L5: 0
A6: 2 | B6: 유연탄 | C6: 36906.282 | D6: 18070901 | E6: 17769822 | F6: 17769160.23 | G6: 13885300.77 | H6: 13885300.77 | I6: 17085165 | J6: 17770982.89 | K6: 17769822 | L6: 0
A7: 3 | B7: 무연탄 | C7: 600 | D7: 201155 | E7: 198329 | F7: 198236.952 | G7: 183259.6966 | H7: 183259.6966 | I7: 125657 | J7: 198342.6904 | K7: 198329 | L7: 0
A8: 5 | B8: 바이오가스 | C8: 83.022 | D8: 0 | E8: 0 | F8: 0 | G8: 29970.63766 | H8: 29970.63766 | I8: 0 | J8: 0 | K8: 0 | L8: 0
A9: 6 | B9: 부생가스 | C9: 4243.47 | D9: 0 | E9: 0 | F9: 0 | G9: 551434.1098 | H9: 551434.1098 | I9: 0 | J9: 0 | K9: 0 | L9: 0
A10: 7 | B10: 소수력 | C10: 192.09 | D10: 0 | E10: 0 | F10: 0 | G10: 54764.50326 | H10: 54764.50326 | I10: 0 | J10: 0 | K10: 0 | L10: 0
A11: 8 | B11: 수력 | C11: 1604.98 | D11: 204527 | E11: 208751 | F11: 208751 | G11: 215950.8162 | H11: 215950.8162 | I11: 204529 | J11: 0 | K11: 0 | L11: 0
A12: 9 | B12: 양수 | C12: 4700 | D12: 8420 | E12: 8420 | F12: 8420 | G12: 285741.0548 | H12: 285741.0548 | I12: -477 | J12: 0 | K12: 0 | L12: 0
A13: 10 | B13: 매립가스 | C13: 65.225 | D13: 0 | E13: 0 | F13: 0 | G13: 15824.98083 | H13: 15824.98083 | I13: 0 | J13: 0 | K13: 0 | L13: 0
A14: 12 | B14: 중유 | C14: 1558.3 | D14: 846974 | E14: 841374 | F14: 841368.026 | G14: 23756.32733 | H14: 23756.32733 | I14: 9616 | J14: 841408.4132 | K14: 841374 | L14: 0
A15: 13 | B15: 태양광 | C15: 3878.669 | D15: 0 | E15: 0 | F15: 0 | G15: 496755.516 | H15: 496755.516 | I15: 0 | J15: 0 | K15: 0 | L15: 0
A16: 15 | B16: 폐기물 | C16: 327.682 | D16: 0 | E16: 0 | F16: 0 | G16: 85761.52025 | H16: 85761.52025 | I16: 0 | J16: 0 | K16: 0 | L16: 0
A17: 16 | B17: 풍력 | C17: 1563.583 | D17: 0 | E17: 0 | F17: 0 | G17: 215976.274 | H17: 215976.274 | I17: 0 | J17: 0 | K17: 0 | L17: 0
A18: 17 | B18: LNG | C18: 40296.086 | D18: 26453741 | E18: 26169763 | F18: 26166780.15 | G18: 7251384.697 | H18: 7251384.697 | I18: 3354437 | J18: 26170531.29 | K18: 26169671 | L18: 184243
A19: 20 | B19: 연료전지 | C19: 530.53 | D19: 0 | E19: 0 | F19: 0 | G19: 289214.3673 | H19: 289214.3673 | I19: 0 | J19: 0 | K19: 0 | L19: 0
A20: 21 | B20: 경유 | C20: 514.314 | D20: 355914 | E20: 355794 | F20: 355794 | G20: 0 | H20: 0 | I20: 0 | J20: 355794 | K20: 355794 | L20: 0
A21: 22 | B21: 해양에너지 | C21: 255.5 | D21: 0 | E21: 0 | F21: 0 | G21: 36992.75786 | H21: 36992.75786 | I21: 0 | J21: 0 | K21: 0 | L21: 0
A22: 23 | B22: 가스압 | C22: 0.3 | D22: 0 | E22: 0 | F22: 0 | G22: 0 | H22: 0 | I22: 0 | J22: 0 | K22: 0 | L22: 0
A23: 24 | B23: 바이오매스 | C23: 441.054 | D23: 0 | E23: 0 | F23: 0 | G23: 150927.9812 | H23: 150927.9812 | I23: 0 | J23: 0 | K23: 0 | L23: 0
A24: 25 | B24: IGCC | C24: 346.33 | D24: 0 | E24: 0 | F24: 0 | G24: 76941.86864 | H24: 76941.86864 | I24: 0 | J24: 0 | K24: 0 | L24: 0
A25: 32 | B25: 바이오중유 | C25: 350 | D25: 244225 | E25: 244225 | F25: 244225 | G25: 112357.145 | H25: 112357.145 | I25: 7681 | J25: 244225.0783 | K25: 244225 | L25: 0
A26: 40 | B26: RPS | C26: 0 | D26: 0 | E26: 0 | F26: 0 | G26: 0 | H26: 0 | I26: 0 | J26: 0 | K26: 0 | L26: 0
A27: 99 | B27: 기타 | C27: 84.29 | D27: 0 | E27: 0 | F27: 0 | G27: 54303.48602 | H27: 54303.48602 | I27: 0 | J27: 0 | K27: 0 | L27: 0
A28: 원자력합 | B28: 원자력합 | C28: 23250 | D28: 14558105 | E28: 14575906 | F28: 14563440.3 | G28: 14555453.43 | H28: 14555453.43 | I28: 14558105 | J28: 14577364.02 | K28: 14575906 | L28: 0
A29: 석탄합 | B29: 석탄합 | C29: 37506.282 | D29: 18272056 | E29: 17968151 | F29: 17967397.18 | G29: 14068560.47 | H29: 14068560.47 | I29: 17210822 | J29: 17969325.59 | K29: 17968151 | L29: 0
A30: LNG합 | B30: LNG합 | C30: 40296.086 | D30: 26453741 | E30: 26169763 | F30: 26166780.15 | G30: 7251384.697 | H30: 7251384.697 | I30: 3354437 | J30: 26170531.29 | K30: 26169671 | L30: 184243
A31: 유류합 | B31: 유류합 | C31: 2072.614 | D31: 1202888 | E31: 1197168 | F31: 1197162.026 | G31: 23756.32733 | H31: 23756.32733 | I31: 9616 | J31: 1197202.413 | K31: 1197168 | L31: 0
A32: 양수합 | B32: 양수합 | C32: 4700 | D32: 8420 | E32: 8420 | F32: 8420 | G32: 285741.0548 | H32: 285741.0548 | I32: -477 | J32: 0 | K32: 0 | L32: 0
A33: 신재생합 | B33: 신재생합 | C33: 13882.135 | D33: 448752 | E33: 452976 | F33: 452976 | G33: 2332872.478 | H33: 2332872.478 | I33: 212210 | J33: 244225.0783 | K33: 244225 | L33: 0
A34: 기타합 | B34: 기타합 | C34: 84.59 | D34: 0 | E34: 0 | F34: 0 | G34: 54303.48602 | H34: 54303.48602 | I34: 0 | J34: 0 | K34: 0 | L34: 0
A35: 수력합 | B35: 수력합 | C35: 1797.07 | D35: 204527 | E35: 208751 | F35: 208751 | G35: 270715.3195 | H35: 270715.3195 | I35: 204529 | J35: 0 | K35: 0 | L35: 0
A36: 폐기물합 | B36: 폐기물합 | C36: 4571.152 | D36: 0 | E36: 0 | F36: 0 | G36: 637195.63 | H36: 637195.63 | I36: 0 | J36: 0 | K36: 0 | L36: 0
A37: 바이오합 | B37: 바이오합 | C37: 939.301 | D37: 244225 | E37: 244225 | F37: 244225 | G37: 309080.7448 | H37: 309080.7448 | I37: 7681 | J37: 244225.0783 | K37: 244225 | L37: 0
A38: 총계 | C38: 121791.707 | D38: 60943962 | E38: 60372384 | F38: 60356175.66 | G38: 38572071.95 | H38: 38572071.95 | I38: 35344713 | J38: 60158648.38 | K38: 60155121 | L38: 184243

Sheet 202004
A1: 정산요소 내역
A2: 조회기간 : 2020-04-01 ~ 2020-04-30
A3: 단위 : MWh
A4: 연료원코드 | B4: 연료원 | C4: 설비용량(MW) | D4: A | E4: RA | F4: ARA | G4: MGO | H4: AMGO | I4: PSE | J4: FCA | K4: OFCA | L4: OR
A5: 1 | B5: 원자력 | C5: 23250 | D5: 13122533 | E5: 13056626 | F5: 13056588.2 | G5: 13049335.52 | H5: 13049335.52 | I5: 13119385 | J5: 13057831.99 | K5: 13056626 | L5: 0
A6: 2 | B6: 유연탄 | C6: 36906.282 | D6: 16077356 | E6: 15947236 | F6: 15945913.21 | G6: 13993560.05 | H6: 13993546.84 | I6: 15811588 | J6: 15947371.22 | K6: 15947236 | L6: 0
A7: 3 | B7: 무연탄 | C7: 600 | D7: 130307 | E7: 130307 | F7: 130307 | G7: 116449.868 | H7: 116449.868 | I7: 110942 | J7: 130343.5537 | K7: 130307 | L7: 0
A8: 5 | B8: 바이오가스 | C8: 81.622 | D8: 0 | E8: 0 | F8: 0 | G8: 33483.90862 | H8: 33483.90862 | I8: 0 | J8: 0 | K8: 0 | L8: 0
A9: 6 | B9: 부생가스 | C9: 4243.47 | D9: 0 | E9: 0 | F9: 0 | G9: 519226.2145 | H9: 519226.2145 | I9: 0 | J9: 0 | K9: 0 | L9: 0
A10: 7 | B10: 소수력 | C10: 192.09 | D10: 0 | E10: 0 | F10: 0 | G10: 40856.50212 | H10: 40856.50212 | I10: 0 | J10: 0 | K10: 0 | L10: 0
A11: 8 | B11: 수력 | C11: 1604.98 | D11: 164445 | E11: 164091 | F11: 164091 | G11: 169253.1459 | H11: 169253.1459 | I11: 164387 | J11: 0 | K11: 0 | L11: 0
A12: 9 | B12: 양수 | C12: 4700 | D12: 1450 | E12: 1450 | F12: 1450 | G12: 296284.6431 | H12: 296284.6431 | I12: -1979 | J12: 0 | K12: 0 | L12: 0
A13: 10 | B13: 매립가스 | C13: 66.148 | D13: 0 | E13: 0 | F13: 0 | G13: 12337.00895 | H13: 12337.00895 | I13: 0 | J13: 0 | K13: 0 | L13: 0
A14: 12 | B14: 중유 | C14: 1558.3 | D14: 714499 | E14: 705230 | F14: 705226.768 | G14: 111727.3132 | H14: 111727.3132 | I14: 8466 | J14: 705230.0796 | K14: 705230 | L14: 0
A15: 13 | B15: 태양광 | C15: 3755.565 | D15: 0 | E15: 0 | F15: 0 | G15: 570929.5277 | H15: 570929.5277 | I15: 0 | J15: 0 | K15: 0 | L15: 0
A16: 15 | B16: 폐기물 | C16: 327.682 | D16: 0 | E16: 0 | F16: 0 | G16: 91704.16732 | H16: 91704.16732 | I16: 0 | J16: 0 | K16: 0 | L16: 0
A17: 16 | B17: 풍력 | C17: 1562.173 | D17: 0 | E17: 0 | F17: 0 | G17: 309315.1087 | H17: 309315.1087 | I17: 0 | J17: 0 | K17: 0 | L17: 0
A18: 17 | B18: LNG | C18: 40296.086 | D18: 26075641 | E18: 25725070 | F18: 25720293.75 | G18: 9012993.767 | H18: 9012993.767 | I18: 6771019 | J18: 25728362.38 | K18: 25724909 | L18: 233252
A19: 20 | B19: 연료전지 | C19: 530.53 | D19: 0 | E19: 0 | F19: 0 | G19: 252038.0551 | H19: 252038.0551 | I19: 0 | J19: 0 | K19: 0 | L19: 0
A20: 21 | B20: 경유 | C20: 465.8 | D20: 354633 | E20: 355052 | F20: 355052 | G20: 0 | H20: 0 | I20: 0 | J20: 355052 | K20: 355052 | L20: 0
A21: 22 | B21: 해양에너지 | C21: 255.5 | D21: 0 | E21: 0 | F21: 0 | G21: 37814.33659 | H21: 37814.33659 | I21: 0 | J21: 0 | K21: 0 | L21: 0
A22: 23 | B22: 가스압 | C22: 0.3 | D22: 0 | E22: 0 | F22: 0 | G22: 0 | H22: 0 | I22: 0 | J22: 0 | K22: 0 | L22: 0
A23: 24 | B23: 바이오매스 | C23: 401.054 | D23: 0 | E23: 0 | F23: 0 | G23: 162829.5306 | H23: 162829.5306 | I23: 0 | J23: 0 | K23: 0 | L23: 0
A24: 25 | B24: IGCC | C24: 346.33 | D24: 0 | E24: 0 | F24: 0 | G24: 203736.0007 | H24: 203736.0007 | I24: 0 | J24: 0 | K24: 0 | L24: 0
A25: 32 | B25: 바이오중유 | C25: 350 | D25: 243360 | E25: 243109 | F25: 243109 | G25: 129079.3534 | H25: 129079.3534 | I25: 22237 | J25: 243109.3314 | K25: 243109 | L25: 0
A26: 40 | B26: RPS | C26: 0 | D26: 0 | E26: 0 | F26: 0 | G26: 0 | H26: 0 | I26: 0 | J26: 0 | K26: 0 | L26: 0
A27: 99 | B27: 기타 | C27: 84.29 | D27: 0 | E27: 0 | F27: 0 | G27: 52507.81691 | H27: 52507.81691 | I27: 0 | J27: 0 | K27: 0 | L27: 0
A28: 원자력합 | B28: 원자력합 | C28: 23250 | D28: 13122533 | E28: 13056626 | F28: 13056588.2 | G28: 13049335.52 | H28: 13049335.52 | I28: 13119385 | J28: 13057831.99 | K28: 13056626 | L28: 0
A29: 석탄합 | B29: 석탄합 | C29: 37506.282 | D29: 16207663 | E29: 16077543 | F29: 16076220.21 | G29: 14110009.92 | H29: 14109996.71 | I29: 15922530 | J29: 16077714.77 | K29: 16077543 | L29: 0
A30: LNG합 | B30: LNG합 | C30: 40296.086 | D30: 26075641 | E30: 25725070 | F30: 25720293.75 | G30: 9012993.767 | H30: 9012993.767 | I30: 6771019 | J30: 25728362.38 | K30: 25724909 | L30: 233252
A31: 유류합 | B31: 유류합 | C31: 2024.1 | D31: 1069132 | E31: 1060282 | F31: 1060278.768 | G31: 111727.3132 | H31: 111727.3132 | I31: 8466 | J31: 1060282.08 | K31: 1060282 | L31: 0
A32: 양수합 | B32: 양수합 | C32: 4700 | D32: 1450 | E32: 1450 | F32: 1450 | G32: 296284.6431 | H32: 296284.6431 | I32: -1979 | J32: 0 | K32: 0 | L32: 0
A33: 신재생합 | B33: 신재생합 | C33: 13717.144 | D33: 407805 | E33: 407200 | F33: 407200 | G33: 2532602.86 | H33: 2532602.86 | I33: 186624 | J33: 243109.3314 | K33: 243109 | L33: 0
A34: 기타합 | B34: 기타합 | C34: 84.59 | D34: 0 | E34: 0 | F34: 0 | G34: 52507.81691 | H34: 52507.81691 | I34: 0 | J34: 0 | K34: 0 | L34: 0
A35: 수력합 | B35: 수력합 | C35: 1797.07 | D35: 164445 | E35: 164091 | F35: 164091 | G35: 210109.648 | H35: 210109.648 | I35: 164387 | J35: 0 | K35: 0 | L35: 0
A36: 폐기물합 | B36: 폐기물합 | C36: 4571.152 | D36: 0 | E36: 0 | F36: 0 | G36: 610930.3818 | H36: 610930.3818 | I36: 0 | J36: 0 | K36: 0 | L36: 0
A37: 바이오합 | B37: 바이오합 | C37: 898.824 | D37: 243360 | E37: 243109 | F37: 243109 | G37: 337729.8016 | H37: 337729.8016 | I37: 22237 | J37: 243109.3314 | K37: 243109 | L37: 0
A38: 총계 | C38: 121578.202 | D38: 56884224 | E38: 56328171 | F38: 56322030.94 | G38: 39165461.83 | H38: 39165448.63 | I38: 36006045 | J38: 56167300.55 | K38: 56162469 | L38: 233252

Sheet 202003
A1: 정산요소 내역
A2: 조회기간 : 2020-03-01 ~ 2020-03-31
A3: 단위 : MWh
A4: 연료원코드 | B4: 연료원 | C4: 설비용량(MW) | D4: A | E4: RA | F4: ARA | G4: MGO | H4: AMGO | I4: PSE | J4: FCA | K4: OFCA | L4: OR
A5: 1 | B5: 원자력 | C5: 23250 | D5: 13810663 | E5: 13794115 | F5: 13794115 | G5: 13788468.43 | H5: 13788468.43 | I5: 13810663 | J5: 13795848.24 | K5: 13794115 | L5: 0
A6: 2 | B6: 유연탄 | C6: 36906.282 | D6: 12956965 | E6: 12858821 | F6: 12858083.1 | G6: 13084861.17 | H6: 13084835.48 | I6: 12955587 | J6: 12859368 | K6: 12858821 | L6: 0
A7: 3 | B7: 무연탄 | C7: 600 | D7: 97670 | E7: 94768 | F7: 94758.032 | G7: 92436.94494 | H7: 92436.94494 | I7: 97622 | J7: 94783.18981 | K7: 94768 | L7: 0
A8: 5 | B8: 바이오가스 | C8: 82.117 | D8: 0 | E8: 0 | F8: 0 | G8: 34465.62303 | H8: 34465.62303 | I8: 0 | J8: 0 | K8: 0 | L8: 0
A9: 6 | B9: 부생가스 | C9: 4243.47 | D9: 0 | E9: 0 | F9: 0 | G9: 580587.1953 | H9: 580587.1953 | I9: 0 | J9: 0 | K9: 0 | L9: 0
A10: 7 | B10: 소수력 | C10: 189.96 | D10: 0 | E10: 0 | F10: 0 | G10: 48837.09289 | H10: 48837.09289 | I10: 0 | J10: 0 | K10: 0 | L10: 0
A11: 8 | B11: 수력 | C11: 1604.98 | D11: 176615 | E11: 176024 | F11: 176024 | G11: 178409.3386 | H11: 178409.3386 | I11: 176601 | J11: 0 | K11: 0 | L11: 0
A12: 9 | B12: 양수 | C12: 4700 | D12: 5133 | E12: 5133 | F12: 5133 | G12: 301146.136 | H12: 301146.136 | I12: 2562 | J12: 0 | K12: 0 | L12: 0
A13: 10 | B13: 매립가스 | C13: 66.148 | D13: 0 | E13: 0 | F13: 0 | G13: 18306.49947 | H13: 18306.49947 | I13: 0 | J13: 0 | K13: 0 | L13: 0
A14: 12 | B14: 중유 | C14: 1558.3 | D14: 800765 | E14: 799507 | F14: 799506.268 | G14: 88084.3949 | H14: 88084.3949 | I14: 7620 | J14: 799535.9773 | K14: 799507 | L14: 0
A15: 13 | B15: 태양광 | C15: 3706.89 | D15: 0 | E15: 0 | F15: 0 | G15: 505086.7725 | H15: 505086.7725 | I15: 0 | J15: 0 | K15: 0 | L15: 0
A16: 15 | B16: 폐기물 | C16: 317.682 | D16: 0 | E16: 0 | F16: 0 | G16: 76212.93629 | H16: 76212.93629 | I16: 0 | J16: 0 | K16: 0 | L16: 0
A17: 16 | B17: 풍력 | C17: 1562.173 | D17: 0 | E17: 0 | F17: 0 | G17: 301554.5281 | H17: 301554.5281 | I17: 0 | J17: 0 | K17: 0 | L17: 0
A18: 17 | B18: LNG | C18: 40296.086 | D18: 29231777 | E18: 28915409 | F18: 28905589.73 | G18: 13157277.77 | H18: 13157277.77 | I18: 12927111 | J18: 28919782.23 | K18: 28915352 | L18: 227535
A19: 20 | B19: 연료전지 | C19: 510.73 | D19: 0 | E19: 0 | F19: 0 | G19: 237593.6952 | H19: 237593.6952 | I19: 0 | J19: 0 | K19: 0 | L19: 0
A20: 21 | B20: 경유 | C20: 465.8 | D20: 375193 | E20: 374819 | F20: 374819 | G20: 0 | H20: 0 | I20: 0 | J20: 374819 | K20: 374819 | L20: 0
A21: 22 | B21: 해양에너지 | C21: 255.5 | D21: 0 | E21: 0 | F21: 0 | G21: 40314.93134 | H21: 40314.93134 | I21: 0 | J21: 0 | K21: 0 | L21: 0
A22: 23 | B22: 가스압 | C22: 0.3 | D22: 0 | E22: 0 | F22: 0 | G22: 0 | H22: 0 | I22: 0 | J22: 0 | K22: 0 | L22: 0
A23: 24 | B23: 바이오매스 | C23: 391.154 | D23: 0 | E23: 0 | F23: 0 | G23: 234539.1806 | H23: 234539.1806 | I23: 0 | J23: 0 | K23: 0 | L23: 0
A24: 25 | B24: IGCC | C24: 346.33 | D24: 0 | E24: 0 | F24: 0 | G24: 213632.1326 | H24: 213632.1326 | I24: 0 | J24: 0 | K24: 0 | L24: 0
A25: 32 | B25: 바이오중유 | C25: 350 | D25: 239034 | E25: 238846 | F25: 238846 | G25: 117576.2408 | H25: 117576.2408 | I25: 4368 | J25: 238846 | K25: 238846 | L25: 0
A26: 40 | B26: RPS | C26: 0 | D26: 0 | E26: 0 | F26: 0 | G26: 0 | H26: 0 | I26: 0 | J26: 0 | K26: 0 | L26: 0
A27: 99 | B27: 기타 | C27: 84.29 | D27: 0 | E27: 0 | F27: 0 | G27: 53351.36205 | H27: 53351.36205 | I27: 0 | J27: 0 | K27: 0 | L27: 0
A28: 원자력합 | B28: 원자력합 | C28: 23250 | D28: 13810663 | E28: 13794115 | F28: 13794115 | G28: 13788468.43 | H28: 13788468.43 | I28: 13810663 | J28: 13795848.24 | K28: 13794115 | L28: 0
A29: 석탄합 | B29: 석탄합 | C29: 37506.282 | D29: 13054635 | E29: 12953589 | F29: 12952841.13 | G29: 13177298.11 | H29: 13177272.43 | I29: 13053209 | J29: 12954151.19 | K29: 12953589 | L29: 0
A30: LNG합 | B30: LNG합 | C30: 40296.086 | D30: 29231777 | E30: 28915409 | F30: 28905589.73 | G30: 13157277.77 | H30: 13157277.77 | I30: 12927111 | J30: 28919782.23 | K30: 28915352 | L30: 227535
A31: 유류합 | B31: 유류합 | C31: 2024.1 | D31: 1175958 | E31: 1174326 | F31: 1174325.268 | G31: 88084.3949 | H31: 88084.3949 | I31: 7620 | J31: 1174354.977 | K31: 1174326 | L31: 0
A32: 양수합 | B32: 양수합 | C32: 4700 | D32: 5133 | E32: 5133 | F32: 5133 | G32: 301146.136 | H32: 301146.136 | I32: 2562 | J32: 0 | K32: 0 | L32: 0
A33: 신재생합 | B33: 신재생합 | C33: 13627.134 | D33: 415649 | E33: 414870 | F33: 414870 | G33: 2587116.167 | H33: 2587116.167 | I33: 180969 | J33: 238846 | K33: 238846 | L33: 0
A34: 기타합 | B34: 기타합 | C34: 84.59 | D34: 0 | E34: 0 | F34: 0 | G34: 53351.36205 | H34: 53351.36205 | I34: 0 | J34: 0 | K34: 0 | L34: 0
A35: 수력합 | B35: 수력합 | C35: 1794.94 | D35: 176615 | E35: 176024 | F35: 176024 | G35: 227246.4315 | H35: 227246.4315 | I35: 176601 | J35: 0 | K35: 0 | L35: 0
A36: 폐기물합 | B36: 폐기물합 | C36: 4561.152 | D36: 0 | E36: 0 | F36: 0 | G36: 656800.1316 | H36: 656800.1316 | I36: 0 | J36: 0 | K36: 0 | L36: 0
A37: 바이오합 | B37: 바이오합 | C37: 889.419 | D37: 239034 | E37: 238846 | F37: 238846 | G37: 404887.544 | H37: 404887.544 | I37: 4368 | J37: 238846 | K37: 238846 | L37: 0
A38: 총계 | C38: 121488.192 | D38: 57693815 | E38: 57257442 | F38: 57246874.12 | G38: 43152742.37 | H38: 43152716.69 | I38: 39982134 | J38: 57082982.64 | K38: 57076228 | L38: 227535

Sheet 202002
A1: 정산요소 내역
A2: 조회기간 : 2020-02-01 ~ 2020-02-29
A3: 단위 : MWh
A4: 연료원코드 | B4: 연료원 | C4: 설비용량(MW) | D4: A | E4: RA | F4: ARA | G4: MGO | H4: AMGO | I4: PSE | J4: FCA | K4: OFCA | L4: OR
A5: 1 | B5: 원자력 | C5: 23250 | D5: 12123672 | E5: 12090967 | F5: 12090793.18 | G5: 12086888 | H5: 12086888 | I5: 12120476 | J5: 12093412.64 | K5: 12090967 | L5: 0
A6: 2 | B6: 유연탄 | C6: 36906.282 | D6: 15426938 | E6: 15344736 | F6: 15342765.42 | G6: 15306385.4 | H6: 15306385.4 | I6: 15425921 | J6: 15345322.97 | K6: 15344736 | L6: 0
A7: 3 | B7: 무연탄 | C7: 600 | D7: 195539 | E7: 195430 | F7: 195430 | G7: 191653.0741 | H7: 191653.0741 | I7: 195539 | J7: 195430.5528 | K7: 195430 | L7: 0
A8: 5 | B8: 바이오가스 | C8: 82.117 | D8: 0 | E8: 0 | F8: 0 | G8: 31391.25272 | H8: 31391.25272 | I8: 0 | J8: 0 | K8: 0 | L8: 0
A9: 6 | B9: 부생가스 | C9: 4243.47 | D9: 0 | E9: 0 | F9: 0 | G9: 570855.0234 | H9: 570855.0234 | I9: 0 | J9: 0 | K9: 0 | L9: 0
A10: 7 | B10: 소수력 | C10: 189.96 | D10: 0 | E10: 0 | F10: 0 | G10: 43138.27695 | H10: 43138.27695 | I10: 0 | J10: 0 | K10: 0 | L10: 0
A11: 8 | B11: 수력 | C11: 1604.98 | D11: 150867 | E11: 154761 | F11: 154761 | G11: 160842.2533 | H11: 160842.2533 | I11: 150859 | J11: 0 | K11: 0 | L11: 0
A12: 9 | B12: 양수 | C12: 4700 | D12: 3480 | E12: 3480 | F12: 3480 | G12: 318672.0657 | H12: 318672.0657 | I12: 936 | J12: 0 | K12: 0 | L12: 0
A13: 10 | B13: 매립가스 | C13: 66.148 | D13: 0 | E13: 0 | F13: 0 | G13: 17656.533 | H13: 17656.533 | I13: 0 | J13: 0 | K13: 0 | L13: 0
A14: 12 | B14: 중유 | C14: 1558.3 | D14: 930142 | E14: 927924 | F14: 927923.091 | G14: 84216.65582 | H14: 84216.65582 | I14: 4824 | J14: 927925.0024 | K14: 927924 | L14: 0
A15: 13 | B15: 태양광 | C15: 3665.929 | D15: 0 | E15: 0 | F15: 0 | G15: 339879.9696 | H15: 339879.9696 | I15: 0 | J15: 0 | K15: 0 | L15: 0
A16: 15 | B16: 폐기물 | C16: 314.782 | D16: 0 | E16: 0 | F16: 0 | G16: 65283.59479 | H16: 65283.59479 | I16: 0 | J16: 0 | K16: 0 | L16: 0
A17: 16 | B17: 풍력 | C17: 1562.173 | D17: 0 | E17: 0 | F17: 0 | G17: 292092.1518 | H17: 292092.1518 | I17: 0 | J17: 0 | K17: 0 | L17: 0
A18: 17 | B18: LNG | C18: 40296.086 | D18: 29128305 | E18: 28850547 | F18: 28837607 | G18: 13445034.06 | H18: 13445034.06 | I18: 13020034 | J18: 28851874.17 | K18: 28850469 | L18: 159161
A19: 20 | B19: 연료전지 | C19: 485.69 | D19: 0 | E19: 0 | F19: 0 | G19: 205091.2049 | H19: 205091.2049 | I19: 0 | J19: 0 | K19: 0 | L19: 0
A20: 21 | B20: 경유 | C20: 465.8 | D20: 356603 | E20: 357146 | F20: 357146 | G20: 0 | H20: 0 | I20: 0 | J20: 357146 | K20: 357146 | L20: 0
A21: 22 | B21: 해양에너지 | C21: 255.5 | D21: 0 | E21: 0 | F21: 0 | G21: 37796.38558 | H21: 37796.38558 | I21: 0 | J21: 0 | K21: 0 | L21: 0
A22: 23 | B22: 가스압 | C22: 0.3 | D22: 0 | E22: 0 | F22: 0 | G22: 0 | H22: 0 | I22: 0 | J22: 0 | K22: 0 | L22: 0
A23: 24 | B23: 바이오매스 | C23: 391.154 | D23: 0 | E23: 0 | F23: 0 | G23: 201120.4309 | H23: 201120.4309 | I23: 0 | J23: 0 | K23: 0 | L23: 0
A24: 25 | B24: IGCC | C24: 346.33 | D24: 0 | E24: 0 | F24: 0 | G24: 189773.3874 | H24: 189773.3874 | I24: 0 | J24: 0 | K24: 0 | L24: 0
A25: 32 | B25: 바이오중유 | C25: 350 | D25: 235248 | E25: 235248 | F25: 235248 | G25: 109013.8928 | H25: 109013.8928 | I25: 7765 | J25: 235249.2364 | K25: 235248 | L25: 0
A26: 40 | B26: RPS | C26: 0 | D26: 0 | E26: 0 | F26: 0 | G26: 0 | H26: 0 | I26: 0 | J26: 0 | K26: 0 | L26: 0
A27: 99 | B27: 기타 | C27: 81.19 | D27: 0 | E27: 0 | F27: 0 | G27: 45284.26707 | H27: 45284.26707 | I27: 0 | J27: 0 | K27: 0 | L27: 0
A28: 원자력합 | B28: 원자력합 | C28: 23250 | D28: 12123672 | E28: 12090967 | F28: 12090793.18 | G28: 12086888 | H28: 12086888 | I28: 12120476 | J28: 12093412.64 | K28: 12090967 | L28: 0
A29: 석탄합 | B29: 석탄합 | C29: 37506.282 | D29: 15622477 | E29: 15540166 | F29: 15538195.42 | G29: 15498038.47 | H29: 15498038.47 | I29: 15621460 | J29: 15540753.53 | K29: 15540166 | L29: 0
A30: LNG합 | B30: LNG합 | C30: 40296.086 | D30: 29128305 | E30: 28850547 | F30: 28837607 | G30: 13445034.06 | H30: 13445034.06 | I30: 13020034 | J30: 28851874.17 | K30: 28850469 | L30: 159161
A31: 유류합 | B31: 유류합 | C31: 2024.1 | D31: 1286745 | E31: 1285070 | F31: 1285069.091 | G31: 84216.65582 | H31: 84216.65582 | I31: 4824 | J31: 1285071.002 | K31: 1285070 | L31: 0
A32: 양수합 | B32: 양수합 | C32: 4700 | D32: 3480 | E32: 3480 | F32: 3480 | G32: 318672.0657 | H32: 318672.0657 | I32: 936 | J32: 0 | K32: 0 | L32: 0
A33: 신재생합 | B33: 신재생합 | C33: 13558.233 | D33: 386115 | E33: 390009 | F33: 390009 | G33: 2263934.357 | H33: 2263934.357 | I33: 158624 | J33: 235249.2364 | K33: 235248 | L33: 0
A34: 기타합 | B34: 기타합 | C34: 81.49 | D34: 0 | E34: 0 | F34: 0 | G34: 45284.26707 | H34: 45284.26707 | I34: 0 | J34: 0 | K34: 0 | L34: 0
A35: 수력합 | B35: 수력합 | C35: 1794.94 | D35: 150867 | E35: 154761 | F35: 154761 | G35: 203980.5302 | H35: 203980.5302 | I35: 150859 | J35: 0 | K35: 0 | L35: 0
A36: 폐기물합 | B36: 폐기물합 | C36: 4558.252 | D36: 0 | E36: 0 | F36: 0 | G36: 636138.6182 | H36: 636138.6182 | I36: 0 | J36: 0 | K36: 0 | L36: 0
A37: 바이오합 | B37: 바이오합 | C37: 889.419 | D37: 235248 | E37: 235248 | F37: 235248 | G37: 359182.1094 | H37: 359182.1094 | I37: 7765 | J37: 235249.2364 | K37: 235248 | L37: 0
A38: 총계 | C38: 121416.191 | D38: 58550794 | E38: 58160239 | F38: 58145153.68 | G38: 43742067.87 | H38: 43742067.87 | I38: 40926354 | J38: 58006360.57 | K38: 58001920 | L38: 159161

Sheet 202001
A1: 정산요소 내역
A2: 조회기간 : 2020-01-01 ~ 2020-01-31
A3: 단위 : MWh
A4: 연료원코드 | B4: 연료원 | C4: 설비용량(MW) | D4: A | E4: RA | F4: ARA | G4: MGO | H4: AMGO | I4: PSE | J4: FCA | K4: OFCA | L4: OR
A5: 1 | B5: 원자력 | C5: 23250 | D5: 11326058 | E5: 11321176 | F5: 11321176 | G5: 11314741.92 | H5: 11314741.92 | I5: 11324878 | J5: 11322863.6 | K5: 11321176 | L5: 0
A6: 2 | B6: 유연탄 | C6: 36906.282 | D6: 17444088 | E6: 17387268 | F6: 17386819.9 | G6: 17454460.35 | H6: 17454460.35 | I6: 17427753 | J6: 17387558.16 | K6: 17387268 | L6: 0
A7: 3 | B7: 무연탄 | C7: 600 | D7: 209064 | E7: 209064 | F7: 209064 | G7: 205509.6819 | H7: 205509.6819 | I7: 204647 | J7: 209065.463 | K7: 209064 | L7: 0
A8: 5 | B8: 바이오가스 | C8: 87.117 | D8: 0 | E8: 0 | F8: 0 | G8: 23499.02475 | H8: 23499.02475 | I8: 0 | J8: 0 | K8: 0 | L8: 0
A9: 6 | B9: 부생가스 | C9: 4243.47 | D9: 0 | E9: 0 | F9: 0 | G9: 568992.2633 | H9: 568992.2633 | I9: 0 | J9: 0 | K9: 0 | L9: 0
A10: 7 | B10: 소수력 | C10: 189.96 | D10: 0 | E10: 0 | F10: 0 | G10: 45479.40527 | H10: 45479.40527 | I10: 0 | J10: 0 | K10: 0 | L10: 0
A11: 8 | B11: 수력 | C11: 1604.98 | D11: 167466 | E11: 168060 | F11: 168060 | G11: 175065.8687 | H11: 175065.8687 | I11: 167465 | J11: 0 | K11: 0 | L11: 0
A12: 9 | B12: 양수 | C12: 4700 | D12: 2820 | E12: 2820 | F12: 2820 | G12: 311891.5788 | H12: 311891.5788 | I12: -680 | J12: 0 | K12: 0 | L12: 0
A13: 10 | B13: 매립가스 | C13: 66.148 | D13: 0 | E13: 0 | F13: 0 | G13: 15911.09015 | H13: 15911.09015 | I13: 0 | J13: 0 | K13: 0 | L13: 0
A14: 12 | B14: 중유 | C14: 1558.3 | D14: 1369572 | E14: 1351370 | F14: 1351370 | G14: 277253.994 | H14: 277253.994 | I14: 15613 | J14: 1351416.254 | K14: 1351370 | L14: 0
A15: 13 | B15: 태양광 | C15: 3516.15 | D15: 0 | E15: 0 | F15: 0 | G15: 244466.3765 | H15: 244466.3765 | I15: 0 | J15: 0 | K15: 0 | L15: 0
A16: 15 | B16: 폐기물 | C16: 317.282 | D16: 0 | E16: 0 | F16: 0 | G16: 71737.8318 | H16: 71737.8318 | I16: 0 | J16: 0 | K16: 0 | L16: 0
A17: 16 | B17: 풍력 | C17: 1562.173 | D17: 0 | E17: 0 | F17: 0 | G17: 310624.7566 | H17: 310624.7566 | I17: 0 | J17: 0 | K17: 0 | L17: 0
A18: 17 | B18: LNG | C18: 40296.086 | D18: 30830734 | E18: 30409965 | F18: 30404259.79 | G18: 15141331.09 | H18: 15141324.34 | I18: 14967175 | J18: 30411167.73 | K18: 30409796 | L18: 125245
A19: 20 | B19: 연료전지 | C19: 485.69 | D19: 0 | E19: 0 | F19: 0 | G19: 211607.0948 | H19: 211607.0948 | I19: 0 | J19: 0 | K19: 0 | L19: 0
A20: 21 | B20: 경유 | C20: 465.8 | D20: 383258 | E20: 383112 | F20: 383112 | G20: 0 | H20: 0 | I20: 0 | J20: 383112 | K20: 383112 | L20: 0
A21: 22 | B21: 해양에너지 | C21: 255.5 | D21: 0 | E21: 0 | F21: 0 | G21: 38549.03741 | H21: 38549.03741 | I21: 0 | J21: 0 | K21: 0 | L21: 0
A22: 23 | B22: 가스압 | C22: 0.3 | D22: 0 | E22: 0 | F22: 0 | G22: 0 | H22: 0 | I22: 0 | J22: 0 | K22: 0 | L22: 0
A23: 24 | B23: 바이오매스 | C23: 391.354 | D23: 0 | E23: 0 | F23: 0 | G23: 167301.7915 | H23: 167301.7915 | I23: 0 | J23: 0 | K23: 0 | L23: 0
A24: 25 | B24: IGCC | C24: 346.33 | D24: 0 | E24: 0 | F24: 0 | G24: 191497.931 | H24: 191497.931 | I24: 0 | J24: 0 | K24: 0 | L24: 0
A25: 32 | B25: 바이오중유 | C25: 350 | D25: 251472 | E25: 251472 | F25: 251472 | G25: 116007.8373 | H25: 116007.7827 | I25: 3302 | J25: 251472 | K25: 251472 | L25: 0
A26: 40 | B26: RPS | C26: 0 | D26: 0 | E26: 0 | F26: 0 | G26: 0 | H26: 0 | I26: 0 | J26: 0 | K26: 0 | L26: 0
A27: 99 | B27: 기타 | C27: 81.19 | D27: 0 | E27: 0 | F27: 0 | G27: 46918.24494 | H27: 46918.24494 | I27: 0 | J27: 0 | K27: 0 | L27: 0
A28: 원자력합 | B28: 원자력합 | C28: 23250 | D28: 11326058 | E28: 11321176 | F28: 11321176 | G28: 11314741.92 | H28: 11314741.92 | I28: 11324878 | J28: 11322863.6 | K28: 11321176 | L28: 0
A29: 석탄합 | B29: 석탄합 | C29: 37506.282 | D29: 17653152 | E29: 17596332 | F29: 17595883.9 | G29: 17659970.03 | H29: 17659970.03 | I29: 17632400 | J29: 17596623.62 | K29: 17596332 | L29: 0
A30: LNG합 | B30: LNG합 | C30: 40296.086 | D30: 30830734 | E30: 30409965 | F30: 30404259.79 | G30: 15141331.09 | H30: 15141324.34 | I30: 14967175 | J30: 30411167.73 | K30: 30409796 | L30: 125245
A31: 유류합 | B31: 유류합 | C31: 2024.1 | D31: 1752830 | E31: 1734482 | F31: 1734482 | G31: 277253.994 | H31: 277253.994 | I31: 15613 | J31: 1734528.254 | K31: 1734482 | L31: 0
A32: 양수합 | B32: 양수합 | C32: 4700 | D32: 2820 | E32: 2820 | F32: 2820 | G32: 311891.5788 | H32: 311891.5788 | I32: -680 | J32: 0 | K32: 0 | L32: 0
A33: 신재생합 | B33: 신재생합 | C33: 13416.154 | D33: 418938 | E33: 419532 | F33: 419532 | G33: 2180740.309 | H33: 2180740.254 | I33: 170767 | J33: 251472 | K33: 251472 | L33: 0
A34: 기타합 | B34: 기타합 | C34: 81.49 | D34: 0 | E34: 0 | F34: 0 | G34: 46918.24494 | H34: 46918.24494 | I34: 0 | J34: 0 | K34: 0 | L34: 0
A35: 수력합 | B35: 수력합 | C35: 1794.94 | D35: 167466 | E35: 168060 | F35: 168060 | G35: 220545.274 | H35: 220545.274 | I35: 167465 | J35: 0 | K35: 0 | L35: 0
A36: 폐기물합 | B36: 폐기물합 | C36: 4560.752 | D36: 0 | E36: 0 | F36: 0 | G36: 640730.0951 | H36: 640730.0951 | I36: 0 | J36: 0 | K36: 0 | L36: 0
A37: 바이오합 | B37: 바이오합 | C37: 894.619 | D37: 251472 | E37: 251472 | F37: 251472 | G37: 322719.7438 | H37: 322719.6892 | I37: 3302 | J37: 251472 | K37: 251472 | L37: 0
A38: 총계 | C38: 121274.112 | D38: 61984532 | E38: 61484307 | F38: 61478153.69 | G38: 46932847.17 | H38: 46932840.36 | I38: 44110153 | J38: 61316655.2 | K38: 61313258 | L38: 125245

Sheet 201912
A1: 정산요소 내역
A2: 조회기간 : 2019-12-01 ~ 2019-12-31
A3: 단위 : MWh
A4: 연료원코드 | B4: 연료원 | C4: 설비용량(MW) | D4: A | E4: RA | F4: ARA | G4: MGO | H4: AMGO | I4: PSE | J4: FCA | K4: OFCA | L4: OR
A5: 1 | B5: 원자력 | C5: 23250 | D5: 10540596 | E5: 10518739 | F5: 10518697.14 | G5: 10513642.44 | H5: 10513642.44 | I5: 10539550 | J5: 10521435.47 | K5: 10518739 | L5: 0
A6: 2 | B6: 유연탄 | C6: 36856.282 | D6: 17919053 | E6: 17815849 | F6: 17815311.67 | G6: 17962242.82 | H6: 17962242.82 | I6: 17918793 | J6: 17817329.46 | K6: 17815849 | L6: 0
A7: 3 | B7: 무연탄 | C7: 600 | D7: 195300 | E7: 190829 | F7: 190813.46 | G7: 188007.4071 | H7: 188007.4071 | I7: 194688 | J7: 190923.8249 | K7: 190829 | L7: 0
A8: 4 | B8: 등유 | D8: 32551 | E8: 31147 | F8: 30871.303 | G8: 27885.25852 | H8: 27885.25852 | I8: 18564 | J8: 31165.26371 | K8: 31147 | L8: 0
A9: 5 | B9: 바이오가스 | C9: 87.117 | D9: 0 | E9: 0 | F9: 0 | G9: 37840.4116 | H9: 37840.4116 | I9: 0 | J9: 0 | K9: 0 | L9: 0
A10: 6 | B10: 부생가스 | C10: 4243.47 | D10: 0 | E10: 0 | F10: 0 | G10: 511125.6968 | H10: 511125.6968 | I10: 0 | J10: 0 | K10: 0 | L10: 0
A11: 7 | B11: 소수력 | C11: 189.96 | D11: 0 | E11: 0 | F11: 0 | G11: 37646.61863 | H11: 37646.61863 | I11: 0 | J11: 0 | K11: 0 | L11: 0
A12: 8 | B12: 수력 | C12: 1604.98 | D12: 152212 | E12: 153332 | F12: 153332 | G12: 157114.7537 | H12: 157114.7537 | I12: 152212 | J12: 0 | K12: 0 | L12: 0
A13: 9 | B13: 양수 | C13: 4700 | D13: 820 | E13: 820 | F13: 820 | G13: 300228.35 | H13: 300228.35 | I13: -3656 | J13: 0 | K13: 0 | L13: 0
A14: 10 | B14: 매립가스 | C14: 66.148 | D14: 0 | E14: 0 | F14: 0 | G14: 20298.85412 | H14: 20298.85412 | I14: 0 | J14: 0 | K14: 0 | L14: 0
A15: 12 | B15: 중유 | C15: 2958.3 | D15: 2017977 | E15: 1987116 | F15: 1986930.324 | G15: 559111.1669 | H15: 559110.7761 | I15: 24010 | J15: 1987146.282 | K15: 1987116 | L15: 0
A16: 13 | B16: 태양광 | C16: 3394.089 | D16: 0 | E16: 0 | F16: 0 | G16: 240092.0275 | H16: 240092.0275 | I16: 0 | J16: 0 | K16: 0 | L16: 0
A17: 15 | B17: 폐기물 | C17: 298.082 | D17: 0 | E17: 0 | F17: 0 | G17: 73587.87939 | H17: 73587.87939 | I17: 0 | J17: 0 | K17: 0 | L17: 0
A18: 16 | B18: 풍력 | C18: 1562.173 | D18: 0 | E18: 0 | F18: 0 | G18: 340700.5969 | H18: 340700.5969 | I18: 0 | J18: 0 | K18: 0 | L18: 0
A19: 17 | B19: LNG | C19: 38875.442 | D19: 29061465 | E19: 28565164 | F19: 28548343.87 | G19: 16019427.09 | H19: 16019427.09 | I19: 15772607 | J19: 28578201.49 | K19: 28564614 | L19: 111753
A20: 20 | B20: 연료전지 | C20: 479.91 | D20: 0 | E20: 0 | F20: 0 | G20: 208395.2902 | H20: 208395.2902 | I20: 0 | J20: 0 | K20: 0 | L20: 0
A21: 21 | B21: 경유 | C21: 520.8 | D21: 482283 | E21: 486247 | F21: 486244.843 | G21: 44352.0089 | H21: 44352.0089 | I21: 34961 | J21: 486299.2787 | K21: 486247 | L21: 0
A22: 22 | B22: 해양에너지 | C22: 255.5 | D22: 0 | E22: 0 | F22: 0 | G22: 39024.01387 | H22: 39024.01387 | I22: 0 | J22: 0 | K22: 0 | L22: 0
A23: 23 | B23: 가스압 | C23: 0.3 | D23: 0 | E23: 0 | F23: 0 | G23: 0 | H23: 0 | I23: 0 | J23: 0 | K23: 0 | L23: 0
A24: 24 | B24: 바이오매스 | C24: 391.354 | D24: 0 | E24: 0 | F24: 0 | G24: 234601.7828 | H24: 234601.7828 | I24: 0 | J24: 0 | K24: 0 | L24: 0
A25: 25 | B25: IGCC | C25: 346.33 | D25: 0 | E25: 0 | F25: 0 | G25: 134318.6247 | H25: 134318.6247 | I25: 0 | J25: 0 | K25: 0 | L25: 0
A26: 32 | B26: 바이오중유 | C26: 350 | D26: 238657 | E26: 238426 | F26: 238426 | G26: 130369.401 | H26: 130369.401 | I26: 17368 | J26: 238446.6168 | K26: 238426 | L26: 0
